Workbook

Sheet INTRO
B2: PC Joint Reporting Form v.3
B4: The purpose of this template Joint Reporting Form (JRF) - available as an Excel file - is to provide national health authorities and data managers with a standardized tool to address these reporting challenges, facilitate integration and thereby further contribute to improving overall programme management. This template aims to standardize national reporting of programme implementation outcomes, improve availability and coordination of preventive chemotherapy data across the World Health Organization regions. National authorities are requested to complete this form for submission to the World Health Organization any time before 15 August of the current year for reporting data on PC interventions implemented during the previous year.
B6: Structure of the application (worksheets):
B8: INTRO | C8: This worksheet includes guides on how to complete the joint reporting form and information about status of PC for endemic diseases in the country
B9: COUNTRY_INFO | C9: This worksheet includes information about administrative structure of the country, population by age group, status of endemicity for each disease, population requiring PC, planned interventions and interventions implemented
B10: MDA1, MDA2, MDA3, T1, T2 and T3 | C10: These worksheets include information about endemic districts targeted for treatment with specified PC medicines, treatment plan, and number of people who received treatment by age group
B11: DISTRICT | C11: This worksheet includes summary of people treated by disease at the level of implementation. If data by gender is available, it requires to enter.
B12: SUMMARY | C12: This worksheet includes summary of people treated by disease and by PC intervention. Before generating the report (run macros) please select the disease for which you need the report. Follow the same rule to generate various reports. This worksheet should be printed and submitted as a Joint Report (see the instruction for submission in the SUMMARY worksheet).
B14: Instruction for data entry
B16: Most of the cells in the above-mentioned worksheets include formula that are calculated automatically according to the treatment policy recommended by WHO for each disease. See the link http://www.who.int/neglected_diseases/preventive_chemotherapy/pct_manual/en/index.html
B18: Please enter your data into the cells according to their colour code:
C20: White - cell is not protected. Please enter the value of the requested indicator.
C22: Yellow - cell is protected and includes name of indicator. No data entry required.
C24: Orange - cell is not protected and includes a drop-down menu. Please select the value from the drop-down list.
C27: Green - cell is not protected and includes formula. Please change the value only if your data are different from those that are calculated automatically.
C30: Blue - cell is protected and includes formula. No data entry required.
B32: Country data
B34: COUNTRY | E34: Malawi
B36: Year of reporting data | E36: 2016
B38: Is country endemic for lymphatic filariasis (LF)? | E38: Endemic but PC is not required
B40: Is country endemic for onchocerciasis (ONCHO)? | E40: Endemic
B42: Is country endemic for soil-transmitted helminthiases (STH)? | E42: Endemic
B44: Is country endemic for schistosomiasis (SCH)? | E44: Endemic
B46: How many administrative units in the country? | E46: 29
B47: If demographical data at the second administrative level are not available by age group, please enter the proportion (%) of population by age group in the country. If data are available, please leave these cells blank.
B48: 1-4 years age | C48: Preschool-age children (PreSAC) | E48: 0.1868
B49: 5-14 years age | C49: School-age children (SAC) | E49: 0.277
B50: 15 years + | C50: Adults | E50: 0.536

Sheet COUNTRY_INFO
A1: COUNTRY INFORMATION
A2: Administrative structure, population by age group, endemicity status, planned interventions and interventions implemented
A4: TOTAL | D4: =SUM(D$9:D$1000) -> 15815267 | E4: =SUM(E$9:E$1000) -> 2954291 | F4: =SUM(F$9:F$1000) -> 4380828 | G4: =SUM(G$9:G$1000) -> 8476980 | L4: =SUM(L$9:L$1000) -> 0 | M4: =SUM(M$9:M$1000) -> 2284986 | N4: =SUM(N$9:N$1000) -> 7335119 | O4: =SUM(O$9:O$1000) -> 7066970.2
A6: Country administrative structure | D6: Population | H6: Endemicity | L6: Population requiring PC | P6: Number of treatment rounds planned for the year | T6: PC implemented | V6: Click to see the recommended strategy
A7: Country | B7: Province/State | C7: District | D7: Total | E7: PreSAC | F7: SAC | G7: Adults | H7: LF | I7: Oncho | J7: STH | K7: SCH | L7: LF | M7: Oncho | N7: STH | O7: SCH | P7: LF | Q7: Oncho | R7: STH | S7: SCH | T7: ROUND 1 | U7: ROUND2 | X7: IU_ID | Y7: IU_NAME
A9: =IF(INTRO!$E$34<>0,INTRO!$E$34,"") -> Malawi | B9: North | C9: Chitipa | D9: 211170 | E9: =IF(INTRO!$E$48="","",ROUND($D9*INTRO!$E$48,0)) -> 39447 | F9: =IF(INTRO!$E$49="","",ROUND($D9*INTRO!$E$49,0)) -> 58494 | G9: =IF(INTRO!$E$50="","",ROUND($D9*INTRO!$E$50,0)) -> 113187 | I9: 0 | J9: 2 | K9: 2 | L9: =IF(INTRO!$E$38="Endemic", IF($H9>0, IF($H9=4,"Unknown", IF($H9=99,"Stopped", $D9)), 0),"Not required") -> Not required | N9: =IF(INTRO!$E$42="Endemic", IF(AND($J9>1,$J9<5), IF($J9=4, "Unknown", E9+F9), 0),"Not required") -> 97941 | O9: =IF(INTRO!$E$44="Endemic", IF(AND($K9>0,$K9<5), IF($K9=4,"Unknown", IF($K9=1, $F9*0.33, IF($K9=2, $F9*0.5+$G9*0.2, SUM(F9:G9)))), 0),"Not required") -> 51884.4 | Q9: 0 | R9: 2 | S9: 1 | T9: T3 (ALB/MBD) | U9: T1 (PZQ+ALB/MBD) | X9: 28948 | Y9: Chitipa | AA9: =+Y9=C9 -> TRUE
A10: =IF(INTRO!$E$34<>0,INTRO!$E$34,"") -> Malawi | B10: North | C10: Karonga | D10: 327084 | E10: =IF(INTRO!$E$48="","",ROUND($D10*INTRO!$E$48,0)) -> 61099 | F10: =IF(INTRO!$E$49="","",ROUND($D10*INTRO!$E$49,0)) -> 90602 | G10: =IF(INTRO!$E$50="","",ROUND($D10*INTRO!$E$50,0)) -> 175317 | I10: 0 | J10: 2 | K10: 2 | L10: =IF(INTRO!$E$38="Endemic", IF($H10>0, IF($H10=4,"Unknown", IF($H10=99,"Stopped", $D10)), 0),"Not required") -> Not required | N10: =IF(INTRO!$E$42="Endemic", IF(AND($J10>1,$J10<5), IF($J10=4, "Unknown", E10+F10), 0),"Not required") -> 151701 | O10: =IF(INTRO!$E$44="Endemic", IF(AND($K10>0,$K10<5), IF($K10=4,"Unknown", IF($K10=1, $F10*0.33, IF($K10=2, $F10*0.5+$G10*0.2, SUM(F10:G10)))), 0),"Not required") -> 80364.4 | Q10: 0 | R10: 2 | S10: 1 | T10: T3 (ALB/MBD) | U10: T1 (PZQ+ALB/MBD) | X10: 28951 | Y10: Karonga | AA10: =+Y10=C10 -> TRUE
A11: =IF(INTRO!$E$34<>0,INTRO!$E$34,"") -> Malawi | B11: North | C11: Rumphi | D11: 203053 | E11: =IF(INTRO!$E$48="","",ROUND($D11*INTRO!$E$48,0)) -> 37930 | F11: =IF(INTRO!$E$49="","",ROUND($D11*INTRO!$E$49,0)) -> 56246 | G11: =IF(INTRO!$E$50="","",ROUND($D11*INTRO!$E$50,0)) -> 108836 | I11: 0 | J11: 2 | K11: 2 | L11: =IF(INTRO!$E$38="Endemic", IF($H11>0, IF($H11=4,"Unknown", IF($H11=99,"Stopped", $D11)), 0),"Not required") -> Not required | N11: =IF(INTRO!$E$42="Endemic", IF(AND($J11>1,$J11<5), IF($J11=4, "Unknown", E11+F11), 0),"Not required") -> 94176 | O11: =IF(INTRO!$E$44="Endemic", IF(AND($K11>0,$K11<5), IF($K11=4,"Unknown", IF($K11=1, $F11*0.33, IF($K11=2, $F11*0.5+$G11*0.2, SUM(F11:G11)))), 0),"Not required") -> 49890.2 | Q11: 0 | R11: 2 | S11: 1 | T11: T3 (ALB/MBD) | U11: T1 (PZQ+ALB/MBD) | X11: 28968 | Y11: Rumphi | AA11: TRUE
A12: =IF(INTRO!$E$34<>0,INTRO!$E$34,"") -> Malawi | B12: North | C12: Mzimba North | D12: 522678 | E12: =IF(INTRO!$E$48="","",ROUND($D12*INTRO!$E$48,0)) -> 97636 | F12: =IF(INTRO!$E$49="","",ROUND($D12*INTRO!$E$49,0)) -> 144782 | G12: =IF(INTRO!$E$50="","",ROUND($D12*INTRO!$E$50,0)) -> 280155 | I12: 0 | J12: 2 | K12: 2 | L12: =IF(INTRO!$E$38="Endemic", IF($H12>0, IF($H12=4,"Unknown", IF($H12=99,"Stopped", $D12)), 0),"Not required") -> Not required | N12: =IF(INTRO!$E$42="Endemic", IF(AND($J12>1,$J12<5), IF($J12=4, "Unknown", E12+F12), 0),"Not required") -> 242418 | O12: =IF(INTRO!$E$44="Endemic", IF(AND($K12>0,$K12<5), IF($K12=4,"Unknown", IF($K12=1, $F12*0.33, IF($K12=2, $F12*0.5+$G12*0.2, SUM(F12:G12)))), 0),"Not required") -> 128422 | Q12: 0 | R12: 2 | S12: 1 | T12: T3 (ALB/MBD) | U12: T1 (PZQ+ALB/MBD) | X12: 28972 | Y12: Mzimba North | AA12: TRUE
A13: =IF(INTRO!$E$34<>0,INTRO!$E$34,"") -> Malawi | B13: North | C13: Mzimba South | D13: 555618 | E13: =IF(INTRO!$E$48="","",ROUND($D13*INTRO!$E$48,0)) -> 103789 | F13: =IF(INTRO!$E$49="","",ROUND($D13*INTRO!$E$49,0)) -> 153906 | G13: =IF(INTRO!$E$50="","",ROUND($D13*INTRO!$E$50,0)) -> 297811 | I13: 0 | J13: 2 | K13: 2 | L13: =IF(INTRO!$E$38="Endemic", IF($H13>0, IF($H13=4,"Unknown", IF($H13=99,"Stopped", $D13)), 0),"Not required") -> Not required | N13: =IF(INTRO!$E$42="Endemic", IF(AND($J13>1,$J13<5), IF($J13=4, "Unknown", E13+F13), 0),"Not required") -> 257695 | O13: =IF(INTRO!$E$44="Endemic", IF(AND($K13>0,$K13<5), IF($K13=4,"Unknown", IF($K13=1, $F13*0.33, IF($K13=2, $F13*0.5+$G13*0.2, SUM(F13:G13)))), 0),"Not required") -> 136515.2 | Q13: 0 | R13: 2 | S13: 1 | T13: T3 (ALB/MBD) | U13: T1 (PZQ+ALB/MBD) | X13: 28973 | Y13: Mzimba South | AA13: TRUE
A14: =IF(INTRO!$E$34<>0,INTRO!$E$34,"") -> Malawi | B14: North | C14: Nkhatabay | D14: 260583 | E14: =IF(INTRO!$E$48="","",ROUND($D14*INTRO!$E$48,0)) -> 48677 | F14: =IF(INTRO!$E$49="","",ROUND($D14*INTRO!$E$49,0)) -> 72181 | G14: =IF(INTRO!$E$50="","",ROUND($D14*INTRO!$E$50,0)) -> 139672 | I14: 0 | J14: 2 | K14: 2 | L14: =IF(INTRO!$E$38="Endemic", IF($H14>0, IF($H14=4,"Unknown", IF($H14=99,"Stopped", $D14)), 0),"Not required") -> Not required | N14: =IF(INTRO!$E$42="Endemic", IF(AND($J14>1,$J14<5), IF($J14=4, "Unknown", E14+F14), 0),"Not required") -> 120858 | O14: =IF(INTRO!$E$44="Endemic", IF(AND($K14>0,$K14<5), IF($K14=4,"Unknown", IF($K14=1, $F14*0.33, IF($K14=2, $F14*0.5+$G14*0.2, SUM(F14:G14)))), 0),"Not required") -> 64024.9 | Q14: 0 | R14: 2 | S14: 1 | T14: T3 (ALB/MBD) | U14: T1 (PZQ+ALB/MBD) | X14: 28962 | Y14: Nkhata bay | AA14: FALSE
A15: =IF(INTRO!$E$34<>0,INTRO!$E$34,"") -> Malawi | B15: North | C15: Likoma | D15: 10441 | E15: =IF(INTRO!$E$48="","",ROUND($D15*INTRO!$E$48,0)) -> 1950 | F15: =IF(INTRO!$E$49="","",ROUND($D15*INTRO!$E$49,0)) -> 2892 | G15: =IF(INTRO!$E$50="","",ROUND($D15*INTRO!$E$50,0)) -> 5596 | I15: 0 | J15: 2 | K15: 3 | L15: =IF(INTRO!$E$38="Endemic", IF($H15>0, IF($H15=4,"Unknown", IF($H15=99,"Stopped", $D15)), 0),"Not required") -> Not required | N15: =IF(INTRO!$E$42="Endemic", IF(AND($J15>1,$J15<5), IF($J15=4, "Unknown", E15+F15), 0),"Not required") -> 4842 | O15: =IF(INTRO!$E$44="Endemic", IF(AND($K15>0,$K15<5), IF($K15=4,"Unknown", IF($K15=1, $F15*0.33, IF($K15=2, $F15*0.5+$G15*0.2, SUM(F15:G15)))), 0),"Not required") -> 8488 | Q15: 0 | R15: 2 | S15: 1 | T15: T3 (ALB/MBD) | U15: T1 (PZQ+ALB/MBD) | X15: 28953 | Y15: Likoma | AA15: TRUE
A16: =IF(INTRO!$E$34<>0,INTRO!$E$34,"") -> Malawi | B16: Central | C16: Kasungu | D16: 794991 | E16: =IF(INTRO!$E$48="","",ROUND($D16*INTRO!$E$48,0)) -> 148504 | F16: =IF(INTRO!$E$49="","",ROUND($D16*INTRO!$E$49,0)) -> 220213 | G16: =IF(INTRO!$E$50="","",ROUND($D16*INTRO!$E$50,0)) -> 426115 | I16: 0 | J16: 2 | K16: 3 | L16: =IF(INTRO!$E$38="Endemic", IF($H16>0, IF($H16=4,"Unknown", IF($H16=99,"Stopped", $D16)), 0),"Not required") -> Not required | N16: =IF(INTRO!$E$42="Endemic", IF(AND($J16>1,$J16<5), IF($J16=4, "Unknown", E16+F16), 0),"Not required") -> 368717 | O16: =IF(INTRO!$E$44="Endemic", IF(AND($K16>0,$K16<5), IF($K16=4,"Unknown", IF($K16=1, $F16*0.33, IF($K16=2, $F16*0.5+$G16*0.2, SUM(F16:G16)))), 0),"Not required") -> 646328 | Q16: 0 | R16: 2 | S16: 1 | T16: T3 (ALB/MBD) | U16: T1 (PZQ+ALB/MBD) | X16: 28952 | Y16: Kasungu | AA16: TRUE
A17: =IF(INTRO!$E$34<>0,INTRO!$E$34,"") -> Malawi | B17: Central | C17: Dedza | D17: 718747 | E17: =IF(INTRO!$E$48="","",ROUND($D17*INTRO!$E$48,0)) -> 134262 | F17: =IF(INTRO!$E$49="","",ROUND($D17*INTRO!$E$49,0)) -> 199093 | G17: =IF(INTRO!$E$50="","",ROUND($D17*INTRO!$E$50,0)) -> 385248 | I17: 0 | J17: 2 | K17: 3 | L17: =IF(INTRO!$E$38="Endemic", IF($H17>0, IF($H17=4,"Unknown", IF($H17=99,"Stopped", $D17)), 0),"Not required") -> Not required | N17: =IF(INTRO!$E$42="Endemic", IF(AND($J17>1,$J17<5), IF($J17=4, "Unknown", E17+F17), 0),"Not required") -> 333355 | O17: =IF(INTRO!$E$44="Endemic", IF(AND($K17>0,$K17<5), IF($K17=4,"Unknown", IF($K17=1, $F17*0.33, IF($K17=2, $F17*0.5+$G17*0.2, SUM(F17:G17)))), 0),"Not required") -> 584341 | Q17: 0 | R17: 2 | S17: 1 | T17: T3 (ALB/MBD) | U17: T1 (PZQ+ALB/MBD) | X17: 28949 | Y17: Dedza | AA17: TRUE
A18: =IF(INTRO!$E$34<>0,INTRO!$E$34,"") -> Malawi | B18: Central | C18: Dowa | D18: 732343 | E18: =IF(INTRO!$E$48="","",ROUND($D18*INTRO!$E$48,0)) -> 136802 | F18: =IF(INTRO!$E$49="","",ROUND($D18*INTRO!$E$49,0)) -> 202859 | G18: =IF(INTRO!$E$50="","",ROUND($D18*INTRO!$E$50,0)) -> 392536 | I18: 0 | J18: 2 | K18: 2 | L18: =IF(INTRO!$E$38="Endemic", IF($H18>0, IF($H18=4,"Unknown", IF($H18=99,"Stopped", $D18)), 0),"Not required") -> Not required | N18: =IF(INTRO!$E$42="Endemic", IF(AND($J18>1,$J18<5), IF($J18=4, "Unknown", E18+F18), 0),"Not required") -> 339661 | O18: =IF(INTRO!$E$44="Endemic", IF(AND($K18>0,$K18<5), IF($K18=4,"Unknown", IF($K18=1, $F18*0.33, IF($K18=2, $F18*0.5+$G18*0.2, SUM(F18:G18)))), 0),"Not required") -> 179936.7 | Q18: 0 | R18: 2 | S18: 1 | T18: T3 (ALB/MBD) | U18: T1 (PZQ+ALB/MBD) | X18: 28950 | Y18: Dowa | AA18: TRUE
A19: =IF(INTRO!$E$34<>0,INTRO!$E$34,"") -> Malawi | B19: Central | C19: Lilongwe | D19: 2400234 | E19: =IF(INTRO!$E$48="","",ROUND($D19*INTRO!$E$48,0)) -> 448364 | F19: =IF(INTRO!$E$49="","",ROUND($D19*INTRO!$E$49,0)) -> 664865 | G19: =IF(INTRO!$E$50="","",ROUND($D19*INTRO!$E$50,0)) -> 1286525 | I19: 0 | J19: 2 | K19: 2 | L19: =IF(INTRO!$E$38="Endemic", IF($H19>0, IF($H19=4,"Unknown", IF($H19=99,"Stopped", $D19)), 0),"Not required") -> Not required | N19: =IF(INTRO!$E$42="Endemic", IF(AND($J19>1,$J19<5), IF($J19=4, "Unknown", E19+F19), 0),"Not required") -> 1113229 | O19: =IF(INTRO!$E$44="Endemic", IF(AND($K19>0,$K19<5), IF($K19=4,"Unknown", IF($K19=1, $F19*0.33, IF($K19=2, $F19*0.5+$G19*0.2, SUM(F19:G19)))), 0),"Not required") -> 589737.5 | Q19: 0 | R19: 2 | S19: 1 | T19: T3 (ALB/MBD) | U19: T1 (PZQ+ALB/MBD) | X19: 28954 | Y19: Lilongwe | AA19: TRUE
A20: =IF(INTRO!$E$34<>0,INTRO!$E$34,"") -> Malawi | B20: Central | C20: Mchinji | D20: 569085 | E20: =IF(INTRO!$E$48="","",ROUND($D20*INTRO!$E$48,0)) -> 106305 | F20: =IF(INTRO!$E$49="","",ROUND($D20*INTRO!$E$49,0)) -> 157637 | G20: =IF(INTRO!$E$50="","",ROUND($D20*INTRO!$E$50,0)) -> 305030 | I20: 0 | J20: 2 | K20: 2 | L20: =IF(INTRO!$E$38="Endemic", IF($H20>0, IF($H20=4,"Unknown", IF($H20=99,"Stopped", $D20)), 0),"Not required") -> Not required | N20: =IF(INTRO!$E$42="Endemic", IF(AND($J20>1,$J20<5), IF($J20=4, "Unknown", E20+F20), 0),"Not required") -> 263942 | O20: =IF(INTRO!$E$44="Endemic", IF(AND($K20>0,$K20<5), IF($K20=4,"Unknown", IF($K20=1, $F20*0.33, IF($K20=2, $F20*0.5+$G20*0.2, SUM(F20:G20)))), 0),"Not required") -> 139824.5 | Q20: 0 | R20: 2 | S20: 1 | T20: T3 (ALB/MBD) | U20: T1 (PZQ+ALB/MBD) | X20: 28957 | Y20: Mchinji | AA20: TRUE
A21: =IF(INTRO!$E$34<>0,INTRO!$E$34,"") -> Malawi | B21: Central | C21: Salima | D21: 407148 | E21: =IF(INTRO!$E$48="","",ROUND($D21*INTRO!$E$48,0)) -> 76055 | F21: =IF(INTRO!$E$49="","",ROUND($D21*INTRO!$E$49,0)) -> 112780 | G21: =IF(INTRO!$E$50="","",ROUND($D21*INTRO!$E$50,0)) -> 218231 | I21: 0 | J21: 2 | K21: 2 | L21: =IF(INTRO!$E$38="Endemic", IF($H21>0, IF($H21=4,"Unknown", IF($H21=99,"Stopped", $D21)), 0),"Not required") -> Not required | N21: =IF(INTRO!$E$42="Endemic", IF(AND($J21>1,$J21<5), IF($J21=4, "Unknown", E21+F21), 0),"Not required") -> 188835 | O21: =IF(INTRO!$E$44="Endemic", IF(AND($K21>0,$K21<5), IF($K21=4,"Unknown", IF($K21=1, $F21*0.33, IF($K21=2, $F21*0.5+$G21*0.2, SUM(F21:G21)))), 0),"Not required") -> 100036.2 | Q21: 0 | R21: 2 | S21: 1 | T21: T3 (ALB/MBD) | U21: T1 (PZQ+ALB/MBD) | X21: 28969 | Y21: Salima | AA21: TRUE
A22: =IF(INTRO!$E$34<>0,INTRO!$E$34,"") -> Malawi | B22: Central | C22: Nkhotakota | D22: 367776 | E22: =IF(INTRO!$E$48="","",ROUND($D22*INTRO!$E$48,0)) -> 68701 | F22: =IF(INTRO!$E$49="","",ROUND($D22*INTRO!$E$49,0)) -> 101874 | G22: =IF(INTRO!$E$50="","",ROUND($D22*INTRO!$E$50,0)) -> 197128 | I22: 0 | J22: 2 | K22: 2 | L22: =IF(INTRO!$E$38="Endemic", IF($H22>0, IF($H22=4,"Unknown", IF($H22=99,"Stopped", $D22)), 0),"Not required") -> Not required | N22: =IF(INTRO!$E$42="Endemic", IF(AND($J22>1,$J22<5), IF($J22=4, "Unknown", E22+F22), 0),"Not required") -> 170575 | O22: =IF(INTRO!$E$44="Endemic", IF(AND($K22>0,$K22<5), IF($K22=4,"Unknown", IF($K22=1, $F22*0.33, IF($K22=2, $F22*0.5+$G22*0.2, SUM(F22:G22)))), 0),"Not required") -> 90362.6 | Q22: 0 | R22: 2 | S22: 1 | T22: T3 (ALB/MBD) | U22: T1 (PZQ+ALB/MBD) | X22: 28963 | Y22: Nkhotakota | AA22: TRUE
A23: =IF(INTRO!$E$34<>0,INTRO!$E$34,"") -> Malawi | B23: Central | C23: Ntchisi | D23: 276481 | E23: =IF(INTRO!$E$48="","",ROUND($D23*INTRO!$E$48,0)) -> 51647 | F23: =IF(INTRO!$E$49="","",ROUND($D23*INTRO!$E$49,0)) -> 76585 | G23: =IF(INTRO!$E$50="","",ROUND($D23*INTRO!$E$50,0)) -> 148194 | I23: 0 | J23: 2 | K23: 2 | L23: =IF(INTRO!$E$38="Endemic", IF($H23>0, IF($H23=4,"Unknown", IF($H23=99,"Stopped", $D23)), 0),"Not required") -> Not required | N23: =IF(INTRO!$E$42="Endemic", IF(AND($J23>1,$J23<5), IF($J23=4, "Unknown", E23+F23), 0),"Not required") -> 128232 | O23: =IF(INTRO!$E$44="Endemic", IF(AND($K23>0,$K23<5), IF($K23=4,"Unknown", IF($K23=1, $F23*0.33, IF($K23=2, $F23*0.5+$G23*0.2, SUM(F23:G23)))), 0),"Not required") -> 67931.3 | Q23: 0 | R23: 2 | S23: 1 | T23: T3 (ALB/MBD) | U23: T1 (PZQ+ALB/MBD) | X23: 28966 | Y23: Ntchisi | AA23: TRUE
A24: =IF(INTRO!$E$34<>0,INTRO!$E$34,"") -> Malawi | B24: Central | C24: Ntcheu | D24: 557433 | E24: =IF(INTRO!$E$48="","",ROUND($D24*INTRO!$E$48,0)) -> 104128 | F24: =IF(INTRO!$E$49="","",ROUND($D24*INTRO!$E$49,0)) -> 154409 | G24: =IF(INTRO!$E$50="","",ROUND($D24*INTRO!$E$50,0)) -> 298784 | I24: 0 | J24: 2 | K24: 2 | L24: =IF(INTRO!$E$38="Endemic", IF($H24>0, IF($H24=4,"Unknown", IF($H24=99,"Stopped", $D24)), 0),"Not required") -> Not required | N24: =IF(INTRO!$E$42="Endemic", IF(AND($J24>1,$J24<5), IF($J24=4, "Unknown", E24+F24), 0),"Not required") -> 258537 | O24: =IF(INTRO!$E$44="Endemic", IF(AND($K24>0,$K24<5), IF($K24=4,"Unknown", IF($K24=1, $F24*0.33, IF($K24=2, $F24*0.5+$G24*0.2, SUM(F24:G24)))), 0),"Not required") -> 136961.3 | Q24: 0 | R24: 2 | S24: 1 | T24: T3 (ALB/MBD) | U24: T1 (PZQ+ALB/MBD) | X24: 28965 | Y24: Ntcheu | AA24: TRUE
A25: =IF(INTRO!$E$34<>0,INTRO!$E$34,"") -> Malawi | B25: South | C25: Balaka | D25: 383887 | E25: =IF(INTRO!$E$48="","",ROUND($D25*INTRO!$E$48,0)) -> 71710 | F25: =IF(INTRO!$E$49="","",ROUND($D25*INTRO!$E$49,0)) -> 106337 | G25: =IF(INTRO!$E$50="","",ROUND($D25*INTRO!$E$50,0)) -> 205763 | I25: 0 | J25: 2 | K25: 2 | L25: =IF(INTRO!$E$38="Endemic", IF($H25>0, IF($H25=4,"Unknown", IF($H25=99,"Stopped", $D25)), 0),"Not required") -> Not required | N25: =IF(INTRO!$E$42="Endemic", IF(AND($J25>1,$J25<5), IF($J25=4, "Unknown", E25+F25), 0),"Not required") -> 178047 | O25: =IF(INTRO!$E$44="Endemic", IF(AND($K25>0,$K25<5), IF($K25=4,"Unknown", IF($K25=1, $F25*0.33, IF($K25=2, $F25*0.5+$G25*0.2, SUM(F25:G25)))), 0),"Not required") -> 94321.1 | Q25: 0 | R25: 2 | S25: 1 | T25: T3 (ALB/MBD) | U25: T1 (PZQ+ALB/MBD) | X25: 28944 | Y25: Balaka | AA25: TRUE
A26: =IF(INTRO!$E$34<>0,INTRO!$E$34,"") -> Malawi | B26: South | C26: Chikwawa | D26: 518287 | E26: =IF(INTRO!$E$48="","",ROUND($D26*INTRO!$E$48,0)) -> 96816 | F26: =IF(INTRO!$E$49="","",ROUND($D26*INTRO!$E$49,0)) -> 143565 | G26: =IF(INTRO!$E$50="","",ROUND($D26*INTRO!$E$50,0)) -> 277802 | I26: 1 | J26: 2 | K26: 3 | L26: =IF(INTRO!$E$38="Endemic", IF($H26>0, IF($H26=4,"Unknown", IF($H26=99,"Stopped", $D26)), 0),"Not required") -> Not required | M26: 129350 | N26: =IF(INTRO!$E$42="Endemic", IF(AND($J26>1,$J26<5), IF($J26=4, "Unknown", E26+F26), 0),"Not required") -> 240381 | O26: =IF(INTRO!$E$44="Endemic", IF(AND($K26>0,$K26<5), IF($K26=4,"Unknown", IF($K26=1, $F26*0.33, IF($K26=2, $F26*0.5+$G26*0.2, SUM(F26:G26)))), 0),"Not required") -> 421367 | Q26: 1 | R26: 2 | S26: 1 | T26: MDA3 (IVM) | U26: T1 (PZQ+ALB/MBD) | X26: 28946 | Y26: Chikwawa | AA26: TRUE
A27: =IF(INTRO!$E$34<>0,INTRO!$E$34,"") -> Malawi | B27: South | C27: Chiradzulu | D27: 314059 | E27: =IF(INTRO!$E$48="","",ROUND($D27*INTRO!$E$48,0)) -> 58666 | F27: =IF(INTRO!$E$49="","",ROUND($D27*INTRO!$E$49,0)) -> 86994 | G27: =IF(INTRO!$E$50="","",ROUND($D27*INTRO!$E$50,0)) -> 168336 | I27: 1 | J27: 2 | K27: 2 | L27: =IF(INTRO!$E$38="Endemic", IF($H27>0, IF($H27=4,"Unknown", IF($H27=99,"Stopped", $D27)), 0),"Not required") -> Not required | M27: 178220 | N27: =IF(INTRO!$E$42="Endemic", IF(AND($J27>1,$J27<5), IF($J27=4, "Unknown", E27+F27), 0),"Not required") -> 145660 | O27: =IF(INTRO!$E$44="Endemic", IF(AND($K27>0,$K27<5), IF($K27=4,"Unknown", IF($K27=1, $F27*0.33, IF($K27=2, $F27*0.5+$G27*0.2, SUM(F27:G27)))), 0),"Not required") -> 77164.2 | Q27: 1 | R27: 2 | S27: 1 | T27: MDA3 (IVM) | U27: T1 (PZQ+ALB/MBD) | X27: 28947 | Y27: Chiradzulu | AA27: TRUE
A28: =IF(INTRO!$E$34<>0,INTRO!$E$34,"") -> Malawi | B28: South | C28: Machinga | D28: 589709 | E28: =IF(INTRO!$E$48="","",ROUND($D28*INTRO!$E$48,0)) -> 110158 | F28: =IF(INTRO!$E$49="","",ROUND($D28*INTRO!$E$49,0)) -> 163349 | G28: =IF(INTRO!$E$50="","",ROUND($D28*INTRO!$E$50,0)) -> 316084 | I28: 0 | J28: 2 | K28: 3 | L28: =IF(INTRO!$E$38="Endemic", IF($H28>0, IF($H28=4,"Unknown", IF($H28=99,"Stopped", $D28)), 0),"Not required") -> Not required | N28: =IF(INTRO!$E$42="Endemic", IF(AND($J28>1,$J28<5), IF($J28=4, "Unknown", E28+F28), 0),"Not required") -> 273507 | O28: =IF(INTRO!$E$44="Endemic", IF(AND($K28>0,$K28<5), IF($K28=4,"Unknown", IF($K28=1, $F28*0.33, IF($K28=2, $F28*0.5+$G28*0.2, SUM(F28:G28)))), 0),"Not required") -> 479433 | Q28: 0 | R28: 2 | S28: 1 | T28: T3 (ALB/MBD) | U28: T1 (PZQ+ALB/MBD) | X28: 28955 | Y28: Machinga | AA28: TRUE
A29: =IF(INTRO!$E$34<>0,INTRO!$E$34,"") -> Malawi | B29: South | C29: Blantyre | D29: 1239674 | E29: =IF(INTRO!$E$48="","",ROUND($D29*INTRO!$E$48,0)) -> 231571 | F29: =IF(INTRO!$E$49="","",ROUND($D29*INTRO!$E$49,0)) -> 343390 | G29: =IF(INTRO!$E$50="","",ROUND($D29*INTRO!$E$50,0)) -> 664465 | I29: 1 | J29: 2 | K29: 2 | L29: =IF(INTRO!$E$38="Endemic", IF($H29>0, IF($H29=4,"Unknown", IF($H29=99,"Stopped", $D29)), 0),"Not required") -> Not required | M29: 474974 | N29: =IF(INTRO!$E$42="Endemic", IF(AND($J29>1,$J29<5), IF($J29=4, "Unknown", E29+F29), 0),"Not required") -> 574961 | O29: =IF(INTRO!$E$44="Endemic", IF(AND($K29>0,$K29<5), IF($K29=4,"Unknown", IF($K29=1, $F29*0.33, IF($K29=2, $F29*0.5+$G29*0.2, SUM(F29:G29)))), 0),"Not required") -> 304588 | Q29: 1 | R29: 2 | S29: 1 | T29: MDA3 (IVM) | U29: T1 (PZQ+ALB/MBD) | X29: 28945 | Y29: Blantyre | AA29: TRUE
A30: =IF(INTRO!$E$34<>0,INTRO!$E$34,"") -> Malawi | B30: South | C30: Mangochi | D30: 982058 | E30: =IF(INTRO!$E$48="","",ROUND($D30*INTRO!$E$48,0)) -> 183448 | F30: =IF(INTRO!$E$49="","",ROUND($D30*INTRO!$E$49,0)) -> 272030 | G30: =IF(INTRO!$E$50="","",ROUND($D30*INTRO!$E$50,0)) -> 526383 | I30: 0 | J30: 2 | K30: 3 | L30: =IF(INTRO!$E$38="Endemic", IF($H30>0, IF($H30=4,"Unknown", IF($H30=99,"Stopped", $D30)), 0),"Not required") -> Not required | N30: =IF(INTRO!$E$42="Endemic", IF(AND($J30>1,$J30<5), IF($J30=4, "Unknown", E30+F30), 0),"Not required") -> 455478 | O30: =IF(INTRO!$E$44="Endemic", IF(AND($K30>0,$K30<5), IF($K30=4,"Unknown", IF($K30=1, $F30*0.33, IF($K30=2, $F30*0.5+$G30*0.2, SUM(F30:G30)))), 0),"Not required") -> 798413 | Q30: 0 | R30: 2 | S30: 1 | T30: T3 (ALB/MBD) | U30: T1 (PZQ+ALB/MBD) | X30: 28956 | Y30: Mangochi | AA30: TRUE
A31: =IF(INTRO!$E$34<>0,INTRO!$E$34,"") -> Malawi | B31: South | C31: Mulanje | D31: 564976 | E31: =IF(INTRO!$E$48="","",ROUND($D31*INTRO!$E$48,0)) -> 105538 | F31: =IF(INTRO!$E$49="","",ROUND($D31*INTRO!$E$49,0)) -> 156498 | G31: =IF(INTRO!$E$50="","",ROUND($D31*INTRO!$E$50,0)) -> 302827 | I31: 1 | J31: 2 | K31: 3 | L31: =IF(INTRO!$E$38="Endemic", IF($H31>0, IF($H31=4,"Unknown", IF($H31=99,"Stopped", $D31)), 0),"Not required") -> Not required | M31: 502062 | N31: =IF(INTRO!$E$42="Endemic", IF(AND($J31>1,$J31<5), IF($J31=4, "Unknown", E31+F31), 0),"Not required") -> 262036 | O31: =IF(INTRO!$E$44="Endemic", IF(AND($K31>0,$K31<5), IF($K31=4,"Unknown", IF($K31=1, $F31*0.33, IF($K31=2, $F31*0.5+$G31*0.2, SUM(F31:G31)))), 0),"Not required") -> 459325 | Q31: 1 | R31: 2 | S31: 1 | T31: MDA3 (IVM) | U31: T1 (PZQ+ALB/MBD) | X31: 28958 | Y31: Mulanje | AA31: TRUE
A32: =IF(INTRO!$E$34<>0,INTRO!$E$34,"") -> Malawi | B32: South | C32: Nsanje | D32: 284797 | E32: =IF(INTRO!$E$48="","",ROUND($D32*INTRO!$E$48,0)) -> 53200 | F32: =IF(INTRO!$E$49="","",ROUND($D32*INTRO!$E$49,0)) -> 78889 | G32: =IF(INTRO!$E$50="","",ROUND($D32*INTRO!$E$50,0)) -> 152651 | I32: 0 | J32: 2 | K32: 3 | L32: =IF(INTRO!$E$38="Endemic", IF($H32>0, IF($H32=4,"Unknown", IF($H32=99,"Stopped", $D32)), 0),"Not required") -> Not required | N32: =IF(INTRO!$E$42="Endemic", IF(AND($J32>1,$J32<5), IF($J32=4, "Unknown", E32+F32), 0),"Not required") -> 132089 | O32: =IF(INTRO!$E$44="Endemic", IF(AND($K32>0,$K32<5), IF($K32=4,"Unknown", IF($K32=1, $F32*0.33, IF($K32=2, $F32*0.5+$G32*0.2, SUM(F32:G32)))), 0),"Not required") -> 231540 | Q32: 0 | R32: 2 | S32: 1 | U32: T1 (PZQ+ALB/MBD) | X32: 28964 | Y32: Nsanje | AA32: TRUE
A33: =IF(INTRO!$E$34<>0,INTRO!$E$34,"") -> Malawi | B33: South | C33: Phalombe | D33: 364282 | E33: =IF(INTRO!$E$48="","",ROUND($D33*INTRO!$E$48,0)) -> 68048 | F33: =IF(INTRO!$E$49="","",ROUND($D33*INTRO!$E$49,0)) -> 100906 | G33: =IF(INTRO!$E$50="","",ROUND($D33*INTRO!$E$50,0)) -> 195255 | I33: 1 | J33: 2 | K33: 3 | L33: =IF(INTRO!$E$38="Endemic", IF($H33>0, IF($H33=4,"Unknown", IF($H33=99,"Stopped", $D33)), 0),"Not required") -> Not required | M33: 50201 | N33: =IF(INTRO!$E$42="Endemic", IF(AND($J33>1,$J33<5), IF($J33=4, "Unknown", E33+F33), 0),"Not required") -> 168954 | O33: =IF(INTRO!$E$44="Endemic", IF(AND($K33>0,$K33<5), IF($K33=4,"Unknown", IF($K33=1, $F33*0.33, IF($K33=2, $F33*0.5+$G33*0.2, SUM(F33:G33)))), 0),"Not required") -> 296161 | Q33: 1 | R33: 2 | S33: 1 | T33: MDA3 (IVM) | U33: T1 (PZQ+ALB/MBD) | X33: 28967 | Y33: Phalombe | AA33: TRUE
A34: =IF(INTRO!$E$34<>0,INTRO!$E$34,"") -> Malawi | B34: South | C34: Thyolo | D34: 633019 | E34: =IF(INTRO!$E$48="","",ROUND($D34*INTRO!$E$48,0)) -> 118248 | F34: =IF(INTRO!$E$49="","",ROUND($D34*INTRO!$E$49,0)) -> 175346 | G34: =IF(INTRO!$E$50="","",ROUND($D34*INTRO!$E$50,0)) -> 339298 | I34: 1 | J34: 2 | K34: 2 | L34: =IF(INTRO!$E$38="Endemic", IF($H34>0, IF($H34=4,"Unknown", IF($H34=99,"Stopped", $D34)), 0),"Not required") -> Not required | M34: 690248 | N34: =IF(INTRO!$E$42="Endemic", IF(AND($J34>1,$J34<5), IF($J34=4, "Unknown", E34+F34), 0),"Not required") -> 293594 | O34: =IF(INTRO!$E$44="Endemic", IF(AND($K34>0,$K34<5), IF($K34=4,"Unknown", IF($K34=1, $F34*0.33, IF($K34=2, $F34*0.5+$G34*0.2, SUM(F34:G34)))), 0),"Not required") -> 155532.6 | Q34: 1 | R34: 2 | S34: 1 | T34: MDA3 (IVM) | U34: T1 (PZQ+ALB/MBD) | X34: 28970 | Y34: Thyolo | AA34: TRUE
A35: =IF(INTRO!$E$34<>0,INTRO!$E$34,"") -> Malawi | B35: South | C35: Zomba | D35: 779259 | E35: =IF(INTRO!$E$48="","",ROUND($D35*INTRO!$E$48,0)) -> 145566 | F35: =IF(INTRO!$E$49="","",ROUND($D35*INTRO!$E$49,0)) -> 215855 | G35: =IF(INTRO!$E$50="","",ROUND($D35*INTRO!$E$50,0)) -> 417683 | I35: 0 | J35: 2 | K35: 3 | L35: =IF(INTRO!$E$38="Endemic", IF($H35>0, IF($H35=4,"Unknown", IF($H35=99,"Stopped", $D35)), 0),"Not required") -> Not required | N35: =IF(INTRO!$E$42="Endemic", IF(AND($J35>1,$J35<5), IF($J35=4, "Unknown", E35+F35), 0),"Not required") -> 361421 | O35: =IF(INTRO!$E$44="Endemic", IF(AND($K35>0,$K35<5), IF($K35=4,"Unknown", IF($K35=1, $F35*0.33, IF($K35=2, $F35*0.5+$G35*0.2, SUM(F35:G35)))), 0),"Not required") -> 633538 | Q35: 0 | R35: 2 | S35: 1 | T35: T3 (ALB/MBD) | U35: T1 (PZQ+ALB/MBD) | X35: 28971 | Y35: Zomba | AA35: TRUE
A36: =IF(INTRO!$E$34<>0,INTRO!$E$34,"") -> Malawi | B36: South | C36: Neno | D36: 143824 | E36: =IF(INTRO!$E$48="","",ROUND($D36*INTRO!$E$48,0)) -> 26866 | F36: =IF(INTRO!$E$49="","",ROUND($D36*INTRO!$E$49,0)) -> 39839 | G36: =IF(INTRO!$E$50="","",ROUND($D36*INTRO!$E$50,0)) -> 77090 | I36: 1 | J36: 2 | K36: 2 | L36: =IF(INTRO!$E$38="Endemic", IF($H36>0, IF($H36=4,"Unknown", IF($H36=99,"Stopped", $D36)), 0),"Not required") -> Not required | M36: 150667 | N36: =IF(INTRO!$E$42="Endemic", IF(AND($J36>1,$J36<5), IF($J36=4, "Unknown", E36+F36), 0),"Not required") -> 66705 | O36: =IF(INTRO!$E$44="Endemic", IF(AND($K36>0,$K36<5), IF($K36=4,"Unknown", IF($K36=1, $F36*0.33, IF($K36=2, $F36*0.5+$G36*0.2, SUM(F36:G36)))), 0),"Not required") -> 35337.5 | Q36: 1 | R36: 2 | S36: 1 | T36: MDA3 (IVM) | U36: T1 (PZQ+ALB/MBD) | X36: 28961 | Y36: Neno | AA36: TRUE
A37: =IF(INTRO!$E$34<>0,INTRO!$E$34,"") -> Malawi | B37: South | C37: Mwanza | D37: 102571 | E37: =IF(INTRO!$E$48="","",ROUND($D37*INTRO!$E$48,0)) -> 19160 | F37: =IF(INTRO!$E$49="","",ROUND($D37*INTRO!$E$49,0)) -> 28412 | G37: =IF(INTRO!$E$50="","",ROUND($D37*INTRO!$E$50,0)) -> 54978 | I37: 1 | J37: 2 | K37: 2 | L37: =IF(INTRO!$E$38="Endemic", IF($H37>0, IF($H37=4,"Unknown", IF($H37=99,"Stopped", $D37)), 0),"Not required") -> Not required | M37: 109264 | N37: =IF(INTRO!$E$42="Endemic", IF(AND($J37>1,$J37<5), IF($J37=4, "Unknown", E37+F37), 0),"Not required") -> 47572 | O37: =IF(INTRO!$E$44="Endemic", IF(AND($K37>0,$K37<5), IF($K37=4,"Unknown", IF($K37=1, $F37*0.33, IF($K37=2, $F37*0.5+$G37*0.2, SUM(F37:G37)))), 0),"Not required") -> 25201.6 | Q37: 1 | R37: 2 | S37: 1 | T37: MDA3 (IVM) | U37: T1 (PZQ+ALB/MBD) | X37: 28959 | Y37: Mwanza | AA37: TRUE

Sheet MDA1 (hidden)
A1: MDA 1 - Ivermectin (IVM) and Albendazole (ALB)
A2: Administrative structure, population requiring PC by age group, population treated by age group and coverage
A4: TOTAL | G4: =SUM(G$9:G$1000) -> 0 | H4: =SUM(H$9:H$1000) -> 0 | I4: =SUM(I$9:I$1000) -> 0 | K4: =SUM(K$9:K$1000) -> 0 | L4: =SUM(L$9:L$1000) -> 0 | M4: =SUM(M$9:M$1000) -> 0 | O4: =IF(G4<>0, IF(K4/G4*100=0, "-", K4/G4*100), " ") ->  | P4: =IF(H4<>0, IF(L4/H4*100=0, "-", L4/H4*100), " ") ->  | Q4: =IF(I4<>0, IF(M4/I4*100=0, "-", M4/I4*100), " ") -> 
D6: PC implemented | E6: Date | F6: Population targeted for MDA 1 | J6: Population treated | N6: Programme coverage (%)
A7: Country | B7: Province/State | C7: District | F7: PreSAC | G7: SAC | H7: Adults | I7: Total | J7: PreSAC | K7: SAC | L7: Adults | M7: Total | N7: PreSAC | O7: SAC | P7: Adults | Q7: Total
A9: =IF(COUNTRY_INFO!A9=0," ",COUNTRY_INFO!A9) -> Malawi | B9: =IF(COUNTRY_INFO!B9=0," ",COUNTRY_INFO!B9) -> North | C9: =IF(COUNTRY_INFO!C9=0," ",COUNTRY_INFO!C9) -> Chitipa | D9: =IF(COUNTRY_INFO!$T$9:$T$1000="MDA1 (IVM+ALB)", COUNTRY_INFO!$T$9:$T$1000, " ") ->  | I9: =SUM(F9:H9) -> 0 | M9: =SUM(J9:L9) -> 0 | O9: =IF(G9<>0, IF(K9/G9*100=0, "-", K9/G9*100), " ") ->  | P9: =IF(H9<>0, IF(L9/H9*100=0, "-", L9/H9*100), " ") -> 
A10: =IF(COUNTRY_INFO!A10=0," ",COUNTRY_INFO!A10) -> Malawi | B10: =IF(COUNTRY_INFO!B10=0," ",COUNTRY_INFO!B10) -> North | C10: =IF(COUNTRY_INFO!C10=0," ",COUNTRY_INFO!C10) -> Karonga | D10: =IF(COUNTRY_INFO!$T$9:$T$1000="MDA1 (IVM+ALB)", COUNTRY_INFO!$T$9:$T$1000, " ") ->  | I10: =SUM(F10:H10) -> 0 | M10: =SUM(J10:L10) -> 0 | O10: =IF(G10<>0, IF(K10/G10*100=0, "-", K10/G10*100), " ") ->  | P10: =IF(H10<>0, IF(L10/H10*100=0, "-", L10/H10*100), " ") ->  | Q10: =IF(I10<>0, IF(M10/I10*100=0, "-", M10/I10*100), " ") -> 
A11: =IF(COUNTRY_INFO!A11=0," ",COUNTRY_INFO!A11) -> Malawi | B11: =IF(COUNTRY_INFO!B11=0," ",COUNTRY_INFO!B11) -> North | C11: =IF(COUNTRY_INFO!C11=0," ",COUNTRY_INFO!C11) -> Rumphi | D11: =IF(COUNTRY_INFO!$T$9:$T$1000="MDA1 (IVM+ALB)", COUNTRY_INFO!$T$9:$T$1000, " ") ->  | I11: 0 | M11: 0
A12: =IF(COUNTRY_INFO!A12=0," ",COUNTRY_INFO!A12) -> Malawi | B12: =IF(COUNTRY_INFO!B12=0," ",COUNTRY_INFO!B12) -> North | C12: =IF(COUNTRY_INFO!C12=0," ",COUNTRY_INFO!C12) -> Mzimba North | D12: =IF(COUNTRY_INFO!$T$9:$T$1000="MDA1 (IVM+ALB)", COUNTRY_INFO!$T$9:$T$1000, " ") ->  | I12: 0 | M12: 0
A13: =IF(COUNTRY_INFO!A13=0," ",COUNTRY_INFO!A13) -> Malawi | B13: =IF(COUNTRY_INFO!B13=0," ",COUNTRY_INFO!B13) -> North | C13: =IF(COUNTRY_INFO!C13=0," ",COUNTRY_INFO!C13) -> Mzimba South | D13: =IF(COUNTRY_INFO!$T$9:$T$1000="MDA1 (IVM+ALB)", COUNTRY_INFO!$T$9:$T$1000, " ") ->  | I13: 0 | M13: 0
A14: =IF(COUNTRY_INFO!A14=0," ",COUNTRY_INFO!A14) -> Malawi | B14: =IF(COUNTRY_INFO!B14=0," ",COUNTRY_INFO!B14) -> North | C14: =IF(COUNTRY_INFO!C14=0," ",COUNTRY_INFO!C14) -> Nkhatabay | D14: =IF(COUNTRY_INFO!$T$9:$T$1000="MDA1 (IVM+ALB)", COUNTRY_INFO!$T$9:$T$1000, " ") ->  | I14: 0 | M14: 0
A15: =IF(COUNTRY_INFO!A15=0," ",COUNTRY_INFO!A15) -> Malawi | B15: =IF(COUNTRY_INFO!B15=0," ",COUNTRY_INFO!B15) -> North | C15: =IF(COUNTRY_INFO!C15=0," ",COUNTRY_INFO!C15) -> Likoma | D15: =IF(COUNTRY_INFO!$T$9:$T$1000="MDA1 (IVM+ALB)", COUNTRY_INFO!$T$9:$T$1000, " ") ->  | I15: 0 | M15: 0
A16: =IF(COUNTRY_INFO!A16=0," ",COUNTRY_INFO!A16) -> Malawi | B16: =IF(COUNTRY_INFO!B16=0," ",COUNTRY_INFO!B16) -> Central | C16: =IF(COUNTRY_INFO!C16=0," ",COUNTRY_INFO!C16) -> Kasungu | D16: =IF(COUNTRY_INFO!$T$9:$T$1000="MDA1 (IVM+ALB)", COUNTRY_INFO!$T$9:$T$1000, " ") ->  | I16: 0 | M16: 0
A17: =IF(COUNTRY_INFO!A17=0," ",COUNTRY_INFO!A17) -> Malawi | B17: =IF(COUNTRY_INFO!B17=0," ",COUNTRY_INFO!B17) -> Central | C17: =IF(COUNTRY_INFO!C17=0," ",COUNTRY_INFO!C17) -> Dedza | D17: =IF(COUNTRY_INFO!$T$9:$T$1000="MDA1 (IVM+ALB)", COUNTRY_INFO!$T$9:$T$1000, " ") ->  | I17: 0 | M17: 0
A18: =IF(COUNTRY_INFO!A18=0," ",COUNTRY_INFO!A18) -> Malawi | B18: =IF(COUNTRY_INFO!B18=0," ",COUNTRY_INFO!B18) -> Central | C18: =IF(COUNTRY_INFO!C18=0," ",COUNTRY_INFO!C18) -> Dowa | D18: =IF(COUNTRY_INFO!$T$9:$T$1000="MDA1 (IVM+ALB)", COUNTRY_INFO!$T$9:$T$1000, " ") ->  | I18: 0 | M18: 0
A19: =IF(COUNTRY_INFO!A19=0," ",COUNTRY_INFO!A19) -> Malawi | B19: =IF(COUNTRY_INFO!B19=0," ",COUNTRY_INFO!B19) -> Central | C19: =IF(COUNTRY_INFO!C19=0," ",COUNTRY_INFO!C19) -> Lilongwe | D19: =IF(COUNTRY_INFO!$T$9:$T$1000="MDA1 (IVM+ALB)", COUNTRY_INFO!$T$9:$T$1000, " ") ->  | I19: 0 | M19: 0
A20: =IF(COUNTRY_INFO!A20=0," ",COUNTRY_INFO!A20) -> Malawi | B20: =IF(COUNTRY_INFO!B20=0," ",COUNTRY_INFO!B20) -> Central | C20: =IF(COUNTRY_INFO!C20=0," ",COUNTRY_INFO!C20) -> Mchinji | D20: =IF(COUNTRY_INFO!$T$9:$T$1000="MDA1 (IVM+ALB)", COUNTRY_INFO!$T$9:$T$1000, " ") ->  | I20: 0 | M20: 0
A21: =IF(COUNTRY_INFO!A21=0," ",COUNTRY_INFO!A21) -> Malawi | B21: =IF(COUNTRY_INFO!B21=0," ",COUNTRY_INFO!B21) -> Central | C21: =IF(COUNTRY_INFO!C21=0," ",COUNTRY_INFO!C21) -> Salima | D21: =IF(COUNTRY_INFO!$T$9:$T$1000="MDA1 (IVM+ALB)", COUNTRY_INFO!$T$9:$T$1000, " ") ->  | I21: 0 | M21: 0
A22: =IF(COUNTRY_INFO!A22=0," ",COUNTRY_INFO!A22) -> Malawi | B22: =IF(COUNTRY_INFO!B22=0," ",COUNTRY_INFO!B22) -> Central | C22: =IF(COUNTRY_INFO!C22=0," ",COUNTRY_INFO!C22) -> Nkhotakota | D22: =IF(COUNTRY_INFO!$T$9:$T$1000="MDA1 (IVM+ALB)", COUNTRY_INFO!$T$9:$T$1000, " ") ->  | I22: 0 | M22: 0
A23: =IF(COUNTRY_INFO!A23=0," ",COUNTRY_INFO!A23) -> Malawi | B23: =IF(COUNTRY_INFO!B23=0," ",COUNTRY_INFO!B23) -> Central | C23: =IF(COUNTRY_INFO!C23=0," ",COUNTRY_INFO!C23) -> Ntchisi | D23: =IF(COUNTRY_INFO!$T$9:$T$1000="MDA1 (IVM+ALB)", COUNTRY_INFO!$T$9:$T$1000, " ") ->  | I23: 0 | M23: 0
A24: =IF(COUNTRY_INFO!A24=0," ",COUNTRY_INFO!A24) -> Malawi | B24: =IF(COUNTRY_INFO!B24=0," ",COUNTRY_INFO!B24) -> Central | C24: =IF(COUNTRY_INFO!C24=0," ",COUNTRY_INFO!C24) -> Ntcheu | D24: =IF(COUNTRY_INFO!$T$9:$T$1000="MDA1 (IVM+ALB)", COUNTRY_INFO!$T$9:$T$1000, " ") ->  | I24: 0 | M24: 0
A25: =IF(COUNTRY_INFO!A25=0," ",COUNTRY_INFO!A25) -> Malawi | B25: =IF(COUNTRY_INFO!B25=0," ",COUNTRY_INFO!B25) -> South | C25: =IF(COUNTRY_INFO!C25=0," ",COUNTRY_INFO!C25) -> Balaka | D25: =IF(COUNTRY_INFO!$T$9:$T$1000="MDA1 (IVM+ALB)", COUNTRY_INFO!$T$9:$T$1000, " ") ->  | I25: 0 | M25: 0
A26: =IF(COUNTRY_INFO!A26=0," ",COUNTRY_INFO!A26) -> Malawi | B26: =IF(COUNTRY_INFO!B26=0," ",COUNTRY_INFO!B26) -> South | C26: =IF(COUNTRY_INFO!C26=0," ",COUNTRY_INFO!C26) -> Chikwawa | D26: =IF(COUNTRY_INFO!$T$9:$T$1000="MDA1 (IVM+ALB)", COUNTRY_INFO!$T$9:$T$1000, " ") ->  | I26: 0 | M26: 0
A27: =IF(COUNTRY_INFO!A27=0," ",COUNTRY_INFO!A27) -> Malawi | B27: =IF(COUNTRY_INFO!B27=0," ",COUNTRY_INFO!B27) -> South | C27: =IF(COUNTRY_INFO!C27=0," ",COUNTRY_INFO!C27) -> Chiradzulu | D27: =IF(COUNTRY_INFO!$T$9:$T$1000="MDA1 (IVM+ALB)", COUNTRY_INFO!$T$9:$T$1000, " ") ->  | I27: 0 | M27: 0
A28: =IF(COUNTRY_INFO!A28=0," ",COUNTRY_INFO!A28) -> Malawi | B28: =IF(COUNTRY_INFO!B28=0," ",COUNTRY_INFO!B28) -> South | C28: =IF(COUNTRY_INFO!C28=0," ",COUNTRY_INFO!C28) -> Machinga | D28: =IF(COUNTRY_INFO!$T$9:$T$1000="MDA1 (IVM+ALB)", COUNTRY_INFO!$T$9:$T$1000, " ") ->  | I28: 0 | M28: 0
A29: =IF(COUNTRY_INFO!A29=0," ",COUNTRY_INFO!A29) -> Malawi | B29: =IF(COUNTRY_INFO!B29=0," ",COUNTRY_INFO!B29) -> South | C29: =IF(COUNTRY_INFO!C29=0," ",COUNTRY_INFO!C29) -> Blantyre | D29: =IF(COUNTRY_INFO!$T$9:$T$1000="MDA1 (IVM+ALB)", COUNTRY_INFO!$T$9:$T$1000, " ") ->  | I29: 0 | M29: 0
A30: =IF(COUNTRY_INFO!A30=0," ",COUNTRY_INFO!A30) -> Malawi | B30: =IF(COUNTRY_INFO!B30=0," ",COUNTRY_INFO!B30) -> South | C30: =IF(COUNTRY_INFO!C30=0," ",COUNTRY_INFO!C30) -> Mangochi | D30: =IF(COUNTRY_INFO!$T$9:$T$1000="MDA1 (IVM+ALB)", COUNTRY_INFO!$T$9:$T$1000, " ") ->  | I30: 0 | M30: 0
A31: =IF(COUNTRY_INFO!A31=0," ",COUNTRY_INFO!A31) -> Malawi | B31: =IF(COUNTRY_INFO!B31=0," ",COUNTRY_INFO!B31) -> South | C31: =IF(COUNTRY_INFO!C31=0," ",COUNTRY_INFO!C31) -> Mulanje | D31: =IF(COUNTRY_INFO!$T$9:$T$1000="MDA1 (IVM+ALB)", COUNTRY_INFO!$T$9:$T$1000, " ") ->  | I31: 0 | M31: 0
A32: =IF(COUNTRY_INFO!A32=0," ",COUNTRY_INFO!A32) -> Malawi | B32: =IF(COUNTRY_INFO!B32=0," ",COUNTRY_INFO!B32) -> South | C32: =IF(COUNTRY_INFO!C32=0," ",COUNTRY_INFO!C32) -> Nsanje | D32: =IF(COUNTRY_INFO!$T$9:$T$1000="MDA1 (IVM+ALB)", COUNTRY_INFO!$T$9:$T$1000, " ") ->  | I32: 0 | M32: 0
A33: =IF(COUNTRY_INFO!A33=0," ",COUNTRY_INFO!A33) -> Malawi | B33: =IF(COUNTRY_INFO!B33=0," ",COUNTRY_INFO!B33) -> South | C33: =IF(COUNTRY_INFO!C33=0," ",COUNTRY_INFO!C33) -> Phalombe | D33: =IF(COUNTRY_INFO!$T$9:$T$1000="MDA1 (IVM+ALB)", COUNTRY_INFO!$T$9:$T$1000, " ") ->  | I33: 0 | M33: 0
A34: =IF(COUNTRY_INFO!A34=0," ",COUNTRY_INFO!A34) -> Malawi | B34: =IF(COUNTRY_INFO!B34=0," ",COUNTRY_INFO!B34) -> South | C34: =IF(COUNTRY_INFO!C34=0," ",COUNTRY_INFO!C34) -> Thyolo | D34: =IF(COUNTRY_INFO!$T$9:$T$1000="MDA1 (IVM+ALB)", COUNTRY_INFO!$T$9:$T$1000, " ") ->  | I34: 0 | M34: 0
A35: =IF(COUNTRY_INFO!A35=0," ",COUNTRY_INFO!A35) -> Malawi | B35: =IF(COUNTRY_INFO!B35=0," ",COUNTRY_INFO!B35) -> South | C35: =IF(COUNTRY_INFO!C35=0," ",COUNTRY_INFO!C35) -> Zomba | D35: =IF(COUNTRY_INFO!$T$9:$T$1000="MDA1 (IVM+ALB)", COUNTRY_INFO!$T$9:$T$1000, " ") ->  | I35: 0 | M35: 0
A36: =IF(COUNTRY_INFO!A36=0," ",COUNTRY_INFO!A36) -> Malawi | B36: =IF(COUNTRY_INFO!B36=0," ",COUNTRY_INFO!B36) -> South | C36: =IF(COUNTRY_INFO!C36=0," ",COUNTRY_INFO!C36) -> Neno | D36: =IF(COUNTRY_INFO!$T$9:$T$1000="MDA1 (IVM+ALB)", COUNTRY_INFO!$T$9:$T$1000, " ") ->  | I36: 0 | M36: 0
A37: =IF(COUNTRY_INFO!A37=0," ",COUNTRY_INFO!A37) -> Malawi | B37: =IF(COUNTRY_INFO!B37=0," ",COUNTRY_INFO!B37) -> South | C37: =IF(COUNTRY_INFO!C37=0," ",COUNTRY_INFO!C37) -> Mwanza | D37: =IF(COUNTRY_INFO!$T$9:$T$1000="MDA1 (IVM+ALB)", COUNTRY_INFO!$T$9:$T$1000, " ") ->  | I37: 0 | M37: 0

Sheet MDA2 (hidden)
A1: MDA 2 - Diethylcarbamazine citrate (DEC) + Albendazole (ALB)
A2: Administrative structure, population requiring PC by age group, population treated by age group and coverage
A4: TOTAL | F4: =SUM(F$9:F$1000) -> 0 | G4: =SUM(G$9:G$1000) -> 0 | H4: 0 | I4: 0 | J4: 0 | K4: 0 | L4: 0 | M4: 0 | N4: =IF(F4<>0, IF(J4/F4*100=0, "-", J4/F4*100), " ") ->  | O4: =IF(G4<>0, IF(K4/G4*100=0, "-", K4/G4*100), " ") ->  | P4: =IF(H4<>0, IF(L4/H4*100=0, "-", L4/H4*100), " ") ->  | Q4: =IF(I4<>0, IF(M4/I4*100=0, "-", M4/I4*100), " ") -> 
D6: PC implemented | E6: Date | F6: Population targeted for MDA 2 | J6: Population treated | N6: Programme coverage (%)
A7: Country | B7: Province/State | C7: District | F7: PreSAC | G7: SAC | H7: Adults | I7: Total | J7: PreSAC | K7: SAC | L7: Adults | M7: Total | N7: PreSAC | O7: SAC | P7: Adults | Q7: Total
A9: =IF(COUNTRY_INFO!A9=0," ",COUNTRY_INFO!A9) -> Malawi | B9: =IF(COUNTRY_INFO!B9=0," ",COUNTRY_INFO!B9) -> North | C9: =IF(COUNTRY_INFO!C9=0," ",COUNTRY_INFO!C9) -> Chitipa | D9: =IF(COUNTRY_INFO!$T$9:$T$1000="MDA2 (DEC+ALB)", COUNTRY_INFO!$T$9:$T$1000, " ") ->  | I9: =SUM(F9:H9) -> 0 | M9: =SUM(J9:L9) -> 0 | N9: =IF(F9<>0, IF(J9/F9*100=0, "-", J9/F9*100), " ") -> 
A10: =IF(COUNTRY_INFO!A10=0," ",COUNTRY_INFO!A10) -> Malawi | B10: =IF(COUNTRY_INFO!B10=0," ",COUNTRY_INFO!B10) -> North | C10: =IF(COUNTRY_INFO!C10=0," ",COUNTRY_INFO!C10) -> Karonga | D10: =IF(COUNTRY_INFO!$T$9:$T$1000="MDA2 (DEC+ALB)", COUNTRY_INFO!$T$9:$T$1000, " ") ->  | I10: =SUM(F10:H10) -> 0 | M10: =SUM(J10:L10) -> 0 | N10: =IF(F10<>0, IF(J10/F10*100=0, "-", J10/F10*100), " ") ->  | O10: =IF(G10<>0, IF(K10/G10*100=0, "-", K10/G10*100), " ") ->  | P10: =IF(H10<>0, IF(L10/H10*100=0, "-", L10/H10*100), " ") ->  | Q10: =IF(I10<>0, IF(M10/I10*100=0, "-", M10/I10*100), " ") -> 
A11: =IF(COUNTRY_INFO!A11=0," ",COUNTRY_INFO!A11) -> Malawi | B11: =IF(COUNTRY_INFO!B11=0," ",COUNTRY_INFO!B11) -> North | C11: =IF(COUNTRY_INFO!C11=0," ",COUNTRY_INFO!C11) -> Rumphi | D11: =IF(COUNTRY_INFO!$T$9:$T$1000="MDA2 (DEC+ALB)", COUNTRY_INFO!$T$9:$T$1000, " ") ->  | I11: 0 | M11: 0
A12: =IF(COUNTRY_INFO!A12=0," ",COUNTRY_INFO!A12) -> Malawi | B12: =IF(COUNTRY_INFO!B12=0," ",COUNTRY_INFO!B12) -> North | C12: =IF(COUNTRY_INFO!C12=0," ",COUNTRY_INFO!C12) -> Mzimba North | D12: =IF(COUNTRY_INFO!$T$9:$T$1000="MDA2 (DEC+ALB)", COUNTRY_INFO!$T$9:$T$1000, " ") ->  | I12: 0 | M12: 0
A13: =IF(COUNTRY_INFO!A13=0," ",COUNTRY_INFO!A13) -> Malawi | B13: =IF(COUNTRY_INFO!B13=0," ",COUNTRY_INFO!B13) -> North | C13: =IF(COUNTRY_INFO!C13=0," ",COUNTRY_INFO!C13) -> Mzimba South | D13: =IF(COUNTRY_INFO!$T$9:$T$1000="MDA2 (DEC+ALB)", COUNTRY_INFO!$T$9:$T$1000, " ") ->  | I13: 0 | M13: 0
A14: =IF(COUNTRY_INFO!A14=0," ",COUNTRY_INFO!A14) -> Malawi | B14: =IF(COUNTRY_INFO!B14=0," ",COUNTRY_INFO!B14) -> North | C14: =IF(COUNTRY_INFO!C14=0," ",COUNTRY_INFO!C14) -> Nkhatabay | D14: =IF(COUNTRY_INFO!$T$9:$T$1000="MDA2 (DEC+ALB)", COUNTRY_INFO!$T$9:$T$1000, " ") ->  | I14: 0 | M14: 0
A15: =IF(COUNTRY_INFO!A15=0," ",COUNTRY_INFO!A15) -> Malawi | B15: =IF(COUNTRY_INFO!B15=0," ",COUNTRY_INFO!B15) -> North | C15: =IF(COUNTRY_INFO!C15=0," ",COUNTRY_INFO!C15) -> Likoma | D15: =IF(COUNTRY_INFO!$T$9:$T$1000="MDA2 (DEC+ALB)", COUNTRY_INFO!$T$9:$T$1000, " ") ->  | I15: 0 | M15: 0
A16: =IF(COUNTRY_INFO!A16=0," ",COUNTRY_INFO!A16) -> Malawi | B16: =IF(COUNTRY_INFO!B16=0," ",COUNTRY_INFO!B16) -> Central | C16: =IF(COUNTRY_INFO!C16=0," ",COUNTRY_INFO!C16) -> Kasungu | D16: =IF(COUNTRY_INFO!$T$9:$T$1000="MDA2 (DEC+ALB)", COUNTRY_INFO!$T$9:$T$1000, " ") ->  | I16: 0 | M16: 0
A17: =IF(COUNTRY_INFO!A17=0," ",COUNTRY_INFO!A17) -> Malawi | B17: =IF(COUNTRY_INFO!B17=0," ",COUNTRY_INFO!B17) -> Central | C17: =IF(COUNTRY_INFO!C17=0," ",COUNTRY_INFO!C17) -> Dedza | D17: =IF(COUNTRY_INFO!$T$9:$T$1000="MDA2 (DEC+ALB)", COUNTRY_INFO!$T$9:$T$1000, " ") ->  | I17: 0 | M17: 0
A18: =IF(COUNTRY_INFO!A18=0," ",COUNTRY_INFO!A18) -> Malawi | B18: =IF(COUNTRY_INFO!B18=0," ",COUNTRY_INFO!B18) -> Central | C18: =IF(COUNTRY_INFO!C18=0," ",COUNTRY_INFO!C18) -> Dowa | D18: =IF(COUNTRY_INFO!$T$9:$T$1000="MDA2 (DEC+ALB)", COUNTRY_INFO!$T$9:$T$1000, " ") ->  | I18: 0 | M18: 0
A19: =IF(COUNTRY_INFO!A19=0," ",COUNTRY_INFO!A19) -> Malawi | B19: =IF(COUNTRY_INFO!B19=0," ",COUNTRY_INFO!B19) -> Central | C19: =IF(COUNTRY_INFO!C19=0," ",COUNTRY_INFO!C19) -> Lilongwe | D19: =IF(COUNTRY_INFO!$T$9:$T$1000="MDA2 (DEC+ALB)", COUNTRY_INFO!$T$9:$T$1000, " ") ->  | I19: 0 | M19: 0
A20: =IF(COUNTRY_INFO!A20=0," ",COUNTRY_INFO!A20) -> Malawi | B20: =IF(COUNTRY_INFO!B20=0," ",COUNTRY_INFO!B20) -> Central | C20: =IF(COUNTRY_INFO!C20=0," ",COUNTRY_INFO!C20) -> Mchinji | D20: =IF(COUNTRY_INFO!$T$9:$T$1000="MDA2 (DEC+ALB)", COUNTRY_INFO!$T$9:$T$1000, " ") ->  | I20: 0 | M20: 0
A21: =IF(COUNTRY_INFO!A21=0," ",COUNTRY_INFO!A21) -> Malawi | B21: =IF(COUNTRY_INFO!B21=0," ",COUNTRY_INFO!B21) -> Central | C21: =IF(COUNTRY_INFO!C21=0," ",COUNTRY_INFO!C21) -> Salima | D21: =IF(COUNTRY_INFO!$T$9:$T$1000="MDA2 (DEC+ALB)", COUNTRY_INFO!$T$9:$T$1000, " ") ->  | I21: 0 | M21: 0
A22: =IF(COUNTRY_INFO!A22=0," ",COUNTRY_INFO!A22) -> Malawi | B22: =IF(COUNTRY_INFO!B22=0," ",COUNTRY_INFO!B22) -> Central | C22: =IF(COUNTRY_INFO!C22=0," ",COUNTRY_INFO!C22) -> Nkhotakota | D22: =IF(COUNTRY_INFO!$T$9:$T$1000="MDA2 (DEC+ALB)", COUNTRY_INFO!$T$9:$T$1000, " ") ->  | I22: 0 | M22: 0
A23: =IF(COUNTRY_INFO!A23=0," ",COUNTRY_INFO!A23) -> Malawi | B23: =IF(COUNTRY_INFO!B23=0," ",COUNTRY_INFO!B23) -> Central | C23: =IF(COUNTRY_INFO!C23=0," ",COUNTRY_INFO!C23) -> Ntchisi | D23: =IF(COUNTRY_INFO!$T$9:$T$1000="MDA2 (DEC+ALB)", COUNTRY_INFO!$T$9:$T$1000, " ") ->  | I23: 0 | M23: 0
A24: =IF(COUNTRY_INFO!A24=0," ",COUNTRY_INFO!A24) -> Malawi | B24: =IF(COUNTRY_INFO!B24=0," ",COUNTRY_INFO!B24) -> Central | C24: =IF(COUNTRY_INFO!C24=0," ",COUNTRY_INFO!C24) -> Ntcheu | D24: =IF(COUNTRY_INFO!$T$9:$T$1000="MDA2 (DEC+ALB)", COUNTRY_INFO!$T$9:$T$1000, " ") ->  | I24: 0 | M24: 0
A25: =IF(COUNTRY_INFO!A25=0," ",COUNTRY_INFO!A25) -> Malawi | B25: =IF(COUNTRY_INFO!B25=0," ",COUNTRY_INFO!B25) -> South | C25: =IF(COUNTRY_INFO!C25=0," ",COUNTRY_INFO!C25) -> Balaka | D25: =IF(COUNTRY_INFO!$T$9:$T$1000="MDA2 (DEC+ALB)", COUNTRY_INFO!$T$9:$T$1000, " ") ->  | I25: 0 | M25: 0
A26: =IF(COUNTRY_INFO!A26=0," ",COUNTRY_INFO!A26) -> Malawi | B26: =IF(COUNTRY_INFO!B26=0," ",COUNTRY_INFO!B26) -> South | C26: =IF(COUNTRY_INFO!C26=0," ",COUNTRY_INFO!C26) -> Chikwawa | D26: =IF(COUNTRY_INFO!$T$9:$T$1000="MDA2 (DEC+ALB)", COUNTRY_INFO!$T$9:$T$1000, " ") ->  | I26: 0 | M26: 0
A27: =IF(COUNTRY_INFO!A27=0," ",COUNTRY_INFO!A27) -> Malawi | B27: =IF(COUNTRY_INFO!B27=0," ",COUNTRY_INFO!B27) -> South | C27: =IF(COUNTRY_INFO!C27=0," ",COUNTRY_INFO!C27) -> Chiradzulu | D27: =IF(COUNTRY_INFO!$T$9:$T$1000="MDA2 (DEC+ALB)", COUNTRY_INFO!$T$9:$T$1000, " ") ->  | I27: 0 | M27: 0
A28: =IF(COUNTRY_INFO!A28=0," ",COUNTRY_INFO!A28) -> Malawi | B28: =IF(COUNTRY_INFO!B28=0," ",COUNTRY_INFO!B28) -> South | C28: =IF(COUNTRY_INFO!C28=0," ",COUNTRY_INFO!C28) -> Machinga | D28: =IF(COUNTRY_INFO!$T$9:$T$1000="MDA2 (DEC+ALB)", COUNTRY_INFO!$T$9:$T$1000, " ") ->  | I28: 0 | M28: 0
A29: =IF(COUNTRY_INFO!A29=0," ",COUNTRY_INFO!A29) -> Malawi | B29: =IF(COUNTRY_INFO!B29=0," ",COUNTRY_INFO!B29) -> South | C29: =IF(COUNTRY_INFO!C29=0," ",COUNTRY_INFO!C29) -> Blantyre | D29: =IF(COUNTRY_INFO!$T$9:$T$1000="MDA2 (DEC+ALB)", COUNTRY_INFO!$T$9:$T$1000, " ") ->  | I29: 0 | M29: 0
A30: =IF(COUNTRY_INFO!A30=0," ",COUNTRY_INFO!A30) -> Malawi | B30: =IF(COUNTRY_INFO!B30=0," ",COUNTRY_INFO!B30) -> South | C30: =IF(COUNTRY_INFO!C30=0," ",COUNTRY_INFO!C30) -> Mangochi | D30: =IF(COUNTRY_INFO!$T$9:$T$1000="MDA2 (DEC+ALB)", COUNTRY_INFO!$T$9:$T$1000, " ") ->  | I30: 0 | M30: 0
A31: =IF(COUNTRY_INFO!A31=0," ",COUNTRY_INFO!A31) -> Malawi | B31: =IF(COUNTRY_INFO!B31=0," ",COUNTRY_INFO!B31) -> South | C31: =IF(COUNTRY_INFO!C31=0," ",COUNTRY_INFO!C31) -> Mulanje | D31: =IF(COUNTRY_INFO!$T$9:$T$1000="MDA2 (DEC+ALB)", COUNTRY_INFO!$T$9:$T$1000, " ") ->  | I31: 0 | M31: 0
A32: =IF(COUNTRY_INFO!A32=0," ",COUNTRY_INFO!A32) -> Malawi | B32: =IF(COUNTRY_INFO!B32=0," ",COUNTRY_INFO!B32) -> South | C32: =IF(COUNTRY_INFO!C32=0," ",COUNTRY_INFO!C32) -> Nsanje | D32: =IF(COUNTRY_INFO!$T$9:$T$1000="MDA2 (DEC+ALB)", COUNTRY_INFO!$T$9:$T$1000, " ") ->  | I32: 0 | M32: 0
A33: =IF(COUNTRY_INFO!A33=0," ",COUNTRY_INFO!A33) -> Malawi | B33: =IF(COUNTRY_INFO!B33=0," ",COUNTRY_INFO!B33) -> South | C33: =IF(COUNTRY_INFO!C33=0," ",COUNTRY_INFO!C33) -> Phalombe | D33: =IF(COUNTRY_INFO!$T$9:$T$1000="MDA2 (DEC+ALB)", COUNTRY_INFO!$T$9:$T$1000, " ") ->  | I33: 0 | M33: 0
A34: =IF(COUNTRY_INFO!A34=0," ",COUNTRY_INFO!A34) -> Malawi | B34: =IF(COUNTRY_INFO!B34=0," ",COUNTRY_INFO!B34) -> South | C34: =IF(COUNTRY_INFO!C34=0," ",COUNTRY_INFO!C34) -> Thyolo | D34: =IF(COUNTRY_INFO!$T$9:$T$1000="MDA2 (DEC+ALB)", COUNTRY_INFO!$T$9:$T$1000, " ") ->  | I34: 0 | M34: 0
A35: =IF(COUNTRY_INFO!A35=0," ",COUNTRY_INFO!A35) -> Malawi | B35: =IF(COUNTRY_INFO!B35=0," ",COUNTRY_INFO!B35) -> South | C35: =IF(COUNTRY_INFO!C35=0," ",COUNTRY_INFO!C35) -> Zomba | D35: =IF(COUNTRY_INFO!$T$9:$T$1000="MDA2 (DEC+ALB)", COUNTRY_INFO!$T$9:$T$1000, " ") ->  | I35: 0 | M35: 0
A36: =IF(COUNTRY_INFO!A36=0," ",COUNTRY_INFO!A36) -> Malawi | B36: =IF(COUNTRY_INFO!B36=0," ",COUNTRY_INFO!B36) -> South | C36: =IF(COUNTRY_INFO!C36=0," ",COUNTRY_INFO!C36) -> Neno | D36: =IF(COUNTRY_INFO!$T$9:$T$1000="MDA2 (DEC+ALB)", COUNTRY_INFO!$T$9:$T$1000, " ") ->  | I36: 0 | M36: 0
A37: =IF(COUNTRY_INFO!A37=0," ",COUNTRY_INFO!A37) -> Malawi | B37: =IF(COUNTRY_INFO!B37=0," ",COUNTRY_INFO!B37) -> South | C37: =IF(COUNTRY_INFO!C37=0," ",COUNTRY_INFO!C37) -> Mwanza | D37: =IF(COUNTRY_INFO!$T$9:$T$1000="MDA2 (DEC+ALB)", COUNTRY_INFO!$T$9:$T$1000, " ") ->  | I37: 0 | M37: 0

Sheet MDA3
A1: MDA 3 - Ivermectin (IVM)
A2: Administrative structure, population requiring PC by age group, population treated by age group and coverage
A4: TOTAL | F4: =SUM(F$9:F$1000) -> 0 | G4: 0 | H4: 2284986 | I4: 645575.5867 | J4: 1249200.413 | K4: 1894776 | L4: 0 | M4: 0 | N4: 0 | O4: 645575.5867 | P4: 1249200.413 | Q4: 1894776 | R4: =IF(F4<>0, IF(O4/F4*100=0, "-", O4/F4*100), " ") ->  | S4: =IF(G4<>0, IF(P4/G4*100=0, "-", P4/G4*100), " ") ->  | T4: =IF(H4<>0, IF(Q4/H4*100=0, "-", Q4/H4*100), " ") -> 82.9228713
D6: PC implemented | E6: Date | F6: Population targeted for MDA 3 | I6: Population treated - 1st round | L6: Population treated - 2nd round | O6: Population treated | R6: Programme coverage (%)
A7: Country | B7: Province/State | C7: District | F7: SAC | G7: Adults | H7: Total | I7: SAC | J7: Adults | K7: Total | L7: SAC | M7: Adults | N7: Total | O7: SAC | P7: Adults | Q7: Total | R7: SAC | S7: Adults | T7: Total
A9: =IF(COUNTRY_INFO!A9=0," ",COUNTRY_INFO!A9) -> Malawi | B9: =IF(COUNTRY_INFO!B9=0," ",COUNTRY_INFO!B9) -> North | C9: =IF(COUNTRY_INFO!C9=0," ",COUNTRY_INFO!C9) -> Chitipa | D9: =IF(COUNTRY_INFO!$T$9:$T$1000="MDA3 (IVM)", COUNTRY_INFO!$T$9:$T$1000, " ") ->  | N9: =SUM(L9:M9) -> 0 | O9: =MAX(I9,L9) -> 0 | P9: 0 | Q9: =SUM(O9:P9) -> 0 | R9: =IF(F9<>0, IF(MAX(I9,L9)/F9*100=0, "-", MAX(I9,L9)/F9*100), " ") ->  | T9: =IF(H9<>0, IF((MAX(I9,L9)+MAX(J9,M9))/H9*100=0, "-",(MAX(I9,L9)+MAX(J9,M9))/H9*100), " ") -> 
A10: =IF(COUNTRY_INFO!A10=0," ",COUNTRY_INFO!A10) -> Malawi | B10: =IF(COUNTRY_INFO!B10=0," ",COUNTRY_INFO!B10) -> North | C10: =IF(COUNTRY_INFO!C10=0," ",COUNTRY_INFO!C10) -> Karonga | D10: =IF(COUNTRY_INFO!$T$9:$T$1000="MDA3 (IVM)", COUNTRY_INFO!$T$9:$T$1000, " ") ->  | N10: =SUM(L10:M10) -> 0 | O10: =MAX(I10,L10) -> 0 | P10: =MAX(J10,M10) -> 0 | Q10: =SUM(O10:P10) -> 0 | R10: =IF(F10<>0, IF(MAX(I10,L10)/F10*100=0, "-", MAX(I10,L10)/F10*100), " ") ->  | S10: =IF(G10<>0, IF(MAX(J10,M10)/G10*100=0, "-", MAX(J10,M10)/G10*100), " ") ->  | T10: =IF(H10<>0, IF((MAX(I10,L10)+MAX(J10,M10))/H10*100=0, "-",(MAX(I10,L10)+MAX(J10,M10))/H10*100), " ") -> 
A11: =IF(COUNTRY_INFO!A11=0," ",COUNTRY_INFO!A11) -> Malawi | B11: =IF(COUNTRY_INFO!B11=0," ",COUNTRY_INFO!B11) -> North | C11: =IF(COUNTRY_INFO!C11=0," ",COUNTRY_INFO!C11) -> Rumphi | D11: =IF(COUNTRY_INFO!$T$9:$T$1000="MDA3 (IVM)", COUNTRY_INFO!$T$9:$T$1000, " ") ->  | N11: 0 | O11: 0 | P11: 0 | Q11: 0
A12: =IF(COUNTRY_INFO!A12=0," ",COUNTRY_INFO!A12) -> Malawi | B12: =IF(COUNTRY_INFO!B12=0," ",COUNTRY_INFO!B12) -> North | C12: =IF(COUNTRY_INFO!C12=0," ",COUNTRY_INFO!C12) -> Mzimba North | D12: =IF(COUNTRY_INFO!$T$9:$T$1000="MDA3 (IVM)", COUNTRY_INFO!$T$9:$T$1000, " ") ->  | N12: 0 | O12: 0 | P12: 0 | Q12: 0
A13: =IF(COUNTRY_INFO!A13=0," ",COUNTRY_INFO!A13) -> Malawi | B13: =IF(COUNTRY_INFO!B13=0," ",COUNTRY_INFO!B13) -> North | C13: =IF(COUNTRY_INFO!C13=0," ",COUNTRY_INFO!C13) -> Mzimba South | D13: =IF(COUNTRY_INFO!$T$9:$T$1000="MDA3 (IVM)", COUNTRY_INFO!$T$9:$T$1000, " ") ->  | N13: 0 | O13: 0 | P13: 0 | Q13: 0
A14: =IF(COUNTRY_INFO!A14=0," ",COUNTRY_INFO!A14) -> Malawi | B14: =IF(COUNTRY_INFO!B14=0," ",COUNTRY_INFO!B14) -> North | C14: =IF(COUNTRY_INFO!C14=0," ",COUNTRY_INFO!C14) -> Nkhatabay | D14: =IF(COUNTRY_INFO!$T$9:$T$1000="MDA3 (IVM)", COUNTRY_INFO!$T$9:$T$1000, " ") ->  | N14: 0 | O14: 0 | P14: 0 | Q14: 0
A15: =IF(COUNTRY_INFO!A15=0," ",COUNTRY_INFO!A15) -> Malawi | B15: =IF(COUNTRY_INFO!B15=0," ",COUNTRY_INFO!B15) -> North | C15: =IF(COUNTRY_INFO!C15=0," ",COUNTRY_INFO!C15) -> Likoma | D15: =IF(COUNTRY_INFO!$T$9:$T$1000="MDA3 (IVM)", COUNTRY_INFO!$T$9:$T$1000, " ") ->  | N15: 0 | O15: 0 | P15: 0 | Q15: 0
A16: =IF(COUNTRY_INFO!A16=0," ",COUNTRY_INFO!A16) -> Malawi | B16: =IF(COUNTRY_INFO!B16=0," ",COUNTRY_INFO!B16) -> Central | C16: =IF(COUNTRY_INFO!C16=0," ",COUNTRY_INFO!C16) -> Kasungu | D16: =IF(COUNTRY_INFO!$T$9:$T$1000="MDA3 (IVM)", COUNTRY_INFO!$T$9:$T$1000, " ") ->  | N16: 0 | O16: 0 | P16: 0 | Q16: 0
A17: =IF(COUNTRY_INFO!A17=0," ",COUNTRY_INFO!A17) -> Malawi | B17: =IF(COUNTRY_INFO!B17=0," ",COUNTRY_INFO!B17) -> Central | C17: =IF(COUNTRY_INFO!C17=0," ",COUNTRY_INFO!C17) -> Dedza | D17: =IF(COUNTRY_INFO!$T$9:$T$1000="MDA3 (IVM)", COUNTRY_INFO!$T$9:$T$1000, " ") ->  | N17: 0 | O17: 0 | P17: 0 | Q17: 0
A18: =IF(COUNTRY_INFO!A18=0," ",COUNTRY_INFO!A18) -> Malawi | B18: =IF(COUNTRY_INFO!B18=0," ",COUNTRY_INFO!B18) -> Central | C18: =IF(COUNTRY_INFO!C18=0," ",COUNTRY_INFO!C18) -> Dowa | D18: =IF(COUNTRY_INFO!$T$9:$T$1000="MDA3 (IVM)", COUNTRY_INFO!$T$9:$T$1000, " ") ->  | N18: 0 | O18: 0 | P18: 0 | Q18: 0
A19: =IF(COUNTRY_INFO!A19=0," ",COUNTRY_INFO!A19) -> Malawi | B19: =IF(COUNTRY_INFO!B19=0," ",COUNTRY_INFO!B19) -> Central | C19: =IF(COUNTRY_INFO!C19=0," ",COUNTRY_INFO!C19) -> Lilongwe | D19: =IF(COUNTRY_INFO!$T$9:$T$1000="MDA3 (IVM)", COUNTRY_INFO!$T$9:$T$1000, " ") ->  | N19: 0 | O19: 0 | P19: 0 | Q19: 0
A20: =IF(COUNTRY_INFO!A20=0," ",COUNTRY_INFO!A20) -> Malawi | B20: =IF(COUNTRY_INFO!B20=0," ",COUNTRY_INFO!B20) -> Central | C20: =IF(COUNTRY_INFO!C20=0," ",COUNTRY_INFO!C20) -> Mchinji | D20: =IF(COUNTRY_INFO!$T$9:$T$1000="MDA3 (IVM)", COUNTRY_INFO!$T$9:$T$1000, " ") ->  | N20: 0 | O20: 0 | P20: 0 | Q20: 0
A21: =IF(COUNTRY_INFO!A21=0," ",COUNTRY_INFO!A21) -> Malawi | B21: =IF(COUNTRY_INFO!B21=0," ",COUNTRY_INFO!B21) -> Central | C21: =IF(COUNTRY_INFO!C21=0," ",COUNTRY_INFO!C21) -> Salima | D21: =IF(COUNTRY_INFO!$T$9:$T$1000="MDA3 (IVM)", COUNTRY_INFO!$T$9:$T$1000, " ") ->  | N21: 0 | O21: 0 | P21: 0 | Q21: 0
A22: =IF(COUNTRY_INFO!A22=0," ",COUNTRY_INFO!A22) -> Malawi | B22: =IF(COUNTRY_INFO!B22=0," ",COUNTRY_INFO!B22) -> Central | C22: =IF(COUNTRY_INFO!C22=0," ",COUNTRY_INFO!C22) -> Nkhotakota | D22: =IF(COUNTRY_INFO!$T$9:$T$1000="MDA3 (IVM)", COUNTRY_INFO!$T$9:$T$1000, " ") ->  | N22: 0 | O22: 0 | P22: 0 | Q22: 0
A23: =IF(COUNTRY_INFO!A23=0," ",COUNTRY_INFO!A23) -> Malawi | B23: =IF(COUNTRY_INFO!B23=0," ",COUNTRY_INFO!B23) -> Central | C23: =IF(COUNTRY_INFO!C23=0," ",COUNTRY_INFO!C23) -> Ntchisi | D23: =IF(COUNTRY_INFO!$T$9:$T$1000="MDA3 (IVM)", COUNTRY_INFO!$T$9:$T$1000, " ") ->  | N23: 0 | O23: 0 | P23: 0 | Q23: 0
A24: =IF(COUNTRY_INFO!A24=0," ",COUNTRY_INFO!A24) -> Malawi | B24: =IF(COUNTRY_INFO!B24=0," ",COUNTRY_INFO!B24) -> Central | C24: =IF(COUNTRY_INFO!C24=0," ",COUNTRY_INFO!C24) -> Ntcheu | D24: =IF(COUNTRY_INFO!$T$9:$T$1000="MDA3 (IVM)", COUNTRY_INFO!$T$9:$T$1000, " ") ->  | N24: 0 | O24: 0 | P24: 0 | Q24: 0
A25: =IF(COUNTRY_INFO!A25=0," ",COUNTRY_INFO!A25) -> Malawi | B25: =IF(COUNTRY_INFO!B25=0," ",COUNTRY_INFO!B25) -> South | C25: =IF(COUNTRY_INFO!C25=0," ",COUNTRY_INFO!C25) -> Balaka | D25: =IF(COUNTRY_INFO!$T$9:$T$1000="MDA3 (IVM)", COUNTRY_INFO!$T$9:$T$1000, " ") ->  | N25: 0 | O25: 0 | P25: 0 | Q25: 0
A26: =IF(COUNTRY_INFO!A26=0," ",COUNTRY_INFO!A26) -> Malawi | B26: =IF(COUNTRY_INFO!B26=0," ",COUNTRY_INFO!B26) -> South | C26: =IF(COUNTRY_INFO!C26=0," ",COUNTRY_INFO!C26) -> Chikwawa | D26: =IF(COUNTRY_INFO!$T$9:$T$1000="MDA3 (IVM)", COUNTRY_INFO!$T$9:$T$1000, " ") -> MDA3 (IVM) | H26: 129350 | I26: 36997.04674 | J26: 71589.95326 | K26: 108587 | N26: 0 | O26: 36997.04674 | P26: 71589.95326 | Q26: 108587 | T26: 83.94820255
A27: =IF(COUNTRY_INFO!A27=0," ",COUNTRY_INFO!A27) -> Malawi | B27: =IF(COUNTRY_INFO!B27=0," ",COUNTRY_INFO!B27) -> South | C27: =IF(COUNTRY_INFO!C27=0," ",COUNTRY_INFO!C27) -> Chiradzulu | D27: =IF(COUNTRY_INFO!$T$9:$T$1000="MDA3 (IVM)", COUNTRY_INFO!$T$9:$T$1000, " ") -> MDA3 (IVM) | H27: 178220 | I27: 50462.04059 | J27: 97644.95941 | K27: 148107 | N27: 0 | O27: 50462.04059 | P27: 97644.95941 | Q27: 148107 | T27: 83.10346762
A28: =IF(COUNTRY_INFO!A28=0," ",COUNTRY_INFO!A28) -> Malawi | B28: =IF(COUNTRY_INFO!B28=0," ",COUNTRY_INFO!B28) -> South | C28: =IF(COUNTRY_INFO!C28=0," ",COUNTRY_INFO!C28) -> Machinga | D28: =IF(COUNTRY_INFO!$T$9:$T$1000="MDA3 (IVM)", COUNTRY_INFO!$T$9:$T$1000, " ") ->  | N28: 0 | O28: 0 | P28: 0 | Q28: 0
A29: =IF(COUNTRY_INFO!A29=0," ",COUNTRY_INFO!A29) -> Malawi | B29: =IF(COUNTRY_INFO!B29=0," ",COUNTRY_INFO!B29) -> South | C29: =IF(COUNTRY_INFO!C29=0," ",COUNTRY_INFO!C29) -> Blantyre | D29: =IF(COUNTRY_INFO!$T$9:$T$1000="MDA3 (IVM)", COUNTRY_INFO!$T$9:$T$1000, " ") -> MDA3 (IVM) | H29: 474974 | I29: 134247.2153 | J29: 259770.7847 | K29: 394018 | N29: 0 | O29: 134247.2153 | P29: 259770.7847 | Q29: 394018 | T29: 82.95569863
A30: =IF(COUNTRY_INFO!A30=0," ",COUNTRY_INFO!A30) -> Malawi | B30: =IF(COUNTRY_INFO!B30=0," ",COUNTRY_INFO!B30) -> South | C30: =IF(COUNTRY_INFO!C30=0," ",COUNTRY_INFO!C30) -> Mangochi | D30: =IF(COUNTRY_INFO!$T$9:$T$1000="MDA3 (IVM)", COUNTRY_INFO!$T$9:$T$1000, " ") ->  | N30: 0 | O30: 0 | P30: 0 | Q30: 0
A31: =IF(COUNTRY_INFO!A31=0," ",COUNTRY_INFO!A31) -> Malawi | B31: =IF(COUNTRY_INFO!B31=0," ",COUNTRY_INFO!B31) -> South | C31: =IF(COUNTRY_INFO!C31=0," ",COUNTRY_INFO!C31) -> Mulanje | D31: =IF(COUNTRY_INFO!$T$9:$T$1000="MDA3 (IVM)", COUNTRY_INFO!$T$9:$T$1000, " ") -> MDA3 (IVM) | H31: 502062 | I31: 142390.2657 | J31: 275527.7343 | K31: 417918 | N31: 0 | O31: 142390.2657 | P31: 275527.7343 | Q31: 417918 | T31: 83.24031693
A32: =IF(COUNTRY_INFO!A32=0," ",COUNTRY_INFO!A32) -> Malawi | B32: =IF(COUNTRY_INFO!B32=0," ",COUNTRY_INFO!B32) -> South | C32: =IF(COUNTRY_INFO!C32=0," ",COUNTRY_INFO!C32) -> Nsanje | D32: =IF(COUNTRY_INFO!$T$9:$T$1000="MDA3 (IVM)", COUNTRY_INFO!$T$9:$T$1000, " ") ->  | N32: 0 | O32: 0 | P32: 0 | Q32: 0
A33: =IF(COUNTRY_INFO!A33=0," ",COUNTRY_INFO!A33) -> Malawi | B33: =IF(COUNTRY_INFO!B33=0," ",COUNTRY_INFO!B33) -> South | C33: =IF(COUNTRY_INFO!C33=0," ",COUNTRY_INFO!C33) -> Phalombe | D33: =IF(COUNTRY_INFO!$T$9:$T$1000="MDA3 (IVM)", COUNTRY_INFO!$T$9:$T$1000, " ") -> MDA3 (IVM) | H33: 50201 | I33: 14057.49446 | J33: 27201.50554 | K33: 41259 | N33: 0 | O33: 14057.49446 | P33: 27201.50554 | Q33: 41259 | T33: 82.18760582
A34: =IF(COUNTRY_INFO!A34=0," ",COUNTRY_INFO!A34) -> Malawi | B34: =IF(COUNTRY_INFO!B34=0," ",COUNTRY_INFO!B34) -> South | C34: =IF(COUNTRY_INFO!C34=0," ",COUNTRY_INFO!C34) -> Thyolo | D34: =IF(COUNTRY_INFO!$T$9:$T$1000="MDA3 (IVM)", COUNTRY_INFO!$T$9:$T$1000, " ") -> MDA3 (IVM) | H34: 690248 | I34: 193954.1734 | J34: 375304.8266 | K34: 569259 | N34: 0 | O34: 193954.1734 | P34: 375304.8266 | Q34: 569259 | T34: 82.47166236
A35: =IF(COUNTRY_INFO!A35=0," ",COUNTRY_INFO!A35) -> Malawi | B35: =IF(COUNTRY_INFO!B35=0," ",COUNTRY_INFO!B35) -> South | C35: =IF(COUNTRY_INFO!C35=0," ",COUNTRY_INFO!C35) -> Zomba | D35: =IF(COUNTRY_INFO!$T$9:$T$1000="MDA3 (IVM)", COUNTRY_INFO!$T$9:$T$1000, " ") ->  | N35: 0 | O35: 0 | P35: 0 | Q35: 0
A36: =IF(COUNTRY_INFO!A36=0," ",COUNTRY_INFO!A36) -> Malawi | B36: =IF(COUNTRY_INFO!B36=0," ",COUNTRY_INFO!B36) -> South | C36: =IF(COUNTRY_INFO!C36=0," ",COUNTRY_INFO!C36) -> Neno | D36: =IF(COUNTRY_INFO!$T$9:$T$1000="MDA3 (IVM)", COUNTRY_INFO!$T$9:$T$1000, " ") -> MDA3 (IVM) | H36: 150667 | I36: 43029.0369 | J36: 83261.9631 | K36: 126291 | N36: 0 | O36: 43029.0369 | P36: 83261.9631 | Q36: 126291 | T36: 83.82127473
A37: =IF(COUNTRY_INFO!A37=0," ",COUNTRY_INFO!A37) -> Malawi | B37: =IF(COUNTRY_INFO!B37=0," ",COUNTRY_INFO!B37) -> South | C37: =IF(COUNTRY_INFO!C37=0," ",COUNTRY_INFO!C37) -> Mwanza | D37: =IF(COUNTRY_INFO!$T$9:$T$1000="MDA3 (IVM)", COUNTRY_INFO!$T$9:$T$1000, " ") -> MDA3 (IVM) | H37: 109264 | I37: 30438.31365 | J37: 58898.68635 | K37: 89337 | N37: 0 | O37: 30438.31365 | P37: 58898.68635 | Q37: 89337 | T37: 81.76252013

Sheet T1
A1: T 1 - Praziquantel (PZQ) and Albendazole (ALB) or Mebendazole (MBD)
A2: Administrative structure, population requiring PC by age group, population treated by age group and coverage
A4: TOTAL | G4: =SUM(G$9:G$1000) -> 0 | H4: 4380828 | I4: 0 | J4: 3219012 | K4: =SUM(K$9:K$1000) -> 7599840 | L4: 0 | M4: 4008556 | N4: 2003568 | O4: 6012124 | P4: =IF(G4<>0, IF(L4/G4*100=0, "-", L4/G4*100), " ") ->  | Q4: =IF(OR(I4<>0,H4<>0), IF(M4/MAX(H4,I4)*100=0, "-", M4/MAX(H4,I4)*100), " ") -> 91.50224569 | R4: =IF(J4<>0, IF(N4/J4*100=0, "-", N4/J4*100), " ") -> 62.24170646 | S4: =IF(K4<>0, IF(O4/K4*100=0, "-", O4/K4*100), " ") -> 79.10856018
D6: PC implemented | E6: Medicine | F6: Date | G6: Population targeted for T1 | L6: Population treated | P6: Programme coverage (%)
A7: Country | B7: Province/State | C7: District | G7: PreSAC (ALB) | H7: SAC (ALB) | I7: SAC (PZQ) | J7: Adults (PZQ) | K7: Total | L7: PreSAC | M7: SAC | N7: Adults | O7: Total | P7: PreSAC | Q7: SAC | R7: Adults | S7: Total
A9: =IF(COUNTRY_INFO!A9=0," ",COUNTRY_INFO!A9) -> Malawi | B9: =IF(COUNTRY_INFO!B9=0," ",COUNTRY_INFO!B9) -> North | C9: =IF(COUNTRY_INFO!C9=0," ",COUNTRY_INFO!C9) -> Chitipa | D9: =IF(OR(COUNTRY_INFO!$T$9:$T$1000="T1 (PZQ+ALB/MBD)",COUNTRY_INFO!$U$9:$U$1000="T1 (PZQ+ALB/MBD)"), "T1 (PZQ+ALB/MBD)", " ") -> T1 (PZQ+ALB/MBD) | E9: PZQ+ALB | F9: April 2016 | H9: 58494 | J9: 15533 | K9: =MAX(H9:I9)+G9+J9 -> 74027 | M9: 55929 | N9: 14902 | O9: 70831 | P9: =IF(G9<>0, IF(L9/G9*100=0, "-", L9/G9*100), " ") ->  | Q9: =IF(OR(I9<>0,H9<>0), IF(M9/MAX(H9,I9)*100=0, "-", M9/MAX(H9,I9)*100), " ") -> 95.61493487 | R9: =IF(J9<>0, IF(N9/J9*100=0, "-", N9/J9*100), " ") -> 95.93768107 | S9: 95.68265633
A10: =IF(COUNTRY_INFO!A10=0," ",COUNTRY_INFO!A10) -> Malawi | B10: =IF(COUNTRY_INFO!B10=0," ",COUNTRY_INFO!B10) -> North | C10: =IF(COUNTRY_INFO!C10=0," ",COUNTRY_INFO!C10) -> Karonga | D10: =IF(OR(COUNTRY_INFO!$T$9:$T$1000="T1 (PZQ+ALB/MBD)",COUNTRY_INFO!$U$9:$U$1000="T1 (PZQ+ALB/MBD)"), "T1 (PZQ+ALB/MBD)", " ") -> T1 (PZQ+ALB/MBD) | E10: PZQ+ALB | F10: April 2016 | H10: 90602 | J10: 47025 | K10: =MAX(H10:I10)+G10+J10 -> 137627 | M10: 84238 | N10: 43375 | O10: 127613 | P10: =IF(G10<>0, IF(L10/G10*100=0, "-", L10/G10*100), " ") ->  | Q10: =IF(OR(I10<>0,H10<>0), IF(M10/MAX(H10,I10)*100=0, "-", M10/MAX(H10,I10)*100), " ") -> 92.9758725 | R10: =IF(J10<>0, IF(N10/J10*100=0, "-", N10/J10*100), " ") -> 92.23817119 | S10: =IF(K10<>0, IF(O10/K10*100=0, "-", O10/K10*100), " ") -> 92.72381146
A11: =IF(COUNTRY_INFO!A11=0," ",COUNTRY_INFO!A11) -> Malawi | B11: =IF(COUNTRY_INFO!B11=0," ",COUNTRY_INFO!B11) -> North | C11: =IF(COUNTRY_INFO!C11=0," ",COUNTRY_INFO!C11) -> Rumphi | D11: =IF(OR(COUNTRY_INFO!$T$9:$T$1000="T1 (PZQ+ALB/MBD)",COUNTRY_INFO!$U$9:$U$1000="T1 (PZQ+ALB/MBD)"), "T1 (PZQ+ALB/MBD)", " ") -> T1 (PZQ+ALB/MBD) | E11: PZQ+ALB | F11: April 2016 | H11: 56246 | J11: 27609 | K11: 83855 | M11: 48406 | N11: 23582 | O11: 71988 | Q11: 86.06123102 | R11: 85.41417654 | S11: 85.84819033
A12: =IF(COUNTRY_INFO!A12=0," ",COUNTRY_INFO!A12) -> Malawi | B12: =IF(COUNTRY_INFO!B12=0," ",COUNTRY_INFO!B12) -> North | C12: =IF(COUNTRY_INFO!C12=0," ",COUNTRY_INFO!C12) -> Mzimba North | D12: =IF(OR(COUNTRY_INFO!$T$9:$T$1000="T1 (PZQ+ALB/MBD)",COUNTRY_INFO!$U$9:$U$1000="T1 (PZQ+ALB/MBD)"), "T1 (PZQ+ALB/MBD)", " ") -> T1 (PZQ+ALB/MBD) | E12: PZQ+ALB | F12: April 2016 | H12: 144782 | J12: 147908 | K12: 292690 | M12: 150148 | N12: 126771 | O12: 276919 | Q12: 103.7062618 | R12: 85.70935987 | S12: 94.61170522
A13: =IF(COUNTRY_INFO!A13=0," ",COUNTRY_INFO!A13) -> Malawi | B13: =IF(COUNTRY_INFO!B13=0," ",COUNTRY_INFO!B13) -> North | C13: =IF(COUNTRY_INFO!C13=0," ",COUNTRY_INFO!C13) -> Mzimba South | D13: =IF(OR(COUNTRY_INFO!$T$9:$T$1000="T1 (PZQ+ALB/MBD)",COUNTRY_INFO!$U$9:$U$1000="T1 (PZQ+ALB/MBD)"), "T1 (PZQ+ALB/MBD)", " ") -> T1 (PZQ+ALB/MBD) | E13: PZQ+ALB | F13: April 2016 | H13: 153906 | J13: 159394 | K13: 313300 | M13: 133116 | N13: 83479 | O13: 216595 | Q13: 86.49175471 | R13: 52.37273674 | S13: 69.13341845
A14: =IF(COUNTRY_INFO!A14=0," ",COUNTRY_INFO!A14) -> Malawi | B14: =IF(COUNTRY_INFO!B14=0," ",COUNTRY_INFO!B14) -> North | C14: =IF(COUNTRY_INFO!C14=0," ",COUNTRY_INFO!C14) -> Nkhatabay | D14: =IF(OR(COUNTRY_INFO!$T$9:$T$1000="T1 (PZQ+ALB/MBD)",COUNTRY_INFO!$U$9:$U$1000="T1 (PZQ+ALB/MBD)"), "T1 (PZQ+ALB/MBD)", " ") -> T1 (PZQ+ALB/MBD) | E14: PZQ+ALB | F14: April 2016 | H14: 72181 | J14: 57312 | K14: 129493 | M14: 74031 | N14: 46398 | O14: 120429 | Q14: 102.5630013 | R14: 80.95686767 | S14: 93.00039384
A15: =IF(COUNTRY_INFO!A15=0," ",COUNTRY_INFO!A15) -> Malawi | B15: =IF(COUNTRY_INFO!B15=0," ",COUNTRY_INFO!B15) -> North | C15: =IF(COUNTRY_INFO!C15=0," ",COUNTRY_INFO!C15) -> Likoma | D15: =IF(OR(COUNTRY_INFO!$T$9:$T$1000="T1 (PZQ+ALB/MBD)",COUNTRY_INFO!$U$9:$U$1000="T1 (PZQ+ALB/MBD)"), "T1 (PZQ+ALB/MBD)", " ") -> T1 (PZQ+ALB/MBD) | E15: PZQ+ALB | F15: April 2016 | H15: 2892 | J15: 1178 | K15: 4070 | M15: 3258 | N15: 1002 | O15: 4260 | Q15: 112.6556017 | R15: 85.05942275 | S15: 104.6683047
A16: =IF(COUNTRY_INFO!A16=0," ",COUNTRY_INFO!A16) -> Malawi | B16: =IF(COUNTRY_INFO!B16=0," ",COUNTRY_INFO!B16) -> Central | C16: =IF(COUNTRY_INFO!C16=0," ",COUNTRY_INFO!C16) -> Kasungu | D16: =IF(OR(COUNTRY_INFO!$T$9:$T$1000="T1 (PZQ+ALB/MBD)",COUNTRY_INFO!$U$9:$U$1000="T1 (PZQ+ALB/MBD)"), "T1 (PZQ+ALB/MBD)", " ") -> T1 (PZQ+ALB/MBD) | E16: PZQ+ALB | F16: April 2016 | H16: 220213 | J16: 133431 | K16: 353644 | M16: 243702 | N16: 85771 | O16: 329473 | Q16: 110.6664911 | R16: 64.28116405 | S16: 93.16516044
A17: =IF(COUNTRY_INFO!A17=0," ",COUNTRY_INFO!A17) -> Malawi | B17: =IF(COUNTRY_INFO!B17=0," ",COUNTRY_INFO!B17) -> Central | C17: =IF(COUNTRY_INFO!C17=0," ",COUNTRY_INFO!C17) -> Dedza | D17: =IF(OR(COUNTRY_INFO!$T$9:$T$1000="T1 (PZQ+ALB/MBD)",COUNTRY_INFO!$U$9:$U$1000="T1 (PZQ+ALB/MBD)"), "T1 (PZQ+ALB/MBD)", " ") -> T1 (PZQ+ALB/MBD) | E17: PZQ+ALB | F17: April 2016 | H17: 199093 | J17: 44888 | K17: 243981 | M17: 171664 | N17: 81429 | O17: 253093 | Q17: 86.2230214 | R17: 181.4048298 | S17: 103.734717
A18: =IF(COUNTRY_INFO!A18=0," ",COUNTRY_INFO!A18) -> Malawi | B18: =IF(COUNTRY_INFO!B18=0," ",COUNTRY_INFO!B18) -> Central | C18: =IF(COUNTRY_INFO!C18=0," ",COUNTRY_INFO!C18) -> Dowa | D18: =IF(OR(COUNTRY_INFO!$T$9:$T$1000="T1 (PZQ+ALB/MBD)",COUNTRY_INFO!$U$9:$U$1000="T1 (PZQ+ALB/MBD)"), "T1 (PZQ+ALB/MBD)", " ") -> T1 (PZQ+ALB/MBD) | E18: PZQ+ALB | F18: April 2016 | H18: 202859 | J18: 25292 | K18: 228151 | M18: 145597 | N18: 25292 | O18: 170889 | Q18: 71.77251194 | R18: 100 | S18: 74.90170983
A19: =IF(COUNTRY_INFO!A19=0," ",COUNTRY_INFO!A19) -> Malawi | B19: =IF(COUNTRY_INFO!B19=0," ",COUNTRY_INFO!B19) -> Central | C19: =IF(COUNTRY_INFO!C19=0," ",COUNTRY_INFO!C19) -> Lilongwe | D19: =IF(OR(COUNTRY_INFO!$T$9:$T$1000="T1 (PZQ+ALB/MBD)",COUNTRY_INFO!$U$9:$U$1000="T1 (PZQ+ALB/MBD)"), "T1 (PZQ+ALB/MBD)", " ") -> T1 (PZQ+ALB/MBD) | E19: PZQ+ALB | F19: April 2016 | H19: 664865 | J19: 461038 | K19: 1125903 | M19: 571768 | N19: 317345 | O19: 889113 | Q19: 85.99760854 | R19: 68.83272095 | S19: 78.96888098
A20: =IF(COUNTRY_INFO!A20=0," ",COUNTRY_INFO!A20) -> Malawi | B20: =IF(COUNTRY_INFO!B20=0," ",COUNTRY_INFO!B20) -> Central | C20: =IF(COUNTRY_INFO!C20=0," ",COUNTRY_INFO!C20) -> Mchinji | D20: =IF(OR(COUNTRY_INFO!$T$9:$T$1000="T1 (PZQ+ALB/MBD)",COUNTRY_INFO!$U$9:$U$1000="T1 (PZQ+ALB/MBD)"), "T1 (PZQ+ALB/MBD)", " ") -> T1 (PZQ+ALB/MBD) | E20: PZQ+ALB | F20: April 2016 | H20: 157637 | J20: 67215 | K20: 224852 | M20: 125383 | N20: 53959 | O20: 179342 | Q20: 79.5390676 | R20: 80.27821171 | S20: 79.76001992
A21: =IF(COUNTRY_INFO!A21=0," ",COUNTRY_INFO!A21) -> Malawi | B21: =IF(COUNTRY_INFO!B21=0," ",COUNTRY_INFO!B21) -> Central | C21: =IF(COUNTRY_INFO!C21=0," ",COUNTRY_INFO!C21) -> Salima | D21: =IF(OR(COUNTRY_INFO!$T$9:$T$1000="T1 (PZQ+ALB/MBD)",COUNTRY_INFO!$U$9:$U$1000="T1 (PZQ+ALB/MBD)"), "T1 (PZQ+ALB/MBD)", " ") -> T1 (PZQ+ALB/MBD) | E21: PZQ+ALB | F21: April 2016 | H21: 112780 | J21: 156401 | K21: 269181 | M21: 97589 | N21: 70470 | O21: 168059 | Q21: 86.53041319 | R21: 45.05725667 | S21: 62.43345556
A22: =IF(COUNTRY_INFO!A22=0," ",COUNTRY_INFO!A22) -> Malawi | B22: =IF(COUNTRY_INFO!B22=0," ",COUNTRY_INFO!B22) -> Central | C22: =IF(COUNTRY_INFO!C22=0," ",COUNTRY_INFO!C22) -> Nkhotakota | D22: =IF(OR(COUNTRY_INFO!$T$9:$T$1000="T1 (PZQ+ALB/MBD)",COUNTRY_INFO!$U$9:$U$1000="T1 (PZQ+ALB/MBD)"), "T1 (PZQ+ALB/MBD)", " ") -> T1 (PZQ+ALB/MBD) | E22: PZQ+ALB | F22: April 2016 | H22: 101874 | J22: 70130 | K22: 172004 | M22: 122242 | N22: 70130 | O22: 192372 | Q22: 119.9933251 | R22: 100 | S22: 111.8415851
A23: =IF(COUNTRY_INFO!A23=0," ",COUNTRY_INFO!A23) -> Malawi | B23: =IF(COUNTRY_INFO!B23=0," ",COUNTRY_INFO!B23) -> Central | C23: =IF(COUNTRY_INFO!C23=0," ",COUNTRY_INFO!C23) -> Ntchisi | D23: =IF(OR(COUNTRY_INFO!$T$9:$T$1000="T1 (PZQ+ALB/MBD)",COUNTRY_INFO!$U$9:$U$1000="T1 (PZQ+ALB/MBD)"), "T1 (PZQ+ALB/MBD)", " ") -> T1 (PZQ+ALB/MBD) | E23: PZQ+ALB | F23: April 2016 | H23: 76585 | J23: 10684 | K23: 87269 | M23: 64685 | N23: 8491 | O23: 73176 | Q23: 84.46170921 | R23: 79.47397978 | S23: 83.85108114
A24: =IF(COUNTRY_INFO!A24=0," ",COUNTRY_INFO!A24) -> Malawi | B24: =IF(COUNTRY_INFO!B24=0," ",COUNTRY_INFO!B24) -> Central | C24: =IF(COUNTRY_INFO!C24=0," ",COUNTRY_INFO!C24) -> Ntcheu | D24: =IF(OR(COUNTRY_INFO!$T$9:$T$1000="T1 (PZQ+ALB/MBD)",COUNTRY_INFO!$U$9:$U$1000="T1 (PZQ+ALB/MBD)"), "T1 (PZQ+ALB/MBD)", " ") -> T1 (PZQ+ALB/MBD) | E24: PZQ+ALB | F24: April 2016 | H24: 154409 | J24: 81368 | K24: 235777 | M24: 157229 | N24: 75832 | O24: 233061 | Q24: 101.8263184 | R24: 93.19634254 | S24: 98.84806406
A25: =IF(COUNTRY_INFO!A25=0," ",COUNTRY_INFO!A25) -> Malawi | B25: =IF(COUNTRY_INFO!B25=0," ",COUNTRY_INFO!B25) -> South | C25: =IF(COUNTRY_INFO!C25=0," ",COUNTRY_INFO!C25) -> Balaka | D25: =IF(OR(COUNTRY_INFO!$T$9:$T$1000="T1 (PZQ+ALB/MBD)",COUNTRY_INFO!$U$9:$U$1000="T1 (PZQ+ALB/MBD)"), "T1 (PZQ+ALB/MBD)", " ") -> T1 (PZQ+ALB/MBD) | E25: PZQ+ALB | F25: April 2016 | H25: 106337 | J25: 12654 | K25: 118991 | M25: 88553 | N25: 9993 | O25: 98546 | Q25: 83.27581181 | R25: 78.97107634 | S25: 82.81802825
A26: =IF(COUNTRY_INFO!A26=0," ",COUNTRY_INFO!A26) -> Malawi | B26: =IF(COUNTRY_INFO!B26=0," ",COUNTRY_INFO!B26) -> South | C26: =IF(COUNTRY_INFO!C26=0," ",COUNTRY_INFO!C26) -> Chikwawa | D26: =IF(OR(COUNTRY_INFO!$T$9:$T$1000="T1 (PZQ+ALB/MBD)",COUNTRY_INFO!$U$9:$U$1000="T1 (PZQ+ALB/MBD)"), "T1 (PZQ+ALB/MBD)", " ") -> T1 (PZQ+ALB/MBD) | E26: PZQ+ALB | F26: May 2016 | H26: 143565 | J26: 359710 | K26: 503275 | M26: 175975 | N26: 57697 | O26: 233672 | Q26: 122.5751402 | R26: 16.03986545 | S26: 46.43028166
A27: =IF(COUNTRY_INFO!A27=0," ",COUNTRY_INFO!A27) -> Malawi | B27: =IF(COUNTRY_INFO!B27=0," ",COUNTRY_INFO!B27) -> South | C27: =IF(COUNTRY_INFO!C27=0," ",COUNTRY_INFO!C27) -> Chiradzulu | D27: =IF(OR(COUNTRY_INFO!$T$9:$T$1000="T1 (PZQ+ALB/MBD)",COUNTRY_INFO!$U$9:$U$1000="T1 (PZQ+ALB/MBD)"), "T1 (PZQ+ALB/MBD)", " ") -> T1 (PZQ+ALB/MBD) | E27: PZQ+ALB | F27: April 2016 | H27: 86994 | J27: 37026 | K27: 124020 | M27: 86753 | N27: 31033 | O27: 117786 | Q27: 99.7229694 | R27: 83.81407659 | S27: 94.97339139
A28: =IF(COUNTRY_INFO!A28=0," ",COUNTRY_INFO!A28) -> Malawi | B28: =IF(COUNTRY_INFO!B28=0," ",COUNTRY_INFO!B28) -> South | C28: =IF(COUNTRY_INFO!C28=0," ",COUNTRY_INFO!C28) -> Machinga | D28: =IF(OR(COUNTRY_INFO!$T$9:$T$1000="T1 (PZQ+ALB/MBD)",COUNTRY_INFO!$U$9:$U$1000="T1 (PZQ+ALB/MBD)"), "T1 (PZQ+ALB/MBD)", " ") -> T1 (PZQ+ALB/MBD) | E28: PZQ+ALB | F28: April 2016 | H28: 163349 | J28: 170520 | K28: 333869 | M28: 176023 | N28: 161960 | O28: 337983 | Q28: 107.7588476 | R28: 94.98006099 | S28: 101.2322198
A29: =IF(COUNTRY_INFO!A29=0," ",COUNTRY_INFO!A29) -> Malawi | B29: =IF(COUNTRY_INFO!B29=0," ",COUNTRY_INFO!B29) -> South | C29: =IF(COUNTRY_INFO!C29=0," ",COUNTRY_INFO!C29) -> Blantyre | D29: =IF(OR(COUNTRY_INFO!$T$9:$T$1000="T1 (PZQ+ALB/MBD)",COUNTRY_INFO!$U$9:$U$1000="T1 (PZQ+ALB/MBD)"), "T1 (PZQ+ALB/MBD)", " ") -> T1 (PZQ+ALB/MBD) | E29: PZQ+ALB | F29: April 2016 | H29: 343390 | J29: 161394 | K29: 504784 | M29: 273618 | N29: 138118 | O29: 411736 | Q29: 79.68141181 | R29: 85.57815036 | S29: 81.56676915
A30: =IF(COUNTRY_INFO!A30=0," ",COUNTRY_INFO!A30) -> Malawi | B30: =IF(COUNTRY_INFO!B30=0," ",COUNTRY_INFO!B30) -> South | C30: =IF(COUNTRY_INFO!C30=0," ",COUNTRY_INFO!C30) -> Mangochi | D30: =IF(OR(COUNTRY_INFO!$T$9:$T$1000="T1 (PZQ+ALB/MBD)",COUNTRY_INFO!$U$9:$U$1000="T1 (PZQ+ALB/MBD)"), "T1 (PZQ+ALB/MBD)", " ") -> T1 (PZQ+ALB/MBD) | E30: PZQ+ALB | F30: April 2016 | H30: 272030 | J30: 526249 | K30: 798279 | M30: 222499 | N30: 212386 | O30: 434885 | Q30: 81.79208176 | R30: 40.35846149 | S30: 54.47782041
A31: =IF(COUNTRY_INFO!A31=0," ",COUNTRY_INFO!A31) -> Malawi | B31: =IF(COUNTRY_INFO!B31=0," ",COUNTRY_INFO!B31) -> South | C31: =IF(COUNTRY_INFO!C31=0," ",COUNTRY_INFO!C31) -> Mulanje | D31: =IF(OR(COUNTRY_INFO!$T$9:$T$1000="T1 (PZQ+ALB/MBD)",COUNTRY_INFO!$U$9:$U$1000="T1 (PZQ+ALB/MBD)"), "T1 (PZQ+ALB/MBD)", " ") -> T1 (PZQ+ALB/MBD) | E31: PZQ+ALB | F31: April 2016 | H31: 156498 | J31: 56346 | K31: 212844 | M31: 136718 | N31: 23146 | O31: 159864 | Q31: 87.36086084 | R31: 41.07833742 | S31: 75.10853019
A32: =IF(COUNTRY_INFO!A32=0," ",COUNTRY_INFO!A32) -> Malawi | B32: =IF(COUNTRY_INFO!B32=0," ",COUNTRY_INFO!B32) -> South | C32: =IF(COUNTRY_INFO!C32=0," ",COUNTRY_INFO!C32) -> Nsanje | D32: =IF(OR(COUNTRY_INFO!$T$9:$T$1000="T1 (PZQ+ALB/MBD)",COUNTRY_INFO!$U$9:$U$1000="T1 (PZQ+ALB/MBD)"), "T1 (PZQ+ALB/MBD)", " ") -> T1 (PZQ+ALB/MBD) | E32: PZQ+ALB | F32: April 2016 | H32: 78889 | J32: 108790 | K32: 187679 | M32: 75915 | N32: 14304 | O32: 90219 | Q32: 96.23014615 | R32: 13.1482673 | S32: 48.07090831
A33: =IF(COUNTRY_INFO!A33=0," ",COUNTRY_INFO!A33) -> Malawi | B33: =IF(COUNTRY_INFO!B33=0," ",COUNTRY_INFO!B33) -> South | C33: =IF(COUNTRY_INFO!C33=0," ",COUNTRY_INFO!C33) -> Phalombe | D33: =IF(OR(COUNTRY_INFO!$T$9:$T$1000="T1 (PZQ+ALB/MBD)",COUNTRY_INFO!$U$9:$U$1000="T1 (PZQ+ALB/MBD)"), "T1 (PZQ+ALB/MBD)", " ") -> T1 (PZQ+ALB/MBD) | E33: PZQ+ALB | F33: April 2016 | H33: 100906 | J33: 17145 | K33: 118051 | M33: 111225 | N33: 20206 | O33: 131431 | Q33: 110.2263493 | R33: 117.8536016 | S33: 111.3340844
A34: =IF(COUNTRY_INFO!A34=0," ",COUNTRY_INFO!A34) -> Malawi | B34: =IF(COUNTRY_INFO!B34=0," ",COUNTRY_INFO!B34) -> South | C34: =IF(COUNTRY_INFO!C34=0," ",COUNTRY_INFO!C34) -> Thyolo | D34: =IF(OR(COUNTRY_INFO!$T$9:$T$1000="T1 (PZQ+ALB/MBD)",COUNTRY_INFO!$U$9:$U$1000="T1 (PZQ+ALB/MBD)"), "T1 (PZQ+ALB/MBD)", " ") -> T1 (PZQ+ALB/MBD) | E34: PZQ+ALB | F34: April 2016 | H34: 175346 | J34: 53823 | K34: 229169 | M34: 160957 | N34: 47906 | O34: 208863 | Q34: 91.79393884 | R34: 89.00655853 | S34: 91.13929022
A35: =IF(COUNTRY_INFO!A35=0," ",COUNTRY_INFO!A35) -> Malawi | B35: =IF(COUNTRY_INFO!B35=0," ",COUNTRY_INFO!B35) -> South | C35: =IF(COUNTRY_INFO!C35=0," ",COUNTRY_INFO!C35) -> Zomba | D35: =IF(OR(COUNTRY_INFO!$T$9:$T$1000="T1 (PZQ+ALB/MBD)",COUNTRY_INFO!$U$9:$U$1000="T1 (PZQ+ALB/MBD)"), "T1 (PZQ+ALB/MBD)", " ") -> T1 (PZQ+ALB/MBD) | E35: PZQ+ALB | F35: April 2016 | H35: 215855 | J35: 130520 | K35: 346375 | M35: 183839 | N35: 109838 | O35: 293677 | Q35: 85.16782099 | R35: 84.15415262 | S35: 84.78585348
A36: =IF(COUNTRY_INFO!A36=0," ",COUNTRY_INFO!A36) -> Malawi | B36: =IF(COUNTRY_INFO!B36=0," ",COUNTRY_INFO!B36) -> South | C36: =IF(COUNTRY_INFO!C36=0," ",COUNTRY_INFO!C36) -> Neno | D36: =IF(OR(COUNTRY_INFO!$T$9:$T$1000="T1 (PZQ+ALB/MBD)",COUNTRY_INFO!$U$9:$U$1000="T1 (PZQ+ALB/MBD)"), "T1 (PZQ+ALB/MBD)", " ") -> T1 (PZQ+ALB/MBD) | E36: PZQ+ALB | F36: April 2016 | H36: 39839 | J36: 58353 | K36: 98192 | M36: 38841 | N36: 33562 | O36: 72403 | Q36: 97.49491704 | R36: 57.51546621 | S36: 73.73614958
A37: =IF(COUNTRY_INFO!A37=0," ",COUNTRY_INFO!A37) -> Malawi | B37: =IF(COUNTRY_INFO!B37=0," ",COUNTRY_INFO!B37) -> South | C37: =IF(COUNTRY_INFO!C37=0," ",COUNTRY_INFO!C37) -> Mwanza | D37: =IF(OR(COUNTRY_INFO!$T$9:$T$1000="T1 (PZQ+ALB/MBD)",COUNTRY_INFO!$U$9:$U$1000="T1 (PZQ+ALB/MBD)"), "T1 (PZQ+ALB/MBD)", " ") -> T1 (PZQ+ALB/MBD) | E37: PZQ+ALB | F37: April 2016 | H37: 28412 | J37: 20076 | K37: 48488 | M37: 28655 | N37: 15191 | O37: 43846 | Q37: 100.8552724 | R37: 75.66746364 | S37: 90.42649728

Sheet T2
A1: T 2 - Praziquantel (PZQ)
A2: Administrative structure, population requiring PC by age group, population treated by age group and coverage
A4: TOTAL | F4: =SUM(F$9:F$1000) -> 0 | G4: 0 | H4: 0 | I4: 0 | J4: 0 | K4: 0 | L4: 0 | M4: 0 | N4: =IF(F4<>0, IF(J4/F4*100=0, "-", J4/F4*100), " ") ->  | O4: =IF(G4<>0, IF(K4/G4*100=0, "-", K4/G4*100), " ") ->  | P4: =IF(H4<>0, IF(L4/H4*100=0, "-", L4/H4*100), " ") ->  | Q4: =IF(I4<>0, IF(M4/I4*100=0, "-", M4/I4*100), " ") -> 
D6: PC implemented | E6: Date | F6: Population targeted for T2 | J6: Population treated | N6: Programme coverage (%)
A7: Country | B7: Province/State | C7: District | F7: PreSAC | G7: SAC | H7: Adults | I7: Total | J7: PreSAC | K7: SAC | L7: Adults | M7: Total | N7: PreSAC | O7: SAC | P7: Adults | Q7: Total
A9: =IF(COUNTRY_INFO!A9=0," ",COUNTRY_INFO!A9) -> Malawi | B9: =IF(COUNTRY_INFO!B9=0," ",COUNTRY_INFO!B9) -> North | C9: =IF(COUNTRY_INFO!C9=0," ",COUNTRY_INFO!C9) -> Chitipa | D9: =IF(COUNTRY_INFO!$U$9:$U$1000="T2 (PZQ)", COUNTRY_INFO!$U$9:$U$1000, " ") ->  | I9: =SUM(F9:H9) -> 0 | M9: =SUM(J9:L9) -> 0 | N9: =IF(F9<>0, IF(J9/F9*100=0, "-", J9/F9*100), " ") -> 
A10: =IF(COUNTRY_INFO!A10=0," ",COUNTRY_INFO!A10) -> Malawi | B10: =IF(COUNTRY_INFO!B10=0," ",COUNTRY_INFO!B10) -> North | C10: =IF(COUNTRY_INFO!C10=0," ",COUNTRY_INFO!C10) -> Karonga | D10: =IF(COUNTRY_INFO!$U$9:$U$1000="T2 (PZQ)", COUNTRY_INFO!$U$9:$U$1000, " ") ->  | I10: =SUM(F10:H10) -> 0 | M10: =SUM(J10:L10) -> 0 | N10: =IF(F10<>0, IF(J10/F10*100=0, "-", J10/F10*100), " ") ->  | O10: =IF(G10<>0, IF(K10/G10*100=0, "-", K10/G10*100), " ") ->  | P10: =IF(H10<>0, IF(L10/H10*100=0, "-", L10/H10*100), " ") ->  | Q10: =IF(I10<>0, IF(M10/I10*100=0, "-", M10/I10*100), " ") -> 
A11: =IF(COUNTRY_INFO!A11=0," ",COUNTRY_INFO!A11) -> Malawi | B11: =IF(COUNTRY_INFO!B11=0," ",COUNTRY_INFO!B11) -> North | C11: =IF(COUNTRY_INFO!C11=0," ",COUNTRY_INFO!C11) -> Rumphi | D11: =IF(COUNTRY_INFO!$U$9:$U$1000="T2 (PZQ)", COUNTRY_INFO!$U$9:$U$1000, " ") ->  | I11: 0 | M11: 0
A12: =IF(COUNTRY_INFO!A12=0," ",COUNTRY_INFO!A12) -> Malawi | B12: =IF(COUNTRY_INFO!B12=0," ",COUNTRY_INFO!B12) -> North | C12: =IF(COUNTRY_INFO!C12=0," ",COUNTRY_INFO!C12) -> Mzimba North | D12: =IF(COUNTRY_INFO!$U$9:$U$1000="T2 (PZQ)", COUNTRY_INFO!$U$9:$U$1000, " ") ->  | I12: 0 | M12: 0
A13: =IF(COUNTRY_INFO!A13=0," ",COUNTRY_INFO!A13) -> Malawi | B13: =IF(COUNTRY_INFO!B13=0," ",COUNTRY_INFO!B13) -> North | C13: =IF(COUNTRY_INFO!C13=0," ",COUNTRY_INFO!C13) -> Mzimba South | D13: =IF(COUNTRY_INFO!$U$9:$U$1000="T2 (PZQ)", COUNTRY_INFO!$U$9:$U$1000, " ") ->  | I13: 0 | M13: 0
A14: =IF(COUNTRY_INFO!A14=0," ",COUNTRY_INFO!A14) -> Malawi | B14: =IF(COUNTRY_INFO!B14=0," ",COUNTRY_INFO!B14) -> North | C14: =IF(COUNTRY_INFO!C14=0," ",COUNTRY_INFO!C14) -> Nkhatabay | D14: =IF(COUNTRY_INFO!$U$9:$U$1000="T2 (PZQ)", COUNTRY_INFO!$U$9:$U$1000, " ") ->  | I14: 0 | M14: 0
A15: =IF(COUNTRY_INFO!A15=0," ",COUNTRY_INFO!A15) -> Malawi | B15: =IF(COUNTRY_INFO!B15=0," ",COUNTRY_INFO!B15) -> North | C15: =IF(COUNTRY_INFO!C15=0," ",COUNTRY_INFO!C15) -> Likoma | D15: =IF(COUNTRY_INFO!$U$9:$U$1000="T2 (PZQ)", COUNTRY_INFO!$U$9:$U$1000, " ") ->  | I15: 0 | M15: 0
A16: =IF(COUNTRY_INFO!A16=0," ",COUNTRY_INFO!A16) -> Malawi | B16: =IF(COUNTRY_INFO!B16=0," ",COUNTRY_INFO!B16) -> Central | C16: =IF(COUNTRY_INFO!C16=0," ",COUNTRY_INFO!C16) -> Kasungu | D16: =IF(COUNTRY_INFO!$U$9:$U$1000="T2 (PZQ)", COUNTRY_INFO!$U$9:$U$1000, " ") ->  | I16: 0 | M16: 0
A17: =IF(COUNTRY_INFO!A17=0," ",COUNTRY_INFO!A17) -> Malawi | B17: =IF(COUNTRY_INFO!B17=0," ",COUNTRY_INFO!B17) -> Central | C17: =IF(COUNTRY_INFO!C17=0," ",COUNTRY_INFO!C17) -> Dedza | D17: =IF(COUNTRY_INFO!$U$9:$U$1000="T2 (PZQ)", COUNTRY_INFO!$U$9:$U$1000, " ") ->  | I17: 0 | M17: 0
A18: =IF(COUNTRY_INFO!A18=0," ",COUNTRY_INFO!A18) -> Malawi | B18: =IF(COUNTRY_INFO!B18=0," ",COUNTRY_INFO!B18) -> Central | C18: =IF(COUNTRY_INFO!C18=0," ",COUNTRY_INFO!C18) -> Dowa | D18: =IF(COUNTRY_INFO!$U$9:$U$1000="T2 (PZQ)", COUNTRY_INFO!$U$9:$U$1000, " ") ->  | I18: 0 | M18: 0
A19: =IF(COUNTRY_INFO!A19=0," ",COUNTRY_INFO!A19) -> Malawi | B19: =IF(COUNTRY_INFO!B19=0," ",COUNTRY_INFO!B19) -> Central | C19: =IF(COUNTRY_INFO!C19=0," ",COUNTRY_INFO!C19) -> Lilongwe | D19: =IF(COUNTRY_INFO!$U$9:$U$1000="T2 (PZQ)", COUNTRY_INFO!$U$9:$U$1000, " ") ->  | I19: 0 | M19: 0
A20: =IF(COUNTRY_INFO!A20=0," ",COUNTRY_INFO!A20) -> Malawi | B20: =IF(COUNTRY_INFO!B20=0," ",COUNTRY_INFO!B20) -> Central | C20: =IF(COUNTRY_INFO!C20=0," ",COUNTRY_INFO!C20) -> Mchinji | D20: =IF(COUNTRY_INFO!$U$9:$U$1000="T2 (PZQ)", COUNTRY_INFO!$U$9:$U$1000, " ") ->  | I20: 0 | M20: 0
A21: =IF(COUNTRY_INFO!A21=0," ",COUNTRY_INFO!A21) -> Malawi | B21: =IF(COUNTRY_INFO!B21=0," ",COUNTRY_INFO!B21) -> Central | C21: =IF(COUNTRY_INFO!C21=0," ",COUNTRY_INFO!C21) -> Salima | D21: =IF(COUNTRY_INFO!$U$9:$U$1000="T2 (PZQ)", COUNTRY_INFO!$U$9:$U$1000, " ") ->  | I21: 0 | M21: 0
A22: =IF(COUNTRY_INFO!A22=0," ",COUNTRY_INFO!A22) -> Malawi | B22: =IF(COUNTRY_INFO!B22=0," ",COUNTRY_INFO!B22) -> Central | C22: =IF(COUNTRY_INFO!C22=0," ",COUNTRY_INFO!C22) -> Nkhotakota | D22: =IF(COUNTRY_INFO!$U$9:$U$1000="T2 (PZQ)", COUNTRY_INFO!$U$9:$U$1000, " ") ->  | I22: 0 | M22: 0
A23: =IF(COUNTRY_INFO!A23=0," ",COUNTRY_INFO!A23) -> Malawi | B23: =IF(COUNTRY_INFO!B23=0," ",COUNTRY_INFO!B23) -> Central | C23: =IF(COUNTRY_INFO!C23=0," ",COUNTRY_INFO!C23) -> Ntchisi | D23: =IF(COUNTRY_INFO!$U$9:$U$1000="T2 (PZQ)", COUNTRY_INFO!$U$9:$U$1000, " ") ->  | I23: 0 | M23: 0
A24: =IF(COUNTRY_INFO!A24=0," ",COUNTRY_INFO!A24) -> Malawi | B24: =IF(COUNTRY_INFO!B24=0," ",COUNTRY_INFO!B24) -> Central | C24: =IF(COUNTRY_INFO!C24=0," ",COUNTRY_INFO!C24) -> Ntcheu | D24: =IF(COUNTRY_INFO!$U$9:$U$1000="T2 (PZQ)", COUNTRY_INFO!$U$9:$U$1000, " ") ->  | I24: 0 | M24: 0
A25: =IF(COUNTRY_INFO!A25=0," ",COUNTRY_INFO!A25) -> Malawi | B25: =IF(COUNTRY_INFO!B25=0," ",COUNTRY_INFO!B25) -> South | C25: =IF(COUNTRY_INFO!C25=0," ",COUNTRY_INFO!C25) -> Balaka | D25: =IF(COUNTRY_INFO!$U$9:$U$1000="T2 (PZQ)", COUNTRY_INFO!$U$9:$U$1000, " ") ->  | I25: 0 | M25: 0
A26: =IF(COUNTRY_INFO!A26=0," ",COUNTRY_INFO!A26) -> Malawi | B26: =IF(COUNTRY_INFO!B26=0," ",COUNTRY_INFO!B26) -> South | C26: =IF(COUNTRY_INFO!C26=0," ",COUNTRY_INFO!C26) -> Chikwawa | D26: =IF(COUNTRY_INFO!$U$9:$U$1000="T2 (PZQ)", COUNTRY_INFO!$U$9:$U$1000, " ") ->  | I26: 0 | M26: 0
A27: =IF(COUNTRY_INFO!A27=0," ",COUNTRY_INFO!A27) -> Malawi | B27: =IF(COUNTRY_INFO!B27=0," ",COUNTRY_INFO!B27) -> South | C27: =IF(COUNTRY_INFO!C27=0," ",COUNTRY_INFO!C27) -> Chiradzulu | D27: =IF(COUNTRY_INFO!$U$9:$U$1000="T2 (PZQ)", COUNTRY_INFO!$U$9:$U$1000, " ") ->  | I27: 0 | M27: 0
A28: =IF(COUNTRY_INFO!A28=0," ",COUNTRY_INFO!A28) -> Malawi | B28: =IF(COUNTRY_INFO!B28=0," ",COUNTRY_INFO!B28) -> South | C28: =IF(COUNTRY_INFO!C28=0," ",COUNTRY_INFO!C28) -> Machinga | D28: =IF(COUNTRY_INFO!$U$9:$U$1000="T2 (PZQ)", COUNTRY_INFO!$U$9:$U$1000, " ") ->  | I28: 0 | M28: 0
A29: =IF(COUNTRY_INFO!A29=0," ",COUNTRY_INFO!A29) -> Malawi | B29: =IF(COUNTRY_INFO!B29=0," ",COUNTRY_INFO!B29) -> South | C29: =IF(COUNTRY_INFO!C29=0," ",COUNTRY_INFO!C29) -> Blantyre | D29: =IF(COUNTRY_INFO!$U$9:$U$1000="T2 (PZQ)", COUNTRY_INFO!$U$9:$U$1000, " ") ->  | I29: 0 | M29: 0
A30: =IF(COUNTRY_INFO!A30=0," ",COUNTRY_INFO!A30) -> Malawi | B30: =IF(COUNTRY_INFO!B30=0," ",COUNTRY_INFO!B30) -> South | C30: =IF(COUNTRY_INFO!C30=0," ",COUNTRY_INFO!C30) -> Mangochi | D30: =IF(COUNTRY_INFO!$U$9:$U$1000="T2 (PZQ)", COUNTRY_INFO!$U$9:$U$1000, " ") ->  | I30: 0 | M30: 0
A31: =IF(COUNTRY_INFO!A31=0," ",COUNTRY_INFO!A31) -> Malawi | B31: =IF(COUNTRY_INFO!B31=0," ",COUNTRY_INFO!B31) -> South | C31: =IF(COUNTRY_INFO!C31=0," ",COUNTRY_INFO!C31) -> Mulanje | D31: =IF(COUNTRY_INFO!$U$9:$U$1000="T2 (PZQ)", COUNTRY_INFO!$U$9:$U$1000, " ") ->  | I31: 0 | M31: 0
A32: =IF(COUNTRY_INFO!A32=0," ",COUNTRY_INFO!A32) -> Malawi | B32: =IF(COUNTRY_INFO!B32=0," ",COUNTRY_INFO!B32) -> South | C32: =IF(COUNTRY_INFO!C32=0," ",COUNTRY_INFO!C32) -> Nsanje | D32: =IF(COUNTRY_INFO!$U$9:$U$1000="T2 (PZQ)", COUNTRY_INFO!$U$9:$U$1000, " ") ->  | I32: 0 | M32: 0
A33: =IF(COUNTRY_INFO!A33=0," ",COUNTRY_INFO!A33) -> Malawi | B33: =IF(COUNTRY_INFO!B33=0," ",COUNTRY_INFO!B33) -> South | C33: =IF(COUNTRY_INFO!C33=0," ",COUNTRY_INFO!C33) -> Phalombe | D33: =IF(COUNTRY_INFO!$U$9:$U$1000="T2 (PZQ)", COUNTRY_INFO!$U$9:$U$1000, " ") ->  | I33: 0 | M33: 0
A34: =IF(COUNTRY_INFO!A34=0," ",COUNTRY_INFO!A34) -> Malawi | B34: =IF(COUNTRY_INFO!B34=0," ",COUNTRY_INFO!B34) -> South | C34: =IF(COUNTRY_INFO!C34=0," ",COUNTRY_INFO!C34) -> Thyolo | D34: =IF(COUNTRY_INFO!$U$9:$U$1000="T2 (PZQ)", COUNTRY_INFO!$U$9:$U$1000, " ") ->  | I34: 0 | M34: 0
A35: =IF(COUNTRY_INFO!A35=0," ",COUNTRY_INFO!A35) -> Malawi | B35: =IF(COUNTRY_INFO!B35=0," ",COUNTRY_INFO!B35) -> South | C35: =IF(COUNTRY_INFO!C35=0," ",COUNTRY_INFO!C35) -> Zomba | D35: =IF(COUNTRY_INFO!$U$9:$U$1000="T2 (PZQ)", COUNTRY_INFO!$U$9:$U$1000, " ") ->  | I35: 0 | M35: 0
A36: =IF(COUNTRY_INFO!A36=0," ",COUNTRY_INFO!A36) -> Malawi | B36: =IF(COUNTRY_INFO!B36=0," ",COUNTRY_INFO!B36) -> South | C36: =IF(COUNTRY_INFO!C36=0," ",COUNTRY_INFO!C36) -> Neno | D36: =IF(COUNTRY_INFO!$U$9:$U$1000="T2 (PZQ)", COUNTRY_INFO!$U$9:$U$1000, " ") ->  | I36: 0 | M36: 0
A37: =IF(COUNTRY_INFO!A37=0," ",COUNTRY_INFO!A37) -> Malawi | B37: =IF(COUNTRY_INFO!B37=0," ",COUNTRY_INFO!B37) -> South | C37: =IF(COUNTRY_INFO!C37=0," ",COUNTRY_INFO!C37) -> Mwanza | D37: =IF(COUNTRY_INFO!$U$9:$U$1000="T2 (PZQ)", COUNTRY_INFO!$U$9:$U$1000, " ") ->  | I37: 0 | M37: 0

Sheet T3_R1
A1: T 3 - Albendazole (ALB) or Mebendazole (MBD) - Round 1
A2: Administrative structure, population requiring PC by age group, population treated by age group and coverage
A4: TOTAL | G4: =SUM(G$9:G$1000) -> 2289273 | H4: 0 | I4: 0 | J4: 2289273 | K4: 2429181 | L4: 0 | M4: 0 | N4: 2429181 | O4: =IF(G4<>0, IF(K4/G4*100=0, "-", K4/G4*100), " ") -> 106.1114598 | P4: =IF(H4<>0, IF(L4/H4*100=0, "-", L4/H4*100), " ") ->  | Q4: =IF(I4<>0, IF(M4/I4*100=0, "-", M4/I4*100), " ") ->  | R4: =IF(J4<>0, IF(N4/J4*100=0, "-", N4/J4*100), " ") -> 106.1114598
D6: PC implemented | E6: Medicine | F6: Date | G6: Population targeted for T3 | K6: Population treated | O6: Programme coverage (%)
A7: Country | B7: Province/State | C7: District | G7: PreSAC | H7: SAC | I7: Adults | J7: Total | K7: PreSAC | L7: SAC | M7: Adults | N7: Total | O7: PreSAC | P7: SAC | Q7: Adults | R7: Total
A9: =IF(COUNTRY_INFO!A9=0," ",COUNTRY_INFO!A9) -> Malawi | B9: =IF(COUNTRY_INFO!B9=0," ",COUNTRY_INFO!B9) -> North | C9: =IF(COUNTRY_INFO!C9=0," ",COUNTRY_INFO!C9) -> Chitipa | D9: =IF(OR(COUNTRY_INFO!$T$9:$T$1000="T3 (ALB/MBD)",COUNTRY_INFO!$U$9:$U$1000="T3 (ALB/MBD)"), "T3 (ALB/MBD)", " ") -> T3 (ALB/MBD) | E9: ALB | F9: April | G9: 30296 | J9: =SUM(G9:I9) -> 30296 | K9: 30945 | N9: =SUM(K9:M9) -> 30945 | O9: =IF(G9<>0, IF(K9/G9*100=0, "-", K9/G9*100), " ") -> 102.142197 | R9: 102.142197
A10: =IF(COUNTRY_INFO!A10=0," ",COUNTRY_INFO!A10) -> Malawi | B10: =IF(COUNTRY_INFO!B10=0," ",COUNTRY_INFO!B10) -> North | C10: =IF(COUNTRY_INFO!C10=0," ",COUNTRY_INFO!C10) -> Karonga | D10: =IF(OR(COUNTRY_INFO!$T$9:$T$1000="T3 (ALB/MBD)",COUNTRY_INFO!$U$9:$U$1000="T3 (ALB/MBD)"), "T3 (ALB/MBD)", " ") -> T3 (ALB/MBD) | E10: ALB | F10: April | G10: 47342 | J10: =SUM(G10:I10) -> 47342 | K10: 43504 | N10: =SUM(K10:M10) -> 43504 | O10: =IF(G10<>0, IF(K10/G10*100=0, "-", K10/G10*100), " ") -> 91.89303367 | P10: =IF(H10<>0, IF(L10/H10*100=0, "-", L10/H10*100), " ") ->  | Q10: =IF(I10<>0, IF(M10/I10*100=0, "-", M10/I10*100), " ") ->  | R10: =IF(J10<>0, IF(N10/J10*100=0, "-", N10/J10*100), " ") -> 91.89303367
A11: =IF(COUNTRY_INFO!A11=0," ",COUNTRY_INFO!A11) -> Malawi | B11: =IF(COUNTRY_INFO!B11=0," ",COUNTRY_INFO!B11) -> North | C11: =IF(COUNTRY_INFO!C11=0," ",COUNTRY_INFO!C11) -> Rumphi | D11: =IF(OR(COUNTRY_INFO!$T$9:$T$1000="T3 (ALB/MBD)",COUNTRY_INFO!$U$9:$U$1000="T3 (ALB/MBD)"), "T3 (ALB/MBD)", " ") -> T3 (ALB/MBD) | E11: ALB | F11: April | G11: 29143 | J11: 29143 | K11: 28868 | N11: 28868 | O11: 99.05637717 | R11: 99.05637717
A12: =IF(COUNTRY_INFO!A12=0," ",COUNTRY_INFO!A12) -> Malawi | B12: =IF(COUNTRY_INFO!B12=0," ",COUNTRY_INFO!B12) -> North | C12: =IF(COUNTRY_INFO!C12=0," ",COUNTRY_INFO!C12) -> Mzimba North | D12: =IF(OR(COUNTRY_INFO!$T$9:$T$1000="T3 (ALB/MBD)",COUNTRY_INFO!$U$9:$U$1000="T3 (ALB/MBD)"), "T3 (ALB/MBD)", " ") -> T3 (ALB/MBD) | E12: ALB | F12: April | G12: 63205 | J12: 63205 | K12: 60229 | N12: 60229 | O12: 95.29151175 | R12: 95.29151175
A13: =IF(COUNTRY_INFO!A13=0," ",COUNTRY_INFO!A13) -> Malawi | B13: =IF(COUNTRY_INFO!B13=0," ",COUNTRY_INFO!B13) -> North | C13: =IF(COUNTRY_INFO!C13=0," ",COUNTRY_INFO!C13) -> Mzimba South | D13: =IF(OR(COUNTRY_INFO!$T$9:$T$1000="T3 (ALB/MBD)",COUNTRY_INFO!$U$9:$U$1000="T3 (ALB/MBD)"), "T3 (ALB/MBD)", " ") -> T3 (ALB/MBD) | E13: ALB | F13: April | G13: 94808 | J13: 94808 | K13: 80883 | N13: 80883 | O13: 85.31242089 | R13: 85.31242089
A14: =IF(COUNTRY_INFO!A14=0," ",COUNTRY_INFO!A14) -> Malawi | B14: =IF(COUNTRY_INFO!B14=0," ",COUNTRY_INFO!B14) -> North | C14: =IF(COUNTRY_INFO!C14=0," ",COUNTRY_INFO!C14) -> Nkhatabay | D14: =IF(OR(COUNTRY_INFO!$T$9:$T$1000="T3 (ALB/MBD)",COUNTRY_INFO!$U$9:$U$1000="T3 (ALB/MBD)"), "T3 (ALB/MBD)", " ") -> T3 (ALB/MBD) | E14: ALB | F14: April | G14: 37789 | J14: 37789 | K14: 35801 | N14: 35801 | O14: 94.73920982 | R14: 94.73920982
A15: =IF(COUNTRY_INFO!A15=0," ",COUNTRY_INFO!A15) -> Malawi | B15: =IF(COUNTRY_INFO!B15=0," ",COUNTRY_INFO!B15) -> North | C15: =IF(COUNTRY_INFO!C15=0," ",COUNTRY_INFO!C15) -> Likoma | D15: =IF(OR(COUNTRY_INFO!$T$9:$T$1000="T3 (ALB/MBD)",COUNTRY_INFO!$U$9:$U$1000="T3 (ALB/MBD)"), "T3 (ALB/MBD)", " ") -> T3 (ALB/MBD) | E15: ALB | F15: April | G15: 1423 | J15: 1423 | N15: 0 | O15: - | R15: -
A16: =IF(COUNTRY_INFO!A16=0," ",COUNTRY_INFO!A16) -> Malawi | B16: =IF(COUNTRY_INFO!B16=0," ",COUNTRY_INFO!B16) -> Central | C16: =IF(COUNTRY_INFO!C16=0," ",COUNTRY_INFO!C16) -> Kasungu | D16: =IF(OR(COUNTRY_INFO!$T$9:$T$1000="T3 (ALB/MBD)",COUNTRY_INFO!$U$9:$U$1000="T3 (ALB/MBD)"), "T3 (ALB/MBD)", " ") -> T3 (ALB/MBD) | E16: ALB | F16: April | G16: 116794 | J16: 116794 | K16: 118815 | N16: 118815 | O16: 101.7303971 | R16: 101.7303971
A17: =IF(COUNTRY_INFO!A17=0," ",COUNTRY_INFO!A17) -> Malawi | B17: =IF(COUNTRY_INFO!B17=0," ",COUNTRY_INFO!B17) -> Central | C17: =IF(COUNTRY_INFO!C17=0," ",COUNTRY_INFO!C17) -> Dedza | D17: =IF(OR(COUNTRY_INFO!$T$9:$T$1000="T3 (ALB/MBD)",COUNTRY_INFO!$U$9:$U$1000="T3 (ALB/MBD)"), "T3 (ALB/MBD)", " ") -> T3 (ALB/MBD) | E17: ALB | F17: April | G17: 102343 | J17: 102343 | K17: 104323 | N17: 104323 | O17: 101.9346707 | R17: 101.9346707
A18: =IF(COUNTRY_INFO!A18=0," ",COUNTRY_INFO!A18) -> Malawi | B18: =IF(COUNTRY_INFO!B18=0," ",COUNTRY_INFO!B18) -> Central | C18: =IF(COUNTRY_INFO!C18=0," ",COUNTRY_INFO!C18) -> Dowa | D18: =IF(OR(COUNTRY_INFO!$T$9:$T$1000="T3 (ALB/MBD)",COUNTRY_INFO!$U$9:$U$1000="T3 (ALB/MBD)"), "T3 (ALB/MBD)", " ") -> T3 (ALB/MBD) | E18: ALB | F18: April | G18: 108450 | J18: 108450 | K18: 100720 | N18: 100720 | O18: 92.87229138 | R18: 92.87229138
A19: =IF(COUNTRY_INFO!A19=0," ",COUNTRY_INFO!A19) -> Malawi | B19: =IF(COUNTRY_INFO!B19=0," ",COUNTRY_INFO!B19) -> Central | C19: =IF(COUNTRY_INFO!C19=0," ",COUNTRY_INFO!C19) -> Lilongwe | D19: =IF(OR(COUNTRY_INFO!$T$9:$T$1000="T3 (ALB/MBD)",COUNTRY_INFO!$U$9:$U$1000="T3 (ALB/MBD)"), "T3 (ALB/MBD)", " ") -> T3 (ALB/MBD) | E19: ALB | F19: April | G19: 352078 | J19: 352078 | K19: 371775 | N19: 371775 | O19: 105.5944989 | R19: 105.5944989
A20: =IF(COUNTRY_INFO!A20=0," ",COUNTRY_INFO!A20) -> Malawi | B20: =IF(COUNTRY_INFO!B20=0," ",COUNTRY_INFO!B20) -> Central | C20: =IF(COUNTRY_INFO!C20=0," ",COUNTRY_INFO!C20) -> Mchinji | D20: =IF(OR(COUNTRY_INFO!$T$9:$T$1000="T3 (ALB/MBD)",COUNTRY_INFO!$U$9:$U$1000="T3 (ALB/MBD)"), "T3 (ALB/MBD)", " ") -> T3 (ALB/MBD) | E20: ALB | F20: April | G20: 83066 | J20: 83066 | K20: 83309 | N20: 83309 | O20: 100.2925385 | R20: 100.2925385
A21: =IF(COUNTRY_INFO!A21=0," ",COUNTRY_INFO!A21) -> Malawi | B21: =IF(COUNTRY_INFO!B21=0," ",COUNTRY_INFO!B21) -> Central | C21: =IF(COUNTRY_INFO!C21=0," ",COUNTRY_INFO!C21) -> Salima | D21: =IF(OR(COUNTRY_INFO!$T$9:$T$1000="T3 (ALB/MBD)",COUNTRY_INFO!$U$9:$U$1000="T3 (ALB/MBD)"), "T3 (ALB/MBD)", " ") -> T3 (ALB/MBD) | E21: ALB | F21: April | G21: 58761 | J21: 58761 | K21: 70798 | N21: 70798 | O21: 120.4846752 | R21: 120.4846752
A22: =IF(COUNTRY_INFO!A22=0," ",COUNTRY_INFO!A22) -> Malawi | B22: =IF(COUNTRY_INFO!B22=0," ",COUNTRY_INFO!B22) -> Central | C22: =IF(COUNTRY_INFO!C22=0," ",COUNTRY_INFO!C22) -> Nkhotakota | D22: =IF(OR(COUNTRY_INFO!$T$9:$T$1000="T3 (ALB/MBD)",COUNTRY_INFO!$U$9:$U$1000="T3 (ALB/MBD)"), "T3 (ALB/MBD)", " ") -> T3 (ALB/MBD) | E22: ALB | F22: April | G22: 53254 | J22: 53254 | K22: 79460 | N22: 79460 | O22: 149.2094491 | R22: 149.2094491
A23: =IF(COUNTRY_INFO!A23=0," ",COUNTRY_INFO!A23) -> Malawi | B23: =IF(COUNTRY_INFO!B23=0," ",COUNTRY_INFO!B23) -> Central | C23: =IF(COUNTRY_INFO!C23=0," ",COUNTRY_INFO!C23) -> Ntchisi | D23: =IF(OR(COUNTRY_INFO!$T$9:$T$1000="T3 (ALB/MBD)",COUNTRY_INFO!$U$9:$U$1000="T3 (ALB/MBD)"), "T3 (ALB/MBD)", " ") -> T3 (ALB/MBD) | E23: ALB | F23: April | G23: 40201 | J23: 40201 | K23: 44265 | N23: 44265 | O23: 110.1092013 | R23: 110.1092013
A24: =IF(COUNTRY_INFO!A24=0," ",COUNTRY_INFO!A24) -> Malawi | B24: =IF(COUNTRY_INFO!B24=0," ",COUNTRY_INFO!B24) -> Central | C24: =IF(COUNTRY_INFO!C24=0," ",COUNTRY_INFO!C24) -> Ntcheu | D24: =IF(OR(COUNTRY_INFO!$T$9:$T$1000="T3 (ALB/MBD)",COUNTRY_INFO!$U$9:$U$1000="T3 (ALB/MBD)"), "T3 (ALB/MBD)", " ") -> T3 (ALB/MBD) | E24: ALB | F24: April | G24: 79973 | J24: 79973 | K24: 93497 | N24: 93497 | O24: 116.9107074 | R24: 116.9107074
A25: =IF(COUNTRY_INFO!A25=0," ",COUNTRY_INFO!A25) -> Malawi | B25: =IF(COUNTRY_INFO!B25=0," ",COUNTRY_INFO!B25) -> South | C25: =IF(COUNTRY_INFO!C25=0," ",COUNTRY_INFO!C25) -> Balaka | D25: =IF(OR(COUNTRY_INFO!$T$9:$T$1000="T3 (ALB/MBD)",COUNTRY_INFO!$U$9:$U$1000="T3 (ALB/MBD)"), "T3 (ALB/MBD)", " ") -> T3 (ALB/MBD) | E25: ALB | F25: April | G25: 55681 | J25: 55681 | K25: 56084 | N25: 56084 | O25: 100.7237657 | R25: 100.7237657
A26: =IF(COUNTRY_INFO!A26=0," ",COUNTRY_INFO!A26) -> Malawi | B26: =IF(COUNTRY_INFO!B26=0," ",COUNTRY_INFO!B26) -> South | C26: =IF(COUNTRY_INFO!C26=0," ",COUNTRY_INFO!C26) -> Chikwawa | D26: T3 (ALB/MBD) | E26: ALB | F26: April | G26: 74760 | J26: 74760 | K26: 85293 | N26: 85293 | O26: 114.0890851 | R26: 114.0890851
A27: =IF(COUNTRY_INFO!A27=0," ",COUNTRY_INFO!A27) -> Malawi | B27: =IF(COUNTRY_INFO!B27=0," ",COUNTRY_INFO!B27) -> South | C27: =IF(COUNTRY_INFO!C27=0," ",COUNTRY_INFO!C27) -> Chiradzulu | D27: T3 (ALB/MBD) | E27: ALB | F27: April | G27: 43880 | J27: 43880 | K27: 52201 | N27: 52201 | O27: 118.9630811 | R27: 118.9630811
A28: =IF(COUNTRY_INFO!A28=0," ",COUNTRY_INFO!A28) -> Malawi | B28: =IF(COUNTRY_INFO!B28=0," ",COUNTRY_INFO!B28) -> South | C28: =IF(COUNTRY_INFO!C28=0," ",COUNTRY_INFO!C28) -> Machinga | D28: =IF(OR(COUNTRY_INFO!$T$9:$T$1000="T3 (ALB/MBD)",COUNTRY_INFO!$U$9:$U$1000="T3 (ALB/MBD)"), "T3 (ALB/MBD)", " ") -> T3 (ALB/MBD) | E28: ALB | F28: April | G28: 85326 | J28: 85326 | K28: 111756 | N28: 111756 | O28: 130.9753182 | R28: 130.9753182
A29: =IF(COUNTRY_INFO!A29=0," ",COUNTRY_INFO!A29) -> Malawi | B29: =IF(COUNTRY_INFO!B29=0," ",COUNTRY_INFO!B29) -> South | C29: =IF(COUNTRY_INFO!C29=0," ",COUNTRY_INFO!C29) -> Blantyre | D29: T3 (ALB/MBD) | E29: ALB | F29: April | G29: 180641 | J29: 180641 | K29: 145909 | N29: 145909 | O29: 80.77291423 | R29: 80.77291423
A30: =IF(COUNTRY_INFO!A30=0," ",COUNTRY_INFO!A30) -> Malawi | B30: =IF(COUNTRY_INFO!B30=0," ",COUNTRY_INFO!B30) -> South | C30: =IF(COUNTRY_INFO!C30=0," ",COUNTRY_INFO!C30) -> Mangochi | D30: =IF(OR(COUNTRY_INFO!$T$9:$T$1000="T3 (ALB/MBD)",COUNTRY_INFO!$U$9:$U$1000="T3 (ALB/MBD)"), "T3 (ALB/MBD)", " ") -> T3 (ALB/MBD) | E30: ALB | F30: April | G30: 143288 | J30: 143288 | K30: 152076 | N30: 152076 | O30: 106.1331026 | R30: 106.1331026
A31: =IF(COUNTRY_INFO!A31=0," ",COUNTRY_INFO!A31) -> Malawi | B31: =IF(COUNTRY_INFO!B31=0," ",COUNTRY_INFO!B31) -> South | C31: =IF(COUNTRY_INFO!C31=0," ",COUNTRY_INFO!C31) -> Mulanje | D31: T3 (ALB/MBD) | E31: ALB | F31: April | G31: 78855 | J31: 78855 | K31: 106680 | N31: 106680 | O31: 135.286285 | R31: 135.286285
A32: =IF(COUNTRY_INFO!A32=0," ",COUNTRY_INFO!A32) -> Malawi | B32: =IF(COUNTRY_INFO!B32=0," ",COUNTRY_INFO!B32) -> South | C32: =IF(COUNTRY_INFO!C32=0," ",COUNTRY_INFO!C32) -> Nsanje | D32: T3 (ALB/MBD) | E32: ALB | F32: April | G32: 39247 | J32: 39247 | K32: 48626 | N32: 48626 | O32: 123.897368 | R32: 123.897368
A33: =IF(COUNTRY_INFO!A33=0," ",COUNTRY_INFO!A33) -> Malawi | B33: =IF(COUNTRY_INFO!B33=0," ",COUNTRY_INFO!B33) -> South | C33: =IF(COUNTRY_INFO!C33=0," ",COUNTRY_INFO!C33) -> Phalombe | D33: T3 (ALB/MBD) | E33: ALB | F33: April | G33: 52125 | J33: 52125 | K33: 62649 | N33: 62649 | O33: 120.1899281 | R33: 120.1899281
A34: =IF(COUNTRY_INFO!A34=0," ",COUNTRY_INFO!A34) -> Malawi | B34: =IF(COUNTRY_INFO!B34=0," ",COUNTRY_INFO!B34) -> South | C34: =IF(COUNTRY_INFO!C34=0," ",COUNTRY_INFO!C34) -> Thyolo | D34: T3 (ALB/MBD) | E34: ALB | F34: April | G34: 89096 | J34: 89096 | K34: 110338 | N34: 110338 | O34: 123.8416988 | R34: 123.8416988
A35: =IF(COUNTRY_INFO!A35=0," ",COUNTRY_INFO!A35) -> Malawi | B35: =IF(COUNTRY_INFO!B35=0," ",COUNTRY_INFO!B35) -> South | C35: =IF(COUNTRY_INFO!C35=0," ",COUNTRY_INFO!C35) -> Zomba | D35: =IF(OR(COUNTRY_INFO!$T$9:$T$1000="T3 (ALB/MBD)",COUNTRY_INFO!$U$9:$U$1000="T3 (ALB/MBD)"), "T3 (ALB/MBD)", " ") -> T3 (ALB/MBD) | E35: ALB | F35: April | G35: 111562 | J35: 111562 | K35: 113858 | N35: 113858 | O35: 102.0580484 | R35: 102.0580484
A36: =IF(COUNTRY_INFO!A36=0," ",COUNTRY_INFO!A36) -> Malawi | B36: =IF(COUNTRY_INFO!B36=0," ",COUNTRY_INFO!B36) -> South | C36: =IF(COUNTRY_INFO!C36=0," ",COUNTRY_INFO!C36) -> Neno | D36: T3 (ALB/MBD) | E36: ALB | F36: April | G36: 21505 | J36: 21505 | K36: 21333 | N36: 21333 | O36: 99.200186 | R36: 99.200186
A37: =IF(COUNTRY_INFO!A37=0," ",COUNTRY_INFO!A37) -> Malawi | B37: =IF(COUNTRY_INFO!B37=0," ",COUNTRY_INFO!B37) -> South | C37: =IF(COUNTRY_INFO!C37=0," ",COUNTRY_INFO!C37) -> Mwanza | D37: T3 (ALB/MBD) | E37: ALB | F37: April | G37: 14381 | J37: 14381 | K37: 15186 | N37: 15186 | O37: 105.5976636 | R37: 105.5976636

Sheet T3_R2
A1: T 3 - Albendazole (ALB) or Mebendazole (MBD) - Round 2
A2: Administrative structure, population requiring PC by age group, population treated by age group and coverage
A4: TOTAL | G4: =SUM(G$9:G$1000) -> 2289273 | H4: 0 | I4: 0 | J4: 2289273 | K4: 2228430 | L4: 0 | M4: 0 | N4: 2228430 | O4: =IF(G4<>0, IF(K4/G4*100=0, "-", K4/G4*100), " ") -> 97.34225669 | P4: =IF(H4<>0, IF(L4/H4*100=0, "-", L4/H4*100), " ") ->  | Q4: =IF(I4<>0, IF(M4/I4*100=0, "-", M4/I4*100), " ") ->  | R4: =IF(J4<>0, IF(N4/J4*100=0, "-", N4/J4*100), " ") -> 97.34225669
D6: PC implemented | E6: Medicine | F6: Date | G6: Population targeted for T3 | K6: Population treated | O6: Programme coverage (%)
A7: Country | B7: Province/State | C7: District | G7: PreSAC | H7: SAC | I7: Adults | J7: Total | K7: PreSAC | L7: SAC | M7: Adults | N7: Total | O7: PreSAC | P7: SAC | Q7: Adults | R7: Total
A9: =IF(COUNTRY_INFO!A9=0," ",COUNTRY_INFO!A9) -> Malawi | B9: =IF(COUNTRY_INFO!B9=0," ",COUNTRY_INFO!B9) -> North | C9: =IF(COUNTRY_INFO!C9=0," ",COUNTRY_INFO!C9) -> Chitipa | D9: T3 (ALB/MBD) | E9: ALB | G9: 30296 | J9: =SUM(G9:I9) -> 30296 | K9: 28736 | N9: =SUM(K9:M9) -> 28736 | O9: =IF(G9<>0, IF(K9/G9*100=0, "-", K9/G9*100), " ") -> 94.85080539 | R9: 94.85080539
A10: =IF(COUNTRY_INFO!A10=0," ",COUNTRY_INFO!A10) -> Malawi | B10: =IF(COUNTRY_INFO!B10=0," ",COUNTRY_INFO!B10) -> North | C10: =IF(COUNTRY_INFO!C10=0," ",COUNTRY_INFO!C10) -> Karonga | D10: T3 (ALB/MBD) | E10: ALB | G10: 47342 | J10: =SUM(G10:I10) -> 47342 | K10: 50272 | N10: =SUM(K10:M10) -> 50272 | O10: =IF(G10<>0, IF(K10/G10*100=0, "-", K10/G10*100), " ") -> 106.1890076 | P10: =IF(H10<>0, IF(L10/H10*100=0, "-", L10/H10*100), " ") ->  | Q10: =IF(I10<>0, IF(M10/I10*100=0, "-", M10/I10*100), " ") ->  | R10: =IF(J10<>0, IF(N10/J10*100=0, "-", N10/J10*100), " ") -> 106.1890076
A11: =IF(COUNTRY_INFO!A11=0," ",COUNTRY_INFO!A11) -> Malawi | B11: =IF(COUNTRY_INFO!B11=0," ",COUNTRY_INFO!B11) -> North | C11: =IF(COUNTRY_INFO!C11=0," ",COUNTRY_INFO!C11) -> Rumphi | D11: T3 (ALB/MBD) | E11: ALB | G11: 29143 | J11: 29143 | K11: 26811 | N11: 26811 | O11: 91.99807844 | R11: 91.99807844
A12: =IF(COUNTRY_INFO!A12=0," ",COUNTRY_INFO!A12) -> Malawi | B12: =IF(COUNTRY_INFO!B12=0," ",COUNTRY_INFO!B12) -> North | C12: =IF(COUNTRY_INFO!C12=0," ",COUNTRY_INFO!C12) -> Mzimba North | D12: T3 (ALB/MBD) | E12: ALB | G12: 63205 | J12: 63205 | K12: 64691 | N12: 64691 | O12: 102.3510798 | R12: 102.3510798
A13: =IF(COUNTRY_INFO!A13=0," ",COUNTRY_INFO!A13) -> Malawi | B13: =IF(COUNTRY_INFO!B13=0," ",COUNTRY_INFO!B13) -> North | C13: =IF(COUNTRY_INFO!C13=0," ",COUNTRY_INFO!C13) -> Mzimba South | D13: T3 (ALB/MBD) | E13: ALB | G13: 94808 | J13: 94808 | K13: 75164 | N13: 75164 | O13: 79.28022952 | R13: 79.28022952
A14: =IF(COUNTRY_INFO!A14=0," ",COUNTRY_INFO!A14) -> Malawi | B14: =IF(COUNTRY_INFO!B14=0," ",COUNTRY_INFO!B14) -> North | C14: =IF(COUNTRY_INFO!C14=0," ",COUNTRY_INFO!C14) -> Nkhatabay | D14: T3 (ALB/MBD) | E14: ALB | G14: 37789 | J14: 37789 | K14: 39252 | N14: 39252 | O14: 103.871497 | R14: 103.871497
A15: =IF(COUNTRY_INFO!A15=0," ",COUNTRY_INFO!A15) -> Malawi | B15: =IF(COUNTRY_INFO!B15=0," ",COUNTRY_INFO!B15) -> North | C15: =IF(COUNTRY_INFO!C15=0," ",COUNTRY_INFO!C15) -> Likoma | D15: T3 (ALB/MBD) | E15: ALB | G15: 1423 | J15: 1423 | K15: 1136 | N15: 1136 | O15: 79.83134223 | R15: 79.83134223
A16: =IF(COUNTRY_INFO!A16=0," ",COUNTRY_INFO!A16) -> Malawi | B16: =IF(COUNTRY_INFO!B16=0," ",COUNTRY_INFO!B16) -> Central | C16: =IF(COUNTRY_INFO!C16=0," ",COUNTRY_INFO!C16) -> Kasungu | D16: T3 (ALB/MBD) | E16: ALB | G16: 116794 | J16: 116794 | K16: 121790 | N16: 121790 | O16: 104.277617 | R16: 104.277617
A17: =IF(COUNTRY_INFO!A17=0," ",COUNTRY_INFO!A17) -> Malawi | B17: =IF(COUNTRY_INFO!B17=0," ",COUNTRY_INFO!B17) -> Central | C17: =IF(COUNTRY_INFO!C17=0," ",COUNTRY_INFO!C17) -> Dedza | D17: T3 (ALB/MBD) | E17: ALB | G17: 102343 | J17: 102343 | K17: 117308 | N17: 117308 | O17: 114.6223972 | R17: 114.6223972
A18: =IF(COUNTRY_INFO!A18=0," ",COUNTRY_INFO!A18) -> Malawi | B18: =IF(COUNTRY_INFO!B18=0," ",COUNTRY_INFO!B18) -> Central | C18: =IF(COUNTRY_INFO!C18=0," ",COUNTRY_INFO!C18) -> Dowa | D18: T3 (ALB/MBD) | E18: ALB | G18: 108450 | J18: 108450 | K18: 97480 | N18: 97480 | O18: 89.88473951 | R18: 89.88473951
A19: =IF(COUNTRY_INFO!A19=0," ",COUNTRY_INFO!A19) -> Malawi | B19: =IF(COUNTRY_INFO!B19=0," ",COUNTRY_INFO!B19) -> Central | C19: =IF(COUNTRY_INFO!C19=0," ",COUNTRY_INFO!C19) -> Lilongwe | D19: T3 (ALB/MBD) | E19: ALB | G19: 352078 | J19: 352078 | K19: 333342 | N19: 333342 | O19: 94.67845193 | R19: 94.67845193
A20: =IF(COUNTRY_INFO!A20=0," ",COUNTRY_INFO!A20) -> Malawi | B20: =IF(COUNTRY_INFO!B20=0," ",COUNTRY_INFO!B20) -> Central | C20: =IF(COUNTRY_INFO!C20=0," ",COUNTRY_INFO!C20) -> Mchinji | D20: T3 (ALB/MBD) | E20: ALB | G20: 83066 | J20: 83066 | K20: 76537 | N20: 76537 | O20: 92.13998507 | R20: 92.13998507
A21: =IF(COUNTRY_INFO!A21=0," ",COUNTRY_INFO!A21) -> Malawi | B21: =IF(COUNTRY_INFO!B21=0," ",COUNTRY_INFO!B21) -> Central | C21: =IF(COUNTRY_INFO!C21=0," ",COUNTRY_INFO!C21) -> Salima | D21: T3 (ALB/MBD) | E21: ALB | G21: 58761 | J21: 58761 | K21: 69425 | N21: 69425 | O21: 118.1480914 | R21: 118.1480914
A22: =IF(COUNTRY_INFO!A22=0," ",COUNTRY_INFO!A22) -> Malawi | B22: =IF(COUNTRY_INFO!B22=0," ",COUNTRY_INFO!B22) -> Central | C22: =IF(COUNTRY_INFO!C22=0," ",COUNTRY_INFO!C22) -> Nkhotakota | D22: T3 (ALB/MBD) | E22: ALB | G22: 53254 | J22: 53254 | K22: 69426 | N22: 69426 | O22: 130.3676719 | R22: 130.3676719
A23: =IF(COUNTRY_INFO!A23=0," ",COUNTRY_INFO!A23) -> Malawi | B23: =IF(COUNTRY_INFO!B23=0," ",COUNTRY_INFO!B23) -> Central | C23: =IF(COUNTRY_INFO!C23=0," ",COUNTRY_INFO!C23) -> Ntchisi | D23: T3 (ALB/MBD) | E23: ALB | G23: 40201 | J23: 40201 | K23: 40614 | N23: 40614 | O23: 101.0273376 | R23: 101.0273376
A24: =IF(COUNTRY_INFO!A24=0," ",COUNTRY_INFO!A24) -> Malawi | B24: =IF(COUNTRY_INFO!B24=0," ",COUNTRY_INFO!B24) -> Central | C24: =IF(COUNTRY_INFO!C24=0," ",COUNTRY_INFO!C24) -> Ntcheu | D24: T3 (ALB/MBD) | E24: ALB | G24: 79973 | J24: 79973 | K24: 80781 | N24: 80781 | O24: 101.010341 | R24: 101.010341
A25: =IF(COUNTRY_INFO!A25=0," ",COUNTRY_INFO!A25) -> Malawi | B25: =IF(COUNTRY_INFO!B25=0," ",COUNTRY_INFO!B25) -> South | C25: =IF(COUNTRY_INFO!C25=0," ",COUNTRY_INFO!C25) -> Balaka | D25: T3 (ALB/MBD) | E25: ALB | G25: 55681 | J25: 55681 | K25: 51468 | N25: 51468 | O25: 92.43368474 | R25: 92.43368474
A26: =IF(COUNTRY_INFO!A26=0," ",COUNTRY_INFO!A26) -> Malawi | B26: =IF(COUNTRY_INFO!B26=0," ",COUNTRY_INFO!B26) -> South | C26: =IF(COUNTRY_INFO!C26=0," ",COUNTRY_INFO!C26) -> Chikwawa | D26: T3 (ALB/MBD) | E26: ALB | G26: 74760 | J26: 74760 | K26: 59913 | N26: 59913 | O26: 80.14044944 | R26: 80.14044944
A27: =IF(COUNTRY_INFO!A27=0," ",COUNTRY_INFO!A27) -> Malawi | B27: =IF(COUNTRY_INFO!B27=0," ",COUNTRY_INFO!B27) -> South | C27: =IF(COUNTRY_INFO!C27=0," ",COUNTRY_INFO!C27) -> Chiradzulu | D27: T3 (ALB/MBD) | E27: ALB | G27: 43880 | J27: 43880 | K27: 44285 | N27: 44285 | O27: 100.9229717 | R27: 100.9229717
A28: =IF(COUNTRY_INFO!A28=0," ",COUNTRY_INFO!A28) -> Malawi | B28: =IF(COUNTRY_INFO!B28=0," ",COUNTRY_INFO!B28) -> South | C28: =IF(COUNTRY_INFO!C28=0," ",COUNTRY_INFO!C28) -> Machinga | D28: T3 (ALB/MBD) | E28: ALB | G28: 85326 | J28: 85326 | K28: 99461 | N28: 99461 | O28: 116.5658768 | R28: 116.5658768
A29: =IF(COUNTRY_INFO!A29=0," ",COUNTRY_INFO!A29) -> Malawi | B29: =IF(COUNTRY_INFO!B29=0," ",COUNTRY_INFO!B29) -> South | C29: =IF(COUNTRY_INFO!C29=0," ",COUNTRY_INFO!C29) -> Blantyre | D29: T3 (ALB/MBD) | E29: ALB | G29: 180641 | J29: 180641 | K29: 195082 | N29: 195082 | O29: 107.9943092 | R29: 107.9943092
A30: =IF(COUNTRY_INFO!A30=0," ",COUNTRY_INFO!A30) -> Malawi | B30: =IF(COUNTRY_INFO!B30=0," ",COUNTRY_INFO!B30) -> South | C30: =IF(COUNTRY_INFO!C30=0," ",COUNTRY_INFO!C30) -> Mangochi | D30: T3 (ALB/MBD) | E30: ALB | G30: 143288 | J30: 143288 | K30: 124515 | N30: 124515 | O30: 86.89841438 | R30: 86.89841438
A31: =IF(COUNTRY_INFO!A31=0," ",COUNTRY_INFO!A31) -> Malawi | B31: =IF(COUNTRY_INFO!B31=0," ",COUNTRY_INFO!B31) -> South | C31: =IF(COUNTRY_INFO!C31=0," ",COUNTRY_INFO!C31) -> Mulanje | D31: T3 (ALB/MBD) | E31: ALB | G31: 78855 | J31: 78855 | K31: 88579 | N31: 88579 | O31: 112.3314945 | R31: 112.3314945
A32: =IF(COUNTRY_INFO!A32=0," ",COUNTRY_INFO!A32) -> Malawi | B32: =IF(COUNTRY_INFO!B32=0," ",COUNTRY_INFO!B32) -> South | C32: =IF(COUNTRY_INFO!C32=0," ",COUNTRY_INFO!C32) -> Nsanje | D32: T3 (ALB/MBD) | E32: ALB | G32: 39247 | J32: 39247 | K32: 42873 | N32: 42873 | O32: 109.2389227 | R32: 109.2389227
A33: =IF(COUNTRY_INFO!A33=0," ",COUNTRY_INFO!A33) -> Malawi | B33: =IF(COUNTRY_INFO!B33=0," ",COUNTRY_INFO!B33) -> South | C33: =IF(COUNTRY_INFO!C33=0," ",COUNTRY_INFO!C33) -> Phalombe | D33: T3 (ALB/MBD) | E33: ALB | G33: 52125 | J33: 52125 | K33: 53233 | N33: 53233 | O33: 102.1256595 | R33: 102.1256595
A34: =IF(COUNTRY_INFO!A34=0," ",COUNTRY_INFO!A34) -> Malawi | B34: =IF(COUNTRY_INFO!B34=0," ",COUNTRY_INFO!B34) -> South | C34: =IF(COUNTRY_INFO!C34=0," ",COUNTRY_INFO!C34) -> Thyolo | D34: T3 (ALB/MBD) | E34: ALB | G34: 89096 | J34: 89096 | K34: 38660 | N34: 38660 | O34: 43.39139804 | R34: 43.39139804
A35: =IF(COUNTRY_INFO!A35=0," ",COUNTRY_INFO!A35) -> Malawi | B35: =IF(COUNTRY_INFO!B35=0," ",COUNTRY_INFO!B35) -> South | C35: =IF(COUNTRY_INFO!C35=0," ",COUNTRY_INFO!C35) -> Zomba | D35: T3 (ALB/MBD) | E35: ALB | G35: 111562 | J35: 111562 | K35: 100928 | N35: 100928 | O35: 90.46808053 | R35: 90.46808053
A36: =IF(COUNTRY_INFO!A36=0," ",COUNTRY_INFO!A36) -> Malawi | B36: =IF(COUNTRY_INFO!B36=0," ",COUNTRY_INFO!B36) -> South | C36: =IF(COUNTRY_INFO!C36=0," ",COUNTRY_INFO!C36) -> Neno | D36: T3 (ALB/MBD) | E36: ALB | G36: 21505 | J36: 21505 | K36: 20651 | N36: 20651 | O36: 96.0288305 | R36: 96.0288305
A37: =IF(COUNTRY_INFO!A37=0," ",COUNTRY_INFO!A37) -> Malawi | B37: =IF(COUNTRY_INFO!B37=0," ",COUNTRY_INFO!B37) -> South | C37: =IF(COUNTRY_INFO!C37=0," ",COUNTRY_INFO!C37) -> Mwanza | D37: T3 (ALB/MBD) | E37: ALB | G37: 14381 | J37: 14381 | K37: 16017 | N37: 16017 | O37: 111.3761213 | R37: 111.3761213

Sheet DISTRICT
A1: Number of individuals treated
A2: Administrative structure, population treated by age group and gender
A4: TOTAL | D4: =SUM(D$9:D$1000) -> 0 | E4: =SUM(E$9:E$1000) -> 0 | F4: =SUM(F$9:F$1000) -> 0 | G4: =SUM(G$9:G$1000) -> 0 | H4: =SUM(H$9:H$1000) -> 0 | I4: =IF(D4>0, IF(H4/D4*100<>0, H4/D4*100, "-"),0) -> 0 | J4: =SUM(J$9:J$1000) -> 2284986 | K4: =SUM(K$9:K$1000) -> 0 | L4: =SUM(L$9:L$1000) -> 0 | M4: =SUM(M$9:M$1000) -> 1894776 | N4: =SUM(N$9:N$1000) -> 1894776 | O4: =IF(J4>0, IF(N4/J4*100<>0, N4/J4*100, "-"),0) -> 82.9228713 | P4: =SUM(P$9:P$1000) -> 7335119 | Q4: =SUM(Q$9:Q$1000) -> 0 | R4: =SUM(R$9:R$1000) -> 0 | S4: =SUM(S$9:S$1000) -> 8523086 | T4: =SUM(T$9:T$1000) -> 2497463 | V4: 3898651 | X4: =SUM(X$9:X$1000) -> 6396114 | Y4: =IF(P4>0, IF(X4/P4*100<>0, X4/P4*100, "-"),0) -> 87.19850353 | Z4: =SUM(Z$9:Z$1000) -> 7066970.2 | AA4: 0 | AB4: 0 | AC4: 6012124 | AD4: 2835329 | AF4: 1719113.4 | AH4: 4554442.4 | AI4: =IF(Z4>0, IF(AH4/Z4*100<>0, AH4/Z4*100, "-"),0) -> 64.44688843
D6: Population requiring PC for LF | E6: Population treated for lymphatic filariasis | J6: Population requiring PC for ONCHO | K6: Population treated for onchocerciasis | P6: Population requiring PC for STH | Q6: Population treated for STH | Z6: Population requiring PC for SCH | AA6: Population treated for schistosomiasis | AP6: =SUM(AP9:AP1000) -> 457.7118836 | AQ6: 2967509.898 | AR6: 4400431.119 | AS6: 4698485.413 | AT6: =SUM(AT9:AT1000) -> 12066884.14 | AU6: =COUNTIF(AU9:AU1000,"Y") -> 29 | AV6: =SUM(AV9:AV1000) -> 2510962 | AW6: 4053196.79 | AX6: 2885909.413 | AY6: =SUM(AY9:AY1000) -> 9450068.203 | AZ6: 2497463 | BA6: 3943534.79 | BB6: 2629019.213 | BC6: 9070016.469 | BD6: =IF(AT6<>0,BC6/AT6,0) -> 0.7516452767
A7: Country | B7: Province/State | C7: District | E7: Male | F7: Female | G7: Total treated | H7: Total in need treated | I7: (%) | K7: Male | L7: Female | M7: Total treated | N7: Total in need treated | O7: (%) | Q7: Male | R7: Female | S7: Total treated | T7: PreSAC in need treated | U7: PreSAC (%) | V7: SAC in need treated | W7: SAC (%) | X7: Total in need treated | Y7: (%) | AA7: Male | AB7: Female | AC7: Total treated | AD7: SAC in need treated | AE7: SAC (%) | AF7: Adults in need treated | AG7: Adults (%) | AH7: Total in need treated | AI7: (%) | AK7: LF | AL7: ONCHO | AM7: STH | AN7: SCH-SAC | AO7: SCH_Adults | AP7: <1 | AQ7: PreSAC | AR7: SAC | AS7: Adults | AT7: Total | AU7: Dis | AV7: PreSAC | AW7: SAC | AX7: Adults | AY7: Total | AZ7: PreSAC | BA7: SAC | BB7: Adults | BC7: Total | BD7: Coverage
A9: =IF(COUNTRY_INFO!A9=0," ",COUNTRY_INFO!A9) -> Malawi | B9: =IF(COUNTRY_INFO!B9=0," ",COUNTRY_INFO!B9) -> North | C9: =IF(COUNTRY_INFO!C9=0," ",COUNTRY_INFO!C9) -> Chitipa | D9: =COUNTRY_INFO!L9 -> Not required | G9: =MAX('MDA1'!M9,'MDA2'!M9) -> 0 | H9: =IF(AND(COUNTRY_INFO!H9>0,COUNTRY_INFO!H9<4),IF(D9>MAX('MDA1'!M9,'MDA2'!M9),MAX('MDA1'!M9,'MDA2'!M9),D9),0) -> 0 | I9: =IF(AND(COUNTRY_INFO!H9>0,COUNTRY_INFO!H9<4), IF(G9/D9*100<>0, IF(G9/D9*100>100,100,G9/D9*100), "-"),0) -> 0 | J9: =COUNTRY_INFO!M9 -> 0 | M9: =MAX('MDA1'!M9,MAX('MDA3'!I9,'MDA3'!L9)+MAX('MDA3'!J9,'MDA3'!M9)) -> 0 | N9: =IF(AND(COUNTRY_INFO!I9>0,COUNTRY_INFO!I9<4),IF(J9>MAX('MDA1'!M9,MAX('MDA3'!I9,'MDA3'!L9)+MAX('MDA3'!J9,'MDA3'!M9)),MAX('MDA1'!M9,MAX('MDA3'!I9,'MDA3'!L9)+MAX('MDA3'!J9,'MDA3'!M9)),J9),0) -> 0 | O9: =IF(AND(COUNTRY_INFO!I9>0,COUNTRY_INFO!I9<4), IF(M9/J9*100<>0, IF(M9/J9*100>100,100,M9/J9*100), "-"),0) -> 0 | P9: =COUNTRY_INFO!N9 -> 97941 | S9: =SUM(MAX('MDA2'!J9, 'T1'!L9, MAX(T3_R1!K9, T3_R2!K9)), MAX('MDA1'!K9, 'MDA2'!K9, 'T1'!M9, MAX(T3_R1!L9, T3_R2!L9)), MAX('MDA1'!L9, 'MDA2'!L9, 'T1'!N9, MAX(T3_R1!M9, T3_R2!M9))) -> 101776 | T9: =IF(AND(COUNTRY_INFO!J9>1,COUNTRY_INFO!J9<4),IF(COUNTRY_INFO!E9>MAX('MDA2'!J9,'T1'!L9,MAX(T3_R1!K9,T3_R2!K9)),MAX('MDA2'!J9,'T1'!L9,MAX(T3_R1!K9,T3_R2!K9)),COUNTRY_INFO!E9),0) -> 30945 | U9: =IF(AND(COUNTRY_INFO!J9>1,COUNTRY_INFO!J9<4), IF(T9/COUNTRY_INFO!E9*100<>0, IF(T9/COUNTRY_INFO!E9*100>100,100,T9/COUNTRY_INFO!E9*100), "-"),0) -> 78.44703019 | V9: =IF(AND(COUNTRY_INFO!J9>1,COUNTRY_INFO!J9<4),IF(COUNTRY_INFO!F9>MAX('MDA1'!K9,'MDA2'!K9,'T1'!M9,MAX(T3_R1!L9,T3_R2!L9)),MAX('MDA1'!K9,'MDA2'!K9,'T1'!M9,MAX(T3_R1!L9,T3_R2!L9)),COUNTRY_INFO!F9),0) -> 55929 | W9: =IF(AND(COUNTRY_INFO!J9>1,COUNTRY_INFO!J9<4), IF(V9/COUNTRY_INFO!F9*100<>0, IF(V9/COUNTRY_INFO!F9*100>100,100,V9/COUNTRY_INFO!F9*100), "-"),0) -> 95.61493487 | X9: =SUM(T9,V9) -> 86874 | Y9: =IF(AND(COUNTRY_INFO!J9>1,COUNTRY_INFO!J9<4), IF(S9/P9*100<>0, IF(X9/P9*100>100,100,X9/P9*100), "-"),0) -> 88.70034 | Z9: =COUNTRY_INFO!O9 -> 51884.4 | AC9: =MAX(SUM('T1'!L9:'T1'!N9),SUM('T2'!J9:'T2'!L9)) -> 70831 | AD9: =IF(COUNTRY_INFO!K9=1,IF(COUNTRY_INFO!F9*0.33>MAX('T1'!M9,'T2'!K9),MAX('T1'!M9,'T2'!K9),COUNTRY_INFO!F9*0.33),IF(COUNTRY_INFO!K9=2,IF(COUNTRY_INFO!F9*0.5>MAX('T1'!M9,'T2'!K9),MAX('T1'!M9,'T2'!K9),COUNTRY_INFO!F9*0.5),IF(COUNTRY_INFO!K9=3,IF(COUNTRY_INFO!F9>MAX('T1'!M9,'T2'!K9),MAX('T1'!M9,'T2'!K9),COUNTRY_INFO!F9),0))) -> 29247 | AE9: =IF(AND(COUNTRY_INFO!K9>0,COUNTRY_INFO!K9<4),IF(Z9>0,IF(COUNTRY_INFO!K9=1, AD9/(COUNTRY_INFO!F9*0.33)*100, IF(COUNTRY_INFO!K9=2, AD9/(COUNTRY_INFO!F9*0.5)*100, IF(COUNTRY_INFO!K9=3, AD9/COUNTRY_INFO!F9*100))),"-"),0) -> 100 | AF9: =IF(COUNTRY_INFO!K9=2,IF(COUNTRY_INFO!G9*0.2>MAX('T1'!N9,'T2'!L9),MAX('T1'!N9,'T2'!L9),COUNTRY_INFO!G9*0.2),IF(COUNTRY_INFO!K9=3,IF(COUNTRY_INFO!G9>MAX('T1'!N9,'T2'!L9),MAX('T1'!N9,'T2'!L9),COUNTRY_INFO!G9),0)) -> 14902 | AG9: =IF(AND(COUNTRY_INFO!K9>0,COUNTRY_INFO!K9<4),IF(Z9>0,IF(COUNTRY_INFO!K9=1, 0, IF(COUNTRY_INFO!K9=2, AF9/(COUNTRY_INFO!G9*0.2)*100, IF(COUNTRY_INFO!K9=3, AF9/COUNTRY_INFO!G9*100))),"-"),0) -> 65.82911465 | AH9: =SUM(AD9,AF9) -> 44149 | AI9: =IF(AND(COUNTRY_INFO!K9>0,COUNTRY_INFO!K9<4), IF(AC9/Z9*100<>0, IF(AH9/Z9*100>100,100,AH9/Z9*100), "-"),0) -> 85.09108711 | AK9: =IF(AND(D9<>0, D9<>"Unknown",D9<>"Stopped",D9<>"Not required"),D9/COUNTRY_INFO!D9, 0) -> 0 | AL9: =IF(AND(J9<>0,J9<>"Unknown",J9<>"Stopped",J9<>"Not required"),J9/COUNTRY_INFO!D9, 0) -> 0 | AM9: =IF(AND(P9<>0,P9<>"Unknown",P9<>"Not required"),P9/(COUNTRY_INFO!E9+COUNTRY_INFO!F9), 0) -> 1 | AN9: =IF(AND(Z9<>0,Z9<>"Unknown",Z9<>"Not required"),IF(COUNTRY_INFO!K9=1,1,IF(COUNTRY_INFO!K9=2,0.5*COUNTRY_INFO!F9/(0.5*COUNTRY_INFO!F9+0.2*COUNTRY_INFO!G9),IF(COUNTRY_INFO!K9=3,COUNTRY_INFO!F9/(COUNTRY_INFO!F9+COUNTRY_INFO!G9)))),0) -> 0.563695446 | AO9: =IF(AND(Z9<>0,Z9<>"Unknown",Z9<>"Not required"),IF(COUNTRY_INFO!K9=1,0,IF(COUNTRY_INFO!K9=2,0.2*COUNTRY_INFO!G9/(0.5*COUNTRY_INFO!F9+0.2*COUNTRY_INFO!G9),IF(COUNTRY_INFO!K9=3,COUNTRY_INFO!G9/(COUNTRY_INFO!F9+COUNTRY_INFO!G9)))),0) -> 0.436304554 | AP9: =MAX(COUNTRY_INFO!D9*AK9*PROFILE!$G$7,COUNTRY_INFO!D9*AL9*PROFILE!$G$7) -> 0 | AQ9: =MAX(COUNTRY_INFO!D9*AK9*PROFILE!$G$8,COUNTRY_INFO!D9*AL9*PROFILE!$G$8,COUNTRY_INFO!D9*AM9*PROFILE!$G$8) -> 39446.54431 | AR9: =MAX(COUNTRY_INFO!D9*AK9*PROFILE!$G$9,COUNTRY_INFO!D9*AL9*PROFILE!$G$9,COUNTRY_INFO!D9*AM9*PROFILE!$G$9,IF(AND(DISTRICT!Z9<>"Unknown",Z9<>"Not required"),COUNTRY_INFO!O9*DISTRICT!AN9,0)) -> 58494.0772 | AS9: =MAX(COUNTRY_INFO!D9*AK9*PROFILE!$G$10,COUNTRY_INFO!D9*AL9*PROFILE!$G$10,IF(AND(DISTRICT!Z9<>"Unknown",Z9<>"Not required"),COUNTRY_INFO!O9*DISTRICT!AO9,0)) -> 22637.4 | AT9: =SUM(AP9:AS9) -> 120578.0215 | AU9: =IF(COUNTIFS(AK9:AN9,">0")=0,0, IF(COUNTIFS(AK9:AN9,">0")<=IF(AND(OR(D9>=0,D9="Not required",D9="Unknown",D9="Stopped"),D9>0,H9>0),1,0)+IF(AND(OR(J9>=0,J9="Not required",J9="Unknown",J9="Stopped"),J9>0,N9>0),1,0)+IF(AND(OR(P9>=0,P9="Not required",P9="Unknown"),P9>0,X9>0),1,0)+IF(AND(OR(Z9>=0,Z9="Not required",Z9="Unknown"),Z9>0,AH9>0),1,0),"Y",0)) -> Y | AV9: =MAX('MDA2'!J9,'T1'!L9,'T2'!J9,T3_R1!K9,T3_R2!K9) -> 30945 | AW9: =MAX('MDA1'!K9,'MDA2'!K9,'MDA3'!I9,'MDA3'!L9,'T1'!M9,'T2'!K9,T3_R1!L9,T3_R2!L9) -> 55929 | AX9: =MAX('MDA1'!L9,'MDA2'!L9,'MDA3'!J9,'MDA3'!M9,'T1'!N9,'T2'!L9,T3_R1!M9,T3_R2!M9) -> 14902 | AY9: =SUM(AV9:AX9) -> 101776 | AZ9: =MAX('MDA2'!J9,T9) -> 30945 | BA9: =MAX('MDA1'!K9,'MDA2'!K9,'MDA3'!I9,'MDA3'!L9,V9,AD9) -> 55929 | BB9: =MAX('MDA1'!L9,'MDA2'!L9,'MDA3'!J9,'MDA3'!M9,AF9) -> 14902 | BC9: =IF(AT9<SUM(AZ9:BB9), AT9,SUM(AZ9:BB9)) -> 101776 | BD9: =IF(AT9<>0,BC9/AT9*100,0) -> 84.40675899
A10: =IF(COUNTRY_INFO!A10=0," ",COUNTRY_INFO!A10) -> Malawi | B10: =IF(COUNTRY_INFO!B10=0," ",COUNTRY_INFO!B10) -> North | C10: =IF(COUNTRY_INFO!C10=0," ",COUNTRY_INFO!C10) -> Karonga | D10: =COUNTRY_INFO!L10 -> Not required | G10: =MAX('MDA1'!M10,'MDA2'!M10) -> 0 | H10: =IF(AND(COUNTRY_INFO!H10>0,COUNTRY_INFO!H10<4),IF(D10>MAX('MDA1'!M10,'MDA2'!M10),MAX('MDA1'!M10,'MDA2'!M10),D10),0) -> 0 | I10: =IF(AND(COUNTRY_INFO!H10>0,COUNTRY_INFO!H10<4), IF(G10/D10*100<>0, IF(G10/D10*100>100,100,G10/D10*100), "-"),0) -> 0 | J10: =COUNTRY_INFO!M10 -> 0 | M10: =MAX('MDA1'!M10,MAX('MDA3'!I10,'MDA3'!L10)+MAX('MDA3'!J10,'MDA3'!M10)) -> 0 | N10: =IF(AND(COUNTRY_INFO!I10>0,COUNTRY_INFO!I10<4),IF(J10>MAX('MDA1'!M10,MAX('MDA3'!I10,'MDA3'!L10)+MAX('MDA3'!J10,'MDA3'!M10)),MAX('MDA1'!M10,MAX('MDA3'!I10,'MDA3'!L10)+MAX('MDA3'!J10,'MDA3'!M10)),J10),0) -> 0 | O10: =IF(AND(COUNTRY_INFO!I10>0,COUNTRY_INFO!I10<4), IF(M10/J10*100<>0, IF(M10/J10*100>100,100,M10/J10*100), "-"),0) -> 0 | P10: =COUNTRY_INFO!N10 -> 151701 | S10: =SUM(MAX('MDA2'!J10, 'T1'!L10, MAX(T3_R1!K10, T3_R2!K10)), MAX('MDA1'!K10, 'MDA2'!K10, 'T1'!M10, MAX(T3_R1!L10, T3_R2!L10)), MAX('MDA1'!L10, 'MDA2'!L10, 'T1'!N10, MAX(T3_R1!M10, T3_R2!M10))) -> 177885 | T10: =IF(AND(COUNTRY_INFO!J10>1,COUNTRY_INFO!J10<4),IF(COUNTRY_INFO!E10>MAX('MDA2'!J10,'T1'!L10,MAX(T3_R1!K10,T3_R2!K10)),MAX('MDA2'!J10,'T1'!L10,MAX(T3_R1!K10,T3_R2!K10)),COUNTRY_INFO!E10),0) -> 50272 | U10: =IF(AND(COUNTRY_INFO!J10>1,COUNTRY_INFO!J10<4), IF(T10/COUNTRY_INFO!E10*100<>0, IF(T10/COUNTRY_INFO!E10*100>100,100,T10/COUNTRY_INFO!E10*100), "-"),0) -> 82.27957904 | V10: =IF(AND(COUNTRY_INFO!J10>1,COUNTRY_INFO!J10<4),IF(COUNTRY_INFO!F10>MAX('MDA1'!K10,'MDA2'!K10,'T1'!M10,MAX(T3_R1!L10,T3_R2!L10)),MAX('MDA1'!K10,'MDA2'!K10,'T1'!M10,MAX(T3_R1!L10,T3_R2!L10)),COUNTRY_INFO!F10),0) -> 84238 | W10: =IF(AND(COUNTRY_INFO!J10>1,COUNTRY_INFO!J10<4), IF(V10/COUNTRY_INFO!F10*100<>0, IF(V10/COUNTRY_INFO!F10*100>100,100,V10/COUNTRY_INFO!F10*100), "-"),0) -> 92.9758725 | X10: =SUM(T10,V10) -> 134510 | Y10: =IF(AND(COUNTRY_INFO!J10>1,COUNTRY_INFO!J10<4), IF(S10/P10*100<>0, IF(X10/P10*100>100,100,X10/P10*100), "-"),0) -> 88.66784003 | Z10: =COUNTRY_INFO!O10 -> 80364.4 | AC10: =MAX(SUM('T1'!L10:'T1'!N10),SUM('T2'!J10:'T2'!L10)) -> 127613 | AD10: =IF(COUNTRY_INFO!K10=1,IF(COUNTRY_INFO!F10*0.33>MAX('T1'!M10,'T2'!K10),MAX('T1'!M10,'T2'!K10),COUNTRY_INFO!F10*0.33),IF(COUNTRY_INFO!K10=2,IF(COUNTRY_INFO!F10*0.5>MAX('T1'!M10,'T2'!K10),MAX('T1'!M10,'T2'!K10),COUNTRY_INFO!F10*0.5),IF(COUNTRY_INFO!K10=3,IF(COUNTRY_INFO!F10>MAX('T1'!M10,'T2'!K10),MAX('T1'!M10,'T2'!K10),COUNTRY_INFO!F10),0))) -> 45301 | AE10: =IF(AND(COUNTRY_INFO!K10>0,COUNTRY_INFO!K10<4),IF(Z10>0,IF(COUNTRY_INFO!K10=1, AD10/(COUNTRY_INFO!F10*0.33)*100, IF(COUNTRY_INFO!K10=2, AD10/(COUNTRY_INFO!F10*0.5)*100, IF(COUNTRY_INFO!K10=3, AD10/COUNTRY_INFO!F10*100))),"-"),0) -> 100 | AF10: =IF(COUNTRY_INFO!K10=2,IF(COUNTRY_INFO!G10*0.2>MAX('T1'!N10,'T2'!L10),MAX('T1'!N10,'T2'!L10),COUNTRY_INFO!G10*0.2),IF(COUNTRY_INFO!K10=3,IF(COUNTRY_INFO!G10>MAX('T1'!N10,'T2'!L10),MAX('T1'!N10,'T2'!L10),COUNTRY_INFO!G10),0)) -> 35063.4 | AG10: =IF(AND(COUNTRY_INFO!K10>0,COUNTRY_INFO!K10<4),IF(Z10>0,IF(COUNTRY_INFO!K10=1, 0, IF(COUNTRY_INFO!K10=2, AF10/(COUNTRY_INFO!G10*0.2)*100, IF(COUNTRY_INFO!K10=3, AF10/COUNTRY_INFO!G10*100))),"-"),0) -> 100 | AH10: =SUM(AD10,AF10) -> 80364.4 | AI10: =IF(AND(COUNTRY_INFO!K10>0,COUNTRY_INFO!K10<4), IF(AC10/Z10*100<>0, IF(AH10/Z10*100>100,100,AH10/Z10*100), "-"),0) -> 100 | AK10: =IF(AND(D10<>0, D10<>"Unknown",D10<>"Stopped",D10<>"Not required"),D10/COUNTRY_INFO!D10, 0) -> 0 | AL10: =IF(AND(J10<>0,J10<>"Unknown",J10<>"Stopped",J10<>"Not required"),J10/COUNTRY_INFO!D10, 0) -> 0 | AM10: =IF(AND(P10<>0,P10<>"Unknown",P10<>"Not required"),P10/(COUNTRY_INFO!E10+COUNTRY_INFO!F10), 0) -> 1 | AN10: =IF(AND(Z10<>0,Z10<>"Unknown",Z10<>"Not required"),IF(COUNTRY_INFO!K10=1,1,IF(COUNTRY_INFO!K10=2,0.5*COUNTRY_INFO!F10/(0.5*COUNTRY_INFO!F10+0.2*COUNTRY_INFO!G10),IF(COUNTRY_INFO!K10=3,COUNTRY_INFO!F10/(COUNTRY_INFO!F10+COUNTRY_INFO!G10)))),0) -> 0.5636948699 | AO10: =IF(AND(Z10<>0,Z10<>"Unknown",Z10<>"Not required"),IF(COUNTRY_INFO!K10=1,0,IF(COUNTRY_INFO!K10=2,0.2*COUNTRY_INFO!G10/(0.5*COUNTRY_INFO!F10+0.2*COUNTRY_INFO!G10),IF(COUNTRY_INFO!K10=3,COUNTRY_INFO!G10/(COUNTRY_INFO!F10+COUNTRY_INFO!G10)))),0) -> 0.4363051301 | AP10: =MAX(COUNTRY_INFO!D10*AK10*PROFILE!$G$7,COUNTRY_INFO!D10*AL10*PROFILE!$G$7) -> 0 | AQ10: =MAX(COUNTRY_INFO!D10*AK10*PROFILE!$G$8,COUNTRY_INFO!D10*AL10*PROFILE!$G$8,COUNTRY_INFO!D10*AM10*PROFILE!$G$8) -> 61099.27309 | AR10: =MAX(COUNTRY_INFO!D10*AK10*PROFILE!$G$9,COUNTRY_INFO!D10*AL10*PROFILE!$G$9,COUNTRY_INFO!D10*AM10*PROFILE!$G$9,IF(AND(DISTRICT!Z10<>"Unknown",Z10<>"Not required"),COUNTRY_INFO!O10*DISTRICT!AN10,0)) -> 90602.24817 | AS10: =MAX(COUNTRY_INFO!D10*AK10*PROFILE!$G$10,COUNTRY_INFO!D10*AL10*PROFILE!$G$10,IF(AND(DISTRICT!Z10<>"Unknown",Z10<>"Not required"),COUNTRY_INFO!O10*DISTRICT!AO10,0)) -> 35063.4 | AT10: =SUM(AP10:AS10) -> 186764.9213 | AU10: Y | AV10: =MAX('MDA2'!J10,'T1'!L10,'T2'!J10,T3_R1!K10,T3_R2!K10) -> 50272 | AW10: =MAX('MDA1'!K10,'MDA2'!K10,'MDA3'!I10,'MDA3'!L10,'T1'!M10,'T2'!K10,T3_R1!L10,T3_R2!L10) -> 84238 | AX10: =MAX('MDA1'!L10,'MDA2'!L10,'MDA3'!J10,'MDA3'!M10,'T1'!N10,'T2'!L10,T3_R1!M10,T3_R2!M10) -> 43375 | AY10: =SUM(AV10:AX10) -> 177885 | AZ10: =MAX('MDA2'!J10,T10) -> 50272 | BA10: =MAX('MDA1'!K10,'MDA2'!K10,'MDA3'!I10,'MDA3'!L10,V10,AD10) -> 84238 | BB10: =MAX('MDA1'!L10,'MDA2'!L10,'MDA3'!J10,'MDA3'!M10,AF10) -> 35063.4 | BC10: 169573.4 | BD10: 90.7951016
A11: =IF(COUNTRY_INFO!A11=0," ",COUNTRY_INFO!A11) -> Malawi | B11: =IF(COUNTRY_INFO!B11=0," ",COUNTRY_INFO!B11) -> North | C11: =IF(COUNTRY_INFO!C11=0," ",COUNTRY_INFO!C11) -> Rumphi | D11: =COUNTRY_INFO!L11 -> Not required | G11: =MAX('MDA1'!M11,'MDA2'!M11) -> 0 | H11: =IF(AND(COUNTRY_INFO!H11>0,COUNTRY_INFO!H11<4),IF(D11>MAX('MDA1'!M11,'MDA2'!M11),MAX('MDA1'!M11,'MDA2'!M11),D11),0) -> 0 | I11: =IF(AND(COUNTRY_INFO!H11>0,COUNTRY_INFO!H11<4), IF(G11/D11*100<>0, IF(G11/D11*100>100,100,G11/D11*100), "-"),0) -> 0 | J11: =COUNTRY_INFO!M11 -> 0 | M11: =MAX('MDA1'!M11,MAX('MDA3'!I11,'MDA3'!L11)+MAX('MDA3'!J11,'MDA3'!M11)) -> 0 | N11: =IF(AND(COUNTRY_INFO!I11>0,COUNTRY_INFO!I11<4),IF(J11>MAX('MDA1'!M11,MAX('MDA3'!I11,'MDA3'!L11)+MAX('MDA3'!J11,'MDA3'!M11)),MAX('MDA1'!M11,MAX('MDA3'!I11,'MDA3'!L11)+MAX('MDA3'!J11,'MDA3'!M11)),J11),0) -> 0 | O11: =IF(AND(COUNTRY_INFO!I11>0,COUNTRY_INFO!I11<4), IF(M11/J11*100<>0, IF(M11/J11*100>100,100,M11/J11*100), "-"),0) -> 0 | P11: =COUNTRY_INFO!N11 -> 94176 | S11: =SUM(MAX('MDA2'!J11, 'T1'!L11, MAX(T3_R1!K11, T3_R2!K11)), MAX('MDA1'!K11, 'MDA2'!K11, 'T1'!M11, MAX(T3_R1!L11, T3_R2!L11)), MAX('MDA1'!L11, 'MDA2'!L11, 'T1'!N11, MAX(T3_R1!M11, T3_R2!M11))) -> 100856 | T11: =IF(AND(COUNTRY_INFO!J11>1,COUNTRY_INFO!J11<4),IF(COUNTRY_INFO!E11>MAX('MDA2'!J11,'T1'!L11,MAX(T3_R1!K11,T3_R2!K11)),MAX('MDA2'!J11,'T1'!L11,MAX(T3_R1!K11,T3_R2!K11)),COUNTRY_INFO!E11),0) -> 28868 | U11: =IF(AND(COUNTRY_INFO!J11>1,COUNTRY_INFO!J11<4), IF(T11/COUNTRY_INFO!E11*100<>0, IF(T11/COUNTRY_INFO!E11*100>100,100,T11/COUNTRY_INFO!E11*100), "-"),0) -> 76.10862114 | V11: =IF(AND(COUNTRY_INFO!J11>1,COUNTRY_INFO!J11<4),IF(COUNTRY_INFO!F11>MAX('MDA1'!K11,'MDA2'!K11,'T1'!M11,MAX(T3_R1!L11,T3_R2!L11)),MAX('MDA1'!K11,'MDA2'!K11,'T1'!M11,MAX(T3_R1!L11,T3_R2!L11)),COUNTRY_INFO!F11),0) -> 48406 | W11: =IF(AND(COUNTRY_INFO!J11>1,COUNTRY_INFO!J11<4), IF(V11/COUNTRY_INFO!F11*100<>0, IF(V11/COUNTRY_INFO!F11*100>100,100,V11/COUNTRY_INFO!F11*100), "-"),0) -> 86.06123102 | X11: 77274 | Y11: =IF(AND(COUNTRY_INFO!J11>1,COUNTRY_INFO!J11<4), IF(S11/P11*100<>0, IF(X11/P11*100>100,100,X11/P11*100), "-"),0) -> 82.05275229 | Z11: =COUNTRY_INFO!O11 -> 49890.2 | AC11: =MAX(SUM('T1'!L11:'T1'!N11),SUM('T2'!J11:'T2'!L11)) -> 71988 | AD11: =IF(COUNTRY_INFO!K11=1,IF(COUNTRY_INFO!F11*0.33>MAX('T1'!M11,'T2'!K11),MAX('T1'!M11,'T2'!K11),COUNTRY_INFO!F11*0.33),IF(COUNTRY_INFO!K11=2,IF(COUNTRY_INFO!F11*0.5>MAX('T1'!M11,'T2'!K11),MAX('T1'!M11,'T2'!K11),COUNTRY_INFO!F11*0.5),IF(COUNTRY_INFO!K11=3,IF(COUNTRY_INFO!F11>MAX('T1'!M11,'T2'!K11),MAX('T1'!M11,'T2'!K11),COUNTRY_INFO!F11),0))) -> 28123 | AE11: =IF(AND(COUNTRY_INFO!K11>0,COUNTRY_INFO!K11<4),IF(Z11>0,IF(COUNTRY_INFO!K11=1, AD11/(COUNTRY_INFO!F11*0.33)*100, IF(COUNTRY_INFO!K11=2, AD11/(COUNTRY_INFO!F11*0.5)*100, IF(COUNTRY_INFO!K11=3, AD11/COUNTRY_INFO!F11*100))),"-"),0) -> 100 | AF11: =IF(COUNTRY_INFO!K11=2,IF(COUNTRY_INFO!G11*0.2>MAX('T1'!N11,'T2'!L11),MAX('T1'!N11,'T2'!L11),COUNTRY_INFO!G11*0.2),IF(COUNTRY_INFO!K11=3,IF(COUNTRY_INFO!G11>MAX('T1'!N11,'T2'!L11),MAX('T1'!N11,'T2'!L11),COUNTRY_INFO!G11),0)) -> 21767.2 | AG11: =IF(AND(COUNTRY_INFO!K11>0,COUNTRY_INFO!K11<4),IF(Z11>0,IF(COUNTRY_INFO!K11=1, 0, IF(COUNTRY_INFO!K11=2, AF11/(COUNTRY_INFO!G11*0.2)*100, IF(COUNTRY_INFO!K11=3, AF11/COUNTRY_INFO!G11*100))),"-"),0) -> 100 | AH11: 49890.2 | AI11: =IF(AND(COUNTRY_INFO!K11>0,COUNTRY_INFO!K11<4), IF(AC11/Z11*100<>0, IF(AH11/Z11*100>100,100,AH11/Z11*100), "-"),0) -> 100 | AK11: =IF(AND(D11<>0, D11<>"Unknown",D11<>"Stopped",D11<>"Not required"),D11/COUNTRY_INFO!D11, 0) -> 0 | AL11: =IF(AND(J11<>0,J11<>"Unknown",J11<>"Stopped",J11<>"Not required"),J11/COUNTRY_INFO!D11, 0) -> 0 | AM11: =IF(AND(P11<>0,P11<>"Unknown",P11<>"Not required"),P11/(COUNTRY_INFO!E11+COUNTRY_INFO!F11), 0) -> 1 | AN11: =IF(AND(Z11<>0,Z11<>"Unknown",Z11<>"Not required"),IF(COUNTRY_INFO!K11=1,1,IF(COUNTRY_INFO!K11=2,0.5*COUNTRY_INFO!F11/(0.5*COUNTRY_INFO!F11+0.2*COUNTRY_INFO!G11),IF(COUNTRY_INFO!K11=3,COUNTRY_INFO!F11/(COUNTRY_INFO!F11+COUNTRY_INFO!G11)))),0) -> 0.5636978805 | AO11: =IF(AND(Z11<>0,Z11<>"Unknown",Z11<>"Not required"),IF(COUNTRY_INFO!K11=1,0,IF(COUNTRY_INFO!K11=2,0.2*COUNTRY_INFO!G11/(0.5*COUNTRY_INFO!F11+0.2*COUNTRY_INFO!G11),IF(COUNTRY_INFO!K11=3,COUNTRY_INFO!G11/(COUNTRY_INFO!F11+COUNTRY_INFO!G11)))),0) -> 0.4363021195 | AP11: =MAX(COUNTRY_INFO!D11*AK11*PROFILE!$G$7,COUNTRY_INFO!D11*AL11*PROFILE!$G$7) -> 0 | AQ11: =MAX(COUNTRY_INFO!D11*AK11*PROFILE!$G$8,COUNTRY_INFO!D11*AL11*PROFILE!$G$8,COUNTRY_INFO!D11*AM11*PROFILE!$G$8) -> 37930.28916 | AR11: =MAX(COUNTRY_INFO!D11*AK11*PROFILE!$G$9,COUNTRY_INFO!D11*AL11*PROFILE!$G$9,COUNTRY_INFO!D11*AM11*PROFILE!$G$9,IF(AND(DISTRICT!Z11<>"Unknown",Z11<>"Not required"),COUNTRY_INFO!O11*DISTRICT!AN11,0)) -> 56245.66869 | AS11: =MAX(COUNTRY_INFO!D11*AK11*PROFILE!$G$10,COUNTRY_INFO!D11*AL11*PROFILE!$G$10,IF(AND(DISTRICT!Z11<>"Unknown",Z11<>"Not required"),COUNTRY_INFO!O11*DISTRICT!AO11,0)) -> 21767.2 | AT11: 115943.1578 | AU11: Y | AV11: =MAX('MDA2'!J11,'T1'!L11,'T2'!J11,T3_R1!K11,T3_R2!K11) -> 28868 | AW11: =MAX('MDA1'!K11,'MDA2'!K11,'MDA3'!I11,'MDA3'!L11,'T1'!M11,'T2'!K11,T3_R1!L11,T3_R2!L11) -> 48406 | AX11: =MAX('MDA1'!L11,'MDA2'!L11,'MDA3'!J11,'MDA3'!M11,'T1'!N11,'T2'!L11,T3_R1!M11,T3_R2!M11) -> 23582 | AY11: 100856 | AZ11: =MAX('MDA2'!J11,T11) -> 28868 | BA11: =MAX('MDA1'!K11,'MDA2'!K11,'MDA3'!I11,'MDA3'!L11,V11,AD11) -> 48406 | BB11: =MAX('MDA1'!L11,'MDA2'!L11,'MDA3'!J11,'MDA3'!M11,AF11) -> 21767.2 | BC11: 99041.2 | BD11: 85.42220329
A12: =IF(COUNTRY_INFO!A12=0," ",COUNTRY_INFO!A12) -> Malawi | B12: =IF(COUNTRY_INFO!B12=0," ",COUNTRY_INFO!B12) -> North | C12: =IF(COUNTRY_INFO!C12=0," ",COUNTRY_INFO!C12) -> Mzimba North | D12: =COUNTRY_INFO!L12 -> Not required | G12: =MAX('MDA1'!M12,'MDA2'!M12) -> 0 | H12: =IF(AND(COUNTRY_INFO!H12>0,COUNTRY_INFO!H12<4),IF(D12>MAX('MDA1'!M12,'MDA2'!M12),MAX('MDA1'!M12,'MDA2'!M12),D12),0) -> 0 | I12: =IF(AND(COUNTRY_INFO!H12>0,COUNTRY_INFO!H12<4), IF(G12/D12*100<>0, IF(G12/D12*100>100,100,G12/D12*100), "-"),0) -> 0 | J12: =COUNTRY_INFO!M12 -> 0 | M12: =MAX('MDA1'!M12,MAX('MDA3'!I12,'MDA3'!L12)+MAX('MDA3'!J12,'MDA3'!M12)) -> 0 | N12: =IF(AND(COUNTRY_INFO!I12>0,COUNTRY_INFO!I12<4),IF(J12>MAX('MDA1'!M12,MAX('MDA3'!I12,'MDA3'!L12)+MAX('MDA3'!J12,'MDA3'!M12)),MAX('MDA1'!M12,MAX('MDA3'!I12,'MDA3'!L12)+MAX('MDA3'!J12,'MDA3'!M12)),J12),0) -> 0 | O12: =IF(AND(COUNTRY_INFO!I12>0,COUNTRY_INFO!I12<4), IF(M12/J12*100<>0, IF(M12/J12*100>100,100,M12/J12*100), "-"),0) -> 0 | P12: =COUNTRY_INFO!N12 -> 242418 | S12: =SUM(MAX('MDA2'!J12, 'T1'!L12, MAX(T3_R1!K12, T3_R2!K12)), MAX('MDA1'!K12, 'MDA2'!K12, 'T1'!M12, MAX(T3_R1!L12, T3_R2!L12)), MAX('MDA1'!L12, 'MDA2'!L12, 'T1'!N12, MAX(T3_R1!M12, T3_R2!M12))) -> 341610 | T12: =IF(AND(COUNTRY_INFO!J12>1,COUNTRY_INFO!J12<4),IF(COUNTRY_INFO!E12>MAX('MDA2'!J12,'T1'!L12,MAX(T3_R1!K12,T3_R2!K12)),MAX('MDA2'!J12,'T1'!L12,MAX(T3_R1!K12,T3_R2!K12)),COUNTRY_INFO!E12),0) -> 64691 | U12: =IF(AND(COUNTRY_INFO!J12>1,COUNTRY_INFO!J12<4), IF(T12/COUNTRY_INFO!E12*100<>0, IF(T12/COUNTRY_INFO!E12*100>100,100,T12/COUNTRY_INFO!E12*100), "-"),0) -> 66.25732312 | V12: =IF(AND(COUNTRY_INFO!J12>1,COUNTRY_INFO!J12<4),IF(COUNTRY_INFO!F12>MAX('MDA1'!K12,'MDA2'!K12,'T1'!M12,MAX(T3_R1!L12,T3_R2!L12)),MAX('MDA1'!K12,'MDA2'!K12,'T1'!M12,MAX(T3_R1!L12,T3_R2!L12)),COUNTRY_INFO!F12),0) -> 144782 | W12: =IF(AND(COUNTRY_INFO!J12>1,COUNTRY_INFO!J12<4), IF(V12/COUNTRY_INFO!F12*100<>0, IF(V12/COUNTRY_INFO!F12*100>100,100,V12/COUNTRY_INFO!F12*100), "-"),0) -> 100 | X12: 209473 | Y12: =IF(AND(COUNTRY_INFO!J12>1,COUNTRY_INFO!J12<4), IF(S12/P12*100<>0, IF(X12/P12*100>100,100,X12/P12*100), "-"),0) -> 86.40983755 | Z12: =COUNTRY_INFO!O12 -> 128422 | AC12: =MAX(SUM('T1'!L12:'T1'!N12),SUM('T2'!J12:'T2'!L12)) -> 276919 | AD12: =IF(COUNTRY_INFO!K12=1,IF(COUNTRY_INFO!F12*0.33>MAX('T1'!M12,'T2'!K12),MAX('T1'!M12,'T2'!K12),COUNTRY_INFO!F12*0.33),IF(COUNTRY_INFO!K12=2,IF(COUNTRY_INFO!F12*0.5>MAX('T1'!M12,'T2'!K12),MAX('T1'!M12,'T2'!K12),COUNTRY_INFO!F12*0.5),IF(COUNTRY_INFO!K12=3,IF(COUNTRY_INFO!F12>MAX('T1'!M12,'T2'!K12),MAX('T1'!M12,'T2'!K12),COUNTRY_INFO!F12),0))) -> 72391 | AE12: =IF(AND(COUNTRY_INFO!K12>0,COUNTRY_INFO!K12<4),IF(Z12>0,IF(COUNTRY_INFO!K12=1, AD12/(COUNTRY_INFO!F12*0.33)*100, IF(COUNTRY_INFO!K12=2, AD12/(COUNTRY_INFO!F12*0.5)*100, IF(COUNTRY_INFO!K12=3, AD12/COUNTRY_INFO!F12*100))),"-"),0) -> 100 | AF12: =IF(COUNTRY_INFO!K12=2,IF(COUNTRY_INFO!G12*0.2>MAX('T1'!N12,'T2'!L12),MAX('T1'!N12,'T2'!L12),COUNTRY_INFO!G12*0.2),IF(COUNTRY_INFO!K12=3,IF(COUNTRY_INFO!G12>MAX('T1'!N12,'T2'!L12),MAX('T1'!N12,'T2'!L12),COUNTRY_INFO!G12),0)) -> 56031 | AG12: =IF(AND(COUNTRY_INFO!K12>0,COUNTRY_INFO!K12<4),IF(Z12>0,IF(COUNTRY_INFO!K12=1, 0, IF(COUNTRY_INFO!K12=2, AF12/(COUNTRY_INFO!G12*0.2)*100, IF(COUNTRY_INFO!K12=3, AF12/COUNTRY_INFO!G12*100))),"-"),0) -> 100 | AH12: 128422 | AI12: =IF(AND(COUNTRY_INFO!K12>0,COUNTRY_INFO!K12<4), IF(AC12/Z12*100<>0, IF(AH12/Z12*100>100,100,AH12/Z12*100), "-"),0) -> 100 | AK12: =IF(AND(D12<>0, D12<>"Unknown",D12<>"Stopped",D12<>"Not required"),D12/COUNTRY_INFO!D12, 0) -> 0 | AL12: =IF(AND(J12<>0,J12<>"Unknown",J12<>"Stopped",J12<>"Not required"),J12/COUNTRY_INFO!D12, 0) -> 0 | AM12: =IF(AND(P12<>0,P12<>"Unknown",P12<>"Not required"),P12/(COUNTRY_INFO!E12+COUNTRY_INFO!F12), 0) -> 1 | AN12: =IF(AND(Z12<>0,Z12<>"Unknown",Z12<>"Not required"),IF(COUNTRY_INFO!K12=1,1,IF(COUNTRY_INFO!K12=2,0.5*COUNTRY_INFO!F12/(0.5*COUNTRY_INFO!F12+0.2*COUNTRY_INFO!G12),IF(COUNTRY_INFO!K12=3,COUNTRY_INFO!F12/(COUNTRY_INFO!F12+COUNTRY_INFO!G12)))),0) -> 0.5636962514 | AO12: =IF(AND(Z12<>0,Z12<>"Unknown",Z12<>"Not required"),IF(COUNTRY_INFO!K12=1,0,IF(COUNTRY_INFO!K12=2,0.2*COUNTRY_INFO!G12/(0.5*COUNTRY_INFO!F12+0.2*COUNTRY_INFO!G12),IF(COUNTRY_INFO!K12=3,COUNTRY_INFO!G12/(COUNTRY_INFO!F12+COUNTRY_INFO!G12)))),0) -> 0.4363037486 | AP12: =MAX(COUNTRY_INFO!D12*AK12*PROFILE!$G$7,COUNTRY_INFO!D12*AL12*PROFILE!$G$7) -> 0 | AQ12: =MAX(COUNTRY_INFO!D12*AK12*PROFILE!$G$8,COUNTRY_INFO!D12*AL12*PROFILE!$G$8,COUNTRY_INFO!D12*AM12*PROFILE!$G$8) -> 97636.22146 | AR12: =MAX(COUNTRY_INFO!D12*AK12*PROFILE!$G$9,COUNTRY_INFO!D12*AL12*PROFILE!$G$9,COUNTRY_INFO!D12*AM12*PROFILE!$G$9,IF(AND(DISTRICT!Z12<>"Unknown",Z12<>"Not required"),COUNTRY_INFO!O12*DISTRICT!AN12,0)) -> 144781.7743 | AS12: =MAX(COUNTRY_INFO!D12*AK12*PROFILE!$G$10,COUNTRY_INFO!D12*AL12*PROFILE!$G$10,IF(AND(DISTRICT!Z12<>"Unknown",Z12<>"Not required"),COUNTRY_INFO!O12*DISTRICT!AO12,0)) -> 56031 | AT12: 298448.9958 | AU12: Y | AV12: =MAX('MDA2'!J12,'T1'!L12,'T2'!J12,T3_R1!K12,T3_R2!K12) -> 64691 | AW12: =MAX('MDA1'!K12,'MDA2'!K12,'MDA3'!I12,'MDA3'!L12,'T1'!M12,'T2'!K12,T3_R1!L12,T3_R2!L12) -> 150148 | AX12: =MAX('MDA1'!L12,'MDA2'!L12,'MDA3'!J12,'MDA3'!M12,'T1'!N12,'T2'!L12,T3_R1!M12,T3_R2!M12) -> 126771 | AY12: 341610 | AZ12: =MAX('MDA2'!J12,T12) -> 64691 | BA12: =MAX('MDA1'!K12,'MDA2'!K12,'MDA3'!I12,'MDA3'!L12,V12,AD12) -> 144782 | BB12: =MAX('MDA1'!L12,'MDA2'!L12,'MDA3'!J12,'MDA3'!M12,AF12) -> 56031 | BC12: 265504 | BD12: 88.96126432
A13: =IF(COUNTRY_INFO!A13=0," ",COUNTRY_INFO!A13) -> Malawi | B13: =IF(COUNTRY_INFO!B13=0," ",COUNTRY_INFO!B13) -> North | C13: =IF(COUNTRY_INFO!C13=0," ",COUNTRY_INFO!C13) -> Mzimba South | D13: =COUNTRY_INFO!L13 -> Not required | G13: =MAX('MDA1'!M13,'MDA2'!M13) -> 0 | H13: =IF(AND(COUNTRY_INFO!H13>0,COUNTRY_INFO!H13<4),IF(D13>MAX('MDA1'!M13,'MDA2'!M13),MAX('MDA1'!M13,'MDA2'!M13),D13),0) -> 0 | I13: =IF(AND(COUNTRY_INFO!H13>0,COUNTRY_INFO!H13<4), IF(G13/D13*100<>0, IF(G13/D13*100>100,100,G13/D13*100), "-"),0) -> 0 | J13: =COUNTRY_INFO!M13 -> 0 | M13: =MAX('MDA1'!M13,MAX('MDA3'!I13,'MDA3'!L13)+MAX('MDA3'!J13,'MDA3'!M13)) -> 0 | N13: =IF(AND(COUNTRY_INFO!I13>0,COUNTRY_INFO!I13<4),IF(J13>MAX('MDA1'!M13,MAX('MDA3'!I13,'MDA3'!L13)+MAX('MDA3'!J13,'MDA3'!M13)),MAX('MDA1'!M13,MAX('MDA3'!I13,'MDA3'!L13)+MAX('MDA3'!J13,'MDA3'!M13)),J13),0) -> 0 | O13: =IF(AND(COUNTRY_INFO!I13>0,COUNTRY_INFO!I13<4), IF(M13/J13*100<>0, IF(M13/J13*100>100,100,M13/J13*100), "-"),0) -> 0 | P13: =COUNTRY_INFO!N13 -> 257695 | S13: =SUM(MAX('MDA2'!J13, 'T1'!L13, MAX(T3_R1!K13, T3_R2!K13)), MAX('MDA1'!K13, 'MDA2'!K13, 'T1'!M13, MAX(T3_R1!L13, T3_R2!L13)), MAX('MDA1'!L13, 'MDA2'!L13, 'T1'!N13, MAX(T3_R1!M13, T3_R2!M13))) -> 297478 | T13: =IF(AND(COUNTRY_INFO!J13>1,COUNTRY_INFO!J13<4),IF(COUNTRY_INFO!E13>MAX('MDA2'!J13,'T1'!L13,MAX(T3_R1!K13,T3_R2!K13)),MAX('MDA2'!J13,'T1'!L13,MAX(T3_R1!K13,T3_R2!K13)),COUNTRY_INFO!E13),0) -> 80883 | U13: =IF(AND(COUNTRY_INFO!J13>1,COUNTRY_INFO!J13<4), IF(T13/COUNTRY_INFO!E13*100<>0, IF(T13/COUNTRY_INFO!E13*100>100,100,T13/COUNTRY_INFO!E13*100), "-"),0) -> 77.93022382 | V13: =IF(AND(COUNTRY_INFO!J13>1,COUNTRY_INFO!J13<4),IF(COUNTRY_INFO!F13>MAX('MDA1'!K13,'MDA2'!K13,'T1'!M13,MAX(T3_R1!L13,T3_R2!L13)),MAX('MDA1'!K13,'MDA2'!K13,'T1'!M13,MAX(T3_R1!L13,T3_R2!L13)),COUNTRY_INFO!F13),0) -> 133116 | W13: =IF(AND(COUNTRY_INFO!J13>1,COUNTRY_INFO!J13<4), IF(V13/COUNTRY_INFO!F13*100<>0, IF(V13/COUNTRY_INFO!F13*100>100,100,V13/COUNTRY_INFO!F13*100), "-"),0) -> 86.49175471 | X13: 213999 | Y13: =IF(AND(COUNTRY_INFO!J13>1,COUNTRY_INFO!J13<4), IF(S13/P13*100<>0, IF(X13/P13*100>100,100,X13/P13*100), "-"),0) -> 83.04352044 | Z13: =COUNTRY_INFO!O13 -> 136515.2 | AC13: =MAX(SUM('T1'!L13:'T1'!N13),SUM('T2'!J13:'T2'!L13)) -> 216595 | AD13: =IF(COUNTRY_INFO!K13=1,IF(COUNTRY_INFO!F13*0.33>MAX('T1'!M13,'T2'!K13),MAX('T1'!M13,'T2'!K13),COUNTRY_INFO!F13*0.33),IF(COUNTRY_INFO!K13=2,IF(COUNTRY_INFO!F13*0.5>MAX('T1'!M13,'T2'!K13),MAX('T1'!M13,'T2'!K13),COUNTRY_INFO!F13*0.5),IF(COUNTRY_INFO!K13=3,IF(COUNTRY_INFO!F13>MAX('T1'!M13,'T2'!K13),MAX('T1'!M13,'T2'!K13),COUNTRY_INFO!F13),0))) -> 76953 | AE13: =IF(AND(COUNTRY_INFO!K13>0,COUNTRY_INFO!K13<4),IF(Z13>0,IF(COUNTRY_INFO!K13=1, AD13/(COUNTRY_INFO!F13*0.33)*100, IF(COUNTRY_INFO!K13=2, AD13/(COUNTRY_INFO!F13*0.5)*100, IF(COUNTRY_INFO!K13=3, AD13/COUNTRY_INFO!F13*100))),"-"),0) -> 100 | AF13: =IF(COUNTRY_INFO!K13=2,IF(COUNTRY_INFO!G13*0.2>MAX('T1'!N13,'T2'!L13),MAX('T1'!N13,'T2'!L13),COUNTRY_INFO!G13*0.2),IF(COUNTRY_INFO!K13=3,IF(COUNTRY_INFO!G13>MAX('T1'!N13,'T2'!L13),MAX('T1'!N13,'T2'!L13),COUNTRY_INFO!G13),0)) -> 59562.2 | AG13: =IF(AND(COUNTRY_INFO!K13>0,COUNTRY_INFO!K13<4),IF(Z13>0,IF(COUNTRY_INFO!K13=1, 0, IF(COUNTRY_INFO!K13=2, AF13/(COUNTRY_INFO!G13*0.2)*100, IF(COUNTRY_INFO!K13=3, AF13/COUNTRY_INFO!G13*100))),"-"),0) -> 100 | AH13: 136515.2 | AI13: =IF(AND(COUNTRY_INFO!K13>0,COUNTRY_INFO!K13<4), IF(AC13/Z13*100<>0, IF(AH13/Z13*100>100,100,AH13/Z13*100), "-"),0) -> 100 | AK13: =IF(AND(D13<>0, D13<>"Unknown",D13<>"Stopped",D13<>"Not required"),D13/COUNTRY_INFO!D13, 0) -> 0 | AL13: =IF(AND(J13<>0,J13<>"Unknown",J13<>"Stopped",J13<>"Not required"),J13/COUNTRY_INFO!D13, 0) -> 0 | AM13: =IF(AND(P13<>0,P13<>"Unknown",P13<>"Not required"),P13/(COUNTRY_INFO!E13+COUNTRY_INFO!F13), 0) -> 1 | AN13: =IF(AND(Z13<>0,Z13<>"Unknown",Z13<>"Not required"),IF(COUNTRY_INFO!K13=1,1,IF(COUNTRY_INFO!K13=2,0.5*COUNTRY_INFO!F13/(0.5*COUNTRY_INFO!F13+0.2*COUNTRY_INFO!G13),IF(COUNTRY_INFO!K13=3,COUNTRY_INFO!F13/(COUNTRY_INFO!F13+COUNTRY_INFO!G13)))),0) -> 0.5636954713 | AO13: =IF(AND(Z13<>0,Z13<>"Unknown",Z13<>"Not required"),IF(COUNTRY_INFO!K13=1,0,IF(COUNTRY_INFO!K13=2,0.2*COUNTRY_INFO!G13/(0.5*COUNTRY_INFO!F13+0.2*COUNTRY_INFO!G13),IF(COUNTRY_INFO!K13=3,COUNTRY_INFO!G13/(COUNTRY_INFO!F13+COUNTRY_INFO!G13)))),0) -> 0.4363045287 | AP13: =MAX(COUNTRY_INFO!D13*AK13*PROFILE!$G$7,COUNTRY_INFO!D13*AL13*PROFILE!$G$7) -> 0 | AQ13: =MAX(COUNTRY_INFO!D13*AK13*PROFILE!$G$8,COUNTRY_INFO!D13*AL13*PROFILE!$G$8,COUNTRY_INFO!D13*AM13*PROFILE!$G$8) -> 103789.4116 | AR13: =MAX(COUNTRY_INFO!D13*AK13*PROFILE!$G$9,COUNTRY_INFO!D13*AL13*PROFILE!$G$9,COUNTRY_INFO!D13*AM13*PROFILE!$G$9,IF(AND(DISTRICT!Z13<>"Unknown",Z13<>"Not required"),COUNTRY_INFO!O13*DISTRICT!AN13,0)) -> 153906.1523 | AS13: =MAX(COUNTRY_INFO!D13*AK13*PROFILE!$G$10,COUNTRY_INFO!D13*AL13*PROFILE!$G$10,IF(AND(DISTRICT!Z13<>"Unknown",Z13<>"Not required"),COUNTRY_INFO!O13*DISTRICT!AO13,0)) -> 59562.2 | AT13: 317257.7639 | AU13: Y | AV13: =MAX('MDA2'!J13,'T1'!L13,'T2'!J13,T3_R1!K13,T3_R2!K13) -> 80883 | AW13: =MAX('MDA1'!K13,'MDA2'!K13,'MDA3'!I13,'MDA3'!L13,'T1'!M13,'T2'!K13,T3_R1!L13,T3_R2!L13) -> 133116 | AX13: =MAX('MDA1'!L13,'MDA2'!L13,'MDA3'!J13,'MDA3'!M13,'T1'!N13,'T2'!L13,T3_R1!M13,T3_R2!M13) -> 83479 | AY13: 297478 | AZ13: =MAX('MDA2'!J13,T13) -> 80883 | BA13: =MAX('MDA1'!K13,'MDA2'!K13,'MDA3'!I13,'MDA3'!L13,V13,AD13) -> 133116 | BB13: =MAX('MDA1'!L13,'MDA2'!L13,'MDA3'!J13,'MDA3'!M13,AF13) -> 59562.2 | BC13: 273561.2 | BD13: 86.22679445
A14: =IF(COUNTRY_INFO!A14=0," ",COUNTRY_INFO!A14) -> Malawi | B14: =IF(COUNTRY_INFO!B14=0," ",COUNTRY_INFO!B14) -> North | C14: =IF(COUNTRY_INFO!C14=0," ",COUNTRY_INFO!C14) -> Nkhatabay | D14: =COUNTRY_INFO!L14 -> Not required | G14: =MAX('MDA1'!M14,'MDA2'!M14) -> 0 | H14: =IF(AND(COUNTRY_INFO!H14>0,COUNTRY_INFO!H14<4),IF(D14>MAX('MDA1'!M14,'MDA2'!M14),MAX('MDA1'!M14,'MDA2'!M14),D14),0) -> 0 | I14: =IF(AND(COUNTRY_INFO!H14>0,COUNTRY_INFO!H14<4), IF(G14/D14*100<>0, IF(G14/D14*100>100,100,G14/D14*100), "-"),0) -> 0 | J14: =COUNTRY_INFO!M14 -> 0 | M14: =MAX('MDA1'!M14,MAX('MDA3'!I14,'MDA3'!L14)+MAX('MDA3'!J14,'MDA3'!M14)) -> 0 | N14: =IF(AND(COUNTRY_INFO!I14>0,COUNTRY_INFO!I14<4),IF(J14>MAX('MDA1'!M14,MAX('MDA3'!I14,'MDA3'!L14)+MAX('MDA3'!J14,'MDA3'!M14)),MAX('MDA1'!M14,MAX('MDA3'!I14,'MDA3'!L14)+MAX('MDA3'!J14,'MDA3'!M14)),J14),0) -> 0 | O14: =IF(AND(COUNTRY_INFO!I14>0,COUNTRY_INFO!I14<4), IF(M14/J14*100<>0, IF(M14/J14*100>100,100,M14/J14*100), "-"),0) -> 0 | P14: =COUNTRY_INFO!N14 -> 120858 | S14: =SUM(MAX('MDA2'!J14, 'T1'!L14, MAX(T3_R1!K14, T3_R2!K14)), MAX('MDA1'!K14, 'MDA2'!K14, 'T1'!M14, MAX(T3_R1!L14, T3_R2!L14)), MAX('MDA1'!L14, 'MDA2'!L14, 'T1'!N14, MAX(T3_R1!M14, T3_R2!M14))) -> 159681 | T14: =IF(AND(COUNTRY_INFO!J14>1,COUNTRY_INFO!J14<4),IF(COUNTRY_INFO!E14>MAX('MDA2'!J14,'T1'!L14,MAX(T3_R1!K14,T3_R2!K14)),MAX('MDA2'!J14,'T1'!L14,MAX(T3_R1!K14,T3_R2!K14)),COUNTRY_INFO!E14),0) -> 39252 | U14: =IF(AND(COUNTRY_INFO!J14>1,COUNTRY_INFO!J14<4), IF(T14/COUNTRY_INFO!E14*100<>0, IF(T14/COUNTRY_INFO!E14*100>100,100,T14/COUNTRY_INFO!E14*100), "-"),0) -> 80.63767282 | V14: =IF(AND(COUNTRY_INFO!J14>1,COUNTRY_INFO!J14<4),IF(COUNTRY_INFO!F14>MAX('MDA1'!K14,'MDA2'!K14,'T1'!M14,MAX(T3_R1!L14,T3_R2!L14)),MAX('MDA1'!K14,'MDA2'!K14,'T1'!M14,MAX(T3_R1!L14,T3_R2!L14)),COUNTRY_INFO!F14),0) -> 72181 | W14: =IF(AND(COUNTRY_INFO!J14>1,COUNTRY_INFO!J14<4), IF(V14/COUNTRY_INFO!F14*100<>0, IF(V14/COUNTRY_INFO!F14*100>100,100,V14/COUNTRY_INFO!F14*100), "-"),0) -> 100 | X14: 111433 | Y14: =IF(AND(COUNTRY_INFO!J14>1,COUNTRY_INFO!J14<4), IF(S14/P14*100<>0, IF(X14/P14*100>100,100,X14/P14*100), "-"),0) -> 92.20159195 | Z14: =COUNTRY_INFO!O14 -> 64024.9 | AC14: =MAX(SUM('T1'!L14:'T1'!N14),SUM('T2'!J14:'T2'!L14)) -> 120429 | AD14: =IF(COUNTRY_INFO!K14=1,IF(COUNTRY_INFO!F14*0.33>MAX('T1'!M14,'T2'!K14),MAX('T1'!M14,'T2'!K14),COUNTRY_INFO!F14*0.33),IF(COUNTRY_INFO!K14=2,IF(COUNTRY_INFO!F14*0.5>MAX('T1'!M14,'T2'!K14),MAX('T1'!M14,'T2'!K14),COUNTRY_INFO!F14*0.5),IF(COUNTRY_INFO!K14=3,IF(COUNTRY_INFO!F14>MAX('T1'!M14,'T2'!K14),MAX('T1'!M14,'T2'!K14),COUNTRY_INFO!F14),0))) -> 36090.5 | AE14: =IF(AND(COUNTRY_INFO!K14>0,COUNTRY_INFO!K14<4),IF(Z14>0,IF(COUNTRY_INFO!K14=1, AD14/(COUNTRY_INFO!F14*0.33)*100, IF(COUNTRY_INFO!K14=2, AD14/(COUNTRY_INFO!F14*0.5)*100, IF(COUNTRY_INFO!K14=3, AD14/COUNTRY_INFO!F14*100))),"-"),0) -> 100 | AF14: =IF(COUNTRY_INFO!K14=2,IF(COUNTRY_INFO!G14*0.2>MAX('T1'!N14,'T2'!L14),MAX('T1'!N14,'T2'!L14),COUNTRY_INFO!G14*0.2),IF(COUNTRY_INFO!K14=3,IF(COUNTRY_INFO!G14>MAX('T1'!N14,'T2'!L14),MAX('T1'!N14,'T2'!L14),COUNTRY_INFO!G14),0)) -> 27934.4 | AG14: =IF(AND(COUNTRY_INFO!K14>0,COUNTRY_INFO!K14<4),IF(Z14>0,IF(COUNTRY_INFO!K14=1, 0, IF(COUNTRY_INFO!K14=2, AF14/(COUNTRY_INFO!G14*0.2)*100, IF(COUNTRY_INFO!K14=3, AF14/COUNTRY_INFO!G14*100))),"-"),0) -> 100 | AH14: 64024.9 | AI14: =IF(AND(COUNTRY_INFO!K14>0,COUNTRY_INFO!K14<4), IF(AC14/Z14*100<>0, IF(AH14/Z14*100>100,100,AH14/Z14*100), "-"),0) -> 100 | AK14: =IF(AND(D14<>0, D14<>"Unknown",D14<>"Stopped",D14<>"Not required"),D14/COUNTRY_INFO!D14, 0) -> 0 | AL14: =IF(AND(J14<>0,J14<>"Unknown",J14<>"Stopped",J14<>"Not required"),J14/COUNTRY_INFO!D14, 0) -> 0 | AM14: =IF(AND(P14<>0,P14<>"Unknown",P14<>"Not required"),P14/(COUNTRY_INFO!E14+COUNTRY_INFO!F14), 0) -> 1 | AN14: =IF(AND(Z14<>0,Z14<>"Unknown",Z14<>"Not required"),IF(COUNTRY_INFO!K14=1,1,IF(COUNTRY_INFO!K14=2,0.5*COUNTRY_INFO!F14/(0.5*COUNTRY_INFO!F14+0.2*COUNTRY_INFO!G14),IF(COUNTRY_INFO!K14=3,COUNTRY_INFO!F14/(COUNTRY_INFO!F14+COUNTRY_INFO!G14)))),0) -> 0.56369475 | AO14: =IF(AND(Z14<>0,Z14<>"Unknown",Z14<>"Not required"),IF(COUNTRY_INFO!K14=1,0,IF(COUNTRY_INFO!K14=2,0.2*COUNTRY_INFO!G14/(0.5*COUNTRY_INFO!F14+0.2*COUNTRY_INFO!G14),IF(COUNTRY_INFO!K14=3,COUNTRY_INFO!G14/(COUNTRY_INFO!F14+COUNTRY_INFO!G14)))),0) -> 0.43630525 | AP14: =MAX(COUNTRY_INFO!D14*AK14*PROFILE!$G$7,COUNTRY_INFO!D14*AL14*PROFILE!$G$7) -> 0 | AQ14: =MAX(COUNTRY_INFO!D14*AK14*PROFILE!$G$8,COUNTRY_INFO!D14*AL14*PROFILE!$G$8,COUNTRY_INFO!D14*AM14*PROFILE!$G$8) -> 48676.88997 | AR14: =MAX(COUNTRY_INFO!D14*AK14*PROFILE!$G$9,COUNTRY_INFO!D14*AL14*PROFILE!$G$9,COUNTRY_INFO!D14*AM14*PROFILE!$G$9,IF(AND(DISTRICT!Z14<>"Unknown",Z14<>"Not required"),COUNTRY_INFO!O14*DISTRICT!AN14,0)) -> 72181.4752 | AS14: =MAX(COUNTRY_INFO!D14*AK14*PROFILE!$G$10,COUNTRY_INFO!D14*AL14*PROFILE!$G$10,IF(AND(DISTRICT!Z14<>"Unknown",Z14<>"Not required"),COUNTRY_INFO!O14*DISTRICT!AO14,0)) -> 27934.4 | AT14: 148792.7652 | AU14: Y | AV14: =MAX('MDA2'!J14,'T1'!L14,'T2'!J14,T3_R1!K14,T3_R2!K14) -> 39252 | AW14: =MAX('MDA1'!K14,'MDA2'!K14,'MDA3'!I14,'MDA3'!L14,'T1'!M14,'T2'!K14,T3_R1!L14,T3_R2!L14) -> 74031 | AX14: =MAX('MDA1'!L14,'MDA2'!L14,'MDA3'!J14,'MDA3'!M14,'T1'!N14,'T2'!L14,T3_R1!M14,T3_R2!M14) -> 46398 | AY14: 159681 | AZ14: =MAX('MDA2'!J14,T14) -> 39252 | BA14: =MAX('MDA1'!K14,'MDA2'!K14,'MDA3'!I14,'MDA3'!L14,V14,AD14) -> 72181 | BB14: =MAX('MDA1'!L14,'MDA2'!L14,'MDA3'!J14,'MDA3'!M14,AF14) -> 27934.4 | BC14: 139367.4 | BD14: 93.66544122
A15: =IF(COUNTRY_INFO!A15=0," ",COUNTRY_INFO!A15) -> Malawi | B15: =IF(COUNTRY_INFO!B15=0," ",COUNTRY_INFO!B15) -> North | C15: =IF(COUNTRY_INFO!C15=0," ",COUNTRY_INFO!C15) -> Likoma | D15: =COUNTRY_INFO!L15 -> Not required | G15: =MAX('MDA1'!M15,'MDA2'!M15) -> 0 | H15: =IF(AND(COUNTRY_INFO!H15>0,COUNTRY_INFO!H15<4),IF(D15>MAX('MDA1'!M15,'MDA2'!M15),MAX('MDA1'!M15,'MDA2'!M15),D15),0) -> 0 | I15: =IF(AND(COUNTRY_INFO!H15>0,COUNTRY_INFO!H15<4), IF(G15/D15*100<>0, IF(G15/D15*100>100,100,G15/D15*100), "-"),0) -> 0 | J15: =COUNTRY_INFO!M15 -> 0 | M15: =MAX('MDA1'!M15,MAX('MDA3'!I15,'MDA3'!L15)+MAX('MDA3'!J15,'MDA3'!M15)) -> 0 | N15: =IF(AND(COUNTRY_INFO!I15>0,COUNTRY_INFO!I15<4),IF(J15>MAX('MDA1'!M15,MAX('MDA3'!I15,'MDA3'!L15)+MAX('MDA3'!J15,'MDA3'!M15)),MAX('MDA1'!M15,MAX('MDA3'!I15,'MDA3'!L15)+MAX('MDA3'!J15,'MDA3'!M15)),J15),0) -> 0 | O15: =IF(AND(COUNTRY_INFO!I15>0,COUNTRY_INFO!I15<4), IF(M15/J15*100<>0, IF(M15/J15*100>100,100,M15/J15*100), "-"),0) -> 0 | P15: =COUNTRY_INFO!N15 -> 4842 | S15: =SUM(MAX('MDA2'!J15, 'T1'!L15, MAX(T3_R1!K15, T3_R2!K15)), MAX('MDA1'!K15, 'MDA2'!K15, 'T1'!M15, MAX(T3_R1!L15, T3_R2!L15)), MAX('MDA1'!L15, 'MDA2'!L15, 'T1'!N15, MAX(T3_R1!M15, T3_R2!M15))) -> 5396 | T15: =IF(AND(COUNTRY_INFO!J15>1,COUNTRY_INFO!J15<4),IF(COUNTRY_INFO!E15>MAX('MDA2'!J15,'T1'!L15,MAX(T3_R1!K15,T3_R2!K15)),MAX('MDA2'!J15,'T1'!L15,MAX(T3_R1!K15,T3_R2!K15)),COUNTRY_INFO!E15),0) -> 1136 | U15: =IF(AND(COUNTRY_INFO!J15>1,COUNTRY_INFO!J15<4), IF(T15/COUNTRY_INFO!E15*100<>0, IF(T15/COUNTRY_INFO!E15*100>100,100,T15/COUNTRY_INFO!E15*100), "-"),0) -> 58.25641026 | V15: =IF(AND(COUNTRY_INFO!J15>1,COUNTRY_INFO!J15<4),IF(COUNTRY_INFO!F15>MAX('MDA1'!K15,'MDA2'!K15,'T1'!M15,MAX(T3_R1!L15,T3_R2!L15)),MAX('MDA1'!K15,'MDA2'!K15,'T1'!M15,MAX(T3_R1!L15,T3_R2!L15)),COUNTRY_INFO!F15),0) -> 2892 | W15: =IF(AND(COUNTRY_INFO!J15>1,COUNTRY_INFO!J15<4), IF(V15/COUNTRY_INFO!F15*100<>0, IF(V15/COUNTRY_INFO!F15*100>100,100,V15/COUNTRY_INFO!F15*100), "-"),0) -> 100 | X15: 4028 | Y15: =IF(AND(COUNTRY_INFO!J15>1,COUNTRY_INFO!J15<4), IF(S15/P15*100<>0, IF(X15/P15*100>100,100,X15/P15*100), "-"),0) -> 83.18876497 | Z15: =COUNTRY_INFO!O15 -> 8488 | AC15: =MAX(SUM('T1'!L15:'T1'!N15),SUM('T2'!J15:'T2'!L15)) -> 4260 | AD15: =IF(COUNTRY_INFO!K15=1,IF(COUNTRY_INFO!F15*0.33>MAX('T1'!M15,'T2'!K15),MAX('T1'!M15,'T2'!K15),COUNTRY_INFO!F15*0.33),IF(COUNTRY_INFO!K15=2,IF(COUNTRY_INFO!F15*0.5>MAX('T1'!M15,'T2'!K15),MAX('T1'!M15,'T2'!K15),COUNTRY_INFO!F15*0.5),IF(COUNTRY_INFO!K15=3,IF(COUNTRY_INFO!F15>MAX('T1'!M15,'T2'!K15),MAX('T1'!M15,'T2'!K15),COUNTRY_INFO!F15),0))) -> 2892 | AE15: =IF(AND(COUNTRY_INFO!K15>0,COUNTRY_INFO!K15<4),IF(Z15>0,IF(COUNTRY_INFO!K15=1, AD15/(COUNTRY_INFO!F15*0.33)*100, IF(COUNTRY_INFO!K15=2, AD15/(COUNTRY_INFO!F15*0.5)*100, IF(COUNTRY_INFO!K15=3, AD15/COUNTRY_INFO!F15*100))),"-"),0) -> 100 | AF15: =IF(COUNTRY_INFO!K15=2,IF(COUNTRY_INFO!G15*0.2>MAX('T1'!N15,'T2'!L15),MAX('T1'!N15,'T2'!L15),COUNTRY_INFO!G15*0.2),IF(COUNTRY_INFO!K15=3,IF(COUNTRY_INFO!G15>MAX('T1'!N15,'T2'!L15),MAX('T1'!N15,'T2'!L15),COUNTRY_INFO!G15),0)) -> 1002 | AG15: =IF(AND(COUNTRY_INFO!K15>0,COUNTRY_INFO!K15<4),IF(Z15>0,IF(COUNTRY_INFO!K15=1, 0, IF(COUNTRY_INFO!K15=2, AF15/(COUNTRY_INFO!G15*0.2)*100, IF(COUNTRY_INFO!K15=3, AF15/COUNTRY_INFO!G15*100))),"-"),0) -> 17.90564689 | AH15: 3894 | AI15: =IF(AND(COUNTRY_INFO!K15>0,COUNTRY_INFO!K15<4), IF(AC15/Z15*100<>0, IF(AH15/Z15*100>100,100,AH15/Z15*100), "-"),0) -> 45.87653157 | AK15: =IF(AND(D15<>0, D15<>"Unknown",D15<>"Stopped",D15<>"Not required"),D15/COUNTRY_INFO!D15, 0) -> 0 | AL15: =IF(AND(J15<>0,J15<>"Unknown",J15<>"Stopped",J15<>"Not required"),J15/COUNTRY_INFO!D15, 0) -> 0 | AM15: =IF(AND(P15<>0,P15<>"Unknown",P15<>"Not required"),P15/(COUNTRY_INFO!E15+COUNTRY_INFO!F15), 0) -> 1 | AN15: =IF(AND(Z15<>0,Z15<>"Unknown",Z15<>"Not required"),IF(COUNTRY_INFO!K15=1,1,IF(COUNTRY_INFO!K15=2,0.5*COUNTRY_INFO!F15/(0.5*COUNTRY_INFO!F15+0.2*COUNTRY_INFO!G15),IF(COUNTRY_INFO!K15=3,COUNTRY_INFO!F15/(COUNTRY_INFO!F15+COUNTRY_INFO!G15)))),0) -> 0.3407163054 | AO15: =IF(AND(Z15<>0,Z15<>"Unknown",Z15<>"Not required"),IF(COUNTRY_INFO!K15=1,0,IF(COUNTRY_INFO!K15=2,0.2*COUNTRY_INFO!G15/(0.5*COUNTRY_INFO!F15+0.2*COUNTRY_INFO!G15),IF(COUNTRY_INFO!K15=3,COUNTRY_INFO!G15/(COUNTRY_INFO!F15+COUNTRY_INFO!G15)))),0) -> 0.6592836946 | AP15: =MAX(COUNTRY_INFO!D15*AK15*PROFILE!$G$7,COUNTRY_INFO!D15*AL15*PROFILE!$G$7) -> 0 | AQ15: =MAX(COUNTRY_INFO!D15*AK15*PROFILE!$G$8,COUNTRY_INFO!D15*AL15*PROFILE!$G$8,COUNTRY_INFO!D15*AM15*PROFILE!$G$8) -> 1950.378222 | AR15: =MAX(COUNTRY_INFO!D15*AK15*PROFILE!$G$9,COUNTRY_INFO!D15*AL15*PROFILE!$G$9,COUNTRY_INFO!D15*AM15*PROFILE!$G$9,IF(AND(DISTRICT!Z15<>"Unknown",Z15<>"Not required"),COUNTRY_INFO!O15*DISTRICT!AN15,0)) -> 2892.156367 | AS15: =MAX(COUNTRY_INFO!D15*AK15*PROFILE!$G$10,COUNTRY_INFO!D15*AL15*PROFILE!$G$10,IF(AND(DISTRICT!Z15<>"Unknown",Z15<>"Not required"),COUNTRY_INFO!O15*DISTRICT!AO15,0)) -> 5596 | AT15: 10438.53459 | AU15: Y | AV15: =MAX('MDA2'!J15,'T1'!L15,'T2'!J15,T3_R1!K15,T3_R2!K15) -> 1136 | AW15: =MAX('MDA1'!K15,'MDA2'!K15,'MDA3'!I15,'MDA3'!L15,'T1'!M15,'T2'!K15,T3_R1!L15,T3_R2!L15) -> 3258 | AX15: =MAX('MDA1'!L15,'MDA2'!L15,'MDA3'!J15,'MDA3'!M15,'T1'!N15,'T2'!L15,T3_R1!M15,T3_R2!M15) -> 1002 | AY15: 5396 | AZ15: =MAX('MDA2'!J15,T15) -> 1136 | BA15: =MAX('MDA1'!K15,'MDA2'!K15,'MDA3'!I15,'MDA3'!L15,V15,AD15) -> 2892 | BB15: =MAX('MDA1'!L15,'MDA2'!L15,'MDA3'!J15,'MDA3'!M15,AF15) -> 1002 | BC15: 5030 | BD15: 48.18684038
A16: =IF(COUNTRY_INFO!A16=0," ",COUNTRY_INFO!A16) -> Malawi | B16: =IF(COUNTRY_INFO!B16=0," ",COUNTRY_INFO!B16) -> Central | C16: =IF(COUNTRY_INFO!C16=0," ",COUNTRY_INFO!C16) -> Kasungu | D16: =COUNTRY_INFO!L16 -> Not required | G16: =MAX('MDA1'!M16,'MDA2'!M16) -> 0 | H16: =IF(AND(COUNTRY_INFO!H16>0,COUNTRY_INFO!H16<4),IF(D16>MAX('MDA1'!M16,'MDA2'!M16),MAX('MDA1'!M16,'MDA2'!M16),D16),0) -> 0 | I16: =IF(AND(COUNTRY_INFO!H16>0,COUNTRY_INFO!H16<4), IF(G16/D16*100<>0, IF(G16/D16*100>100,100,G16/D16*100), "-"),0) -> 0 | J16: =COUNTRY_INFO!M16 -> 0 | M16: =MAX('MDA1'!M16,MAX('MDA3'!I16,'MDA3'!L16)+MAX('MDA3'!J16,'MDA3'!M16)) -> 0 | N16: =IF(AND(COUNTRY_INFO!I16>0,COUNTRY_INFO!I16<4),IF(J16>MAX('MDA1'!M16,MAX('MDA3'!I16,'MDA3'!L16)+MAX('MDA3'!J16,'MDA3'!M16)),MAX('MDA1'!M16,MAX('MDA3'!I16,'MDA3'!L16)+MAX('MDA3'!J16,'MDA3'!M16)),J16),0) -> 0 | O16: =IF(AND(COUNTRY_INFO!I16>0,COUNTRY_INFO!I16<4), IF(M16/J16*100<>0, IF(M16/J16*100>100,100,M16/J16*100), "-"),0) -> 0 | P16: =COUNTRY_INFO!N16 -> 368717 | S16: =SUM(MAX('MDA2'!J16, 'T1'!L16, MAX(T3_R1!K16, T3_R2!K16)), MAX('MDA1'!K16, 'MDA2'!K16, 'T1'!M16, MAX(T3_R1!L16, T3_R2!L16)), MAX('MDA1'!L16, 'MDA2'!L16, 'T1'!N16, MAX(T3_R1!M16, T3_R2!M16))) -> 451263 | T16: =IF(AND(COUNTRY_INFO!J16>1,COUNTRY_INFO!J16<4),IF(COUNTRY_INFO!E16>MAX('MDA2'!J16,'T1'!L16,MAX(T3_R1!K16,T3_R2!K16)),MAX('MDA2'!J16,'T1'!L16,MAX(T3_R1!K16,T3_R2!K16)),COUNTRY_INFO!E16),0) -> 121790 | U16: =IF(AND(COUNTRY_INFO!J16>1,COUNTRY_INFO!J16<4), IF(T16/COUNTRY_INFO!E16*100<>0, IF(T16/COUNTRY_INFO!E16*100>100,100,T16/COUNTRY_INFO!E16*100), "-"),0) -> 82.01125896 | V16: =IF(AND(COUNTRY_INFO!J16>1,COUNTRY_INFO!J16<4),IF(COUNTRY_INFO!F16>MAX('MDA1'!K16,'MDA2'!K16,'T1'!M16,MAX(T3_R1!L16,T3_R2!L16)),MAX('MDA1'!K16,'MDA2'!K16,'T1'!M16,MAX(T3_R1!L16,T3_R2!L16)),COUNTRY_INFO!F16),0) -> 220213 | W16: =IF(AND(COUNTRY_INFO!J16>1,COUNTRY_INFO!J16<4), IF(V16/COUNTRY_INFO!F16*100<>0, IF(V16/COUNTRY_INFO!F16*100>100,100,V16/COUNTRY_INFO!F16*100), "-"),0) -> 100 | X16: 342003 | Y16: =IF(AND(COUNTRY_INFO!J16>1,COUNTRY_INFO!J16<4), IF(S16/P16*100<>0, IF(X16/P16*100>100,100,X16/P16*100), "-"),0) -> 92.75487705 | Z16: =COUNTRY_INFO!O16 -> 646328 | AC16: =MAX(SUM('T1'!L16:'T1'!N16),SUM('T2'!J16:'T2'!L16)) -> 329473 | AD16: =IF(COUNTRY_INFO!K16=1,IF(COUNTRY_INFO!F16*0.33>MAX('T1'!M16,'T2'!K16),MAX('T1'!M16,'T2'!K16),COUNTRY_INFO!F16*0.33),IF(COUNTRY_INFO!K16=2,IF(COUNTRY_INFO!F16*0.5>MAX('T1'!M16,'T2'!K16),MAX('T1'!M16,'T2'!K16),COUNTRY_INFO!F16*0.5),IF(COUNTRY_INFO!K16=3,IF(COUNTRY_INFO!F16>MAX('T1'!M16,'T2'!K16),MAX('T1'!M16,'T2'!K16),COUNTRY_INFO!F16),0))) -> 220213 | AE16: =IF(AND(COUNTRY_INFO!K16>0,COUNTRY_INFO!K16<4),IF(Z16>0,IF(COUNTRY_INFO!K16=1, AD16/(COUNTRY_INFO!F16*0.33)*100, IF(COUNTRY_INFO!K16=2, AD16/(COUNTRY_INFO!F16*0.5)*100, IF(COUNTRY_INFO!K16=3, AD16/COUNTRY_INFO!F16*100))),"-"),0) -> 100 | AF16: =IF(COUNTRY_INFO!K16=2,IF(COUNTRY_INFO!G16*0.2>MAX('T1'!N16,'T2'!L16),MAX('T1'!N16,'T2'!L16),COUNTRY_INFO!G16*0.2),IF(COUNTRY_INFO!K16=3,IF(COUNTRY_INFO!G16>MAX('T1'!N16,'T2'!L16),MAX('T1'!N16,'T2'!L16),COUNTRY_INFO!G16),0)) -> 85771 | AG16: =IF(AND(COUNTRY_INFO!K16>0,COUNTRY_INFO!K16<4),IF(Z16>0,IF(COUNTRY_INFO!K16=1, 0, IF(COUNTRY_INFO!K16=2, AF16/(COUNTRY_INFO!G16*0.2)*100, IF(COUNTRY_INFO!K16=3, AF16/COUNTRY_INFO!G16*100))),"-"),0) -> 20.12860378 | AH16: 305984 | AI16: =IF(AND(COUNTRY_INFO!K16>0,COUNTRY_INFO!K16<4), IF(AC16/Z16*100<>0, IF(AH16/Z16*100>100,100,AH16/Z16*100), "-"),0) -> 47.3419069 | AK16: =IF(AND(D16<>0, D16<>"Unknown",D16<>"Stopped",D16<>"Not required"),D16/COUNTRY_INFO!D16, 0) -> 0 | AL16: =IF(AND(J16<>0,J16<>"Unknown",J16<>"Stopped",J16<>"Not required"),J16/COUNTRY_INFO!D16, 0) -> 0 | AM16: =IF(AND(P16<>0,P16<>"Unknown",P16<>"Not required"),P16/(COUNTRY_INFO!E16+COUNTRY_INFO!F16), 0) -> 1 | AN16: =IF(AND(Z16<>0,Z16<>"Unknown",Z16<>"Not required"),IF(COUNTRY_INFO!K16=1,1,IF(COUNTRY_INFO!K16=2,0.5*COUNTRY_INFO!F16/(0.5*COUNTRY_INFO!F16+0.2*COUNTRY_INFO!G16),IF(COUNTRY_INFO!K16=3,COUNTRY_INFO!F16/(COUNTRY_INFO!F16+COUNTRY_INFO!G16)))),0) -> 0.3407140028 | AO16: =IF(AND(Z16<>0,Z16<>"Unknown",Z16<>"Not required"),IF(COUNTRY_INFO!K16=1,0,IF(COUNTRY_INFO!K16=2,0.2*COUNTRY_INFO!G16/(0.5*COUNTRY_INFO!F16+0.2*COUNTRY_INFO!G16),IF(COUNTRY_INFO!K16=3,COUNTRY_INFO!G16/(COUNTRY_INFO!F16+COUNTRY_INFO!G16)))),0) -> 0.6592859972 | AP16: =MAX(COUNTRY_INFO!D16*AK16*PROFILE!$G$7,COUNTRY_INFO!D16*AL16*PROFILE!$G$7) -> 0 | AQ16: =MAX(COUNTRY_INFO!D16*AK16*PROFILE!$G$8,COUNTRY_INFO!D16*AL16*PROFILE!$G$8,COUNTRY_INFO!D16*AM16*PROFILE!$G$8) -> 148504.2748 | AR16: =MAX(COUNTRY_INFO!D16*AK16*PROFILE!$G$9,COUNTRY_INFO!D16*AL16*PROFILE!$G$9,COUNTRY_INFO!D16*AM16*PROFILE!$G$9,IF(AND(DISTRICT!Z16<>"Unknown",Z16<>"Not required"),COUNTRY_INFO!O16*DISTRICT!AN16,0)) -> 220213 | AS16: =MAX(COUNTRY_INFO!D16*AK16*PROFILE!$G$10,COUNTRY_INFO!D16*AL16*PROFILE!$G$10,IF(AND(DISTRICT!Z16<>"Unknown",Z16<>"Not required"),COUNTRY_INFO!O16*DISTRICT!AO16,0)) -> 426115 | AT16: 794832.2748 | AU16: Y | AV16: =MAX('MDA2'!J16,'T1'!L16,'T2'!J16,T3_R1!K16,T3_R2!K16) -> 121790 | AW16: =MAX('MDA1'!K16,'MDA2'!K16,'MDA3'!I16,'MDA3'!L16,'T1'!M16,'T2'!K16,T3_R1!L16,T3_R2!L16) -> 243702 | AX16: =MAX('MDA1'!L16,'MDA2'!L16,'MDA3'!J16,'MDA3'!M16,'T1'!N16,'T2'!L16,T3_R1!M16,T3_R2!M16) -> 85771 | AY16: 451263 | AZ16: =MAX('MDA2'!J16,T16) -> 121790 | BA16: =MAX('MDA1'!K16,'MDA2'!K16,'MDA3'!I16,'MDA3'!L16,V16,AD16) -> 220213 | BB16: =MAX('MDA1'!L16,'MDA2'!L16,'MDA3'!J16,'MDA3'!M16,AF16) -> 85771 | BC16: 427774 | BD16: 53.81940487
A17: =IF(COUNTRY_INFO!A17=0," ",COUNTRY_INFO!A17) -> Malawi | B17: =IF(COUNTRY_INFO!B17=0," ",COUNTRY_INFO!B17) -> Central | C17: =IF(COUNTRY_INFO!C17=0," ",COUNTRY_INFO!C17) -> Dedza | D17: =COUNTRY_INFO!L17 -> Not required | G17: =MAX('MDA1'!M17,'MDA2'!M17) -> 0 | H17: =IF(AND(COUNTRY_INFO!H17>0,COUNTRY_INFO!H17<4),IF(D17>MAX('MDA1'!M17,'MDA2'!M17),MAX('MDA1'!M17,'MDA2'!M17),D17),0) -> 0 | I17: =IF(AND(COUNTRY_INFO!H17>0,COUNTRY_INFO!H17<4), IF(G17/D17*100<>0, IF(G17/D17*100>100,100,G17/D17*100), "-"),0) -> 0 | J17: =COUNTRY_INFO!M17 -> 0 | M17: =MAX('MDA1'!M17,MAX('MDA3'!I17,'MDA3'!L17)+MAX('MDA3'!J17,'MDA3'!M17)) -> 0 | N17: =IF(AND(COUNTRY_INFO!I17>0,COUNTRY_INFO!I17<4),IF(J17>MAX('MDA1'!M17,MAX('MDA3'!I17,'MDA3'!L17)+MAX('MDA3'!J17,'MDA3'!M17)),MAX('MDA1'!M17,MAX('MDA3'!I17,'MDA3'!L17)+MAX('MDA3'!J17,'MDA3'!M17)),J17),0) -> 0 | O17: =IF(AND(COUNTRY_INFO!I17>0,COUNTRY_INFO!I17<4), IF(M17/J17*100<>0, IF(M17/J17*100>100,100,M17/J17*100), "-"),0) -> 0 | P17: =COUNTRY_INFO!N17 -> 333355 | S17: =SUM(MAX('MDA2'!J17, 'T1'!L17, MAX(T3_R1!K17, T3_R2!K17)), MAX('MDA1'!K17, 'MDA2'!K17, 'T1'!M17, MAX(T3_R1!L17, T3_R2!L17)), MAX('MDA1'!L17, 'MDA2'!L17, 'T1'!N17, MAX(T3_R1!M17, T3_R2!M17))) -> 370401 | T17: =IF(AND(COUNTRY_INFO!J17>1,COUNTRY_INFO!J17<4),IF(COUNTRY_INFO!E17>MAX('MDA2'!J17,'T1'!L17,MAX(T3_R1!K17,T3_R2!K17)),MAX('MDA2'!J17,'T1'!L17,MAX(T3_R1!K17,T3_R2!K17)),COUNTRY_INFO!E17),0) -> 117308 | U17: =IF(AND(COUNTRY_INFO!J17>1,COUNTRY_INFO!J17<4), IF(T17/COUNTRY_INFO!E17*100<>0, IF(T17/COUNTRY_INFO!E17*100>100,100,T17/COUNTRY_INFO!E17*100), "-"),0) -> 87.37245088 | V17: =IF(AND(COUNTRY_INFO!J17>1,COUNTRY_INFO!J17<4),IF(COUNTRY_INFO!F17>MAX('MDA1'!K17,'MDA2'!K17,'T1'!M17,MAX(T3_R1!L17,T3_R2!L17)),MAX('MDA1'!K17,'MDA2'!K17,'T1'!M17,MAX(T3_R1!L17,T3_R2!L17)),COUNTRY_INFO!F17),0) -> 171664 | W17: =IF(AND(COUNTRY_INFO!J17>1,COUNTRY_INFO!J17<4), IF(V17/COUNTRY_INFO!F17*100<>0, IF(V17/COUNTRY_INFO!F17*100>100,100,V17/COUNTRY_INFO!F17*100), "-"),0) -> 86.2230214 | X17: 288972 | Y17: =IF(AND(COUNTRY_INFO!J17>1,COUNTRY_INFO!J17<4), IF(S17/P17*100<>0, IF(X17/P17*100>100,100,X17/P17*100), "-"),0) -> 86.68596541 | Z17: =COUNTRY_INFO!O17 -> 584341 | AC17: =MAX(SUM('T1'!L17:'T1'!N17),SUM('T2'!J17:'T2'!L17)) -> 253093 | AD17: =IF(COUNTRY_INFO!K17=1,IF(COUNTRY_INFO!F17*0.33>MAX('T1'!M17,'T2'!K17),MAX('T1'!M17,'T2'!K17),COUNTRY_INFO!F17*0.33),IF(COUNTRY_INFO!K17=2,IF(COUNTRY_INFO!F17*0.5>MAX('T1'!M17,'T2'!K17),MAX('T1'!M17,'T2'!K17),COUNTRY_INFO!F17*0.5),IF(COUNTRY_INFO!K17=3,IF(COUNTRY_INFO!F17>MAX('T1'!M17,'T2'!K17),MAX('T1'!M17,'T2'!K17),COUNTRY_INFO!F17),0))) -> 171664 | AE17: =IF(AND(COUNTRY_INFO!K17>0,COUNTRY_INFO!K17<4),IF(Z17>0,IF(COUNTRY_INFO!K17=1, AD17/(COUNTRY_INFO!F17*0.33)*100, IF(COUNTRY_INFO!K17=2, AD17/(COUNTRY_INFO!F17*0.5)*100, IF(COUNTRY_INFO!K17=3, AD17/COUNTRY_INFO!F17*100))),"-"),0) -> 86.2230214 | AF17: =IF(COUNTRY_INFO!K17=2,IF(COUNTRY_INFO!G17*0.2>MAX('T1'!N17,'T2'!L17),MAX('T1'!N17,'T2'!L17),COUNTRY_INFO!G17*0.2),IF(COUNTRY_INFO!K17=3,IF(COUNTRY_INFO!G17>MAX('T1'!N17,'T2'!L17),MAX('T1'!N17,'T2'!L17),COUNTRY_INFO!G17),0)) -> 81429 | AG17: =IF(AND(COUNTRY_INFO!K17>0,COUNTRY_INFO!K17<4),IF(Z17>0,IF(COUNTRY_INFO!K17=1, 0, IF(COUNTRY_INFO!K17=2, AF17/(COUNTRY_INFO!G17*0.2)*100, IF(COUNTRY_INFO!K17=3, AF17/COUNTRY_INFO!G17*100))),"-"),0) -> 21.13677423 | AH17: 253093 | AI17: =IF(AND(COUNTRY_INFO!K17>0,COUNTRY_INFO!K17<4), IF(AC17/Z17*100<>0, IF(AH17/Z17*100>100,100,AH17/Z17*100), "-"),0) -> 43.31255209 | AK17: =IF(AND(D17<>0, D17<>"Unknown",D17<>"Stopped",D17<>"Not required"),D17/COUNTRY_INFO!D17, 0) -> 0 | AL17: =IF(AND(J17<>0,J17<>"Unknown",J17<>"Stopped",J17<>"Not required"),J17/COUNTRY_INFO!D17, 0) -> 0 | AM17: =IF(AND(P17<>0,P17<>"Unknown",P17<>"Not required"),P17/(COUNTRY_INFO!E17+COUNTRY_INFO!F17), 0) -> 1 | AN17: =IF(AND(Z17<>0,Z17<>"Unknown",Z17<>"Not required"),IF(COUNTRY_INFO!K17=1,1,IF(COUNTRY_INFO!K17=2,0.5*COUNTRY_INFO!F17/(0.5*COUNTRY_INFO!F17+0.2*COUNTRY_INFO!G17),IF(COUNTRY_INFO!K17=3,COUNTRY_INFO!F17/(COUNTRY_INFO!F17+COUNTRY_INFO!G17)))),0) -> 0.3407137271 | AO17: =IF(AND(Z17<>0,Z17<>"Unknown",Z17<>"Not required"),IF(COUNTRY_INFO!K17=1,0,IF(COUNTRY_INFO!K17=2,0.2*COUNTRY_INFO!G17/(0.5*COUNTRY_INFO!F17+0.2*COUNTRY_INFO!G17),IF(COUNTRY_INFO!K17=3,COUNTRY_INFO!G17/(COUNTRY_INFO!F17+COUNTRY_INFO!G17)))),0) -> 0.6592862729 | AP17: =MAX(COUNTRY_INFO!D17*AK17*PROFILE!$G$7,COUNTRY_INFO!D17*AL17*PROFILE!$G$7) -> 0 | AQ17: =MAX(COUNTRY_INFO!D17*AK17*PROFILE!$G$8,COUNTRY_INFO!D17*AL17*PROFILE!$G$8,COUNTRY_INFO!D17*AM17*PROFILE!$G$8) -> 134261.8998 | AR17: =MAX(COUNTRY_INFO!D17*AK17*PROFILE!$G$9,COUNTRY_INFO!D17*AL17*PROFILE!$G$9,COUNTRY_INFO!D17*AM17*PROFILE!$G$9,IF(AND(DISTRICT!Z17<>"Unknown",Z17<>"Not required"),COUNTRY_INFO!O17*DISTRICT!AN17,0)) -> 199093 | AS17: =MAX(COUNTRY_INFO!D17*AK17*PROFILE!$G$10,COUNTRY_INFO!D17*AL17*PROFILE!$G$10,IF(AND(DISTRICT!Z17<>"Unknown",Z17<>"Not required"),COUNTRY_INFO!O17*DISTRICT!AO17,0)) -> 385248 | AT17: 718602.8998 | AU17: Y | AV17: =MAX('MDA2'!J17,'T1'!L17,'T2'!J17,T3_R1!K17,T3_R2!K17) -> 117308 | AW17: =MAX('MDA1'!K17,'MDA2'!K17,'MDA3'!I17,'MDA3'!L17,'T1'!M17,'T2'!K17,T3_R1!L17,T3_R2!L17) -> 171664 | AX17: =MAX('MDA1'!L17,'MDA2'!L17,'MDA3'!J17,'MDA3'!M17,'T1'!N17,'T2'!L17,T3_R1!M17,T3_R2!M17) -> 81429 | AY17: 370401 | AZ17: =MAX('MDA2'!J17,T17) -> 117308 | BA17: =MAX('MDA1'!K17,'MDA2'!K17,'MDA3'!I17,'MDA3'!L17,V17,AD17) -> 171664 | BB17: =MAX('MDA1'!L17,'MDA2'!L17,'MDA3'!J17,'MDA3'!M17,AF17) -> 81429 | BC17: 370401 | BD17: 51.54460135
A18: =IF(COUNTRY_INFO!A18=0," ",COUNTRY_INFO!A18) -> Malawi | B18: =IF(COUNTRY_INFO!B18=0," ",COUNTRY_INFO!B18) -> Central | C18: =IF(COUNTRY_INFO!C18=0," ",COUNTRY_INFO!C18) -> Dowa | D18: =COUNTRY_INFO!L18 -> Not required | G18: =MAX('MDA1'!M18,'MDA2'!M18) -> 0 | H18: =IF(AND(COUNTRY_INFO!H18>0,COUNTRY_INFO!H18<4),IF(D18>MAX('MDA1'!M18,'MDA2'!M18),MAX('MDA1'!M18,'MDA2'!M18),D18),0) -> 0 | I18: =IF(AND(COUNTRY_INFO!H18>0,COUNTRY_INFO!H18<4), IF(G18/D18*100<>0, IF(G18/D18*100>100,100,G18/D18*100), "-"),0) -> 0 | J18: =COUNTRY_INFO!M18 -> 0 | M18: =MAX('MDA1'!M18,MAX('MDA3'!I18,'MDA3'!L18)+MAX('MDA3'!J18,'MDA3'!M18)) -> 0 | N18: =IF(AND(COUNTRY_INFO!I18>0,COUNTRY_INFO!I18<4),IF(J18>MAX('MDA1'!M18,MAX('MDA3'!I18,'MDA3'!L18)+MAX('MDA3'!J18,'MDA3'!M18)),MAX('MDA1'!M18,MAX('MDA3'!I18,'MDA3'!L18)+MAX('MDA3'!J18,'MDA3'!M18)),J18),0) -> 0 | O18: =IF(AND(COUNTRY_INFO!I18>0,COUNTRY_INFO!I18<4), IF(M18/J18*100<>0, IF(M18/J18*100>100,100,M18/J18*100), "-"),0) -> 0 | P18: =COUNTRY_INFO!N18 -> 339661 | S18: =SUM(MAX('MDA2'!J18, 'T1'!L18, MAX(T3_R1!K18, T3_R2!K18)), MAX('MDA1'!K18, 'MDA2'!K18, 'T1'!M18, MAX(T3_R1!L18, T3_R2!L18)), MAX('MDA1'!L18, 'MDA2'!L18, 'T1'!N18, MAX(T3_R1!M18, T3_R2!M18))) -> 271609 | T18: =IF(AND(COUNTRY_INFO!J18>1,COUNTRY_INFO!J18<4),IF(COUNTRY_INFO!E18>MAX('MDA2'!J18,'T1'!L18,MAX(T3_R1!K18,T3_R2!K18)),MAX('MDA2'!J18,'T1'!L18,MAX(T3_R1!K18,T3_R2!K18)),COUNTRY_INFO!E18),0) -> 100720 | U18: =IF(AND(COUNTRY_INFO!J18>1,COUNTRY_INFO!J18<4), IF(T18/COUNTRY_INFO!E18*100<>0, IF(T18/COUNTRY_INFO!E18*100>100,100,T18/COUNTRY_INFO!E18*100), "-"),0) -> 73.62465461 | V18: =IF(AND(COUNTRY_INFO!J18>1,COUNTRY_INFO!J18<4),IF(COUNTRY_INFO!F18>MAX('MDA1'!K18,'MDA2'!K18,'T1'!M18,MAX(T3_R1!L18,T3_R2!L18)),MAX('MDA1'!K18,'MDA2'!K18,'T1'!M18,MAX(T3_R1!L18,T3_R2!L18)),COUNTRY_INFO!F18),0) -> 145597 | W18: =IF(AND(COUNTRY_INFO!J18>1,COUNTRY_INFO!J18<4), IF(V18/COUNTRY_INFO!F18*100<>0, IF(V18/COUNTRY_INFO!F18*100>100,100,V18/COUNTRY_INFO!F18*100), "-"),0) -> 71.77251194 | X18: 246317 | Y18: =IF(AND(COUNTRY_INFO!J18>1,COUNTRY_INFO!J18<4), IF(S18/P18*100<>0, IF(X18/P18*100>100,100,X18/P18*100), "-"),0) -> 72.51848166 | Z18: =COUNTRY_INFO!O18 -> 179936.7 | AC18: =MAX(SUM('T1'!L18:'T1'!N18),SUM('T2'!J18:'T2'!L18)) -> 170889 | AD18: =IF(COUNTRY_INFO!K18=1,IF(COUNTRY_INFO!F18*0.33>MAX('T1'!M18,'T2'!K18),MAX('T1'!M18,'T2'!K18),COUNTRY_INFO!F18*0.33),IF(COUNTRY_INFO!K18=2,IF(COUNTRY_INFO!F18*0.5>MAX('T1'!M18,'T2'!K18),MAX('T1'!M18,'T2'!K18),COUNTRY_INFO!F18*0.5),IF(COUNTRY_INFO!K18=3,IF(COUNTRY_INFO!F18>MAX('T1'!M18,'T2'!K18),MAX('T1'!M18,'T2'!K18),COUNTRY_INFO!F18),0))) -> 101429.5 | AE18: =IF(AND(COUNTRY_INFO!K18>0,COUNTRY_INFO!K18<4),IF(Z18>0,IF(COUNTRY_INFO!K18=1, AD18/(COUNTRY_INFO!F18*0.33)*100, IF(COUNTRY_INFO!K18=2, AD18/(COUNTRY_INFO!F18*0.5)*100, IF(COUNTRY_INFO!K18=3, AD18/COUNTRY_INFO!F18*100))),"-"),0) -> 100 | AF18: =IF(COUNTRY_INFO!K18=2,IF(COUNTRY_INFO!G18*0.2>MAX('T1'!N18,'T2'!L18),MAX('T1'!N18,'T2'!L18),COUNTRY_INFO!G18*0.2),IF(COUNTRY_INFO!K18=3,IF(COUNTRY_INFO!G18>MAX('T1'!N18,'T2'!L18),MAX('T1'!N18,'T2'!L18),COUNTRY_INFO!G18),0)) -> 25292 | AG18: =IF(AND(COUNTRY_INFO!K18>0,COUNTRY_INFO!K18<4),IF(Z18>0,IF(COUNTRY_INFO!K18=1, 0, IF(COUNTRY_INFO!K18=2, AF18/(COUNTRY_INFO!G18*0.2)*100, IF(COUNTRY_INFO!K18=3, AF18/COUNTRY_INFO!G18*100))),"-"),0) -> 32.21615342 | AH18: 126721.5 | AI18: =IF(AND(COUNTRY_INFO!K18>0,COUNTRY_INFO!K18<4), IF(AC18/Z18*100<>0, IF(AH18/Z18*100>100,100,AH18/Z18*100), "-"),0) -> 70.42559967 | AK18: =IF(AND(D18<>0, D18<>"Unknown",D18<>"Stopped",D18<>"Not required"),D18/COUNTRY_INFO!D18, 0) -> 0 | AL18: =IF(AND(J18<>0,J18<>"Unknown",J18<>"Stopped",J18<>"Not required"),J18/COUNTRY_INFO!D18, 0) -> 0 | AM18: =IF(AND(P18<>0,P18<>"Unknown",P18<>"Not required"),P18/(COUNTRY_INFO!E18+COUNTRY_INFO!F18), 0) -> 1 | AN18: =IF(AND(Z18<>0,Z18<>"Unknown",Z18<>"Not required"),IF(COUNTRY_INFO!K18=1,1,IF(COUNTRY_INFO!K18=2,0.5*COUNTRY_INFO!F18/(0.5*COUNTRY_INFO!F18+0.2*COUNTRY_INFO!G18),IF(COUNTRY_INFO!K18=3,COUNTRY_INFO!F18/(COUNTRY_INFO!F18+COUNTRY_INFO!G18)))),0) -> 0.5636954551 | AO18: =IF(AND(Z18<>0,Z18<>"Unknown",Z18<>"Not required"),IF(COUNTRY_INFO!K18=1,0,IF(COUNTRY_INFO!K18=2,0.2*COUNTRY_INFO!G18/(0.5*COUNTRY_INFO!F18+0.2*COUNTRY_INFO!G18),IF(COUNTRY_INFO!K18=3,COUNTRY_INFO!G18/(COUNTRY_INFO!F18+COUNTRY_INFO!G18)))),0) -> 0.4363045449 | AP18: =MAX(COUNTRY_INFO!D18*AK18*PROFILE!$G$7,COUNTRY_INFO!D18*AL18*PROFILE!$G$7) -> 0 | AQ18: =MAX(COUNTRY_INFO!D18*AK18*PROFILE!$G$8,COUNTRY_INFO!D18*AL18*PROFILE!$G$8,COUNTRY_INFO!D18*AM18*PROFILE!$G$8) -> 136801.6319 | AR18: =MAX(COUNTRY_INFO!D18*AK18*PROFILE!$G$9,COUNTRY_INFO!D18*AL18*PROFILE!$G$9,COUNTRY_INFO!D18*AM18*PROFILE!$G$9,IF(AND(DISTRICT!Z18<>"Unknown",Z18<>"Not required"),COUNTRY_INFO!O18*DISTRICT!AN18,0)) -> 202858.9666 | AS18: =MAX(COUNTRY_INFO!D18*AK18*PROFILE!$G$10,COUNTRY_INFO!D18*AL18*PROFILE!$G$10,IF(AND(DISTRICT!Z18<>"Unknown",Z18<>"Not required"),COUNTRY_INFO!O18*DISTRICT!AO18,0)) -> 78507.2 | AT18: 418167.7984 | AU18: Y | AV18: =MAX('MDA2'!J18,'T1'!L18,'T2'!J18,T3_R1!K18,T3_R2!K18) -> 100720 | AW18: =MAX('MDA1'!K18,'MDA2'!K18,'MDA3'!I18,'MDA3'!L18,'T1'!M18,'T2'!K18,T3_R1!L18,T3_R2!L18) -> 145597 | AX18: =MAX('MDA1'!L18,'MDA2'!L18,'MDA3'!J18,'MDA3'!M18,'T1'!N18,'T2'!L18,T3_R1!M18,T3_R2!M18) -> 25292 | AY18: 271609 | AZ18: =MAX('MDA2'!J18,T18) -> 100720 | BA18: =MAX('MDA1'!K18,'MDA2'!K18,'MDA3'!I18,'MDA3'!L18,V18,AD18) -> 145597 | BB18: =MAX('MDA1'!L18,'MDA2'!L18,'MDA3'!J18,'MDA3'!M18,AF18) -> 25292 | BC18: 271609 | BD18: 64.95215581
A19: =IF(COUNTRY_INFO!A19=0," ",COUNTRY_INFO!A19) -> Malawi | B19: =IF(COUNTRY_INFO!B19=0," ",COUNTRY_INFO!B19) -> Central | C19: =IF(COUNTRY_INFO!C19=0," ",COUNTRY_INFO!C19) -> Lilongwe | D19: =COUNTRY_INFO!L19 -> Not required | G19: =MAX('MDA1'!M19,'MDA2'!M19) -> 0 | H19: =IF(AND(COUNTRY_INFO!H19>0,COUNTRY_INFO!H19<4),IF(D19>MAX('MDA1'!M19,'MDA2'!M19),MAX('MDA1'!M19,'MDA2'!M19),D19),0) -> 0 | I19: =IF(AND(COUNTRY_INFO!H19>0,COUNTRY_INFO!H19<4), IF(G19/D19*100<>0, IF(G19/D19*100>100,100,G19/D19*100), "-"),0) -> 0 | J19: =COUNTRY_INFO!M19 -> 0 | M19: =MAX('MDA1'!M19,MAX('MDA3'!I19,'MDA3'!L19)+MAX('MDA3'!J19,'MDA3'!M19)) -> 0 | N19: =IF(AND(COUNTRY_INFO!I19>0,COUNTRY_INFO!I19<4),IF(J19>MAX('MDA1'!M19,MAX('MDA3'!I19,'MDA3'!L19)+MAX('MDA3'!J19,'MDA3'!M19)),MAX('MDA1'!M19,MAX('MDA3'!I19,'MDA3'!L19)+MAX('MDA3'!J19,'MDA3'!M19)),J19),0) -> 0 | O19: =IF(AND(COUNTRY_INFO!I19>0,COUNTRY_INFO!I19<4), IF(M19/J19*100<>0, IF(M19/J19*100>100,100,M19/J19*100), "-"),0) -> 0 | P19: =COUNTRY_INFO!N19 -> 1113229 | S19: =SUM(MAX('MDA2'!J19, 'T1'!L19, MAX(T3_R1!K19, T3_R2!K19)), MAX('MDA1'!K19, 'MDA2'!K19, 'T1'!M19, MAX(T3_R1!L19, T3_R2!L19)), MAX('MDA1'!L19, 'MDA2'!L19, 'T1'!N19, MAX(T3_R1!M19, T3_R2!M19))) -> 1260888 | T19: =IF(AND(COUNTRY_INFO!J19>1,COUNTRY_INFO!J19<4),IF(COUNTRY_INFO!E19>MAX('MDA2'!J19,'T1'!L19,MAX(T3_R1!K19,T3_R2!K19)),MAX('MDA2'!J19,'T1'!L19,MAX(T3_R1!K19,T3_R2!K19)),COUNTRY_INFO!E19),0) -> 371775 | U19: =IF(AND(COUNTRY_INFO!J19>1,COUNTRY_INFO!J19<4), IF(T19/COUNTRY_INFO!E19*100<>0, IF(T19/COUNTRY_INFO!E19*100>100,100,T19/COUNTRY_INFO!E19*100), "-"),0) -> 82.9181201 | V19: =IF(AND(COUNTRY_INFO!J19>1,COUNTRY_INFO!J19<4),IF(COUNTRY_INFO!F19>MAX('MDA1'!K19,'MDA2'!K19,'T1'!M19,MAX(T3_R1!L19,T3_R2!L19)),MAX('MDA1'!K19,'MDA2'!K19,'T1'!M19,MAX(T3_R1!L19,T3_R2!L19)),COUNTRY_INFO!F19),0) -> 571768 | W19: =IF(AND(COUNTRY_INFO!J19>1,COUNTRY_INFO!J19<4), IF(V19/COUNTRY_INFO!F19*100<>0, IF(V19/COUNTRY_INFO!F19*100>100,100,V19/COUNTRY_INFO!F19*100), "-"),0) -> 85.99760854 | X19: 943543 | Y19: =IF(AND(COUNTRY_INFO!J19>1,COUNTRY_INFO!J19<4), IF(S19/P19*100<>0, IF(X19/P19*100>100,100,X19/P19*100), "-"),0) -> 84.75731408 | Z19: =COUNTRY_INFO!O19 -> 589737.5 | AC19: =MAX(SUM('T1'!L19:'T1'!N19),SUM('T2'!J19:'T2'!L19)) -> 889113 | AD19: =IF(COUNTRY_INFO!K19=1,IF(COUNTRY_INFO!F19*0.33>MAX('T1'!M19,'T2'!K19),MAX('T1'!M19,'T2'!K19),COUNTRY_INFO!F19*0.33),IF(COUNTRY_INFO!K19=2,IF(COUNTRY_INFO!F19*0.5>MAX('T1'!M19,'T2'!K19),MAX('T1'!M19,'T2'!K19),COUNTRY_INFO!F19*0.5),IF(COUNTRY_INFO!K19=3,IF(COUNTRY_INFO!F19>MAX('T1'!M19,'T2'!K19),MAX('T1'!M19,'T2'!K19),COUNTRY_INFO!F19),0))) -> 332432.5 | AE19: =IF(AND(COUNTRY_INFO!K19>0,COUNTRY_INFO!K19<4),IF(Z19>0,IF(COUNTRY_INFO!K19=1, AD19/(COUNTRY_INFO!F19*0.33)*100, IF(COUNTRY_INFO!K19=2, AD19/(COUNTRY_INFO!F19*0.5)*100, IF(COUNTRY_INFO!K19=3, AD19/COUNTRY_INFO!F19*100))),"-"),0) -> 100 | AF19: =IF(COUNTRY_INFO!K19=2,IF(COUNTRY_INFO!G19*0.2>MAX('T1'!N19,'T2'!L19),MAX('T1'!N19,'T2'!L19),COUNTRY_INFO!G19*0.2),IF(COUNTRY_INFO!K19=3,IF(COUNTRY_INFO!G19>MAX('T1'!N19,'T2'!L19),MAX('T1'!N19,'T2'!L19),COUNTRY_INFO!G19),0)) -> 257305 | AG19: =IF(AND(COUNTRY_INFO!K19>0,COUNTRY_INFO!K19<4),IF(Z19>0,IF(COUNTRY_INFO!K19=1, 0, IF(COUNTRY_INFO!K19=2, AF19/(COUNTRY_INFO!G19*0.2)*100, IF(COUNTRY_INFO!K19=3, AF19/COUNTRY_INFO!G19*100))),"-"),0) -> 100 | AH19: 589737.5 | AI19: =IF(AND(COUNTRY_INFO!K19>0,COUNTRY_INFO!K19<4), IF(AC19/Z19*100<>0, IF(AH19/Z19*100>100,100,AH19/Z19*100), "-"),0) -> 100 | AK19: =IF(AND(D19<>0, D19<>"Unknown",D19<>"Stopped",D19<>"Not required"),D19/COUNTRY_INFO!D19, 0) -> 0 | AL19: =IF(AND(J19<>0,J19<>"Unknown",J19<>"Stopped",J19<>"Not required"),J19/COUNTRY_INFO!D19, 0) -> 0 | AM19: =IF(AND(P19<>0,P19<>"Unknown",P19<>"Not required"),P19/(COUNTRY_INFO!E19+COUNTRY_INFO!F19), 0) -> 1 | AN19: =IF(AND(Z19<>0,Z19<>"Unknown",Z19<>"Not required"),IF(COUNTRY_INFO!K19=1,1,IF(COUNTRY_INFO!K19=2,0.5*COUNTRY_INFO!F19/(0.5*COUNTRY_INFO!F19+0.2*COUNTRY_INFO!G19),IF(COUNTRY_INFO!K19=3,COUNTRY_INFO!F19/(COUNTRY_INFO!F19+COUNTRY_INFO!G19)))),0) -> 0.5636957121 | AO19: =IF(AND(Z19<>0,Z19<>"Unknown",Z19<>"Not required"),IF(COUNTRY_INFO!K19=1,0,IF(COUNTRY_INFO!K19=2,0.2*COUNTRY_INFO!G19/(0.5*COUNTRY_INFO!F19+0.2*COUNTRY_INFO!G19),IF(COUNTRY_INFO!K19=3,COUNTRY_INFO!G19/(COUNTRY_INFO!F19+COUNTRY_INFO!G19)))),0) -> 0.4363042879 | AP19: =MAX(COUNTRY_INFO!D19*AK19*PROFILE!$G$7,COUNTRY_INFO!D19*AL19*PROFILE!$G$7) -> 0 | AQ19: =MAX(COUNTRY_INFO!D19*AK19*PROFILE!$G$8,COUNTRY_INFO!D19*AL19*PROFILE!$G$8,COUNTRY_INFO!D19*AM19*PROFILE!$G$8) -> 448363.5783 | AR19: =MAX(COUNTRY_INFO!D19*AK19*PROFILE!$G$9,COUNTRY_INFO!D19*AL19*PROFILE!$G$9,COUNTRY_INFO!D19*AM19*PROFILE!$G$9,IF(AND(DISTRICT!Z19<>"Unknown",Z19<>"Not required"),COUNTRY_INFO!O19*DISTRICT!AN19,0)) -> 664864.6725 | AS19: =MAX(COUNTRY_INFO!D19*AK19*PROFILE!$G$10,COUNTRY_INFO!D19*AL19*PROFILE!$G$10,IF(AND(DISTRICT!Z19<>"Unknown",Z19<>"Not required"),COUNTRY_INFO!O19*DISTRICT!AO19,0)) -> 257305 | AT19: 1370533.251 | AU19: Y | AV19: =MAX('MDA2'!J19,'T1'!L19,'T2'!J19,T3_R1!K19,T3_R2!K19) -> 371775 | AW19: =MAX('MDA1'!K19,'MDA2'!K19,'MDA3'!I19,'MDA3'!L19,'T1'!M19,'T2'!K19,T3_R1!L19,T3_R2!L19) -> 571768 | AX19: =MAX('MDA1'!L19,'MDA2'!L19,'MDA3'!J19,'MDA3'!M19,'T1'!N19,'T2'!L19,T3_R1!M19,T3_R2!M19) -> 317345 | AY19: 1260888 | AZ19: =MAX('MDA2'!J19,T19) -> 371775 | BA19: =MAX('MDA1'!K19,'MDA2'!K19,'MDA3'!I19,'MDA3'!L19,V19,AD19) -> 571768 | BB19: =MAX('MDA1'!L19,'MDA2'!L19,'MDA3'!J19,'MDA3'!M19,AF19) -> 257305 | BC19: 1200848 | BD19: 87.61903437
A20: =IF(COUNTRY_INFO!A20=0," ",COUNTRY_INFO!A20) -> Malawi | B20: =IF(COUNTRY_INFO!B20=0," ",COUNTRY_INFO!B20) -> Central | C20: =IF(COUNTRY_INFO!C20=0," ",COUNTRY_INFO!C20) -> Mchinji | D20: =COUNTRY_INFO!L20 -> Not required | G20: =MAX('MDA1'!M20,'MDA2'!M20) -> 0 | H20: =IF(AND(COUNTRY_INFO!H20>0,COUNTRY_INFO!H20<4),IF(D20>MAX('MDA1'!M20,'MDA2'!M20),MAX('MDA1'!M20,'MDA2'!M20),D20),0) -> 0 | I20: =IF(AND(COUNTRY_INFO!H20>0,COUNTRY_INFO!H20<4), IF(G20/D20*100<>0, IF(G20/D20*100>100,100,G20/D20*100), "-"),0) -> 0 | J20: =COUNTRY_INFO!M20 -> 0 | M20: =MAX('MDA1'!M20,MAX('MDA3'!I20,'MDA3'!L20)+MAX('MDA3'!J20,'MDA3'!M20)) -> 0 | N20: =IF(AND(COUNTRY_INFO!I20>0,COUNTRY_INFO!I20<4),IF(J20>MAX('MDA1'!M20,MAX('MDA3'!I20,'MDA3'!L20)+MAX('MDA3'!J20,'MDA3'!M20)),MAX('MDA1'!M20,MAX('MDA3'!I20,'MDA3'!L20)+MAX('MDA3'!J20,'MDA3'!M20)),J20),0) -> 0 | O20: =IF(AND(COUNTRY_INFO!I20>0,COUNTRY_INFO!I20<4), IF(M20/J20*100<>0, IF(M20/J20*100>100,100,M20/J20*100), "-"),0) -> 0 | P20: =COUNTRY_INFO!N20 -> 263942 | S20: =SUM(MAX('MDA2'!J20, 'T1'!L20, MAX(T3_R1!K20, T3_R2!K20)), MAX('MDA1'!K20, 'MDA2'!K20, 'T1'!M20, MAX(T3_R1!L20, T3_R2!L20)), MAX('MDA1'!L20, 'MDA2'!L20, 'T1'!N20, MAX(T3_R1!M20, T3_R2!M20))) -> 262651 | T20: =IF(AND(COUNTRY_INFO!J20>1,COUNTRY_INFO!J20<4),IF(COUNTRY_INFO!E20>MAX('MDA2'!J20,'T1'!L20,MAX(T3_R1!K20,T3_R2!K20)),MAX('MDA2'!J20,'T1'!L20,MAX(T3_R1!K20,T3_R2!K20)),COUNTRY_INFO!E20),0) -> 83309 | U20: =IF(AND(COUNTRY_INFO!J20>1,COUNTRY_INFO!J20<4), IF(T20/COUNTRY_INFO!E20*100<>0, IF(T20/COUNTRY_INFO!E20*100>100,100,T20/COUNTRY_INFO!E20*100), "-"),0) -> 78.36790367 | V20: =IF(AND(COUNTRY_INFO!J20>1,COUNTRY_INFO!J20<4),IF(COUNTRY_INFO!F20>MAX('MDA1'!K20,'MDA2'!K20,'T1'!M20,MAX(T3_R1!L20,T3_R2!L20)),MAX('MDA1'!K20,'MDA2'!K20,'T1'!M20,MAX(T3_R1!L20,T3_R2!L20)),COUNTRY_INFO!F20),0) -> 125383 | W20: =IF(AND(COUNTRY_INFO!J20>1,COUNTRY_INFO!J20<4), IF(V20/COUNTRY_INFO!F20*100<>0, IF(V20/COUNTRY_INFO!F20*100>100,100,V20/COUNTRY_INFO!F20*100), "-"),0) -> 79.5390676 | X20: 208692 | Y20: =IF(AND(COUNTRY_INFO!J20>1,COUNTRY_INFO!J20<4), IF(S20/P20*100<>0, IF(X20/P20*100>100,100,X20/P20*100), "-"),0) -> 79.06737086 | Z20: =COUNTRY_INFO!O20 -> 139824.5 | AC20: =MAX(SUM('T1'!L20:'T1'!N20),SUM('T2'!J20:'T2'!L20)) -> 179342 | AD20: =IF(COUNTRY_INFO!K20=1,IF(COUNTRY_INFO!F20*0.33>MAX('T1'!M20,'T2'!K20),MAX('T1'!M20,'T2'!K20),COUNTRY_INFO!F20*0.33),IF(COUNTRY_INFO!K20=2,IF(COUNTRY_INFO!F20*0.5>MAX('T1'!M20,'T2'!K20),MAX('T1'!M20,'T2'!K20),COUNTRY_INFO!F20*0.5),IF(COUNTRY_INFO!K20=3,IF(COUNTRY_INFO!F20>MAX('T1'!M20,'T2'!K20),MAX('T1'!M20,'T2'!K20),COUNTRY_INFO!F20),0))) -> 78818.5 | AE20: =IF(AND(COUNTRY_INFO!K20>0,COUNTRY_INFO!K20<4),IF(Z20>0,IF(COUNTRY_INFO!K20=1, AD20/(COUNTRY_INFO!F20*0.33)*100, IF(COUNTRY_INFO!K20=2, AD20/(COUNTRY_INFO!F20*0.5)*100, IF(COUNTRY_INFO!K20=3, AD20/COUNTRY_INFO!F20*100))),"-"),0) -> 100 | AF20: =IF(COUNTRY_INFO!K20=2,IF(COUNTRY_INFO!G20*0.2>MAX('T1'!N20,'T2'!L20),MAX('T1'!N20,'T2'!L20),COUNTRY_INFO!G20*0.2),IF(COUNTRY_INFO!K20=3,IF(COUNTRY_INFO!G20>MAX('T1'!N20,'T2'!L20),MAX('T1'!N20,'T2'!L20),COUNTRY_INFO!G20),0)) -> 53959 | AG20: =IF(AND(COUNTRY_INFO!K20>0,COUNTRY_INFO!K20<4),IF(Z20>0,IF(COUNTRY_INFO!K20=1, 0, IF(COUNTRY_INFO!K20=2, AF20/(COUNTRY_INFO!G20*0.2)*100, IF(COUNTRY_INFO!K20=3, AF20/COUNTRY_INFO!G20*100))),"-"),0) -> 88.44867718 | AH20: 132777.5 | AI20: =IF(AND(COUNTRY_INFO!K20>0,COUNTRY_INFO!K20<4), IF(AC20/Z20*100<>0, IF(AH20/Z20*100>100,100,AH20/Z20*100), "-"),0) -> 94.96011071 | AK20: =IF(AND(D20<>0, D20<>"Unknown",D20<>"Stopped",D20<>"Not required"),D20/COUNTRY_INFO!D20, 0) -> 0 | AL20: =IF(AND(J20<>0,J20<>"Unknown",J20<>"Stopped",J20<>"Not required"),J20/COUNTRY_INFO!D20, 0) -> 0 | AM20: =IF(AND(P20<>0,P20<>"Unknown",P20<>"Not required"),P20/(COUNTRY_INFO!E20+COUNTRY_INFO!F20), 0) -> 1 | AN20: =IF(AND(Z20<>0,Z20<>"Unknown",Z20<>"Not required"),IF(COUNTRY_INFO!K20=1,1,IF(COUNTRY_INFO!K20=2,0.5*COUNTRY_INFO!F20/(0.5*COUNTRY_INFO!F20+0.2*COUNTRY_INFO!G20),IF(COUNTRY_INFO!K20=3,COUNTRY_INFO!F20/(COUNTRY_INFO!F20+COUNTRY_INFO!G20)))),0) -> 0.5636959188 | AO20: =IF(AND(Z20<>0,Z20<>"Unknown",Z20<>"Not required"),IF(COUNTRY_INFO!K20=1,0,IF(COUNTRY_INFO!K20=2,0.2*COUNTRY_INFO!G20/(0.5*COUNTRY_INFO!F20+0.2*COUNTRY_INFO!G20),IF(COUNTRY_INFO!K20=3,COUNTRY_INFO!G20/(COUNTRY_INFO!F20+COUNTRY_INFO!G20)))),0) -> 0.4363040812 | AP20: =MAX(COUNTRY_INFO!D20*AK20*PROFILE!$G$7,COUNTRY_INFO!D20*AL20*PROFILE!$G$7) -> 0 | AQ20: =MAX(COUNTRY_INFO!D20*AK20*PROFILE!$G$8,COUNTRY_INFO!D20*AL20*PROFILE!$G$8,COUNTRY_INFO!D20*AM20*PROFILE!$G$8) -> 106305.0465 | AR20: =MAX(COUNTRY_INFO!D20*AK20*PROFILE!$G$9,COUNTRY_INFO!D20*AL20*PROFILE!$G$9,COUNTRY_INFO!D20*AM20*PROFILE!$G$9,IF(AND(DISTRICT!Z20<>"Unknown",Z20<>"Not required"),COUNTRY_INFO!O20*DISTRICT!AN20,0)) -> 157636.5105 | AS20: =MAX(COUNTRY_INFO!D20*AK20*PROFILE!$G$10,COUNTRY_INFO!D20*AL20*PROFILE!$G$10,IF(AND(DISTRICT!Z20<>"Unknown",Z20<>"Not required"),COUNTRY_INFO!O20*DISTRICT!AO20,0)) -> 61006 | AT20: 324947.557 | AU20: Y | AV20: =MAX('MDA2'!J20,'T1'!L20,'T2'!J20,T3_R1!K20,T3_R2!K20) -> 83309 | AW20: =MAX('MDA1'!K20,'MDA2'!K20,'MDA3'!I20,'MDA3'!L20,'T1'!M20,'T2'!K20,T3_R1!L20,T3_R2!L20) -> 125383 | AX20: =MAX('MDA1'!L20,'MDA2'!L20,'MDA3'!J20,'MDA3'!M20,'T1'!N20,'T2'!L20,T3_R1!M20,T3_R2!M20) -> 53959 | AY20: 262651 | AZ20: =MAX('MDA2'!J20,T20) -> 83309 | BA20: =MAX('MDA1'!K20,'MDA2'!K20,'MDA3'!I20,'MDA3'!L20,V20,AD20) -> 125383 | BB20: =MAX('MDA1'!L20,'MDA2'!L20,'MDA3'!J20,'MDA3'!M20,AF20) -> 53959 | BC20: 262651 | BD20: 80.82873508
A21: =IF(COUNTRY_INFO!A21=0," ",COUNTRY_INFO!A21) -> Malawi | B21: =IF(COUNTRY_INFO!B21=0," ",COUNTRY_INFO!B21) -> Central | C21: =IF(COUNTRY_INFO!C21=0," ",COUNTRY_INFO!C21) -> Salima | D21: =COUNTRY_INFO!L21 -> Not required | G21: =MAX('MDA1'!M21,'MDA2'!M21) -> 0 | H21: =IF(AND(COUNTRY_INFO!H21>0,COUNTRY_INFO!H21<4),IF(D21>MAX('MDA1'!M21,'MDA2'!M21),MAX('MDA1'!M21,'MDA2'!M21),D21),0) -> 0 | I21: =IF(AND(COUNTRY_INFO!H21>0,COUNTRY_INFO!H21<4), IF(G21/D21*100<>0, IF(G21/D21*100>100,100,G21/D21*100), "-"),0) -> 0 | J21: =COUNTRY_INFO!M21 -> 0 | M21: =MAX('MDA1'!M21,MAX('MDA3'!I21,'MDA3'!L21)+MAX('MDA3'!J21,'MDA3'!M21)) -> 0 | N21: =IF(AND(COUNTRY_INFO!I21>0,COUNTRY_INFO!I21<4),IF(J21>MAX('MDA1'!M21,MAX('MDA3'!I21,'MDA3'!L21)+MAX('MDA3'!J21,'MDA3'!M21)),MAX('MDA1'!M21,MAX('MDA3'!I21,'MDA3'!L21)+MAX('MDA3'!J21,'MDA3'!M21)),J21),0) -> 0 | O21: =IF(AND(COUNTRY_INFO!I21>0,COUNTRY_INFO!I21<4), IF(M21/J21*100<>0, IF(M21/J21*100>100,100,M21/J21*100), "-"),0) -> 0 | P21: =COUNTRY_INFO!N21 -> 188835 | S21: =SUM(MAX('MDA2'!J21, 'T1'!L21, MAX(T3_R1!K21, T3_R2!K21)), MAX('MDA1'!K21, 'MDA2'!K21, 'T1'!M21, MAX(T3_R1!L21, T3_R2!L21)), MAX('MDA1'!L21, 'MDA2'!L21, 'T1'!N21, MAX(T3_R1!M21, T3_R2!M21))) -> 238857 | T21: =IF(AND(COUNTRY_INFO!J21>1,COUNTRY_INFO!J21<4),IF(COUNTRY_INFO!E21>MAX('MDA2'!J21,'T1'!L21,MAX(T3_R1!K21,T3_R2!K21)),MAX('MDA2'!J21,'T1'!L21,MAX(T3_R1!K21,T3_R2!K21)),COUNTRY_INFO!E21),0) -> 70798 | U21: =IF(AND(COUNTRY_INFO!J21>1,COUNTRY_INFO!J21<4), IF(T21/COUNTRY_INFO!E21*100<>0, IF(T21/COUNTRY_INFO!E21*100>100,100,T21/COUNTRY_INFO!E21*100), "-"),0) -> 93.08789692 | V21: =IF(AND(COUNTRY_INFO!J21>1,COUNTRY_INFO!J21<4),IF(COUNTRY_INFO!F21>MAX('MDA1'!K21,'MDA2'!K21,'T1'!M21,MAX(T3_R1!L21,T3_R2!L21)),MAX('MDA1'!K21,'MDA2'!K21,'T1'!M21,MAX(T3_R1!L21,T3_R2!L21)),COUNTRY_INFO!F21),0) -> 97589 | W21: =IF(AND(COUNTRY_INFO!J21>1,COUNTRY_INFO!J21<4), IF(V21/COUNTRY_INFO!F21*100<>0, IF(V21/COUNTRY_INFO!F21*100>100,100,V21/COUNTRY_INFO!F21*100), "-"),0) -> 86.53041319 | X21: 168387 | Y21: =IF(AND(COUNTRY_INFO!J21>1,COUNTRY_INFO!J21<4), IF(S21/P21*100<>0, IF(X21/P21*100>100,100,X21/P21*100), "-"),0) -> 89.17149893 | Z21: =COUNTRY_INFO!O21 -> 100036.2 | AC21: =MAX(SUM('T1'!L21:'T1'!N21),SUM('T2'!J21:'T2'!L21)) -> 168059 | AD21: =IF(COUNTRY_INFO!K21=1,IF(COUNTRY_INFO!F21*0.33>MAX('T1'!M21,'T2'!K21),MAX('T1'!M21,'T2'!K21),COUNTRY_INFO!F21*0.33),IF(COUNTRY_INFO!K21=2,IF(COUNTRY_INFO!F21*0.5>MAX('T1'!M21,'T2'!K21),MAX('T1'!M21,'T2'!K21),COUNTRY_INFO!F21*0.5),IF(COUNTRY_INFO!K21=3,IF(COUNTRY_INFO!F21>MAX('T1'!M21,'T2'!K21),MAX('T1'!M21,'T2'!K21),COUNTRY_INFO!F21),0))) -> 56390 | AE21: =IF(AND(COUNTRY_INFO!K21>0,COUNTRY_INFO!K21<4),IF(Z21>0,IF(COUNTRY_INFO!K21=1, AD21/(COUNTRY_INFO!F21*0.33)*100, IF(COUNTRY_INFO!K21=2, AD21/(COUNTRY_INFO!F21*0.5)*100, IF(COUNTRY_INFO!K21=3, AD21/COUNTRY_INFO!F21*100))),"-"),0) -> 100 | AF21: =IF(COUNTRY_INFO!K21=2,IF(COUNTRY_INFO!G21*0.2>MAX('T1'!N21,'T2'!L21),MAX('T1'!N21,'T2'!L21),COUNTRY_INFO!G21*0.2),IF(COUNTRY_INFO!K21=3,IF(COUNTRY_INFO!G21>MAX('T1'!N21,'T2'!L21),MAX('T1'!N21,'T2'!L21),COUNTRY_INFO!G21),0)) -> 43646.2 | AG21: =IF(AND(COUNTRY_INFO!K21>0,COUNTRY_INFO!K21<4),IF(Z21>0,IF(COUNTRY_INFO!K21=1, 0, IF(COUNTRY_INFO!K21=2, AF21/(COUNTRY_INFO!G21*0.2)*100, IF(COUNTRY_INFO!K21=3, AF21/COUNTRY_INFO!G21*100))),"-"),0) -> 100 | AH21: 100036.2 | AI21: =IF(AND(COUNTRY_INFO!K21>0,COUNTRY_INFO!K21<4), IF(AC21/Z21*100<>0, IF(AH21/Z21*100>100,100,AH21/Z21*100), "-"),0) -> 100 | AK21: =IF(AND(D21<>0, D21<>"Unknown",D21<>"Stopped",D21<>"Not required"),D21/COUNTRY_INFO!D21, 0) -> 0 | AL21: =IF(AND(J21<>0,J21<>"Unknown",J21<>"Stopped",J21<>"Not required"),J21/COUNTRY_INFO!D21, 0) -> 0 | AM21: =IF(AND(P21<>0,P21<>"Unknown",P21<>"Not required"),P21/(COUNTRY_INFO!E21+COUNTRY_INFO!F21), 0) -> 1 | AN21: =IF(AND(Z21<>0,Z21<>"Unknown",Z21<>"Not required"),IF(COUNTRY_INFO!K21=1,1,IF(COUNTRY_INFO!K21=2,0.5*COUNTRY_INFO!F21/(0.5*COUNTRY_INFO!F21+0.2*COUNTRY_INFO!G21),IF(COUNTRY_INFO!K21=3,COUNTRY_INFO!F21/(COUNTRY_INFO!F21+COUNTRY_INFO!G21)))),0) -> 0.5636959421 | AO21: =IF(AND(Z21<>0,Z21<>"Unknown",Z21<>"Not required"),IF(COUNTRY_INFO!K21=1,0,IF(COUNTRY_INFO!K21=2,0.2*COUNTRY_INFO!G21/(0.5*COUNTRY_INFO!F21+0.2*COUNTRY_INFO!G21),IF(COUNTRY_INFO!K21=3,COUNTRY_INFO!G21/(COUNTRY_INFO!F21+COUNTRY_INFO!G21)))),0) -> 0.4363040579 | AP21: =MAX(COUNTRY_INFO!D21*AK21*PROFILE!$G$7,COUNTRY_INFO!D21*AL21*PROFILE!$G$7) -> 0 | AQ21: =MAX(COUNTRY_INFO!D21*AK21*PROFILE!$G$8,COUNTRY_INFO!D21*AL21*PROFILE!$G$8,COUNTRY_INFO!D21*AM21*PROFILE!$G$8) -> 76055.22386 | AR21: =MAX(COUNTRY_INFO!D21*AK21*PROFILE!$G$9,COUNTRY_INFO!D21*AL21*PROFILE!$G$9,COUNTRY_INFO!D21*AM21*PROFILE!$G$9,IF(AND(DISTRICT!Z21<>"Unknown",Z21<>"Not required"),COUNTRY_INFO!O21*DISTRICT!AN21,0)) -> 112779.9713 | AS21: =MAX(COUNTRY_INFO!D21*AK21*PROFILE!$G$10,COUNTRY_INFO!D21*AL21*PROFILE!$G$10,IF(AND(DISTRICT!Z21<>"Unknown",Z21<>"Not required"),COUNTRY_INFO!O21*DISTRICT!AO21,0)) -> 43646.2 | AT21: 232481.3952 | AU21: Y | AV21: =MAX('MDA2'!J21,'T1'!L21,'T2'!J21,T3_R1!K21,T3_R2!K21) -> 70798 | AW21: =MAX('MDA1'!K21,'MDA2'!K21,'MDA3'!I21,'MDA3'!L21,'T1'!M21,'T2'!K21,T3_R1!L21,T3_R2!L21) -> 97589 | AX21: =MAX('MDA1'!L21,'MDA2'!L21,'MDA3'!J21,'MDA3'!M21,'T1'!N21,'T2'!L21,T3_R1!M21,T3_R2!M21) -> 70470 | AY21: 238857 | AZ21: =MAX('MDA2'!J21,T21) -> 70798 | BA21: =MAX('MDA1'!K21,'MDA2'!K21,'MDA3'!I21,'MDA3'!L21,V21,AD21) -> 97589 | BB21: =MAX('MDA1'!L21,'MDA2'!L21,'MDA3'!J21,'MDA3'!M21,AF21) -> 43646.2 | BC21: 212033.2 | BD21: 91.20437351
A22: =IF(COUNTRY_INFO!A22=0," ",COUNTRY_INFO!A22) -> Malawi | B22: =IF(COUNTRY_INFO!B22=0," ",COUNTRY_INFO!B22) -> Central | C22: =IF(COUNTRY_INFO!C22=0," ",COUNTRY_INFO!C22) -> Nkhotakota | D22: =COUNTRY_INFO!L22 -> Not required | G22: =MAX('MDA1'!M22,'MDA2'!M22) -> 0 | H22: =IF(AND(COUNTRY_INFO!H22>0,COUNTRY_INFO!H22<4),IF(D22>MAX('MDA1'!M22,'MDA2'!M22),MAX('MDA1'!M22,'MDA2'!M22),D22),0) -> 0 | I22: =IF(AND(COUNTRY_INFO!H22>0,COUNTRY_INFO!H22<4), IF(G22/D22*100<>0, IF(G22/D22*100>100,100,G22/D22*100), "-"),0) -> 0 | J22: =COUNTRY_INFO!M22 -> 0 | M22: =MAX('MDA1'!M22,MAX('MDA3'!I22,'MDA3'!L22)+MAX('MDA3'!J22,'MDA3'!M22)) -> 0 | N22: =IF(AND(COUNTRY_INFO!I22>0,COUNTRY_INFO!I22<4),IF(J22>MAX('MDA1'!M22,MAX('MDA3'!I22,'MDA3'!L22)+MAX('MDA3'!J22,'MDA3'!M22)),MAX('MDA1'!M22,MAX('MDA3'!I22,'MDA3'!L22)+MAX('MDA3'!J22,'MDA3'!M22)),J22),0) -> 0 | O22: =IF(AND(COUNTRY_INFO!I22>0,COUNTRY_INFO!I22<4), IF(M22/J22*100<>0, IF(M22/J22*100>100,100,M22/J22*100), "-"),0) -> 0 | P22: =COUNTRY_INFO!N22 -> 170575 | S22: =SUM(MAX('MDA2'!J22, 'T1'!L22, MAX(T3_R1!K22, T3_R2!K22)), MAX('MDA1'!K22, 'MDA2'!K22, 'T1'!M22, MAX(T3_R1!L22, T3_R2!L22)), MAX('MDA1'!L22, 'MDA2'!L22, 'T1'!N22, MAX(T3_R1!M22, T3_R2!M22))) -> 271832 | T22: =IF(AND(COUNTRY_INFO!J22>1,COUNTRY_INFO!J22<4),IF(COUNTRY_INFO!E22>MAX('MDA2'!J22,'T1'!L22,MAX(T3_R1!K22,T3_R2!K22)),MAX('MDA2'!J22,'T1'!L22,MAX(T3_R1!K22,T3_R2!K22)),COUNTRY_INFO!E22),0) -> 68701 | U22: =IF(AND(COUNTRY_INFO!J22>1,COUNTRY_INFO!J22<4), IF(T22/COUNTRY_INFO!E22*100<>0, IF(T22/COUNTRY_INFO!E22*100>100,100,T22/COUNTRY_INFO!E22*100), "-"),0) -> 100 | V22: =IF(AND(COUNTRY_INFO!J22>1,COUNTRY_INFO!J22<4),IF(COUNTRY_INFO!F22>MAX('MDA1'!K22,'MDA2'!K22,'T1'!M22,MAX(T3_R1!L22,T3_R2!L22)),MAX('MDA1'!K22,'MDA2'!K22,'T1'!M22,MAX(T3_R1!L22,T3_R2!L22)),COUNTRY_INFO!F22),0) -> 101874 | W22: =IF(AND(COUNTRY_INFO!J22>1,COUNTRY_INFO!J22<4), IF(V22/COUNTRY_INFO!F22*100<>0, IF(V22/COUNTRY_INFO!F22*100>100,100,V22/COUNTRY_INFO!F22*100), "-"),0) -> 100 | X22: 170575 | Y22: =IF(AND(COUNTRY_INFO!J22>1,COUNTRY_INFO!J22<4), IF(S22/P22*100<>0, IF(X22/P22*100>100,100,X22/P22*100), "-"),0) -> 100 | Z22: =COUNTRY_INFO!O22 -> 90362.6 | AC22: =MAX(SUM('T1'!L22:'T1'!N22),SUM('T2'!J22:'T2'!L22)) -> 192372 | AD22: =IF(COUNTRY_INFO!K22=1,IF(COUNTRY_INFO!F22*0.33>MAX('T1'!M22,'T2'!K22),MAX('T1'!M22,'T2'!K22),COUNTRY_INFO!F22*0.33),IF(COUNTRY_INFO!K22=2,IF(COUNTRY_INFO!F22*0.5>MAX('T1'!M22,'T2'!K22),MAX('T1'!M22,'T2'!K22),COUNTRY_INFO!F22*0.5),IF(COUNTRY_INFO!K22=3,IF(COUNTRY_INFO!F22>MAX('T1'!M22,'T2'!K22),MAX('T1'!M22,'T2'!K22),COUNTRY_INFO!F22),0))) -> 50937 | AE22: =IF(AND(COUNTRY_INFO!K22>0,COUNTRY_INFO!K22<4),IF(Z22>0,IF(COUNTRY_INFO!K22=1, AD22/(COUNTRY_INFO!F22*0.33)*100, IF(COUNTRY_INFO!K22=2, AD22/(COUNTRY_INFO!F22*0.5)*100, IF(COUNTRY_INFO!K22=3, AD22/COUNTRY_INFO!F22*100))),"-"),0) -> 100 | AF22: =IF(COUNTRY_INFO!K22=2,IF(COUNTRY_INFO!G22*0.2>MAX('T1'!N22,'T2'!L22),MAX('T1'!N22,'T2'!L22),COUNTRY_INFO!G22*0.2),IF(COUNTRY_INFO!K22=3,IF(COUNTRY_INFO!G22>MAX('T1'!N22,'T2'!L22),MAX('T1'!N22,'T2'!L22),COUNTRY_INFO!G22),0)) -> 39425.6 | AG22: =IF(AND(COUNTRY_INFO!K22>0,COUNTRY_INFO!K22<4),IF(Z22>0,IF(COUNTRY_INFO!K22=1, 0, IF(COUNTRY_INFO!K22=2, AF22/(COUNTRY_INFO!G22*0.2)*100, IF(COUNTRY_INFO!K22=3, AF22/COUNTRY_INFO!G22*100))),"-"),0) -> 100 | AH22: 90362.6 | AI22: =IF(AND(COUNTRY_INFO!K22>0,COUNTRY_INFO!K22<4), IF(AC22/Z22*100<>0, IF(AH22/Z22*100>100,100,AH22/Z22*100), "-"),0) -> 100 | AK22: =IF(AND(D22<>0, D22<>"Unknown",D22<>"Stopped",D22<>"Not required"),D22/COUNTRY_INFO!D22, 0) -> 0 | AL22: =IF(AND(J22<>0,J22<>"Unknown",J22<>"Stopped",J22<>"Not required"),J22/COUNTRY_INFO!D22, 0) -> 0 | AM22: =IF(AND(P22<>0,P22<>"Unknown",P22<>"Not required"),P22/(COUNTRY_INFO!E22+COUNTRY_INFO!F22), 0) -> 1 | AN22: =IF(AND(Z22<>0,Z22<>"Unknown",Z22<>"Not required"),IF(COUNTRY_INFO!K22=1,1,IF(COUNTRY_INFO!K22=2,0.5*COUNTRY_INFO!F22/(0.5*COUNTRY_INFO!F22+0.2*COUNTRY_INFO!G22),IF(COUNTRY_INFO!K22=3,COUNTRY_INFO!F22/(COUNTRY_INFO!F22+COUNTRY_INFO!G22)))),0) -> 0.5636955997 | AO22: =IF(AND(Z22<>0,Z22<>"Unknown",Z22<>"Not required"),IF(COUNTRY_INFO!K22=1,0,IF(COUNTRY_INFO!K22=2,0.2*COUNTRY_INFO!G22/(0.5*COUNTRY_INFO!F22+0.2*COUNTRY_INFO!G22),IF(COUNTRY_INFO!K22=3,COUNTRY_INFO!G22/(COUNTRY_INFO!F22+COUNTRY_INFO!G22)))),0) -> 0.4363044003 | AP22: =MAX(COUNTRY_INFO!D22*AK22*PROFILE!$G$7,COUNTRY_INFO!D22*AL22*PROFILE!$G$7) -> 0 | AQ22: =MAX(COUNTRY_INFO!D22*AK22*PROFILE!$G$8,COUNTRY_INFO!D22*AL22*PROFILE!$G$8,COUNTRY_INFO!D22*AM22*PROFILE!$G$8) -> 68700.53644 | AR22: =MAX(COUNTRY_INFO!D22*AK22*PROFILE!$G$9,COUNTRY_INFO!D22*AL22*PROFILE!$G$9,COUNTRY_INFO!D22*AM22*PROFILE!$G$9,IF(AND(DISTRICT!Z22<>"Unknown",Z22<>"Not required"),COUNTRY_INFO!O22*DISTRICT!AN22,0)) -> 101873.9297 | AS22: =MAX(COUNTRY_INFO!D22*AK22*PROFILE!$G$10,COUNTRY_INFO!D22*AL22*PROFILE!$G$10,IF(AND(DISTRICT!Z22<>"Unknown",Z22<>"Not required"),COUNTRY_INFO!O22*DISTRICT!AO22,0)) -> 39425.6 | AT22: 210000.0661 | AU22: Y | AV22: =MAX('MDA2'!J22,'T1'!L22,'T2'!J22,T3_R1!K22,T3_R2!K22) -> 79460 | AW22: =MAX('MDA1'!K22,'MDA2'!K22,'MDA3'!I22,'MDA3'!L22,'T1'!M22,'T2'!K22,T3_R1!L22,T3_R2!L22) -> 122242 | AX22: =MAX('MDA1'!L22,'MDA2'!L22,'MDA3'!J22,'MDA3'!M22,'T1'!N22,'T2'!L22,T3_R1!M22,T3_R2!M22) -> 70130 | AY22: 271832 | AZ22: =MAX('MDA2'!J22,T22) -> 68701 | BA22: =MAX('MDA1'!K22,'MDA2'!K22,'MDA3'!I22,'MDA3'!L22,V22,AD22) -> 101874 | BB22: =MAX('MDA1'!L22,'MDA2'!L22,'MDA3'!J22,'MDA3'!M22,AF22) -> 39425.6 | BC22: 210000.0661 | BD22: 100
A23: =IF(COUNTRY_INFO!A23=0," ",COUNTRY_INFO!A23) -> Malawi | B23: =IF(COUNTRY_INFO!B23=0," ",COUNTRY_INFO!B23) -> Central | C23: =IF(COUNTRY_INFO!C23=0," ",COUNTRY_INFO!C23) -> Ntchisi | D23: =COUNTRY_INFO!L23 -> Not required | G23: =MAX('MDA1'!M23,'MDA2'!M23) -> 0 | H23: =IF(AND(COUNTRY_INFO!H23>0,COUNTRY_INFO!H23<4),IF(D23>MAX('MDA1'!M23,'MDA2'!M23),MAX('MDA1'!M23,'MDA2'!M23),D23),0) -> 0 | I23: =IF(AND(COUNTRY_INFO!H23>0,COUNTRY_INFO!H23<4), IF(G23/D23*100<>0, IF(G23/D23*100>100,100,G23/D23*100), "-"),0) -> 0 | J23: =COUNTRY_INFO!M23 -> 0 | M23: =MAX('MDA1'!M23,MAX('MDA3'!I23,'MDA3'!L23)+MAX('MDA3'!J23,'MDA3'!M23)) -> 0 | N23: =IF(AND(COUNTRY_INFO!I23>0,COUNTRY_INFO!I23<4),IF(J23>MAX('MDA1'!M23,MAX('MDA3'!I23,'MDA3'!L23)+MAX('MDA3'!J23,'MDA3'!M23)),MAX('MDA1'!M23,MAX('MDA3'!I23,'MDA3'!L23)+MAX('MDA3'!J23,'MDA3'!M23)),J23),0) -> 0 | O23: =IF(AND(COUNTRY_INFO!I23>0,COUNTRY_INFO!I23<4), IF(M23/J23*100<>0, IF(M23/J23*100>100,100,M23/J23*100), "-"),0) -> 0 | P23: =COUNTRY_INFO!N23 -> 128232 | S23: =SUM(MAX('MDA2'!J23, 'T1'!L23, MAX(T3_R1!K23, T3_R2!K23)), MAX('MDA1'!K23, 'MDA2'!K23, 'T1'!M23, MAX(T3_R1!L23, T3_R2!L23)), MAX('MDA1'!L23, 'MDA2'!L23, 'T1'!N23, MAX(T3_R1!M23, T3_R2!M23))) -> 117441 | T23: =IF(AND(COUNTRY_INFO!J23>1,COUNTRY_INFO!J23<4),IF(COUNTRY_INFO!E23>MAX('MDA2'!J23,'T1'!L23,MAX(T3_R1!K23,T3_R2!K23)),MAX('MDA2'!J23,'T1'!L23,MAX(T3_R1!K23,T3_R2!K23)),COUNTRY_INFO!E23),0) -> 44265 | U23: =IF(AND(COUNTRY_INFO!J23>1,COUNTRY_INFO!J23<4), IF(T23/COUNTRY_INFO!E23*100<>0, IF(T23/COUNTRY_INFO!E23*100>100,100,T23/COUNTRY_INFO!E23*100), "-"),0) -> 85.70681743 | V23: =IF(AND(COUNTRY_INFO!J23>1,COUNTRY_INFO!J23<4),IF(COUNTRY_INFO!F23>MAX('MDA1'!K23,'MDA2'!K23,'T1'!M23,MAX(T3_R1!L23,T3_R2!L23)),MAX('MDA1'!K23,'MDA2'!K23,'T1'!M23,MAX(T3_R1!L23,T3_R2!L23)),COUNTRY_INFO!F23),0) -> 64685 | W23: =IF(AND(COUNTRY_INFO!J23>1,COUNTRY_INFO!J23<4), IF(V23/COUNTRY_INFO!F23*100<>0, IF(V23/COUNTRY_INFO!F23*100>100,100,V23/COUNTRY_INFO!F23*100), "-"),0) -> 84.46170921 | X23: 108950 | Y23: =IF(AND(COUNTRY_INFO!J23>1,COUNTRY_INFO!J23<4), IF(S23/P23*100<>0, IF(X23/P23*100>100,100,X23/P23*100), "-"),0) -> 84.96319172 | Z23: =COUNTRY_INFO!O23 -> 67931.3 | AC23: =MAX(SUM('T1'!L23:'T1'!N23),SUM('T2'!J23:'T2'!L23)) -> 73176 | AD23: =IF(COUNTRY_INFO!K23=1,IF(COUNTRY_INFO!F23*0.33>MAX('T1'!M23,'T2'!K23),MAX('T1'!M23,'T2'!K23),COUNTRY_INFO!F23*0.33),IF(COUNTRY_INFO!K23=2,IF(COUNTRY_INFO!F23*0.5>MAX('T1'!M23,'T2'!K23),MAX('T1'!M23,'T2'!K23),COUNTRY_INFO!F23*0.5),IF(COUNTRY_INFO!K23=3,IF(COUNTRY_INFO!F23>MAX('T1'!M23,'T2'!K23),MAX('T1'!M23,'T2'!K23),COUNTRY_INFO!F23),0))) -> 38292.5 | AE23: =IF(AND(COUNTRY_INFO!K23>0,COUNTRY_INFO!K23<4),IF(Z23>0,IF(COUNTRY_INFO!K23=1, AD23/(COUNTRY_INFO!F23*0.33)*100, IF(COUNTRY_INFO!K23=2, AD23/(COUNTRY_INFO!F23*0.5)*100, IF(COUNTRY_INFO!K23=3, AD23/COUNTRY_INFO!F23*100))),"-"),0) -> 100 | AF23: =IF(COUNTRY_INFO!K23=2,IF(COUNTRY_INFO!G23*0.2>MAX('T1'!N23,'T2'!L23),MAX('T1'!N23,'T2'!L23),COUNTRY_INFO!G23*0.2),IF(COUNTRY_INFO!K23=3,IF(COUNTRY_INFO!G23>MAX('T1'!N23,'T2'!L23),MAX('T1'!N23,'T2'!L23),COUNTRY_INFO!G23),0)) -> 8491 | AG23: =IF(AND(COUNTRY_INFO!K23>0,COUNTRY_INFO!K23<4),IF(Z23>0,IF(COUNTRY_INFO!K23=1, 0, IF(COUNTRY_INFO!K23=2, AF23/(COUNTRY_INFO!G23*0.2)*100, IF(COUNTRY_INFO!K23=3, AF23/COUNTRY_INFO!G23*100))),"-"),0) -> 28.64825836 | AH23: 46783.5 | AI23: =IF(AND(COUNTRY_INFO!K23>0,COUNTRY_INFO!K23<4), IF(AC23/Z23*100<>0, IF(AH23/Z23*100>100,100,AH23/Z23*100), "-"),0) -> 68.86884249 | AK23: =IF(AND(D23<>0, D23<>"Unknown",D23<>"Stopped",D23<>"Not required"),D23/COUNTRY_INFO!D23, 0) -> 0 | AL23: =IF(AND(J23<>0,J23<>"Unknown",J23<>"Stopped",J23<>"Not required"),J23/COUNTRY_INFO!D23, 0) -> 0 | AM23: =IF(AND(P23<>0,P23<>"Unknown",P23<>"Not required"),P23/(COUNTRY_INFO!E23+COUNTRY_INFO!F23), 0) -> 1 | AN23: =IF(AND(Z23<>0,Z23<>"Unknown",Z23<>"Not required"),IF(COUNTRY_INFO!K23=1,1,IF(COUNTRY_INFO!K23=2,0.5*COUNTRY_INFO!F23/(0.5*COUNTRY_INFO!F23+0.2*COUNTRY_INFO!G23),IF(COUNTRY_INFO!K23=3,COUNTRY_INFO!F23/(COUNTRY_INFO!F23+COUNTRY_INFO!G23)))),0) -> 0.5636944972 | AO23: =IF(AND(Z23<>0,Z23<>"Unknown",Z23<>"Not required"),IF(COUNTRY_INFO!K23=1,0,IF(COUNTRY_INFO!K23=2,0.2*COUNTRY_INFO!G23/(0.5*COUNTRY_INFO!F23+0.2*COUNTRY_INFO!G23),IF(COUNTRY_INFO!K23=3,COUNTRY_INFO!G23/(COUNTRY_INFO!F23+COUNTRY_INFO!G23)))),0) -> 0.4363055028 | AP23: =MAX(COUNTRY_INFO!D23*AK23*PROFILE!$G$7,COUNTRY_INFO!D23*AL23*PROFILE!$G$7) -> 0 | AQ23: =MAX(COUNTRY_INFO!D23*AK23*PROFILE!$G$8,COUNTRY_INFO!D23*AL23*PROFILE!$G$8,COUNTRY_INFO!D23*AM23*PROFILE!$G$8) -> 51646.63549 | AR23: =MAX(COUNTRY_INFO!D23*AK23*PROFILE!$G$9,COUNTRY_INFO!D23*AL23*PROFILE!$G$9,COUNTRY_INFO!D23*AM23*PROFILE!$G$9,IF(AND(DISTRICT!Z23<>"Unknown",Z23<>"Not required"),COUNTRY_INFO!O23*DISTRICT!AN23,0)) -> 76585.22023 | AS23: =MAX(COUNTRY_INFO!D23*AK23*PROFILE!$G$10,COUNTRY_INFO!D23*AL23*PROFILE!$G$10,IF(AND(DISTRICT!Z23<>"Unknown",Z23<>"Not required"),COUNTRY_INFO!O23*DISTRICT!AO23,0)) -> 29638.8 | AT23: 157870.6557 | AU23: Y | AV23: =MAX('MDA2'!J23,'T1'!L23,'T2'!J23,T3_R1!K23,T3_R2!K23) -> 44265 | AW23: =MAX('MDA1'!K23,'MDA2'!K23,'MDA3'!I23,'MDA3'!L23,'T1'!M23,'T2'!K23,T3_R1!L23,T3_R2!L23) -> 64685 | AX23: =MAX('MDA1'!L23,'MDA2'!L23,'MDA3'!J23,'MDA3'!M23,'T1'!N23,'T2'!L23,T3_R1!M23,T3_R2!M23) -> 8491 | AY23: 117441 | AZ23: =MAX('MDA2'!J23,T23) -> 44265 | BA23: =MAX('MDA1'!K23,'MDA2'!K23,'MDA3'!I23,'MDA3'!L23,V23,AD23) -> 64685 | BB23: =MAX('MDA1'!L23,'MDA2'!L23,'MDA3'!J23,'MDA3'!M23,AF23) -> 8491 | BC23: 117441 | BD23: 74.39064559
A24: =IF(COUNTRY_INFO!A24=0," ",COUNTRY_INFO!A24) -> Malawi | B24: =IF(COUNTRY_INFO!B24=0," ",COUNTRY_INFO!B24) -> Central | C24: =IF(COUNTRY_INFO!C24=0," ",COUNTRY_INFO!C24) -> Ntcheu | D24: =COUNTRY_INFO!L24 -> Not required | G24: =MAX('MDA1'!M24,'MDA2'!M24) -> 0 | H24: =IF(AND(COUNTRY_INFO!H24>0,COUNTRY_INFO!H24<4),IF(D24>MAX('MDA1'!M24,'MDA2'!M24),MAX('MDA1'!M24,'MDA2'!M24),D24),0) -> 0 | I24: =IF(AND(COUNTRY_INFO!H24>0,COUNTRY_INFO!H24<4), IF(G24/D24*100<>0, IF(G24/D24*100>100,100,G24/D24*100), "-"),0) -> 0 | J24: =COUNTRY_INFO!M24 -> 0 | M24: =MAX('MDA1'!M24,MAX('MDA3'!I24,'MDA3'!L24)+MAX('MDA3'!J24,'MDA3'!M24)) -> 0 | N24: =IF(AND(COUNTRY_INFO!I24>0,COUNTRY_INFO!I24<4),IF(J24>MAX('MDA1'!M24,MAX('MDA3'!I24,'MDA3'!L24)+MAX('MDA3'!J24,'MDA3'!M24)),MAX('MDA1'!M24,MAX('MDA3'!I24,'MDA3'!L24)+MAX('MDA3'!J24,'MDA3'!M24)),J24),0) -> 0 | O24: =IF(AND(COUNTRY_INFO!I24>0,COUNTRY_INFO!I24<4), IF(M24/J24*100<>0, IF(M24/J24*100>100,100,M24/J24*100), "-"),0) -> 0 | P24: =COUNTRY_INFO!N24 -> 258537 | S24: =SUM(MAX('MDA2'!J24, 'T1'!L24, MAX(T3_R1!K24, T3_R2!K24)), MAX('MDA1'!K24, 'MDA2'!K24, 'T1'!M24, MAX(T3_R1!L24, T3_R2!L24)), MAX('MDA1'!L24, 'MDA2'!L24, 'T1'!N24, MAX(T3_R1!M24, T3_R2!M24))) -> 326558 | T24: =IF(AND(COUNTRY_INFO!J24>1,COUNTRY_INFO!J24<4),IF(COUNTRY_INFO!E24>MAX('MDA2'!J24,'T1'!L24,MAX(T3_R1!K24,T3_R2!K24)),MAX('MDA2'!J24,'T1'!L24,MAX(T3_R1!K24,T3_R2!K24)),COUNTRY_INFO!E24),0) -> 93497 | U24: =IF(AND(COUNTRY_INFO!J24>1,COUNTRY_INFO!J24<4), IF(T24/COUNTRY_INFO!E24*100<>0, IF(T24/COUNTRY_INFO!E24*100>100,100,T24/COUNTRY_INFO!E24*100), "-"),0) -> 89.79045022 | V24: =IF(AND(COUNTRY_INFO!J24>1,COUNTRY_INFO!J24<4),IF(COUNTRY_INFO!F24>MAX('MDA1'!K24,'MDA2'!K24,'T1'!M24,MAX(T3_R1!L24,T3_R2!L24)),MAX('MDA1'!K24,'MDA2'!K24,'T1'!M24,MAX(T3_R1!L24,T3_R2!L24)),COUNTRY_INFO!F24),0) -> 154409 | W24: =IF(AND(COUNTRY_INFO!J24>1,COUNTRY_INFO!J24<4), IF(V24/COUNTRY_INFO!F24*100<>0, IF(V24/COUNTRY_INFO!F24*100>100,100,V24/COUNTRY_INFO!F24*100), "-"),0) -> 100 | X24: 247906 | Y24: =IF(AND(COUNTRY_INFO!J24>1,COUNTRY_INFO!J24<4), IF(S24/P24*100<>0, IF(X24/P24*100>100,100,X24/P24*100), "-"),0) -> 95.88801603 | Z24: =COUNTRY_INFO!O24 -> 136961.3 | AC24: =MAX(SUM('T1'!L24:'T1'!N24),SUM('T2'!J24:'T2'!L24)) -> 233061 | AD24: =IF(COUNTRY_INFO!K24=1,IF(COUNTRY_INFO!F24*0.33>MAX('T1'!M24,'T2'!K24),MAX('T1'!M24,'T2'!K24),COUNTRY_INFO!F24*0.33),IF(COUNTRY_INFO!K24=2,IF(COUNTRY_INFO!F24*0.5>MAX('T1'!M24,'T2'!K24),MAX('T1'!M24,'T2'!K24),COUNTRY_INFO!F24*0.5),IF(COUNTRY_INFO!K24=3,IF(COUNTRY_INFO!F24>MAX('T1'!M24,'T2'!K24),MAX('T1'!M24,'T2'!K24),COUNTRY_INFO!F24),0))) -> 77204.5 | AE24: =IF(AND(COUNTRY_INFO!K24>0,COUNTRY_INFO!K24<4),IF(Z24>0,IF(COUNTRY_INFO!K24=1, AD24/(COUNTRY_INFO!F24*0.33)*100, IF(COUNTRY_INFO!K24=2, AD24/(COUNTRY_INFO!F24*0.5)*100, IF(COUNTRY_INFO!K24=3, AD24/COUNTRY_INFO!F24*100))),"-"),0) -> 100 | AF24: =IF(COUNTRY_INFO!K24=2,IF(COUNTRY_INFO!G24*0.2>MAX('T1'!N24,'T2'!L24),MAX('T1'!N24,'T2'!L24),COUNTRY_INFO!G24*0.2),IF(COUNTRY_INFO!K24=3,IF(COUNTRY_INFO!G24>MAX('T1'!N24,'T2'!L24),MAX('T1'!N24,'T2'!L24),COUNTRY_INFO!G24),0)) -> 59756.8 | AG24: =IF(AND(COUNTRY_INFO!K24>0,COUNTRY_INFO!K24<4),IF(Z24>0,IF(COUNTRY_INFO!K24=1, 0, IF(COUNTRY_INFO!K24=2, AF24/(COUNTRY_INFO!G24*0.2)*100, IF(COUNTRY_INFO!K24=3, AF24/COUNTRY_INFO!G24*100))),"-"),0) -> 100 | AH24: 136961.3 | AI24: =IF(AND(COUNTRY_INFO!K24>0,COUNTRY_INFO!K24<4), IF(AC24/Z24*100<>0, IF(AH24/Z24*100>100,100,AH24/Z24*100), "-"),0) -> 100 | AK24: =IF(AND(D24<>0, D24<>"Unknown",D24<>"Stopped",D24<>"Not required"),D24/COUNTRY_INFO!D24, 0) -> 0 | AL24: =IF(AND(J24<>0,J24<>"Unknown",J24<>"Stopped",J24<>"Not required"),J24/COUNTRY_INFO!D24, 0) -> 0 | AM24: =IF(AND(P24<>0,P24<>"Unknown",P24<>"Not required"),P24/(COUNTRY_INFO!E24+COUNTRY_INFO!F24), 0) -> 1 | AN24: =IF(AND(Z24<>0,Z24<>"Unknown",Z24<>"Not required"),IF(COUNTRY_INFO!K24=1,1,IF(COUNTRY_INFO!K24=2,0.5*COUNTRY_INFO!F24/(0.5*COUNTRY_INFO!F24+0.2*COUNTRY_INFO!G24),IF(COUNTRY_INFO!K24=3,COUNTRY_INFO!F24/(COUNTRY_INFO!F24+COUNTRY_INFO!G24)))),0) -> 0.5636957301 | AO24: =IF(AND(Z24<>0,Z24<>"Unknown",Z24<>"Not required"),IF(COUNTRY_INFO!K24=1,0,IF(COUNTRY_INFO!K24=2,0.2*COUNTRY_INFO!G24/(0.5*COUNTRY_INFO!F24+0.2*COUNTRY_INFO!G24),IF(COUNTRY_INFO!K24=3,COUNTRY_INFO!G24/(COUNTRY_INFO!F24+COUNTRY_INFO!G24)))),0) -> 0.4363042699 | AP24: =MAX(COUNTRY_INFO!D24*AK24*PROFILE!$G$7,COUNTRY_INFO!D24*AL24*PROFILE!$G$7) -> 0 | AQ24: =MAX(COUNTRY_INFO!D24*AK24*PROFILE!$G$8,COUNTRY_INFO!D24*AL24*PROFILE!$G$8,COUNTRY_INFO!D24*AM24*PROFILE!$G$8) -> 104128.4535 | AR24: =MAX(COUNTRY_INFO!D24*AK24*PROFILE!$G$9,COUNTRY_INFO!D24*AL24*PROFILE!$G$9,COUNTRY_INFO!D24*AM24*PROFILE!$G$9,IF(AND(DISTRICT!Z24<>"Unknown",Z24<>"Not required"),COUNTRY_INFO!O24*DISTRICT!AN24,0)) -> 154408.9072 | AS24: =MAX(COUNTRY_INFO!D24*AK24*PROFILE!$G$10,COUNTRY_INFO!D24*AL24*PROFILE!$G$10,IF(AND(DISTRICT!Z24<>"Unknown",Z24<>"Not required"),COUNTRY_INFO!O24*DISTRICT!AO24,0)) -> 59756.8 | AT24: 318294.1607 | AU24: Y | AV24: =MAX('MDA2'!J24,'T1'!L24,'T2'!J24,T3_R1!K24,T3_R2!K24) -> 93497 | AW24: =MAX('MDA1'!K24,'MDA2'!K24,'MDA3'!I24,'MDA3'!L24,'T1'!M24,'T2'!K24,T3_R1!L24,T3_R2!L24) -> 157229 | AX24: =MAX('MDA1'!L24,'MDA2'!L24,'MDA3'!J24,'MDA3'!M24,'T1'!N24,'T2'!L24,T3_R1!M24,T3_R2!M24) -> 75832 | AY24: 326558 | AZ24: =MAX('MDA2'!J24,T24) -> 93497 | BA24: =MAX('MDA1'!K24,'MDA2'!K24,'MDA3'!I24,'MDA3'!L24,V24,AD24) -> 154409 | BB24: =MAX('MDA1'!L24,'MDA2'!L24,'MDA3'!J24,'MDA3'!M24,AF24) -> 59756.8 | BC24: 307662.8 | BD24: 96.65989451
A25: =IF(COUNTRY_INFO!A25=0," ",COUNTRY_INFO!A25) -> Malawi | B25: =IF(COUNTRY_INFO!B25=0," ",COUNTRY_INFO!B25) -> South | C25: =IF(COUNTRY_INFO!C25=0," ",COUNTRY_INFO!C25) -> Balaka | D25: =COUNTRY_INFO!L25 -> Not required | G25: =MAX('MDA1'!M25,'MDA2'!M25) -> 0 | H25: =IF(AND(COUNTRY_INFO!H25>0,COUNTRY_INFO!H25<4),IF(D25>MAX('MDA1'!M25,'MDA2'!M25),MAX('MDA1'!M25,'MDA2'!M25),D25),0) -> 0 | I25: =IF(AND(COUNTRY_INFO!H25>0,COUNTRY_INFO!H25<4), IF(G25/D25*100<>0, IF(G25/D25*100>100,100,G25/D25*100), "-"),0) -> 0 | J25: =COUNTRY_INFO!M25 -> 0 | M25: =MAX('MDA1'!M25,MAX('MDA3'!I25,'MDA3'!L25)+MAX('MDA3'!J25,'MDA3'!M25)) -> 0 | N25: =IF(AND(COUNTRY_INFO!I25>0,COUNTRY_INFO!I25<4),IF(J25>MAX('MDA1'!M25,MAX('MDA3'!I25,'MDA3'!L25)+MAX('MDA3'!J25,'MDA3'!M25)),MAX('MDA1'!M25,MAX('MDA3'!I25,'MDA3'!L25)+MAX('MDA3'!J25,'MDA3'!M25)),J25),0) -> 0 | O25: =IF(AND(COUNTRY_INFO!I25>0,COUNTRY_INFO!I25<4), IF(M25/J25*100<>0, IF(M25/J25*100>100,100,M25/J25*100), "-"),0) -> 0 | P25: =COUNTRY_INFO!N25 -> 178047 | S25: =SUM(MAX('MDA2'!J25, 'T1'!L25, MAX(T3_R1!K25, T3_R2!K25)), MAX('MDA1'!K25, 'MDA2'!K25, 'T1'!M25, MAX(T3_R1!L25, T3_R2!L25)), MAX('MDA1'!L25, 'MDA2'!L25, 'T1'!N25, MAX(T3_R1!M25, T3_R2!M25))) -> 154630 | T25: =IF(AND(COUNTRY_INFO!J25>1,COUNTRY_INFO!J25<4),IF(COUNTRY_INFO!E25>MAX('MDA2'!J25,'T1'!L25,MAX(T3_R1!K25,T3_R2!K25)),MAX('MDA2'!J25,'T1'!L25,MAX(T3_R1!K25,T3_R2!K25)),COUNTRY_INFO!E25),0) -> 56084 | U25: =IF(AND(COUNTRY_INFO!J25>1,COUNTRY_INFO!J25<4), IF(T25/COUNTRY_INFO!E25*100<>0, IF(T25/COUNTRY_INFO!E25*100>100,100,T25/COUNTRY_INFO!E25*100), "-"),0) -> 78.20945475 | V25: =IF(AND(COUNTRY_INFO!J25>1,COUNTRY_INFO!J25<4),IF(COUNTRY_INFO!F25>MAX('MDA1'!K25,'MDA2'!K25,'T1'!M25,MAX(T3_R1!L25,T3_R2!L25)),MAX('MDA1'!K25,'MDA2'!K25,'T1'!M25,MAX(T3_R1!L25,T3_R2!L25)),COUNTRY_INFO!F25),0) -> 88553 | W25: =IF(AND(COUNTRY_INFO!J25>1,COUNTRY_INFO!J25<4), IF(V25/COUNTRY_INFO!F25*100<>0, IF(V25/COUNTRY_INFO!F25*100>100,100,V25/COUNTRY_INFO!F25*100), "-"),0) -> 83.27581181 | X25: 144637 | Y25: =IF(AND(COUNTRY_INFO!J25>1,COUNTRY_INFO!J25<4), IF(S25/P25*100<>0, IF(X25/P25*100>100,100,X25/P25*100), "-"),0) -> 81.2352918 | Z25: =COUNTRY_INFO!O25 -> 94321.1 | AC25: =MAX(SUM('T1'!L25:'T1'!N25),SUM('T2'!J25:'T2'!L25)) -> 98546 | AD25: =IF(COUNTRY_INFO!K25=1,IF(COUNTRY_INFO!F25*0.33>MAX('T1'!M25,'T2'!K25),MAX('T1'!M25,'T2'!K25),COUNTRY_INFO!F25*0.33),IF(COUNTRY_INFO!K25=2,IF(COUNTRY_INFO!F25*0.5>MAX('T1'!M25,'T2'!K25),MAX('T1'!M25,'T2'!K25),COUNTRY_INFO!F25*0.5),IF(COUNTRY_INFO!K25=3,IF(COUNTRY_INFO!F25>MAX('T1'!M25,'T2'!K25),MAX('T1'!M25,'T2'!K25),COUNTRY_INFO!F25),0))) -> 53168.5 | AE25: =IF(AND(COUNTRY_INFO!K25>0,COUNTRY_INFO!K25<4),IF(Z25>0,IF(COUNTRY_INFO!K25=1, AD25/(COUNTRY_INFO!F25*0.33)*100, IF(COUNTRY_INFO!K25=2, AD25/(COUNTRY_INFO!F25*0.5)*100, IF(COUNTRY_INFO!K25=3, AD25/COUNTRY_INFO!F25*100))),"-"),0) -> 100 | AF25: =IF(COUNTRY_INFO!K25=2,IF(COUNTRY_INFO!G25*0.2>MAX('T1'!N25,'T2'!L25),MAX('T1'!N25,'T2'!L25),COUNTRY_INFO!G25*0.2),IF(COUNTRY_INFO!K25=3,IF(COUNTRY_INFO!G25>MAX('T1'!N25,'T2'!L25),MAX('T1'!N25,'T2'!L25),COUNTRY_INFO!G25),0)) -> 9993 | AG25: =IF(AND(COUNTRY_INFO!K25>0,COUNTRY_INFO!K25<4),IF(Z25>0,IF(COUNTRY_INFO!K25=1, 0, IF(COUNTRY_INFO!K25=2, AF25/(COUNTRY_INFO!G25*0.2)*100, IF(COUNTRY_INFO!K25=3, AF25/COUNTRY_INFO!G25*100))),"-"),0) -> 24.28279137 | AH25: 63161.5 | AI25: =IF(AND(COUNTRY_INFO!K25>0,COUNTRY_INFO!K25<4), IF(AC25/Z25*100<>0, IF(AH25/Z25*100>100,100,AH25/Z25*100), "-"),0) -> 66.96433778 | AK25: =IF(AND(D25<>0, D25<>"Unknown",D25<>"Stopped",D25<>"Not required"),D25/COUNTRY_INFO!D25, 0) -> 0 | AL25: =IF(AND(J25<>0,J25<>"Unknown",J25<>"Stopped",J25<>"Not required"),J25/COUNTRY_INFO!D25, 0) -> 0 | AM25: =IF(AND(P25<>0,P25<>"Unknown",P25<>"Not required"),P25/(COUNTRY_INFO!E25+COUNTRY_INFO!F25), 0) -> 1 | AN25: =IF(AND(Z25<>0,Z25<>"Unknown",Z25<>"Not required"),IF(COUNTRY_INFO!K25=1,1,IF(COUNTRY_INFO!K25=2,0.5*COUNTRY_INFO!F25/(0.5*COUNTRY_INFO!F25+0.2*COUNTRY_INFO!G25),IF(COUNTRY_INFO!K25=3,COUNTRY_INFO!F25/(COUNTRY_INFO!F25+COUNTRY_INFO!G25)))),0) -> 0.5636967762 | AO25: =IF(AND(Z25<>0,Z25<>"Unknown",Z25<>"Not required"),IF(COUNTRY_INFO!K25=1,0,IF(COUNTRY_INFO!K25=2,0.2*COUNTRY_INFO!G25/(0.5*COUNTRY_INFO!F25+0.2*COUNTRY_INFO!G25),IF(COUNTRY_INFO!K25=3,COUNTRY_INFO!G25/(COUNTRY_INFO!F25+COUNTRY_INFO!G25)))),0) -> 0.4363032238 | AP25: =MAX(COUNTRY_INFO!D25*AK25*PROFILE!$G$7,COUNTRY_INFO!D25*AL25*PROFILE!$G$7) -> 0 | AQ25: =MAX(COUNTRY_INFO!D25*AK25*PROFILE!$G$8,COUNTRY_INFO!D25*AL25*PROFILE!$G$8,COUNTRY_INFO!D25*AM25*PROFILE!$G$8) -> 71710.07035 | AR25: =MAX(COUNTRY_INFO!D25*AK25*PROFILE!$G$9,COUNTRY_INFO!D25*AL25*PROFILE!$G$9,COUNTRY_INFO!D25*AM25*PROFILE!$G$9,IF(AND(DISTRICT!Z25<>"Unknown",Z25<>"Not required"),COUNTRY_INFO!O25*DISTRICT!AN25,0)) -> 106336.6757 | AS25: =MAX(COUNTRY_INFO!D25*AK25*PROFILE!$G$10,COUNTRY_INFO!D25*AL25*PROFILE!$G$10,IF(AND(DISTRICT!Z25<>"Unknown",Z25<>"Not required"),COUNTRY_INFO!O25*DISTRICT!AO25,0)) -> 41152.6 | AT25: 219199.3461 | AU25: Y | AV25: =MAX('MDA2'!J25,'T1'!L25,'T2'!J25,T3_R1!K25,T3_R2!K25) -> 56084 | AW25: =MAX('MDA1'!K25,'MDA2'!K25,'MDA3'!I25,'MDA3'!L25,'T1'!M25,'T2'!K25,T3_R1!L25,T3_R2!L25) -> 88553 | AX25: =MAX('MDA1'!L25,'MDA2'!L25,'MDA3'!J25,'MDA3'!M25,'T1'!N25,'T2'!L25,T3_R1!M25,T3_R2!M25) -> 9993 | AY25: 154630 | AZ25: =MAX('MDA2'!J25,T25) -> 56084 | BA25: =MAX('MDA1'!K25,'MDA2'!K25,'MDA3'!I25,'MDA3'!L25,V25,AD25) -> 88553 | BB25: =MAX('MDA1'!L25,'MDA2'!L25,'MDA3'!J25,'MDA3'!M25,AF25) -> 9993 | BC25: 154630 | BD25: 70.54309366
A26: =IF(COUNTRY_INFO!A26=0," ",COUNTRY_INFO!A26) -> Malawi | B26: =IF(COUNTRY_INFO!B26=0," ",COUNTRY_INFO!B26) -> South | C26: =IF(COUNTRY_INFO!C26=0," ",COUNTRY_INFO!C26) -> Chikwawa | D26: =COUNTRY_INFO!L26 -> Not required | G26: =MAX('MDA1'!M26,'MDA2'!M26) -> 0 | H26: =IF(AND(COUNTRY_INFO!H26>0,COUNTRY_INFO!H26<4),IF(D26>MAX('MDA1'!M26,'MDA2'!M26),MAX('MDA1'!M26,'MDA2'!M26),D26),0) -> 0 | I26: =IF(AND(COUNTRY_INFO!H26>0,COUNTRY_INFO!H26<4), IF(G26/D26*100<>0, IF(G26/D26*100>100,100,G26/D26*100), "-"),0) -> 0 | J26: =COUNTRY_INFO!M26 -> 129350 | M26: =MAX('MDA1'!M26,MAX('MDA3'!I26,'MDA3'!L26)+MAX('MDA3'!J26,'MDA3'!M26)) -> 108587 | N26: =IF(AND(COUNTRY_INFO!I26>0,COUNTRY_INFO!I26<4),IF(J26>MAX('MDA1'!M26,MAX('MDA3'!I26,'MDA3'!L26)+MAX('MDA3'!J26,'MDA3'!M26)),MAX('MDA1'!M26,MAX('MDA3'!I26,'MDA3'!L26)+MAX('MDA3'!J26,'MDA3'!M26)),J26),0) -> 108587 | O26: =IF(AND(COUNTRY_INFO!I26>0,COUNTRY_INFO!I26<4), IF(M26/J26*100<>0, IF(M26/J26*100>100,100,M26/J26*100), "-"),0) -> 83.94820255 | P26: =COUNTRY_INFO!N26 -> 240381 | S26: =SUM(MAX('MDA2'!J26, 'T1'!L26, MAX(T3_R1!K26, T3_R2!K26)), MAX('MDA1'!K26, 'MDA2'!K26, 'T1'!M26, MAX(T3_R1!L26, T3_R2!L26)), MAX('MDA1'!L26, 'MDA2'!L26, 'T1'!N26, MAX(T3_R1!M26, T3_R2!M26))) -> 318965 | T26: =IF(AND(COUNTRY_INFO!J26>1,COUNTRY_INFO!J26<4),IF(COUNTRY_INFO!E26>MAX('MDA2'!J26,'T1'!L26,MAX(T3_R1!K26,T3_R2!K26)),MAX('MDA2'!J26,'T1'!L26,MAX(T3_R1!K26,T3_R2!K26)),COUNTRY_INFO!E26),0) -> 85293 | U26: =IF(AND(COUNTRY_INFO!J26>1,COUNTRY_INFO!J26<4), IF(T26/COUNTRY_INFO!E26*100<>0, IF(T26/COUNTRY_INFO!E26*100>100,100,T26/COUNTRY_INFO!E26*100), "-"),0) -> 88.09804165 | V26: =IF(AND(COUNTRY_INFO!J26>1,COUNTRY_INFO!J26<4),IF(COUNTRY_INFO!F26>MAX('MDA1'!K26,'MDA2'!K26,'T1'!M26,MAX(T3_R1!L26,T3_R2!L26)),MAX('MDA1'!K26,'MDA2'!K26,'T1'!M26,MAX(T3_R1!L26,T3_R2!L26)),COUNTRY_INFO!F26),0) -> 143565 | W26: =IF(AND(COUNTRY_INFO!J26>1,COUNTRY_INFO!J26<4), IF(V26/COUNTRY_INFO!F26*100<>0, IF(V26/COUNTRY_INFO!F26*100>100,100,V26/COUNTRY_INFO!F26*100), "-"),0) -> 100 | X26: 228858 | Y26: =IF(AND(COUNTRY_INFO!J26>1,COUNTRY_INFO!J26<4), IF(S26/P26*100<>0, IF(X26/P26*100>100,100,X26/P26*100), "-"),0) -> 95.2063599 | Z26: =COUNTRY_INFO!O26 -> 421367 | AC26: =MAX(SUM('T1'!L26:'T1'!N26),SUM('T2'!J26:'T2'!L26)) -> 233672 | AD26: =IF(COUNTRY_INFO!K26=1,IF(COUNTRY_INFO!F26*0.33>MAX('T1'!M26,'T2'!K26),MAX('T1'!M26,'T2'!K26),COUNTRY_INFO!F26*0.33),IF(COUNTRY_INFO!K26=2,IF(COUNTRY_INFO!F26*0.5>MAX('T1'!M26,'T2'!K26),MAX('T1'!M26,'T2'!K26),COUNTRY_INFO!F26*0.5),IF(COUNTRY_INFO!K26=3,IF(COUNTRY_INFO!F26>MAX('T1'!M26,'T2'!K26),MAX('T1'!M26,'T2'!K26),COUNTRY_INFO!F26),0))) -> 143565 | AE26: =IF(AND(COUNTRY_INFO!K26>0,COUNTRY_INFO!K26<4),IF(Z26>0,IF(COUNTRY_INFO!K26=1, AD26/(COUNTRY_INFO!F26*0.33)*100, IF(COUNTRY_INFO!K26=2, AD26/(COUNTRY_INFO!F26*0.5)*100, IF(COUNTRY_INFO!K26=3, AD26/COUNTRY_INFO!F26*100))),"-"),0) -> 100 | AF26: =IF(COUNTRY_INFO!K26=2,IF(COUNTRY_INFO!G26*0.2>MAX('T1'!N26,'T2'!L26),MAX('T1'!N26,'T2'!L26),COUNTRY_INFO!G26*0.2),IF(COUNTRY_INFO!K26=3,IF(COUNTRY_INFO!G26>MAX('T1'!N26,'T2'!L26),MAX('T1'!N26,'T2'!L26),COUNTRY_INFO!G26),0)) -> 57697 | AG26: =IF(AND(COUNTRY_INFO!K26>0,COUNTRY_INFO!K26<4),IF(Z26>0,IF(COUNTRY_INFO!K26=1, 0, IF(COUNTRY_INFO!K26=2, AF26/(COUNTRY_INFO!G26*0.2)*100, IF(COUNTRY_INFO!K26=3, AF26/COUNTRY_INFO!G26*100))),"-"),0) -> 20.76910893 | AH26: 201262 | AI26: =IF(AND(COUNTRY_INFO!K26>0,COUNTRY_INFO!K26<4), IF(AC26/Z26*100<>0, IF(AH26/Z26*100>100,100,AH26/Z26*100), "-"),0) -> 47.76406316 | AK26: =IF(AND(D26<>0, D26<>"Unknown",D26<>"Stopped",D26<>"Not required"),D26/COUNTRY_INFO!D26, 0) -> 0 | AL26: =IF(AND(J26<>0,J26<>"Unknown",J26<>"Stopped",J26<>"Not required"),J26/COUNTRY_INFO!D26, 0) -> 0.2495721482 | AM26: =IF(AND(P26<>0,P26<>"Unknown",P26<>"Not required"),P26/(COUNTRY_INFO!E26+COUNTRY_INFO!F26), 0) -> 1 | AN26: =IF(AND(Z26<>0,Z26<>"Unknown",Z26<>"Not required"),IF(COUNTRY_INFO!K26=1,1,IF(COUNTRY_INFO!K26=2,0.5*COUNTRY_INFO!F26/(0.5*COUNTRY_INFO!F26+0.2*COUNTRY_INFO!G26),IF(COUNTRY_INFO!K26=3,COUNTRY_INFO!F26/(COUNTRY_INFO!F26+COUNTRY_INFO!G26)))),0) -> 0.3407124905 | AO26: =IF(AND(Z26<>0,Z26<>"Unknown",Z26<>"Not required"),IF(COUNTRY_INFO!K26=1,0,IF(COUNTRY_INFO!K26=2,0.2*COUNTRY_INFO!G26/(0.5*COUNTRY_INFO!F26+0.2*COUNTRY_INFO!G26),IF(COUNTRY_INFO!K26=3,COUNTRY_INFO!G26/(COUNTRY_INFO!F26+COUNTRY_INFO!G26)))),0) -> 0.6592875095 | AP26: =MAX(COUNTRY_INFO!D26*AK26*PROFILE!$G$7,COUNTRY_INFO!D26*AL26*PROFILE!$G$7) -> 25.91045728 | AQ26: =MAX(COUNTRY_INFO!D26*AK26*PROFILE!$G$8,COUNTRY_INFO!D26*AL26*PROFILE!$G$8,COUNTRY_INFO!D26*AM26*PROFILE!$G$8) -> 96815.98291 | AR26: =MAX(COUNTRY_INFO!D26*AK26*PROFILE!$G$9,COUNTRY_INFO!D26*AL26*PROFILE!$G$9,COUNTRY_INFO!D26*AM26*PROFILE!$G$9,IF(AND(DISTRICT!Z26<>"Unknown",Z26<>"Not required"),COUNTRY_INFO!O26*DISTRICT!AN26,0)) -> 143565.4676 | AS26: =MAX(COUNTRY_INFO!D26*AK26*PROFILE!$G$10,COUNTRY_INFO!D26*AL26*PROFILE!$G$10,IF(AND(DISTRICT!Z26<>"Unknown",Z26<>"Not required"),COUNTRY_INFO!O26*DISTRICT!AO26,0)) -> 277802 | AT26: 518209.3609 | AU26: Y | AV26: =MAX('MDA2'!J26,'T1'!L26,'T2'!J26,T3_R1!K26,T3_R2!K26) -> 85293 | AW26: =MAX('MDA1'!K26,'MDA2'!K26,'MDA3'!I26,'MDA3'!L26,'T1'!M26,'T2'!K26,T3_R1!L26,T3_R2!L26) -> 175975 | AX26: =MAX('MDA1'!L26,'MDA2'!L26,'MDA3'!J26,'MDA3'!M26,'T1'!N26,'T2'!L26,T3_R1!M26,T3_R2!M26) -> 71589.95326 | AY26: 332857.9533 | AZ26: =MAX('MDA2'!J26,T26) -> 85293 | BA26: =MAX('MDA1'!K26,'MDA2'!K26,'MDA3'!I26,'MDA3'!L26,V26,AD26) -> 143565 | BB26: =MAX('MDA1'!L26,'MDA2'!L26,'MDA3'!J26,'MDA3'!M26,AF26) -> 71589.95326 | BC26: 300447.9533 | BD26: 57.97810227
A27: =IF(COUNTRY_INFO!A27=0," ",COUNTRY_INFO!A27) -> Malawi | B27: =IF(COUNTRY_INFO!B27=0," ",COUNTRY_INFO!B27) -> South | C27: =IF(COUNTRY_INFO!C27=0," ",COUNTRY_INFO!C27) -> Chiradzulu | D27: =COUNTRY_INFO!L27 -> Not required | G27: =MAX('MDA1'!M27,'MDA2'!M27) -> 0 | H27: =IF(AND(COUNTRY_INFO!H27>0,COUNTRY_INFO!H27<4),IF(D27>MAX('MDA1'!M27,'MDA2'!M27),MAX('MDA1'!M27,'MDA2'!M27),D27),0) -> 0 | I27: =IF(AND(COUNTRY_INFO!H27>0,COUNTRY_INFO!H27<4), IF(G27/D27*100<>0, IF(G27/D27*100>100,100,G27/D27*100), "-"),0) -> 0 | J27: =COUNTRY_INFO!M27 -> 178220 | M27: =MAX('MDA1'!M27,MAX('MDA3'!I27,'MDA3'!L27)+MAX('MDA3'!J27,'MDA3'!M27)) -> 148107 | N27: =IF(AND(COUNTRY_INFO!I27>0,COUNTRY_INFO!I27<4),IF(J27>MAX('MDA1'!M27,MAX('MDA3'!I27,'MDA3'!L27)+MAX('MDA3'!J27,'MDA3'!M27)),MAX('MDA1'!M27,MAX('MDA3'!I27,'MDA3'!L27)+MAX('MDA3'!J27,'MDA3'!M27)),J27),0) -> 148107 | O27: =IF(AND(COUNTRY_INFO!I27>0,COUNTRY_INFO!I27<4), IF(M27/J27*100<>0, IF(M27/J27*100>100,100,M27/J27*100), "-"),0) -> 83.10346762 | P27: =COUNTRY_INFO!N27 -> 145660 | S27: =SUM(MAX('MDA2'!J27, 'T1'!L27, MAX(T3_R1!K27, T3_R2!K27)), MAX('MDA1'!K27, 'MDA2'!K27, 'T1'!M27, MAX(T3_R1!L27, T3_R2!L27)), MAX('MDA1'!L27, 'MDA2'!L27, 'T1'!N27, MAX(T3_R1!M27, T3_R2!M27))) -> 169987 | T27: =IF(AND(COUNTRY_INFO!J27>1,COUNTRY_INFO!J27<4),IF(COUNTRY_INFO!E27>MAX('MDA2'!J27,'T1'!L27,MAX(T3_R1!K27,T3_R2!K27)),MAX('MDA2'!J27,'T1'!L27,MAX(T3_R1!K27,T3_R2!K27)),COUNTRY_INFO!E27),0) -> 52201 | U27: =IF(AND(COUNTRY_INFO!J27>1,COUNTRY_INFO!J27<4), IF(T27/COUNTRY_INFO!E27*100<>0, IF(T27/COUNTRY_INFO!E27*100>100,100,T27/COUNTRY_INFO!E27*100), "-"),0) -> 88.97998841 | V27: =IF(AND(COUNTRY_INFO!J27>1,COUNTRY_INFO!J27<4),IF(COUNTRY_INFO!F27>MAX('MDA1'!K27,'MDA2'!K27,'T1'!M27,MAX(T3_R1!L27,T3_R2!L27)),MAX('MDA1'!K27,'MDA2'!K27,'T1'!M27,MAX(T3_R1!L27,T3_R2!L27)),COUNTRY_INFO!F27),0) -> 86753 | W27: =IF(AND(COUNTRY_INFO!J27>1,COUNTRY_INFO!J27<4), IF(V27/COUNTRY_INFO!F27*100<>0, IF(V27/COUNTRY_INFO!F27*100>100,100,V27/COUNTRY_INFO!F27*100), "-"),0) -> 99.7229694 | X27: 138954 | Y27: =IF(AND(COUNTRY_INFO!J27>1,COUNTRY_INFO!J27<4), IF(S27/P27*100<>0, IF(X27/P27*100>100,100,X27/P27*100), "-"),0) -> 95.39612797 | Z27: =COUNTRY_INFO!O27 -> 77164.2 | AC27: =MAX(SUM('T1'!L27:'T1'!N27),SUM('T2'!J27:'T2'!L27)) -> 117786 | AD27: =IF(COUNTRY_INFO!K27=1,IF(COUNTRY_INFO!F27*0.33>MAX('T1'!M27,'T2'!K27),MAX('T1'!M27,'T2'!K27),COUNTRY_INFO!F27*0.33),IF(COUNTRY_INFO!K27=2,IF(COUNTRY_INFO!F27*0.5>MAX('T1'!M27,'T2'!K27),MAX('T1'!M27,'T2'!K27),COUNTRY_INFO!F27*0.5),IF(COUNTRY_INFO!K27=3,IF(COUNTRY_INFO!F27>MAX('T1'!M27,'T2'!K27),MAX('T1'!M27,'T2'!K27),COUNTRY_INFO!F27),0))) -> 43497 | AE27: =IF(AND(COUNTRY_INFO!K27>0,COUNTRY_INFO!K27<4),IF(Z27>0,IF(COUNTRY_INFO!K27=1, AD27/(COUNTRY_INFO!F27*0.33)*100, IF(COUNTRY_INFO!K27=2, AD27/(COUNTRY_INFO!F27*0.5)*100, IF(COUNTRY_INFO!K27=3, AD27/COUNTRY_INFO!F27*100))),"-"),0) -> 100 | AF27: =IF(COUNTRY_INFO!K27=2,IF(COUNTRY_INFO!G27*0.2>MAX('T1'!N27,'T2'!L27),MAX('T1'!N27,'T2'!L27),COUNTRY_INFO!G27*0.2),IF(COUNTRY_INFO!K27=3,IF(COUNTRY_INFO!G27>MAX('T1'!N27,'T2'!L27),MAX('T1'!N27,'T2'!L27),COUNTRY_INFO!G27),0)) -> 31033 | AG27: =IF(AND(COUNTRY_INFO!K27>0,COUNTRY_INFO!K27<4),IF(Z27>0,IF(COUNTRY_INFO!K27=1, 0, IF(COUNTRY_INFO!K27=2, AF27/(COUNTRY_INFO!G27*0.2)*100, IF(COUNTRY_INFO!K27=3, AF27/COUNTRY_INFO!G27*100))),"-"),0) -> 92.17576751 | AH27: 74530 | AI27: =IF(AND(COUNTRY_INFO!K27>0,COUNTRY_INFO!K27<4), IF(AC27/Z27*100<>0, IF(AH27/Z27*100>100,100,AH27/Z27*100), "-"),0) -> 96.58624077 | AK27: =IF(AND(D27<>0, D27<>"Unknown",D27<>"Stopped",D27<>"Not required"),D27/COUNTRY_INFO!D27, 0) -> 0 | AL27: =IF(AND(J27<>0,J27<>"Unknown",J27<>"Stopped",J27<>"Not required"),J27/COUNTRY_INFO!D27, 0) -> 0.5674729907 | AM27: =IF(AND(P27<>0,P27<>"Unknown",P27<>"Not required"),P27/(COUNTRY_INFO!E27+COUNTRY_INFO!F27), 0) -> 1 | AN27: =IF(AND(Z27<>0,Z27<>"Unknown",Z27<>"Not required"),IF(COUNTRY_INFO!K27=1,1,IF(COUNTRY_INFO!K27=2,0.5*COUNTRY_INFO!F27/(0.5*COUNTRY_INFO!F27+0.2*COUNTRY_INFO!G27),IF(COUNTRY_INFO!K27=3,COUNTRY_INFO!F27/(COUNTRY_INFO!F27+COUNTRY_INFO!G27)))),0) -> 0.5636940446 | AO27: =IF(AND(Z27<>0,Z27<>"Unknown",Z27<>"Not required"),IF(COUNTRY_INFO!K27=1,0,IF(COUNTRY_INFO!K27=2,0.2*COUNTRY_INFO!G27/(0.5*COUNTRY_INFO!F27+0.2*COUNTRY_INFO!G27),IF(COUNTRY_INFO!K27=3,COUNTRY_INFO!G27/(COUNTRY_INFO!F27+COUNTRY_INFO!G27)))),0) -> 0.4363059554 | AP27: =MAX(COUNTRY_INFO!D27*AK27*PROFILE!$G$7,COUNTRY_INFO!D27*AL27*PROFILE!$G$7) -> 35.69974253 | AQ27: =MAX(COUNTRY_INFO!D27*AK27*PROFILE!$G$8,COUNTRY_INFO!D27*AL27*PROFILE!$G$8,COUNTRY_INFO!D27*AM27*PROFILE!$G$8) -> 58666.20381 | AR27: =MAX(COUNTRY_INFO!D27*AK27*PROFILE!$G$9,COUNTRY_INFO!D27*AL27*PROFILE!$G$9,COUNTRY_INFO!D27*AM27*PROFILE!$G$9,IF(AND(DISTRICT!Z27<>"Unknown",Z27<>"Not required"),COUNTRY_INFO!O27*DISTRICT!AN27,0)) -> 86994.32396 | AS27: =MAX(COUNTRY_INFO!D27*AK27*PROFILE!$G$10,COUNTRY_INFO!D27*AL27*PROFILE!$G$10,IF(AND(DISTRICT!Z27<>"Unknown",Z27<>"Not required"),COUNTRY_INFO!O27*DISTRICT!AO27,0)) -> 95525.88493 | AT27: 241222.1124 | AU27: Y | AV27: =MAX('MDA2'!J27,'T1'!L27,'T2'!J27,T3_R1!K27,T3_R2!K27) -> 52201 | AW27: =MAX('MDA1'!K27,'MDA2'!K27,'MDA3'!I27,'MDA3'!L27,'T1'!M27,'T2'!K27,T3_R1!L27,T3_R2!L27) -> 86753 | AX27: =MAX('MDA1'!L27,'MDA2'!L27,'MDA3'!J27,'MDA3'!M27,'T1'!N27,'T2'!L27,T3_R1!M27,T3_R2!M27) -> 97644.95941 | AY27: 236598.9594 | AZ27: =MAX('MDA2'!J27,T27) -> 52201 | BA27: =MAX('MDA1'!K27,'MDA2'!K27,'MDA3'!I27,'MDA3'!L27,V27,AD27) -> 86753 | BB27: =MAX('MDA1'!L27,'MDA2'!L27,'MDA3'!J27,'MDA3'!M27,AF27) -> 97644.95941 | BC27: 236598.9594 | BD27: 98.08344559
A28: =IF(COUNTRY_INFO!A28=0," ",COUNTRY_INFO!A28) -> Malawi | B28: =IF(COUNTRY_INFO!B28=0," ",COUNTRY_INFO!B28) -> South | C28: =IF(COUNTRY_INFO!C28=0," ",COUNTRY_INFO!C28) -> Machinga | D28: =COUNTRY_INFO!L28 -> Not required | G28: =MAX('MDA1'!M28,'MDA2'!M28) -> 0 | H28: =IF(AND(COUNTRY_INFO!H28>0,COUNTRY_INFO!H28<4),IF(D28>MAX('MDA1'!M28,'MDA2'!M28),MAX('MDA1'!M28,'MDA2'!M28),D28),0) -> 0 | I28: =IF(AND(COUNTRY_INFO!H28>0,COUNTRY_INFO!H28<4), IF(G28/D28*100<>0, IF(G28/D28*100>100,100,G28/D28*100), "-"),0) -> 0 | J28: =COUNTRY_INFO!M28 -> 0 | M28: =MAX('MDA1'!M28,MAX('MDA3'!I28,'MDA3'!L28)+MAX('MDA3'!J28,'MDA3'!M28)) -> 0 | N28: =IF(AND(COUNTRY_INFO!I28>0,COUNTRY_INFO!I28<4),IF(J28>MAX('MDA1'!M28,MAX('MDA3'!I28,'MDA3'!L28)+MAX('MDA3'!J28,'MDA3'!M28)),MAX('MDA1'!M28,MAX('MDA3'!I28,'MDA3'!L28)+MAX('MDA3'!J28,'MDA3'!M28)),J28),0) -> 0 | O28: =IF(AND(COUNTRY_INFO!I28>0,COUNTRY_INFO!I28<4), IF(M28/J28*100<>0, IF(M28/J28*100>100,100,M28/J28*100), "-"),0) -> 0 | P28: =COUNTRY_INFO!N28 -> 273507 | S28: =SUM(MAX('MDA2'!J28, 'T1'!L28, MAX(T3_R1!K28, T3_R2!K28)), MAX('MDA1'!K28, 'MDA2'!K28, 'T1'!M28, MAX(T3_R1!L28, T3_R2!L28)), MAX('MDA1'!L28, 'MDA2'!L28, 'T1'!N28, MAX(T3_R1!M28, T3_R2!M28))) -> 449739 | T28: =IF(AND(COUNTRY_INFO!J28>1,COUNTRY_INFO!J28<4),IF(COUNTRY_INFO!E28>MAX('MDA2'!J28,'T1'!L28,MAX(T3_R1!K28,T3_R2!K28)),MAX('MDA2'!J28,'T1'!L28,MAX(T3_R1!K28,T3_R2!K28)),COUNTRY_INFO!E28),0) -> 110158 | U28: =IF(AND(COUNTRY_INFO!J28>1,COUNTRY_INFO!J28<4), IF(T28/COUNTRY_INFO!E28*100<>0, IF(T28/COUNTRY_INFO!E28*100>100,100,T28/COUNTRY_INFO!E28*100), "-"),0) -> 100 | V28: =IF(AND(COUNTRY_INFO!J28>1,COUNTRY_INFO!J28<4),IF(COUNTRY_INFO!F28>MAX('MDA1'!K28,'MDA2'!K28,'T1'!M28,MAX(T3_R1!L28,T3_R2!L28)),MAX('MDA1'!K28,'MDA2'!K28,'T1'!M28,MAX(T3_R1!L28,T3_R2!L28)),COUNTRY_INFO!F28),0) -> 163349 | W28: =IF(AND(COUNTRY_INFO!J28>1,COUNTRY_INFO!J28<4), IF(V28/COUNTRY_INFO!F28*100<>0, IF(V28/COUNTRY_INFO!F28*100>100,100,V28/COUNTRY_INFO!F28*100), "-"),0) -> 100 | X28: 273507 | Y28: =IF(AND(COUNTRY_INFO!J28>1,COUNTRY_INFO!J28<4), IF(S28/P28*100<>0, IF(X28/P28*100>100,100,X28/P28*100), "-"),0) -> 100 | Z28: =COUNTRY_INFO!O28 -> 479433 | AC28: =MAX(SUM('T1'!L28:'T1'!N28),SUM('T2'!J28:'T2'!L28)) -> 337983 | AD28: =IF(COUNTRY_INFO!K28=1,IF(COUNTRY_INFO!F28*0.33>MAX('T1'!M28,'T2'!K28),MAX('T1'!M28,'T2'!K28),COUNTRY_INFO!F28*0.33),IF(COUNTRY_INFO!K28=2,IF(COUNTRY_INFO!F28*0.5>MAX('T1'!M28,'T2'!K28),MAX('T1'!M28,'T2'!K28),COUNTRY_INFO!F28*0.5),IF(COUNTRY_INFO!K28=3,IF(COUNTRY_INFO!F28>MAX('T1'!M28,'T2'!K28),MAX('T1'!M28,'T2'!K28),COUNTRY_INFO!F28),0))) -> 163349 | AE28: =IF(AND(COUNTRY_INFO!K28>0,COUNTRY_INFO!K28<4),IF(Z28>0,IF(COUNTRY_INFO!K28=1, AD28/(COUNTRY_INFO!F28*0.33)*100, IF(COUNTRY_INFO!K28=2, AD28/(COUNTRY_INFO!F28*0.5)*100, IF(COUNTRY_INFO!K28=3, AD28/COUNTRY_INFO!F28*100))),"-"),0) -> 100 | AF28: =IF(COUNTRY_INFO!K28=2,IF(COUNTRY_INFO!G28*0.2>MAX('T1'!N28,'T2'!L28),MAX('T1'!N28,'T2'!L28),COUNTRY_INFO!G28*0.2),IF(COUNTRY_INFO!K28=3,IF(COUNTRY_INFO!G28>MAX('T1'!N28,'T2'!L28),MAX('T1'!N28,'T2'!L28),COUNTRY_INFO!G28),0)) -> 161960 | AG28: =IF(AND(COUNTRY_INFO!K28>0,COUNTRY_INFO!K28<4),IF(Z28>0,IF(COUNTRY_INFO!K28=1, 0, IF(COUNTRY_INFO!K28=2, AF28/(COUNTRY_INFO!G28*0.2)*100, IF(COUNTRY_INFO!K28=3, AF28/COUNTRY_INFO!G28*100))),"-"),0) -> 51.23954392 | AH28: 325309 | AI28: =IF(AND(COUNTRY_INFO!K28>0,COUNTRY_INFO!K28<4), IF(AC28/Z28*100<>0, IF(AH28/Z28*100>100,100,AH28/Z28*100), "-"),0) -> 67.85285952 | AK28: =IF(AND(D28<>0, D28<>"Unknown",D28<>"Stopped",D28<>"Not required"),D28/COUNTRY_INFO!D28, 0) -> 0 | AL28: =IF(AND(J28<>0,J28<>"Unknown",J28<>"Stopped",J28<>"Not required"),J28/COUNTRY_INFO!D28, 0) -> 0 | AM28: =IF(AND(P28<>0,P28<>"Unknown",P28<>"Not required"),P28/(COUNTRY_INFO!E28+COUNTRY_INFO!F28), 0) -> 1 | AN28: =IF(AND(Z28<>0,Z28<>"Unknown",Z28<>"Not required"),IF(COUNTRY_INFO!K28=1,1,IF(COUNTRY_INFO!K28=2,0.5*COUNTRY_INFO!F28/(0.5*COUNTRY_INFO!F28+0.2*COUNTRY_INFO!G28),IF(COUNTRY_INFO!K28=3,COUNTRY_INFO!F28/(COUNTRY_INFO!F28+COUNTRY_INFO!G28)))),0) -> 0.3407128838 | AO28: =IF(AND(Z28<>0,Z28<>"Unknown",Z28<>"Not required"),IF(COUNTRY_INFO!K28=1,0,IF(COUNTRY_INFO!K28=2,0.2*COUNTRY_INFO!G28/(0.5*COUNTRY_INFO!F28+0.2*COUNTRY_INFO!G28),IF(COUNTRY_INFO!K28=3,COUNTRY_INFO!G28/(COUNTRY_INFO!F28+COUNTRY_INFO!G28)))),0) -> 0.6592871162 | AP28: =MAX(COUNTRY_INFO!D28*AK28*PROFILE!$G$7,COUNTRY_INFO!D28*AL28*PROFILE!$G$7) -> 0 | AQ28: =MAX(COUNTRY_INFO!D28*AK28*PROFILE!$G$8,COUNTRY_INFO!D28*AL28*PROFILE!$G$8,COUNTRY_INFO!D28*AM28*PROFILE!$G$8) -> 110157.6086 | AR28: =MAX(COUNTRY_INFO!D28*AK28*PROFILE!$G$9,COUNTRY_INFO!D28*AL28*PROFILE!$G$9,COUNTRY_INFO!D28*AM28*PROFILE!$G$9,IF(AND(DISTRICT!Z28<>"Unknown",Z28<>"Not required"),COUNTRY_INFO!O28*DISTRICT!AN28,0)) -> 163349.3572 | AS28: =MAX(COUNTRY_INFO!D28*AK28*PROFILE!$G$10,COUNTRY_INFO!D28*AL28*PROFILE!$G$10,IF(AND(DISTRICT!Z28<>"Unknown",Z28<>"Not required"),COUNTRY_INFO!O28*DISTRICT!AO28,0)) -> 316084 | AT28: 589590.9658 | AU28: Y | AV28: =MAX('MDA2'!J28,'T1'!L28,'T2'!J28,T3_R1!K28,T3_R2!K28) -> 111756 | AW28: =MAX('MDA1'!K28,'MDA2'!K28,'MDA3'!I28,'MDA3'!L28,'T1'!M28,'T2'!K28,T3_R1!L28,T3_R2!L28) -> 176023 | AX28: =MAX('MDA1'!L28,'MDA2'!L28,'MDA3'!J28,'MDA3'!M28,'T1'!N28,'T2'!L28,T3_R1!M28,T3_R2!M28) -> 161960 | AY28: 449739 | AZ28: =MAX('MDA2'!J28,T28) -> 110158 | BA28: =MAX('MDA1'!K28,'MDA2'!K28,'MDA3'!I28,'MDA3'!L28,V28,AD28) -> 163349 | BB28: =MAX('MDA1'!L28,'MDA2'!L28,'MDA3'!J28,'MDA3'!M28,AF28) -> 161960 | BC28: 435467 | BD28: 73.85917106
A29: =IF(COUNTRY_INFO!A29=0," ",COUNTRY_INFO!A29) -> Malawi | B29: =IF(COUNTRY_INFO!B29=0," ",COUNTRY_INFO!B29) -> South | C29: =IF(COUNTRY_INFO!C29=0," ",COUNTRY_INFO!C29) -> Blantyre | D29: =COUNTRY_INFO!L29 -> Not required | G29: =MAX('MDA1'!M29,'MDA2'!M29) -> 0 | H29: =IF(AND(COUNTRY_INFO!H29>0,COUNTRY_INFO!H29<4),IF(D29>MAX('MDA1'!M29,'MDA2'!M29),MAX('MDA1'!M29,'MDA2'!M29),D29),0) -> 0 | I29: =IF(AND(COUNTRY_INFO!H29>0,COUNTRY_INFO!H29<4), IF(G29/D29*100<>0, IF(G29/D29*100>100,100,G29/D29*100), "-"),0) -> 0 | J29: =COUNTRY_INFO!M29 -> 474974 | M29: =MAX('MDA1'!M29,MAX('MDA3'!I29,'MDA3'!L29)+MAX('MDA3'!J29,'MDA3'!M29)) -> 394018 | N29: =IF(AND(COUNTRY_INFO!I29>0,COUNTRY_INFO!I29<4),IF(J29>MAX('MDA1'!M29,MAX('MDA3'!I29,'MDA3'!L29)+MAX('MDA3'!J29,'MDA3'!M29)),MAX('MDA1'!M29,MAX('MDA3'!I29,'MDA3'!L29)+MAX('MDA3'!J29,'MDA3'!M29)),J29),0) -> 394018 | O29: =IF(AND(COUNTRY_INFO!I29>0,COUNTRY_INFO!I29<4), IF(M29/J29*100<>0, IF(M29/J29*100>100,100,M29/J29*100), "-"),0) -> 82.95569863 | P29: =COUNTRY_INFO!N29 -> 574961 | S29: =SUM(MAX('MDA2'!J29, 'T1'!L29, MAX(T3_R1!K29, T3_R2!K29)), MAX('MDA1'!K29, 'MDA2'!K29, 'T1'!M29, MAX(T3_R1!L29, T3_R2!L29)), MAX('MDA1'!L29, 'MDA2'!L29, 'T1'!N29, MAX(T3_R1!M29, T3_R2!M29))) -> 606818 | T29: =IF(AND(COUNTRY_INFO!J29>1,COUNTRY_INFO!J29<4),IF(COUNTRY_INFO!E29>MAX('MDA2'!J29,'T1'!L29,MAX(T3_R1!K29,T3_R2!K29)),MAX('MDA2'!J29,'T1'!L29,MAX(T3_R1!K29,T3_R2!K29)),COUNTRY_INFO!E29),0) -> 195082 | U29: =IF(AND(COUNTRY_INFO!J29>1,COUNTRY_INFO!J29<4), IF(T29/COUNTRY_INFO!E29*100<>0, IF(T29/COUNTRY_INFO!E29*100>100,100,T29/COUNTRY_INFO!E29*100), "-"),0) -> 84.24284561 | V29: =IF(AND(COUNTRY_INFO!J29>1,COUNTRY_INFO!J29<4),IF(COUNTRY_INFO!F29>MAX('MDA1'!K29,'MDA2'!K29,'T1'!M29,MAX(T3_R1!L29,T3_R2!L29)),MAX('MDA1'!K29,'MDA2'!K29,'T1'!M29,MAX(T3_R1!L29,T3_R2!L29)),COUNTRY_INFO!F29),0) -> 273618 | W29: =IF(AND(COUNTRY_INFO!J29>1,COUNTRY_INFO!J29<4), IF(V29/COUNTRY_INFO!F29*100<>0, IF(V29/COUNTRY_INFO!F29*100>100,100,V29/COUNTRY_INFO!F29*100), "-"),0) -> 79.68141181 | X29: 468700 | Y29: =IF(AND(COUNTRY_INFO!J29>1,COUNTRY_INFO!J29<4), IF(S29/P29*100<>0, IF(X29/P29*100>100,100,X29/P29*100), "-"),0) -> 81.51857256 | Z29: =COUNTRY_INFO!O29 -> 304588 | AC29: =MAX(SUM('T1'!L29:'T1'!N29),SUM('T2'!J29:'T2'!L29)) -> 411736 | AD29: =IF(COUNTRY_INFO!K29=1,IF(COUNTRY_INFO!F29*0.33>MAX('T1'!M29,'T2'!K29),MAX('T1'!M29,'T2'!K29),COUNTRY_INFO!F29*0.33),IF(COUNTRY_INFO!K29=2,IF(COUNTRY_INFO!F29*0.5>MAX('T1'!M29,'T2'!K29),MAX('T1'!M29,'T2'!K29),COUNTRY_INFO!F29*0.5),IF(COUNTRY_INFO!K29=3,IF(COUNTRY_INFO!F29>MAX('T1'!M29,'T2'!K29),MAX('T1'!M29,'T2'!K29),COUNTRY_INFO!F29),0))) -> 171695 | AE29: =IF(AND(COUNTRY_INFO!K29>0,COUNTRY_INFO!K29<4),IF(Z29>0,IF(COUNTRY_INFO!K29=1, AD29/(COUNTRY_INFO!F29*0.33)*100, IF(COUNTRY_INFO!K29=2, AD29/(COUNTRY_INFO!F29*0.5)*100, IF(COUNTRY_INFO!K29=3, AD29/COUNTRY_INFO!F29*100))),"-"),0) -> 100 | AF29: =IF(COUNTRY_INFO!K29=2,IF(COUNTRY_INFO!G29*0.2>MAX('T1'!N29,'T2'!L29),MAX('T1'!N29,'T2'!L29),COUNTRY_INFO!G29*0.2),IF(COUNTRY_INFO!K29=3,IF(COUNTRY_INFO!G29>MAX('T1'!N29,'T2'!L29),MAX('T1'!N29,'T2'!L29),COUNTRY_INFO!G29),0)) -> 132893 | AG29: =IF(AND(COUNTRY_INFO!K29>0,COUNTRY_INFO!K29<4),IF(Z29>0,IF(COUNTRY_INFO!K29=1, 0, IF(COUNTRY_INFO!K29=2, AF29/(COUNTRY_INFO!G29*0.2)*100, IF(COUNTRY_INFO!K29=3, AF29/COUNTRY_INFO!G29*100))),"-"),0) -> 100 | AH29: 304588 | AI29: =IF(AND(COUNTRY_INFO!K29>0,COUNTRY_INFO!K29<4), IF(AC29/Z29*100<>0, IF(AH29/Z29*100>100,100,AH29/Z29*100), "-"),0) -> 100 | AK29: =IF(AND(D29<>0, D29<>"Unknown",D29<>"Stopped",D29<>"Not required"),D29/COUNTRY_INFO!D29, 0) -> 0 | AL29: =IF(AND(J29<>0,J29<>"Unknown",J29<>"Stopped",J29<>"Not required"),J29/COUNTRY_INFO!D29, 0) -> 0.3831442783 | AM29: =IF(AND(P29<>0,P29<>"Unknown",P29<>"Not required"),P29/(COUNTRY_INFO!E29+COUNTRY_INFO!F29), 0) -> 1 | AN29: =IF(AND(Z29<>0,Z29<>"Unknown",Z29<>"Not required"),IF(COUNTRY_INFO!K29=1,1,IF(COUNTRY_INFO!K29=2,0.5*COUNTRY_INFO!F29/(0.5*COUNTRY_INFO!F29+0.2*COUNTRY_INFO!G29),IF(COUNTRY_INFO!K29=3,COUNTRY_INFO!F29/(COUNTRY_INFO!F29+COUNTRY_INFO!G29)))),0) -> 0.5636958777 | AO29: =IF(AND(Z29<>0,Z29<>"Unknown",Z29<>"Not required"),IF(COUNTRY_INFO!K29=1,0,IF(COUNTRY_INFO!K29=2,0.2*COUNTRY_INFO!G29/(0.5*COUNTRY_INFO!F29+0.2*COUNTRY_INFO!G29),IF(COUNTRY_INFO!K29=3,COUNTRY_INFO!G29/(COUNTRY_INFO!F29+COUNTRY_INFO!G29)))),0) -> 0.4363041223 | AP29: =MAX(COUNTRY_INFO!D29*AK29*PROFILE!$G$7,COUNTRY_INFO!D29*AL29*PROFILE!$G$7) -> 95.14335939 | AQ29: =MAX(COUNTRY_INFO!D29*AK29*PROFILE!$G$8,COUNTRY_INFO!D29*AL29*PROFILE!$G$8,COUNTRY_INFO!D29*AM29*PROFILE!$G$8) -> 231571.0346 | AR29: =MAX(COUNTRY_INFO!D29*AK29*PROFILE!$G$9,COUNTRY_INFO!D29*AL29*PROFILE!$G$9,COUNTRY_INFO!D29*AM29*PROFILE!$G$9,IF(AND(DISTRICT!Z29<>"Unknown",Z29<>"Not required"),COUNTRY_INFO!O29*DISTRICT!AN29,0)) -> 343389.6228 | AS29: =MAX(COUNTRY_INFO!D29*AK29*PROFILE!$G$10,COUNTRY_INFO!D29*AL29*PROFILE!$G$10,IF(AND(DISTRICT!Z29<>"Unknown",Z29<>"Not required"),COUNTRY_INFO!O29*DISTRICT!AO29,0)) -> 254585.9705 | AT29: 829641.7713 | AU29: Y | AV29: =MAX('MDA2'!J29,'T1'!L29,'T2'!J29,T3_R1!K29,T3_R2!K29) -> 195082 | AW29: =MAX('MDA1'!K29,'MDA2'!K29,'MDA3'!I29,'MDA3'!L29,'T1'!M29,'T2'!K29,T3_R1!L29,T3_R2!L29) -> 273618 | AX29: =MAX('MDA1'!L29,'MDA2'!L29,'MDA3'!J29,'MDA3'!M29,'T1'!N29,'T2'!L29,T3_R1!M29,T3_R2!M29) -> 259770.7847 | AY29: 728470.7847 | AZ29: =MAX('MDA2'!J29,T29) -> 195082 | BA29: =MAX('MDA1'!K29,'MDA2'!K29,'MDA3'!I29,'MDA3'!L29,V29,AD29) -> 273618 | BB29: =MAX('MDA1'!L29,'MDA2'!L29,'MDA3'!J29,'MDA3'!M29,AF29) -> 259770.7847 | BC29: 728470.7847 | BD29: 87.80546134
A30: =IF(COUNTRY_INFO!A30=0," ",COUNTRY_INFO!A30) -> Malawi | B30: =IF(COUNTRY_INFO!B30=0," ",COUNTRY_INFO!B30) -> South | C30: =IF(COUNTRY_INFO!C30=0," ",COUNTRY_INFO!C30) -> Mangochi | D30: =COUNTRY_INFO!L30 -> Not required | G30: =MAX('MDA1'!M30,'MDA2'!M30) -> 0 | H30: =IF(AND(COUNTRY_INFO!H30>0,COUNTRY_INFO!H30<4),IF(D30>MAX('MDA1'!M30,'MDA2'!M30),MAX('MDA1'!M30,'MDA2'!M30),D30),0) -> 0 | I30: =IF(AND(COUNTRY_INFO!H30>0,COUNTRY_INFO!H30<4), IF(G30/D30*100<>0, IF(G30/D30*100>100,100,G30/D30*100), "-"),0) -> 0 | J30: =COUNTRY_INFO!M30 -> 0 | M30: =MAX('MDA1'!M30,MAX('MDA3'!I30,'MDA3'!L30)+MAX('MDA3'!J30,'MDA3'!M30)) -> 0 | N30: =IF(AND(COUNTRY_INFO!I30>0,COUNTRY_INFO!I30<4),IF(J30>MAX('MDA1'!M30,MAX('MDA3'!I30,'MDA3'!L30)+MAX('MDA3'!J30,'MDA3'!M30)),MAX('MDA1'!M30,MAX('MDA3'!I30,'MDA3'!L30)+MAX('MDA3'!J30,'MDA3'!M30)),J30),0) -> 0 | O30: =IF(AND(COUNTRY_INFO!I30>0,COUNTRY_INFO!I30<4), IF(M30/J30*100<>0, IF(M30/J30*100>100,100,M30/J30*100), "-"),0) -> 0 | P30: =COUNTRY_INFO!N30 -> 455478 | S30: =SUM(MAX('MDA2'!J30, 'T1'!L30, MAX(T3_R1!K30, T3_R2!K30)), MAX('MDA1'!K30, 'MDA2'!K30, 'T1'!M30, MAX(T3_R1!L30, T3_R2!L30)), MAX('MDA1'!L30, 'MDA2'!L30, 'T1'!N30, MAX(T3_R1!M30, T3_R2!M30))) -> 586961 | T30: =IF(AND(COUNTRY_INFO!J30>1,COUNTRY_INFO!J30<4),IF(COUNTRY_INFO!E30>MAX('MDA2'!J30,'T1'!L30,MAX(T3_R1!K30,T3_R2!K30)),MAX('MDA2'!J30,'T1'!L30,MAX(T3_R1!K30,T3_R2!K30)),COUNTRY_INFO!E30),0) -> 152076 | U30: =IF(AND(COUNTRY_INFO!J30>1,COUNTRY_INFO!J30<4), IF(T30/COUNTRY_INFO!E30*100<>0, IF(T30/COUNTRY_INFO!E30*100>100,100,T30/COUNTRY_INFO!E30*100), "-"),0) -> 82.89869609 | V30: =IF(AND(COUNTRY_INFO!J30>1,COUNTRY_INFO!J30<4),IF(COUNTRY_INFO!F30>MAX('MDA1'!K30,'MDA2'!K30,'T1'!M30,MAX(T3_R1!L30,T3_R2!L30)),MAX('MDA1'!K30,'MDA2'!K30,'T1'!M30,MAX(T3_R1!L30,T3_R2!L30)),COUNTRY_INFO!F30),0) -> 222499 | W30: =IF(AND(COUNTRY_INFO!J30>1,COUNTRY_INFO!J30<4), IF(V30/COUNTRY_INFO!F30*100<>0, IF(V30/COUNTRY_INFO!F30*100>100,100,V30/COUNTRY_INFO!F30*100), "-"),0) -> 81.79208176 | X30: 374575 | Y30: =IF(AND(COUNTRY_INFO!J30>1,COUNTRY_INFO!J30<4), IF(S30/P30*100<>0, IF(X30/P30*100>100,100,X30/P30*100), "-"),0) -> 82.23778097 | Z30: =COUNTRY_INFO!O30 -> 798413 | AC30: =MAX(SUM('T1'!L30:'T1'!N30),SUM('T2'!J30:'T2'!L30)) -> 434885 | AD30: =IF(COUNTRY_INFO!K30=1,IF(COUNTRY_INFO!F30*0.33>MAX('T1'!M30,'T2'!K30),MAX('T1'!M30,'T2'!K30),COUNTRY_INFO!F30*0.33),IF(COUNTRY_INFO!K30=2,IF(COUNTRY_INFO!F30*0.5>MAX('T1'!M30,'T2'!K30),MAX('T1'!M30,'T2'!K30),COUNTRY_INFO!F30*0.5),IF(COUNTRY_INFO!K30=3,IF(COUNTRY_INFO!F30>MAX('T1'!M30,'T2'!K30),MAX('T1'!M30,'T2'!K30),COUNTRY_INFO!F30),0))) -> 222499 | AE30: =IF(AND(COUNTRY_INFO!K30>0,COUNTRY_INFO!K30<4),IF(Z30>0,IF(COUNTRY_INFO!K30=1, AD30/(COUNTRY_INFO!F30*0.33)*100, IF(COUNTRY_INFO!K30=2, AD30/(COUNTRY_INFO!F30*0.5)*100, IF(COUNTRY_INFO!K30=3, AD30/COUNTRY_INFO!F30*100))),"-"),0) -> 81.79208176 | AF30: =IF(COUNTRY_INFO!K30=2,IF(COUNTRY_INFO!G30*0.2>MAX('T1'!N30,'T2'!L30),MAX('T1'!N30,'T2'!L30),COUNTRY_INFO!G30*0.2),IF(COUNTRY_INFO!K30=3,IF(COUNTRY_INFO!G30>MAX('T1'!N30,'T2'!L30),MAX('T1'!N30,'T2'!L30),COUNTRY_INFO!G30),0)) -> 212386 | AG30: =IF(AND(COUNTRY_INFO!K30>0,COUNTRY_INFO!K30<4),IF(Z30>0,IF(COUNTRY_INFO!K30=1, 0, IF(COUNTRY_INFO!K30=2, AF30/(COUNTRY_INFO!G30*0.2)*100, IF(COUNTRY_INFO!K30=3, AF30/COUNTRY_INFO!G30*100))),"-"),0) -> 40.34818754 | AH30: 434885 | AI30: =IF(AND(COUNTRY_INFO!K30>0,COUNTRY_INFO!K30<4), IF(AC30/Z30*100<>0, IF(AH30/Z30*100>100,100,AH30/Z30*100), "-"),0) -> 54.46867724 | AK30: =IF(AND(D30<>0, D30<>"Unknown",D30<>"Stopped",D30<>"Not required"),D30/COUNTRY_INFO!D30, 0) -> 0 | AL30: =IF(AND(J30<>0,J30<>"Unknown",J30<>"Stopped",J30<>"Not required"),J30/COUNTRY_INFO!D30, 0) -> 0 | AM30: =IF(AND(P30<>0,P30<>"Unknown",P30<>"Not required"),P30/(COUNTRY_INFO!E30+COUNTRY_INFO!F30), 0) -> 1 | AN30: =IF(AND(Z30<>0,Z30<>"Unknown",Z30<>"Not required"),IF(COUNTRY_INFO!K30=1,1,IF(COUNTRY_INFO!K30=2,0.5*COUNTRY_INFO!F30/(0.5*COUNTRY_INFO!F30+0.2*COUNTRY_INFO!G30),IF(COUNTRY_INFO!K30=3,COUNTRY_INFO!F30/(COUNTRY_INFO!F30+COUNTRY_INFO!G30)))),0) -> 0.3407133902 | AO30: =IF(AND(Z30<>0,Z30<>"Unknown",Z30<>"Not required"),IF(COUNTRY_INFO!K30=1,0,IF(COUNTRY_INFO!K30=2,0.2*COUNTRY_INFO!G30/(0.5*COUNTRY_INFO!F30+0.2*COUNTRY_INFO!G30),IF(COUNTRY_INFO!K30=3,COUNTRY_INFO!G30/(COUNTRY_INFO!F30+COUNTRY_INFO!G30)))),0) -> 0.6592866098 | AP30: =MAX(COUNTRY_INFO!D30*AK30*PROFILE!$G$7,COUNTRY_INFO!D30*AL30*PROFILE!$G$7) -> 0 | AQ30: =MAX(COUNTRY_INFO!D30*AK30*PROFILE!$G$8,COUNTRY_INFO!D30*AL30*PROFILE!$G$8,COUNTRY_INFO!D30*AM30*PROFILE!$G$8) -> 183448.38 | AR30: =MAX(COUNTRY_INFO!D30*AK30*PROFILE!$G$9,COUNTRY_INFO!D30*AL30*PROFILE!$G$9,COUNTRY_INFO!D30*AM30*PROFILE!$G$9,IF(AND(DISTRICT!Z30<>"Unknown",Z30<>"Not required"),COUNTRY_INFO!O30*DISTRICT!AN30,0)) -> 272030.0065 | AS30: =MAX(COUNTRY_INFO!D30*AK30*PROFILE!$G$10,COUNTRY_INFO!D30*AL30*PROFILE!$G$10,IF(AND(DISTRICT!Z30<>"Unknown",Z30<>"Not required"),COUNTRY_INFO!O30*DISTRICT!AO30,0)) -> 526383 | AT30: 981861.3865 | AU30: Y | AV30: =MAX('MDA2'!J30,'T1'!L30,'T2'!J30,T3_R1!K30,T3_R2!K30) -> 152076 | AW30: =MAX('MDA1'!K30,'MDA2'!K30,'MDA3'!I30,'MDA3'!L30,'T1'!M30,'T2'!K30,T3_R1!L30,T3_R2!L30) -> 222499 | AX30: =MAX('MDA1'!L30,'MDA2'!L30,'MDA3'!J30,'MDA3'!M30,'T1'!N30,'T2'!L30,T3_R1!M30,T3_R2!M30) -> 212386 | AY30: 586961 | AZ30: =MAX('MDA2'!J30,T30) -> 152076 | BA30: =MAX('MDA1'!K30,'MDA2'!K30,'MDA3'!I30,'MDA3'!L30,V30,AD30) -> 222499 | BB30: =MAX('MDA1'!L30,'MDA2'!L30,'MDA3'!J30,'MDA3'!M30,AF30) -> 212386 | BC30: 586961 | BD30: 59.78043419
A31: =IF(COUNTRY_INFO!A31=0," ",COUNTRY_INFO!A31) -> Malawi | B31: =IF(COUNTRY_INFO!B31=0," ",COUNTRY_INFO!B31) -> South | C31: =IF(COUNTRY_INFO!C31=0," ",COUNTRY_INFO!C31) -> Mulanje | D31: =COUNTRY_INFO!L31 -> Not required | G31: =MAX('MDA1'!M31,'MDA2'!M31) -> 0 | H31: =IF(AND(COUNTRY_INFO!H31>0,COUNTRY_INFO!H31<4),IF(D31>MAX('MDA1'!M31,'MDA2'!M31),MAX('MDA1'!M31,'MDA2'!M31),D31),0) -> 0 | I31: =IF(AND(COUNTRY_INFO!H31>0,COUNTRY_INFO!H31<4), IF(G31/D31*100<>0, IF(G31/D31*100>100,100,G31/D31*100), "-"),0) -> 0 | J31: =COUNTRY_INFO!M31 -> 502062 | M31: =MAX('MDA1'!M31,MAX('MDA3'!I31,'MDA3'!L31)+MAX('MDA3'!J31,'MDA3'!M31)) -> 417918 | N31: =IF(AND(COUNTRY_INFO!I31>0,COUNTRY_INFO!I31<4),IF(J31>MAX('MDA1'!M31,MAX('MDA3'!I31,'MDA3'!L31)+MAX('MDA3'!J31,'MDA3'!M31)),MAX('MDA1'!M31,MAX('MDA3'!I31,'MDA3'!L31)+MAX('MDA3'!J31,'MDA3'!M31)),J31),0) -> 417918 | O31: =IF(AND(COUNTRY_INFO!I31>0,COUNTRY_INFO!I31<4), IF(M31/J31*100<>0, IF(M31/J31*100>100,100,M31/J31*100), "-"),0) -> 83.24031693 | P31: =COUNTRY_INFO!N31 -> 262036 | S31: =SUM(MAX('MDA2'!J31, 'T1'!L31, MAX(T3_R1!K31, T3_R2!K31)), MAX('MDA1'!K31, 'MDA2'!K31, 'T1'!M31, MAX(T3_R1!L31, T3_R2!L31)), MAX('MDA1'!L31, 'MDA2'!L31, 'T1'!N31, MAX(T3_R1!M31, T3_R2!M31))) -> 266544 | T31: =IF(AND(COUNTRY_INFO!J31>1,COUNTRY_INFO!J31<4),IF(COUNTRY_INFO!E31>MAX('MDA2'!J31,'T1'!L31,MAX(T3_R1!K31,T3_R2!K31)),MAX('MDA2'!J31,'T1'!L31,MAX(T3_R1!K31,T3_R2!K31)),COUNTRY_INFO!E31),0) -> 105538 | U31: =IF(AND(COUNTRY_INFO!J31>1,COUNTRY_INFO!J31<4), IF(T31/COUNTRY_INFO!E31*100<>0, IF(T31/COUNTRY_INFO!E31*100>100,100,T31/COUNTRY_INFO!E31*100), "-"),0) -> 100 | V31: =IF(AND(COUNTRY_INFO!J31>1,COUNTRY_INFO!J31<4),IF(COUNTRY_INFO!F31>MAX('MDA1'!K31,'MDA2'!K31,'T1'!M31,MAX(T3_R1!L31,T3_R2!L31)),MAX('MDA1'!K31,'MDA2'!K31,'T1'!M31,MAX(T3_R1!L31,T3_R2!L31)),COUNTRY_INFO!F31),0) -> 136718 | W31: =IF(AND(COUNTRY_INFO!J31>1,COUNTRY_INFO!J31<4), IF(V31/COUNTRY_INFO!F31*100<>0, IF(V31/COUNTRY_INFO!F31*100>100,100,V31/COUNTRY_INFO!F31*100), "-"),0) -> 87.36086084 | X31: 242256 | Y31: =IF(AND(COUNTRY_INFO!J31>1,COUNTRY_INFO!J31<4), IF(S31/P31*100<>0, IF(X31/P31*100>100,100,X31/P31*100), "-"),0) -> 92.45141889 | Z31: =COUNTRY_INFO!O31 -> 459325 | AC31: =MAX(SUM('T1'!L31:'T1'!N31),SUM('T2'!J31:'T2'!L31)) -> 159864 | AD31: =IF(COUNTRY_INFO!K31=1,IF(COUNTRY_INFO!F31*0.33>MAX('T1'!M31,'T2'!K31),MAX('T1'!M31,'T2'!K31),COUNTRY_INFO!F31*0.33),IF(COUNTRY_INFO!K31=2,IF(COUNTRY_INFO!F31*0.5>MAX('T1'!M31,'T2'!K31),MAX('T1'!M31,'T2'!K31),COUNTRY_INFO!F31*0.5),IF(COUNTRY_INFO!K31=3,IF(COUNTRY_INFO!F31>MAX('T1'!M31,'T2'!K31),MAX('T1'!M31,'T2'!K31),COUNTRY_INFO!F31),0))) -> 136718 | AE31: =IF(AND(COUNTRY_INFO!K31>0,COUNTRY_INFO!K31<4),IF(Z31>0,IF(COUNTRY_INFO!K31=1, AD31/(COUNTRY_INFO!F31*0.33)*100, IF(COUNTRY_INFO!K31=2, AD31/(COUNTRY_INFO!F31*0.5)*100, IF(COUNTRY_INFO!K31=3, AD31/COUNTRY_INFO!F31*100))),"-"),0) -> 87.36086084 | AF31: =IF(COUNTRY_INFO!K31=2,IF(COUNTRY_INFO!G31*0.2>MAX('T1'!N31,'T2'!L31),MAX('T1'!N31,'T2'!L31),COUNTRY_INFO!G31*0.2),IF(COUNTRY_INFO!K31=3,IF(COUNTRY_INFO!G31>MAX('T1'!N31,'T2'!L31),MAX('T1'!N31,'T2'!L31),COUNTRY_INFO!G31),0)) -> 23146 | AG31: =IF(AND(COUNTRY_INFO!K31>0,COUNTRY_INFO!K31<4),IF(Z31>0,IF(COUNTRY_INFO!K31=1, 0, IF(COUNTRY_INFO!K31=2, AF31/(COUNTRY_INFO!G31*0.2)*100, IF(COUNTRY_INFO!K31=3, AF31/COUNTRY_INFO!G31*100))),"-"),0) -> 7.643307895 | AH31: 159864 | AI31: =IF(AND(COUNTRY_INFO!K31>0,COUNTRY_INFO!K31<4), IF(AC31/Z31*100<>0, IF(AH31/Z31*100>100,100,AH31/Z31*100), "-"),0) -> 34.80411473 | AK31: =IF(AND(D31<>0, D31<>"Unknown",D31<>"Stopped",D31<>"Not required"),D31/COUNTRY_INFO!D31, 0) -> 0 | AL31: =IF(AND(J31<>0,J31<>"Unknown",J31<>"Stopped",J31<>"Not required"),J31/COUNTRY_INFO!D31, 0) -> 0.8886430574 | AM31: =IF(AND(P31<>0,P31<>"Unknown",P31<>"Not required"),P31/(COUNTRY_INFO!E31+COUNTRY_INFO!F31), 0) -> 1 | AN31: =IF(AND(Z31<>0,Z31<>"Unknown",Z31<>"Not required"),IF(COUNTRY_INFO!K31=1,1,IF(COUNTRY_INFO!K31=2,0.5*COUNTRY_INFO!F31/(0.5*COUNTRY_INFO!F31+0.2*COUNTRY_INFO!G31),IF(COUNTRY_INFO!K31=3,COUNTRY_INFO!F31/(COUNTRY_INFO!F31+COUNTRY_INFO!G31)))),0) -> 0.3407130028 | AO31: =IF(AND(Z31<>0,Z31<>"Unknown",Z31<>"Not required"),IF(COUNTRY_INFO!K31=1,0,IF(COUNTRY_INFO!K31=2,0.2*COUNTRY_INFO!G31/(0.5*COUNTRY_INFO!F31+0.2*COUNTRY_INFO!G31),IF(COUNTRY_INFO!K31=3,COUNTRY_INFO!G31/(COUNTRY_INFO!F31+COUNTRY_INFO!G31)))),0) -> 0.6592869972 | AP31: =MAX(COUNTRY_INFO!D31*AK31*PROFILE!$G$7,COUNTRY_INFO!D31*AL31*PROFILE!$G$7) -> 100.5694318 | AQ31: =MAX(COUNTRY_INFO!D31*AK31*PROFILE!$G$8,COUNTRY_INFO!D31*AL31*PROFILE!$G$8,COUNTRY_INFO!D31*AM31*PROFILE!$G$8) -> 105537.4855 | AR31: =MAX(COUNTRY_INFO!D31*AK31*PROFILE!$G$9,COUNTRY_INFO!D31*AL31*PROFILE!$G$9,COUNTRY_INFO!D31*AM31*PROFILE!$G$9,IF(AND(DISTRICT!Z31<>"Unknown",Z31<>"Not required"),COUNTRY_INFO!O31*DISTRICT!AN31,0)) -> 156498.3177 | AS31: =MAX(COUNTRY_INFO!D31*AK31*PROFILE!$G$10,COUNTRY_INFO!D31*AL31*PROFILE!$G$10,IF(AND(DISTRICT!Z31<>"Unknown",Z31<>"Not required"),COUNTRY_INFO!O31*DISTRICT!AO31,0)) -> 302827 | AT31: 564963.3727 | AU31: Y | AV31: =MAX('MDA2'!J31,'T1'!L31,'T2'!J31,T3_R1!K31,T3_R2!K31) -> 106680 | AW31: =MAX('MDA1'!K31,'MDA2'!K31,'MDA3'!I31,'MDA3'!L31,'T1'!M31,'T2'!K31,T3_R1!L31,T3_R2!L31) -> 142390.2657 | AX31: =MAX('MDA1'!L31,'MDA2'!L31,'MDA3'!J31,'MDA3'!M31,'T1'!N31,'T2'!L31,T3_R1!M31,T3_R2!M31) -> 275527.7343 | AY31: 524598 | AZ31: =MAX('MDA2'!J31,T31) -> 105538 | BA31: =MAX('MDA1'!K31,'MDA2'!K31,'MDA3'!I31,'MDA3'!L31,V31,AD31) -> 142390.2657 | BB31: =MAX('MDA1'!L31,'MDA2'!L31,'MDA3'!J31,'MDA3'!M31,AF31) -> 275527.7343 | BC31: 523456 | BD31: 92.65308608
A32: =IF(COUNTRY_INFO!A32=0," ",COUNTRY_INFO!A32) -> Malawi | B32: =IF(COUNTRY_INFO!B32=0," ",COUNTRY_INFO!B32) -> South | C32: =IF(COUNTRY_INFO!C32=0," ",COUNTRY_INFO!C32) -> Nsanje | D32: =COUNTRY_INFO!L32 -> Not required | G32: =MAX('MDA1'!M32,'MDA2'!M32) -> 0 | H32: =IF(AND(COUNTRY_INFO!H32>0,COUNTRY_INFO!H32<4),IF(D32>MAX('MDA1'!M32,'MDA2'!M32),MAX('MDA1'!M32,'MDA2'!M32),D32),0) -> 0 | I32: =IF(AND(COUNTRY_INFO!H32>0,COUNTRY_INFO!H32<4), IF(G32/D32*100<>0, IF(G32/D32*100>100,100,G32/D32*100), "-"),0) -> 0 | J32: =COUNTRY_INFO!M32 -> 0 | M32: =MAX('MDA1'!M32,MAX('MDA3'!I32,'MDA3'!L32)+MAX('MDA3'!J32,'MDA3'!M32)) -> 0 | N32: =IF(AND(COUNTRY_INFO!I32>0,COUNTRY_INFO!I32<4),IF(J32>MAX('MDA1'!M32,MAX('MDA3'!I32,'MDA3'!L32)+MAX('MDA3'!J32,'MDA3'!M32)),MAX('MDA1'!M32,MAX('MDA3'!I32,'MDA3'!L32)+MAX('MDA3'!J32,'MDA3'!M32)),J32),0) -> 0 | O32: =IF(AND(COUNTRY_INFO!I32>0,COUNTRY_INFO!I32<4), IF(M32/J32*100<>0, IF(M32/J32*100>100,100,M32/J32*100), "-"),0) -> 0 | P32: =COUNTRY_INFO!N32 -> 132089 | S32: =SUM(MAX('MDA2'!J32, 'T1'!L32, MAX(T3_R1!K32, T3_R2!K32)), MAX('MDA1'!K32, 'MDA2'!K32, 'T1'!M32, MAX(T3_R1!L32, T3_R2!L32)), MAX('MDA1'!L32, 'MDA2'!L32, 'T1'!N32, MAX(T3_R1!M32, T3_R2!M32))) -> 138845 | T32: =IF(AND(COUNTRY_INFO!J32>1,COUNTRY_INFO!J32<4),IF(COUNTRY_INFO!E32>MAX('MDA2'!J32,'T1'!L32,MAX(T3_R1!K32,T3_R2!K32)),MAX('MDA2'!J32,'T1'!L32,MAX(T3_R1!K32,T3_R2!K32)),COUNTRY_INFO!E32),0) -> 48626 | U32: =IF(AND(COUNTRY_INFO!J32>1,COUNTRY_INFO!J32<4), IF(T32/COUNTRY_INFO!E32*100<>0, IF(T32/COUNTRY_INFO!E32*100>100,100,T32/COUNTRY_INFO!E32*100), "-"),0) -> 91.40225564 | V32: =IF(AND(COUNTRY_INFO!J32>1,COUNTRY_INFO!J32<4),IF(COUNTRY_INFO!F32>MAX('MDA1'!K32,'MDA2'!K32,'T1'!M32,MAX(T3_R1!L32,T3_R2!L32)),MAX('MDA1'!K32,'MDA2'!K32,'T1'!M32,MAX(T3_R1!L32,T3_R2!L32)),COUNTRY_INFO!F32),0) -> 75915 | W32: =IF(AND(COUNTRY_INFO!J32>1,COUNTRY_INFO!J32<4), IF(V32/COUNTRY_INFO!F32*100<>0, IF(V32/COUNTRY_INFO!F32*100>100,100,V32/COUNTRY_INFO!F32*100), "-"),0) -> 96.23014615 | X32: 124541 | Y32: =IF(AND(COUNTRY_INFO!J32>1,COUNTRY_INFO!J32<4), IF(S32/P32*100<>0, IF(X32/P32*100>100,100,X32/P32*100), "-"),0) -> 94.28567102 | Z32: =COUNTRY_INFO!O32 -> 231540 | AC32: =MAX(SUM('T1'!L32:'T1'!N32),SUM('T2'!J32:'T2'!L32)) -> 90219 | AD32: =IF(COUNTRY_INFO!K32=1,IF(COUNTRY_INFO!F32*0.33>MAX('T1'!M32,'T2'!K32),MAX('T1'!M32,'T2'!K32),COUNTRY_INFO!F32*0.33),IF(COUNTRY_INFO!K32=2,IF(COUNTRY_INFO!F32*0.5>MAX('T1'!M32,'T2'!K32),MAX('T1'!M32,'T2'!K32),COUNTRY_INFO!F32*0.5),IF(COUNTRY_INFO!K32=3,IF(COUNTRY_INFO!F32>MAX('T1'!M32,'T2'!K32),MAX('T1'!M32,'T2'!K32),COUNTRY_INFO!F32),0))) -> 75915 | AE32: =IF(AND(COUNTRY_INFO!K32>0,COUNTRY_INFO!K32<4),IF(Z32>0,IF(COUNTRY_INFO!K32=1, AD32/(COUNTRY_INFO!F32*0.33)*100, IF(COUNTRY_INFO!K32=2, AD32/(COUNTRY_INFO!F32*0.5)*100, IF(COUNTRY_INFO!K32=3, AD32/COUNTRY_INFO!F32*100))),"-"),0) -> 96.23014615 | AF32: =IF(COUNTRY_INFO!K32=2,IF(COUNTRY_INFO!G32*0.2>MAX('T1'!N32,'T2'!L32),MAX('T1'!N32,'T2'!L32),COUNTRY_INFO!G32*0.2),IF(COUNTRY_INFO!K32=3,IF(COUNTRY_INFO!G32>MAX('T1'!N32,'T2'!L32),MAX('T1'!N32,'T2'!L32),COUNTRY_INFO!G32),0)) -> 14304 | AG32: =IF(AND(COUNTRY_INFO!K32>0,COUNTRY_INFO!K32<4),IF(Z32>0,IF(COUNTRY_INFO!K32=1, 0, IF(COUNTRY_INFO!K32=2, AF32/(COUNTRY_INFO!G32*0.2)*100, IF(COUNTRY_INFO!K32=3, AF32/COUNTRY_INFO!G32*100))),"-"),0) -> 9.370393905 | AH32: 90219 | AI32: =IF(AND(COUNTRY_INFO!K32>0,COUNTRY_INFO!K32<4), IF(AC32/Z32*100<>0, IF(AH32/Z32*100>100,100,AH32/Z32*100), "-"),0) -> 38.96475771 | AK32: =IF(AND(D32<>0, D32<>"Unknown",D32<>"Stopped",D32<>"Not required"),D32/COUNTRY_INFO!D32, 0) -> 0 | AL32: =IF(AND(J32<>0,J32<>"Unknown",J32<>"Stopped",J32<>"Not required"),J32/COUNTRY_INFO!D32, 0) -> 0 | AM32: =IF(AND(P32<>0,P32<>"Unknown",P32<>"Not required"),P32/(COUNTRY_INFO!E32+COUNTRY_INFO!F32), 0) -> 1 | AN32: =IF(AND(Z32<>0,Z32<>"Unknown",Z32<>"Not required"),IF(COUNTRY_INFO!K32=1,1,IF(COUNTRY_INFO!K32=2,0.5*COUNTRY_INFO!F32/(0.5*COUNTRY_INFO!F32+0.2*COUNTRY_INFO!G32),IF(COUNTRY_INFO!K32=3,COUNTRY_INFO!F32/(COUNTRY_INFO!F32+COUNTRY_INFO!G32)))),0) -> 0.3407143474 | AO32: =IF(AND(Z32<>0,Z32<>"Unknown",Z32<>"Not required"),IF(COUNTRY_INFO!K32=1,0,IF(COUNTRY_INFO!K32=2,0.2*COUNTRY_INFO!G32/(0.5*COUNTRY_INFO!F32+0.2*COUNTRY_INFO!G32),IF(COUNTRY_INFO!K32=3,COUNTRY_INFO!G32/(COUNTRY_INFO!F32+COUNTRY_INFO!G32)))),0) -> 0.6592856526 | AP32: =MAX(COUNTRY_INFO!D32*AK32*PROFILE!$G$7,COUNTRY_INFO!D32*AL32*PROFILE!$G$7) -> 0 | AQ32: =MAX(COUNTRY_INFO!D32*AK32*PROFILE!$G$8,COUNTRY_INFO!D32*AL32*PROFILE!$G$8,COUNTRY_INFO!D32*AM32*PROFILE!$G$8) -> 53200.06383 | AR32: =MAX(COUNTRY_INFO!D32*AK32*PROFILE!$G$9,COUNTRY_INFO!D32*AL32*PROFILE!$G$9,COUNTRY_INFO!D32*AM32*PROFILE!$G$9,IF(AND(DISTRICT!Z32<>"Unknown",Z32<>"Not required"),COUNTRY_INFO!O32*DISTRICT!AN32,0)) -> 78889 | AS32: =MAX(COUNTRY_INFO!D32*AK32*PROFILE!$G$10,COUNTRY_INFO!D32*AL32*PROFILE!$G$10,IF(AND(DISTRICT!Z32<>"Unknown",Z32<>"Not required"),COUNTRY_INFO!O32*DISTRICT!AO32,0)) -> 152651 | AT32: 284740.0638 | AU32: Y | AV32: =MAX('MDA2'!J32,'T1'!L32,'T2'!J32,T3_R1!K32,T3_R2!K32) -> 48626 | AW32: =MAX('MDA1'!K32,'MDA2'!K32,'MDA3'!I32,'MDA3'!L32,'T1'!M32,'T2'!K32,T3_R1!L32,T3_R2!L32) -> 75915 | AX32: =MAX('MDA1'!L32,'MDA2'!L32,'MDA3'!J32,'MDA3'!M32,'T1'!N32,'T2'!L32,T3_R1!M32,T3_R2!M32) -> 14304 | AY32: 138845 | AZ32: =MAX('MDA2'!J32,T32) -> 48626 | BA32: =MAX('MDA1'!K32,'MDA2'!K32,'MDA3'!I32,'MDA3'!L32,V32,AD32) -> 75915 | BB32: =MAX('MDA1'!L32,'MDA2'!L32,'MDA3'!J32,'MDA3'!M32,AF32) -> 14304 | BC32: 138845 | BD32: 48.76201759
A33: =IF(COUNTRY_INFO!A33=0," ",COUNTRY_INFO!A33) -> Malawi | B33: =IF(COUNTRY_INFO!B33=0," ",COUNTRY_INFO!B33) -> South | C33: =IF(COUNTRY_INFO!C33=0," ",COUNTRY_INFO!C33) -> Phalombe | D33: =COUNTRY_INFO!L33 -> Not required | G33: =MAX('MDA1'!M33,'MDA2'!M33) -> 0 | H33: =IF(AND(COUNTRY_INFO!H33>0,COUNTRY_INFO!H33<4),IF(D33>MAX('MDA1'!M33,'MDA2'!M33),MAX('MDA1'!M33,'MDA2'!M33),D33),0) -> 0 | I33: =IF(AND(COUNTRY_INFO!H33>0,COUNTRY_INFO!H33<4), IF(G33/D33*100<>0, IF(G33/D33*100>100,100,G33/D33*100), "-"),0) -> 0 | J33: =COUNTRY_INFO!M33 -> 50201 | M33: =MAX('MDA1'!M33,MAX('MDA3'!I33,'MDA3'!L33)+MAX('MDA3'!J33,'MDA3'!M33)) -> 41259 | N33: =IF(AND(COUNTRY_INFO!I33>0,COUNTRY_INFO!I33<4),IF(J33>MAX('MDA1'!M33,MAX('MDA3'!I33,'MDA3'!L33)+MAX('MDA3'!J33,'MDA3'!M33)),MAX('MDA1'!M33,MAX('MDA3'!I33,'MDA3'!L33)+MAX('MDA3'!J33,'MDA3'!M33)),J33),0) -> 41259 | O33: =IF(AND(COUNTRY_INFO!I33>0,COUNTRY_INFO!I33<4), IF(M33/J33*100<>0, IF(M33/J33*100>100,100,M33/J33*100), "-"),0) -> 82.18760582 | P33: =COUNTRY_INFO!N33 -> 168954 | S33: =SUM(MAX('MDA2'!J33, 'T1'!L33, MAX(T3_R1!K33, T3_R2!K33)), MAX('MDA1'!K33, 'MDA2'!K33, 'T1'!M33, MAX(T3_R1!L33, T3_R2!L33)), MAX('MDA1'!L33, 'MDA2'!L33, 'T1'!N33, MAX(T3_R1!M33, T3_R2!M33))) -> 194080 | T33: =IF(AND(COUNTRY_INFO!J33>1,COUNTRY_INFO!J33<4),IF(COUNTRY_INFO!E33>MAX('MDA2'!J33,'T1'!L33,MAX(T3_R1!K33,T3_R2!K33)),MAX('MDA2'!J33,'T1'!L33,MAX(T3_R1!K33,T3_R2!K33)),COUNTRY_INFO!E33),0) -> 62649 | U33: =IF(AND(COUNTRY_INFO!J33>1,COUNTRY_INFO!J33<4), IF(T33/COUNTRY_INFO!E33*100<>0, IF(T33/COUNTRY_INFO!E33*100>100,100,T33/COUNTRY_INFO!E33*100), "-"),0) -> 92.06589466 | V33: =IF(AND(COUNTRY_INFO!J33>1,COUNTRY_INFO!J33<4),IF(COUNTRY_INFO!F33>MAX('MDA1'!K33,'MDA2'!K33,'T1'!M33,MAX(T3_R1!L33,T3_R2!L33)),MAX('MDA1'!K33,'MDA2'!K33,'T1'!M33,MAX(T3_R1!L33,T3_R2!L33)),COUNTRY_INFO!F33),0) -> 100906 | W33: =IF(AND(COUNTRY_INFO!J33>1,COUNTRY_INFO!J33<4), IF(V33/COUNTRY_INFO!F33*100<>0, IF(V33/COUNTRY_INFO!F33*100>100,100,V33/COUNTRY_INFO!F33*100), "-"),0) -> 100 | X33: 163555 | Y33: =IF(AND(COUNTRY_INFO!J33>1,COUNTRY_INFO!J33<4), IF(S33/P33*100<>0, IF(X33/P33*100>100,100,X33/P33*100), "-"),0) -> 96.80445565 | Z33: =COUNTRY_INFO!O33 -> 296161 | AC33: =MAX(SUM('T1'!L33:'T1'!N33),SUM('T2'!J33:'T2'!L33)) -> 131431 | AD33: =IF(COUNTRY_INFO!K33=1,IF(COUNTRY_INFO!F33*0.33>MAX('T1'!M33,'T2'!K33),MAX('T1'!M33,'T2'!K33),COUNTRY_INFO!F33*0.33),IF(COUNTRY_INFO!K33=2,IF(COUNTRY_INFO!F33*0.5>MAX('T1'!M33,'T2'!K33),MAX('T1'!M33,'T2'!K33),COUNTRY_INFO!F33*0.5),IF(COUNTRY_INFO!K33=3,IF(COUNTRY_INFO!F33>MAX('T1'!M33,'T2'!K33),MAX('T1'!M33,'T2'!K33),COUNTRY_INFO!F33),0))) -> 100906 | AE33: =IF(AND(COUNTRY_INFO!K33>0,COUNTRY_INFO!K33<4),IF(Z33>0,IF(COUNTRY_INFO!K33=1, AD33/(COUNTRY_INFO!F33*0.33)*100, IF(COUNTRY_INFO!K33=2, AD33/(COUNTRY_INFO!F33*0.5)*100, IF(COUNTRY_INFO!K33=3, AD33/COUNTRY_INFO!F33*100))),"-"),0) -> 100 | AF33: =IF(COUNTRY_INFO!K33=2,IF(COUNTRY_INFO!G33*0.2>MAX('T1'!N33,'T2'!L33),MAX('T1'!N33,'T2'!L33),COUNTRY_INFO!G33*0.2),IF(COUNTRY_INFO!K33=3,IF(COUNTRY_INFO!G33>MAX('T1'!N33,'T2'!L33),MAX('T1'!N33,'T2'!L33),COUNTRY_INFO!G33),0)) -> 20206 | AG33: =IF(AND(COUNTRY_INFO!K33>0,COUNTRY_INFO!K33<4),IF(Z33>0,IF(COUNTRY_INFO!K33=1, 0, IF(COUNTRY_INFO!K33=2, AF33/(COUNTRY_INFO!G33*0.2)*100, IF(COUNTRY_INFO!K33=3, AF33/COUNTRY_INFO!G33*100))),"-"),0) -> 10.3485186 | AH33: 121112 | AI33: =IF(AND(COUNTRY_INFO!K33>0,COUNTRY_INFO!K33<4), IF(AC33/Z33*100<>0, IF(AH33/Z33*100>100,100,AH33/Z33*100), "-"),0) -> 40.89397321 | AK33: =IF(AND(D33<>0, D33<>"Unknown",D33<>"Stopped",D33<>"Not required"),D33/COUNTRY_INFO!D33, 0) -> 0 | AL33: =IF(AND(J33<>0,J33<>"Unknown",J33<>"Stopped",J33<>"Not required"),J33/COUNTRY_INFO!D33, 0) -> 0.1378080718 | AM33: =IF(AND(P33<>0,P33<>"Unknown",P33<>"Not required"),P33/(COUNTRY_INFO!E33+COUNTRY_INFO!F33), 0) -> 1 | AN33: =IF(AND(Z33<>0,Z33<>"Unknown",Z33<>"Not required"),IF(COUNTRY_INFO!K33=1,1,IF(COUNTRY_INFO!K33=2,0.5*COUNTRY_INFO!F33/(0.5*COUNTRY_INFO!F33+0.2*COUNTRY_INFO!G33),IF(COUNTRY_INFO!K33=3,COUNTRY_INFO!F33/(COUNTRY_INFO!F33+COUNTRY_INFO!G33)))),0) -> 0.3407133282 | AO33: =IF(AND(Z33<>0,Z33<>"Unknown",Z33<>"Not required"),IF(COUNTRY_INFO!K33=1,0,IF(COUNTRY_INFO!K33=2,0.2*COUNTRY_INFO!G33/(0.5*COUNTRY_INFO!F33+0.2*COUNTRY_INFO!G33),IF(COUNTRY_INFO!K33=3,COUNTRY_INFO!G33/(COUNTRY_INFO!F33+COUNTRY_INFO!G33)))),0) -> 0.6592866718 | AP33: =MAX(COUNTRY_INFO!D33*AK33*PROFILE!$G$7,COUNTRY_INFO!D33*AL33*PROFILE!$G$7) -> 10.05590155 | AQ33: =MAX(COUNTRY_INFO!D33*AK33*PROFILE!$G$8,COUNTRY_INFO!D33*AL33*PROFILE!$G$8,COUNTRY_INFO!D33*AM33*PROFILE!$G$8) -> 68047.85743 | AR33: =MAX(COUNTRY_INFO!D33*AK33*PROFILE!$G$9,COUNTRY_INFO!D33*AL33*PROFILE!$G$9,COUNTRY_INFO!D33*AM33*PROFILE!$G$9,IF(AND(DISTRICT!Z33<>"Unknown",Z33<>"Not required"),COUNTRY_INFO!O33*DISTRICT!AN33,0)) -> 100906.0919 | AS33: =MAX(COUNTRY_INFO!D33*AK33*PROFILE!$G$10,COUNTRY_INFO!D33*AL33*PROFILE!$G$10,IF(AND(DISTRICT!Z33<>"Unknown",Z33<>"Not required"),COUNTRY_INFO!O33*DISTRICT!AO33,0)) -> 195255 | AT33: 364219.0052 | AU33: Y | AV33: =MAX('MDA2'!J33,'T1'!L33,'T2'!J33,T3_R1!K33,T3_R2!K33) -> 62649 | AW33: =MAX('MDA1'!K33,'MDA2'!K33,'MDA3'!I33,'MDA3'!L33,'T1'!M33,'T2'!K33,T3_R1!L33,T3_R2!L33) -> 111225 | AX33: =MAX('MDA1'!L33,'MDA2'!L33,'MDA3'!J33,'MDA3'!M33,'T1'!N33,'T2'!L33,T3_R1!M33,T3_R2!M33) -> 27201.50554 | AY33: 201075.5055 | AZ33: =MAX('MDA2'!J33,T33) -> 62649 | BA33: =MAX('MDA1'!K33,'MDA2'!K33,'MDA3'!I33,'MDA3'!L33,V33,AD33) -> 100906 | BB33: =MAX('MDA1'!L33,'MDA2'!L33,'MDA3'!J33,'MDA3'!M33,AF33) -> 27201.50554 | BC33: 190756.5055 | BD33: 52.37412183
A34: =IF(COUNTRY_INFO!A34=0," ",COUNTRY_INFO!A34) -> Malawi | B34: =IF(COUNTRY_INFO!B34=0," ",COUNTRY_INFO!B34) -> South | C34: =IF(COUNTRY_INFO!C34=0," ",COUNTRY_INFO!C34) -> Thyolo | D34: =COUNTRY_INFO!L34 -> Not required | G34: =MAX('MDA1'!M34,'MDA2'!M34) -> 0 | H34: =IF(AND(COUNTRY_INFO!H34>0,COUNTRY_INFO!H34<4),IF(D34>MAX('MDA1'!M34,'MDA2'!M34),MAX('MDA1'!M34,'MDA2'!M34),D34),0) -> 0 | I34: =IF(AND(COUNTRY_INFO!H34>0,COUNTRY_INFO!H34<4), IF(G34/D34*100<>0, IF(G34/D34*100>100,100,G34/D34*100), "-"),0) -> 0 | J34: =COUNTRY_INFO!M34 -> 690248 | M34: =MAX('MDA1'!M34,MAX('MDA3'!I34,'MDA3'!L34)+MAX('MDA3'!J34,'MDA3'!M34)) -> 569259 | N34: =IF(AND(COUNTRY_INFO!I34>0,COUNTRY_INFO!I34<4),IF(J34>MAX('MDA1'!M34,MAX('MDA3'!I34,'MDA3'!L34)+MAX('MDA3'!J34,'MDA3'!M34)),MAX('MDA1'!M34,MAX('MDA3'!I34,'MDA3'!L34)+MAX('MDA3'!J34,'MDA3'!M34)),J34),0) -> 569259 | O34: =IF(AND(COUNTRY_INFO!I34>0,COUNTRY_INFO!I34<4), IF(M34/J34*100<>0, IF(M34/J34*100>100,100,M34/J34*100), "-"),0) -> 82.47166236 | P34: =COUNTRY_INFO!N34 -> 293594 | S34: =SUM(MAX('MDA2'!J34, 'T1'!L34, MAX(T3_R1!K34, T3_R2!K34)), MAX('MDA1'!K34, 'MDA2'!K34, 'T1'!M34, MAX(T3_R1!L34, T3_R2!L34)), MAX('MDA1'!L34, 'MDA2'!L34, 'T1'!N34, MAX(T3_R1!M34, T3_R2!M34))) -> 319201 | T34: =IF(AND(COUNTRY_INFO!J34>1,COUNTRY_INFO!J34<4),IF(COUNTRY_INFO!E34>MAX('MDA2'!J34,'T1'!L34,MAX(T3_R1!K34,T3_R2!K34)),MAX('MDA2'!J34,'T1'!L34,MAX(T3_R1!K34,T3_R2!K34)),COUNTRY_INFO!E34),0) -> 110338 | U34: =IF(AND(COUNTRY_INFO!J34>1,COUNTRY_INFO!J34<4), IF(T34/COUNTRY_INFO!E34*100<>0, IF(T34/COUNTRY_INFO!E34*100>100,100,T34/COUNTRY_INFO!E34*100), "-"),0) -> 93.3106691 | V34: =IF(AND(COUNTRY_INFO!J34>1,COUNTRY_INFO!J34<4),IF(COUNTRY_INFO!F34>MAX('MDA1'!K34,'MDA2'!K34,'T1'!M34,MAX(T3_R1!L34,T3_R2!L34)),MAX('MDA1'!K34,'MDA2'!K34,'T1'!M34,MAX(T3_R1!L34,T3_R2!L34)),COUNTRY_INFO!F34),0) -> 160957 | W34: =IF(AND(COUNTRY_INFO!J34>1,COUNTRY_INFO!J34<4), IF(V34/COUNTRY_INFO!F34*100<>0, IF(V34/COUNTRY_INFO!F34*100>100,100,V34/COUNTRY_INFO!F34*100), "-"),0) -> 91.79393884 | X34: 271295 | Y34: =IF(AND(COUNTRY_INFO!J34>1,COUNTRY_INFO!J34<4), IF(S34/P34*100<>0, IF(X34/P34*100>100,100,X34/P34*100), "-"),0) -> 92.40481754 | Z34: =COUNTRY_INFO!O34 -> 155532.6 | AC34: =MAX(SUM('T1'!L34:'T1'!N34),SUM('T2'!J34:'T2'!L34)) -> 208863 | AD34: =IF(COUNTRY_INFO!K34=1,IF(COUNTRY_INFO!F34*0.33>MAX('T1'!M34,'T2'!K34),MAX('T1'!M34,'T2'!K34),COUNTRY_INFO!F34*0.33),IF(COUNTRY_INFO!K34=2,IF(COUNTRY_INFO!F34*0.5>MAX('T1'!M34,'T2'!K34),MAX('T1'!M34,'T2'!K34),COUNTRY_INFO!F34*0.5),IF(COUNTRY_INFO!K34=3,IF(COUNTRY_INFO!F34>MAX('T1'!M34,'T2'!K34),MAX('T1'!M34,'T2'!K34),COUNTRY_INFO!F34),0))) -> 87673 | AE34: =IF(AND(COUNTRY_INFO!K34>0,COUNTRY_INFO!K34<4),IF(Z34>0,IF(COUNTRY_INFO!K34=1, AD34/(COUNTRY_INFO!F34*0.33)*100, IF(COUNTRY_INFO!K34=2, AD34/(COUNTRY_INFO!F34*0.5)*100, IF(COUNTRY_INFO!K34=3, AD34/COUNTRY_INFO!F34*100))),"-"),0) -> 100 | AF34: =IF(COUNTRY_INFO!K34=2,IF(COUNTRY_INFO!G34*0.2>MAX('T1'!N34,'T2'!L34),MAX('T1'!N34,'T2'!L34),COUNTRY_INFO!G34*0.2),IF(COUNTRY_INFO!K34=3,IF(COUNTRY_INFO!G34>MAX('T1'!N34,'T2'!L34),MAX('T1'!N34,'T2'!L34),COUNTRY_INFO!G34),0)) -> 47906 | AG34: =IF(AND(COUNTRY_INFO!K34>0,COUNTRY_INFO!K34<4),IF(Z34>0,IF(COUNTRY_INFO!K34=1, 0, IF(COUNTRY_INFO!K34=2, AF34/(COUNTRY_INFO!G34*0.2)*100, IF(COUNTRY_INFO!K34=3, AF34/COUNTRY_INFO!G34*100))),"-"),0) -> 70.59575948 | AH34: 135579 | AI34: =IF(AND(COUNTRY_INFO!K34>0,COUNTRY_INFO!K34<4), IF(AC34/Z34*100<>0, IF(AH34/Z34*100>100,100,AH34/Z34*100), "-"),0) -> 87.17079249 | AK34: =IF(AND(D34<>0, D34<>"Unknown",D34<>"Stopped",D34<>"Not required"),D34/COUNTRY_INFO!D34, 0) -> 0 | AL34: =IF(AND(J34<>0,J34<>"Unknown",J34<>"Stopped",J34<>"Not required"),J34/COUNTRY_INFO!D34, 0) -> 1.090406449 | AM34: =IF(AND(P34<>0,P34<>"Unknown",P34<>"Not required"),P34/(COUNTRY_INFO!E34+COUNTRY_INFO!F34), 0) -> 1 | AN34: =IF(AND(Z34<>0,Z34<>"Unknown",Z34<>"Not required"),IF(COUNTRY_INFO!K34=1,1,IF(COUNTRY_INFO!K34=2,0.5*COUNTRY_INFO!F34/(0.5*COUNTRY_INFO!F34+0.2*COUNTRY_INFO!G34),IF(COUNTRY_INFO!K34=3,COUNTRY_INFO!F34/(COUNTRY_INFO!F34+COUNTRY_INFO!G34)))),0) -> 0.5636953282 | AO34: =IF(AND(Z34<>0,Z34<>"Unknown",Z34<>"Not required"),IF(COUNTRY_INFO!K34=1,0,IF(COUNTRY_INFO!K34=2,0.2*COUNTRY_INFO!G34/(0.5*COUNTRY_INFO!F34+0.2*COUNTRY_INFO!G34),IF(COUNTRY_INFO!K34=3,COUNTRY_INFO!G34/(COUNTRY_INFO!F34+COUNTRY_INFO!G34)))),0) -> 0.4363046718 | AP34: =MAX(COUNTRY_INFO!D34*AK34*PROFILE!$G$7,COUNTRY_INFO!D34*AL34*PROFILE!$G$7) -> 138.2654914 | AQ34: =MAX(COUNTRY_INFO!D34*AK34*PROFILE!$G$8,COUNTRY_INFO!D34*AL34*PROFILE!$G$8,COUNTRY_INFO!D34*AM34*PROFILE!$G$8) -> 128938.2882 | AR34: =MAX(COUNTRY_INFO!D34*AK34*PROFILE!$G$9,COUNTRY_INFO!D34*AL34*PROFILE!$G$9,COUNTRY_INFO!D34*AM34*PROFILE!$G$9,IF(AND(DISTRICT!Z34<>"Unknown",Z34<>"Not required"),COUNTRY_INFO!O34*DISTRICT!AN34,0)) -> 191198.6541 | AS34: =MAX(COUNTRY_INFO!D34*AK34*PROFILE!$G$10,COUNTRY_INFO!D34*AL34*PROFILE!$G$10,IF(AND(DISTRICT!Z34<>"Unknown",Z34<>"Not required"),COUNTRY_INFO!O34*DISTRICT!AO34,0)) -> 369972.7922 | AT34: 690248 | AU34: Y | AV34: =MAX('MDA2'!J34,'T1'!L34,'T2'!J34,T3_R1!K34,T3_R2!K34) -> 110338 | AW34: =MAX('MDA1'!K34,'MDA2'!K34,'MDA3'!I34,'MDA3'!L34,'T1'!M34,'T2'!K34,T3_R1!L34,T3_R2!L34) -> 193954.1734 | AX34: =MAX('MDA1'!L34,'MDA2'!L34,'MDA3'!J34,'MDA3'!M34,'T1'!N34,'T2'!L34,T3_R1!M34,T3_R2!M34) -> 375304.8266 | AY34: 679597 | AZ34: =MAX('MDA2'!J34,T34) -> 110338 | BA34: =MAX('MDA1'!K34,'MDA2'!K34,'MDA3'!I34,'MDA3'!L34,V34,AD34) -> 193954.1734 | BB34: =MAX('MDA1'!L34,'MDA2'!L34,'MDA3'!J34,'MDA3'!M34,AF34) -> 375304.8266 | BC34: 679597 | BD34: 98.45693142
A35: =IF(COUNTRY_INFO!A35=0," ",COUNTRY_INFO!A35) -> Malawi | B35: =IF(COUNTRY_INFO!B35=0," ",COUNTRY_INFO!B35) -> South | C35: =IF(COUNTRY_INFO!C35=0," ",COUNTRY_INFO!C35) -> Zomba | D35: =COUNTRY_INFO!L35 -> Not required | G35: =MAX('MDA1'!M35,'MDA2'!M35) -> 0 | H35: =IF(AND(COUNTRY_INFO!H35>0,COUNTRY_INFO!H35<4),IF(D35>MAX('MDA1'!M35,'MDA2'!M35),MAX('MDA1'!M35,'MDA2'!M35),D35),0) -> 0 | I35: =IF(AND(COUNTRY_INFO!H35>0,COUNTRY_INFO!H35<4), IF(G35/D35*100<>0, IF(G35/D35*100>100,100,G35/D35*100), "-"),0) -> 0 | J35: =COUNTRY_INFO!M35 -> 0 | M35: =MAX('MDA1'!M35,MAX('MDA3'!I35,'MDA3'!L35)+MAX('MDA3'!J35,'MDA3'!M35)) -> 0 | N35: =IF(AND(COUNTRY_INFO!I35>0,COUNTRY_INFO!I35<4),IF(J35>MAX('MDA1'!M35,MAX('MDA3'!I35,'MDA3'!L35)+MAX('MDA3'!J35,'MDA3'!M35)),MAX('MDA1'!M35,MAX('MDA3'!I35,'MDA3'!L35)+MAX('MDA3'!J35,'MDA3'!M35)),J35),0) -> 0 | O35: =IF(AND(COUNTRY_INFO!I35>0,COUNTRY_INFO!I35<4), IF(M35/J35*100<>0, IF(M35/J35*100>100,100,M35/J35*100), "-"),0) -> 0 | P35: =COUNTRY_INFO!N35 -> 361421 | S35: =SUM(MAX('MDA2'!J35, 'T1'!L35, MAX(T3_R1!K35, T3_R2!K35)), MAX('MDA1'!K35, 'MDA2'!K35, 'T1'!M35, MAX(T3_R1!L35, T3_R2!L35)), MAX('MDA1'!L35, 'MDA2'!L35, 'T1'!N35, MAX(T3_R1!M35, T3_R2!M35))) -> 407535 | T35: =IF(AND(COUNTRY_INFO!J35>1,COUNTRY_INFO!J35<4),IF(COUNTRY_INFO!E35>MAX('MDA2'!J35,'T1'!L35,MAX(T3_R1!K35,T3_R2!K35)),MAX('MDA2'!J35,'T1'!L35,MAX(T3_R1!K35,T3_R2!K35)),COUNTRY_INFO!E35),0) -> 113858 | U35: =IF(AND(COUNTRY_INFO!J35>1,COUNTRY_INFO!J35<4), IF(T35/COUNTRY_INFO!E35*100<>0, IF(T35/COUNTRY_INFO!E35*100>100,100,T35/COUNTRY_INFO!E35*100), "-"),0) -> 78.21744089 | V35: =IF(AND(COUNTRY_INFO!J35>1,COUNTRY_INFO!J35<4),IF(COUNTRY_INFO!F35>MAX('MDA1'!K35,'MDA2'!K35,'T1'!M35,MAX(T3_R1!L35,T3_R2!L35)),MAX('MDA1'!K35,'MDA2'!K35,'T1'!M35,MAX(T3_R1!L35,T3_R2!L35)),COUNTRY_INFO!F35),0) -> 183839 | W35: =IF(AND(COUNTRY_INFO!J35>1,COUNTRY_INFO!J35<4), IF(V35/COUNTRY_INFO!F35*100<>0, IF(V35/COUNTRY_INFO!F35*100>100,100,V35/COUNTRY_INFO!F35*100), "-"),0) -> 85.16782099 | X35: 297697 | Y35: =IF(AND(COUNTRY_INFO!J35>1,COUNTRY_INFO!J35<4), IF(S35/P35*100<>0, IF(X35/P35*100>100,100,X35/P35*100), "-"),0) -> 82.3684844 | Z35: =COUNTRY_INFO!O35 -> 633538 | AC35: =MAX(SUM('T1'!L35:'T1'!N35),SUM('T2'!J35:'T2'!L35)) -> 293677 | AD35: =IF(COUNTRY_INFO!K35=1,IF(COUNTRY_INFO!F35*0.33>MAX('T1'!M35,'T2'!K35),MAX('T1'!M35,'T2'!K35),COUNTRY_INFO!F35*0.33),IF(COUNTRY_INFO!K35=2,IF(COUNTRY_INFO!F35*0.5>MAX('T1'!M35,'T2'!K35),MAX('T1'!M35,'T2'!K35),COUNTRY_INFO!F35*0.5),IF(COUNTRY_INFO!K35=3,IF(COUNTRY_INFO!F35>MAX('T1'!M35,'T2'!K35),MAX('T1'!M35,'T2'!K35),COUNTRY_INFO!F35),0))) -> 183839 | AE35: =IF(AND(COUNTRY_INFO!K35>0,COUNTRY_INFO!K35<4),IF(Z35>0,IF(COUNTRY_INFO!K35=1, AD35/(COUNTRY_INFO!F35*0.33)*100, IF(COUNTRY_INFO!K35=2, AD35/(COUNTRY_INFO!F35*0.5)*100, IF(COUNTRY_INFO!K35=3, AD35/COUNTRY_INFO!F35*100))),"-"),0) -> 85.16782099 | AF35: =IF(COUNTRY_INFO!K35=2,IF(COUNTRY_INFO!G35*0.2>MAX('T1'!N35,'T2'!L35),MAX('T1'!N35,'T2'!L35),COUNTRY_INFO!G35*0.2),IF(COUNTRY_INFO!K35=3,IF(COUNTRY_INFO!G35>MAX('T1'!N35,'T2'!L35),MAX('T1'!N35,'T2'!L35),COUNTRY_INFO!G35),0)) -> 109838 | AG35: =IF(AND(COUNTRY_INFO!K35>0,COUNTRY_INFO!K35<4),IF(Z35>0,IF(COUNTRY_INFO!K35=1, 0, IF(COUNTRY_INFO!K35=2, AF35/(COUNTRY_INFO!G35*0.2)*100, IF(COUNTRY_INFO!K35=3, AF35/COUNTRY_INFO!G35*100))),"-"),0) -> 26.29697642 | AH35: 293677 | AI35: =IF(AND(COUNTRY_INFO!K35>0,COUNTRY_INFO!K35<4), IF(AC35/Z35*100<>0, IF(AH35/Z35*100>100,100,AH35/Z35*100), "-"),0) -> 46.35507262 | AK35: =IF(AND(D35<>0, D35<>"Unknown",D35<>"Stopped",D35<>"Not required"),D35/COUNTRY_INFO!D35, 0) -> 0 | AL35: =IF(AND(J35<>0,J35<>"Unknown",J35<>"Stopped",J35<>"Not required"),J35/COUNTRY_INFO!D35, 0) -> 0 | AM35: =IF(AND(P35<>0,P35<>"Unknown",P35<>"Not required"),P35/(COUNTRY_INFO!E35+COUNTRY_INFO!F35), 0) -> 1 | AN35: =IF(AND(Z35<>0,Z35<>"Unknown",Z35<>"Not required"),IF(COUNTRY_INFO!K35=1,1,IF(COUNTRY_INFO!K35=2,0.5*COUNTRY_INFO!F35/(0.5*COUNTRY_INFO!F35+0.2*COUNTRY_INFO!G35),IF(COUNTRY_INFO!K35=3,COUNTRY_INFO!F35/(COUNTRY_INFO!F35+COUNTRY_INFO!G35)))),0) -> 0.3407135799 | AO35: =IF(AND(Z35<>0,Z35<>"Unknown",Z35<>"Not required"),IF(COUNTRY_INFO!K35=1,0,IF(COUNTRY_INFO!K35=2,0.2*COUNTRY_INFO!G35/(0.5*COUNTRY_INFO!F35+0.2*COUNTRY_INFO!G35),IF(COUNTRY_INFO!K35=3,COUNTRY_INFO!G35/(COUNTRY_INFO!F35+COUNTRY_INFO!G35)))),0) -> 0.6592864201 | AP35: =MAX(COUNTRY_INFO!D35*AK35*PROFILE!$G$7,COUNTRY_INFO!D35*AL35*PROFILE!$G$7) -> 0 | AQ35: =MAX(COUNTRY_INFO!D35*AK35*PROFILE!$G$8,COUNTRY_INFO!D35*AL35*PROFILE!$G$8,COUNTRY_INFO!D35*AM35*PROFILE!$G$8) -> 145565.5381 | AR35: =MAX(COUNTRY_INFO!D35*AK35*PROFILE!$G$9,COUNTRY_INFO!D35*AL35*PROFILE!$G$9,COUNTRY_INFO!D35*AM35*PROFILE!$G$9,IF(AND(DISTRICT!Z35<>"Unknown",Z35<>"Not required"),COUNTRY_INFO!O35*DISTRICT!AN35,0)) -> 215855 | AS35: =MAX(COUNTRY_INFO!D35*AK35*PROFILE!$G$10,COUNTRY_INFO!D35*AL35*PROFILE!$G$10,IF(AND(DISTRICT!Z35<>"Unknown",Z35<>"Not required"),COUNTRY_INFO!O35*DISTRICT!AO35,0)) -> 417683 | AT35: 779103.5381 | AU35: Y | AV35: =MAX('MDA2'!J35,'T1'!L35,'T2'!J35,T3_R1!K35,T3_R2!K35) -> 113858 | AW35: =MAX('MDA1'!K35,'MDA2'!K35,'MDA3'!I35,'MDA3'!L35,'T1'!M35,'T2'!K35,T3_R1!L35,T3_R2!L35) -> 183839 | AX35: =MAX('MDA1'!L35,'MDA2'!L35,'MDA3'!J35,'MDA3'!M35,'T1'!N35,'T2'!L35,T3_R1!M35,T3_R2!M35) -> 109838 | AY35: 407535 | AZ35: =MAX('MDA2'!J35,T35) -> 113858 | BA35: =MAX('MDA1'!K35,'MDA2'!K35,'MDA3'!I35,'MDA3'!L35,V35,AD35) -> 183839 | BB35: =MAX('MDA1'!L35,'MDA2'!L35,'MDA3'!J35,'MDA3'!M35,AF35) -> 109838 | BC35: 407535 | BD35: 52.30819526
A36: =IF(COUNTRY_INFO!A36=0," ",COUNTRY_INFO!A36) -> Malawi | B36: =IF(COUNTRY_INFO!B36=0," ",COUNTRY_INFO!B36) -> South | C36: =IF(COUNTRY_INFO!C36=0," ",COUNTRY_INFO!C36) -> Neno | D36: =COUNTRY_INFO!L36 -> Not required | G36: =MAX('MDA1'!M36,'MDA2'!M36) -> 0 | H36: =IF(AND(COUNTRY_INFO!H36>0,COUNTRY_INFO!H36<4),IF(D36>MAX('MDA1'!M36,'MDA2'!M36),MAX('MDA1'!M36,'MDA2'!M36),D36),0) -> 0 | I36: =IF(AND(COUNTRY_INFO!H36>0,COUNTRY_INFO!H36<4), IF(G36/D36*100<>0, IF(G36/D36*100>100,100,G36/D36*100), "-"),0) -> 0 | J36: =COUNTRY_INFO!M36 -> 150667 | M36: =MAX('MDA1'!M36,MAX('MDA3'!I36,'MDA3'!L36)+MAX('MDA3'!J36,'MDA3'!M36)) -> 126291 | N36: =IF(AND(COUNTRY_INFO!I36>0,COUNTRY_INFO!I36<4),IF(J36>MAX('MDA1'!M36,MAX('MDA3'!I36,'MDA3'!L36)+MAX('MDA3'!J36,'MDA3'!M36)),MAX('MDA1'!M36,MAX('MDA3'!I36,'MDA3'!L36)+MAX('MDA3'!J36,'MDA3'!M36)),J36),0) -> 126291 | O36: =IF(AND(COUNTRY_INFO!I36>0,COUNTRY_INFO!I36<4), IF(M36/J36*100<>0, IF(M36/J36*100>100,100,M36/J36*100), "-"),0) -> 83.82127473 | P36: =COUNTRY_INFO!N36 -> 66705 | S36: =SUM(MAX('MDA2'!J36, 'T1'!L36, MAX(T3_R1!K36, T3_R2!K36)), MAX('MDA1'!K36, 'MDA2'!K36, 'T1'!M36, MAX(T3_R1!L36, T3_R2!L36)), MAX('MDA1'!L36, 'MDA2'!L36, 'T1'!N36, MAX(T3_R1!M36, T3_R2!M36))) -> 93736 | T36: =IF(AND(COUNTRY_INFO!J36>1,COUNTRY_INFO!J36<4),IF(COUNTRY_INFO!E36>MAX('MDA2'!J36,'T1'!L36,MAX(T3_R1!K36,T3_R2!K36)),MAX('MDA2'!J36,'T1'!L36,MAX(T3_R1!K36,T3_R2!K36)),COUNTRY_INFO!E36),0) -> 21333 | U36: =IF(AND(COUNTRY_INFO!J36>1,COUNTRY_INFO!J36<4), IF(T36/COUNTRY_INFO!E36*100<>0, IF(T36/COUNTRY_INFO!E36*100>100,100,T36/COUNTRY_INFO!E36*100), "-"),0) -> 79.40519616 | V36: =IF(AND(COUNTRY_INFO!J36>1,COUNTRY_INFO!J36<4),IF(COUNTRY_INFO!F36>MAX('MDA1'!K36,'MDA2'!K36,'T1'!M36,MAX(T3_R1!L36,T3_R2!L36)),MAX('MDA1'!K36,'MDA2'!K36,'T1'!M36,MAX(T3_R1!L36,T3_R2!L36)),COUNTRY_INFO!F36),0) -> 38841 | W36: =IF(AND(COUNTRY_INFO!J36>1,COUNTRY_INFO!J36<4), IF(V36/COUNTRY_INFO!F36*100<>0, IF(V36/COUNTRY_INFO!F36*100>100,100,V36/COUNTRY_INFO!F36*100), "-"),0) -> 97.49491704 | X36: 60174 | Y36: =IF(AND(COUNTRY_INFO!J36>1,COUNTRY_INFO!J36<4), IF(S36/P36*100<>0, IF(X36/P36*100>100,100,X36/P36*100), "-"),0) -> 90.20912975 | Z36: =COUNTRY_INFO!O36 -> 35337.5 | AC36: =MAX(SUM('T1'!L36:'T1'!N36),SUM('T2'!J36:'T2'!L36)) -> 72403 | AD36: =IF(COUNTRY_INFO!K36=1,IF(COUNTRY_INFO!F36*0.33>MAX('T1'!M36,'T2'!K36),MAX('T1'!M36,'T2'!K36),COUNTRY_INFO!F36*0.33),IF(COUNTRY_INFO!K36=2,IF(COUNTRY_INFO!F36*0.5>MAX('T1'!M36,'T2'!K36),MAX('T1'!M36,'T2'!K36),COUNTRY_INFO!F36*0.5),IF(COUNTRY_INFO!K36=3,IF(COUNTRY_INFO!F36>MAX('T1'!M36,'T2'!K36),MAX('T1'!M36,'T2'!K36),COUNTRY_INFO!F36),0))) -> 19919.5 | AE36: =IF(AND(COUNTRY_INFO!K36>0,COUNTRY_INFO!K36<4),IF(Z36>0,IF(COUNTRY_INFO!K36=1, AD36/(COUNTRY_INFO!F36*0.33)*100, IF(COUNTRY_INFO!K36=2, AD36/(COUNTRY_INFO!F36*0.5)*100, IF(COUNTRY_INFO!K36=3, AD36/COUNTRY_INFO!F36*100))),"-"),0) -> 100 | AF36: =IF(COUNTRY_INFO!K36=2,IF(COUNTRY_INFO!G36*0.2>MAX('T1'!N36,'T2'!L36),MAX('T1'!N36,'T2'!L36),COUNTRY_INFO!G36*0.2),IF(COUNTRY_INFO!K36=3,IF(COUNTRY_INFO!G36>MAX('T1'!N36,'T2'!L36),MAX('T1'!N36,'T2'!L36),COUNTRY_INFO!G36),0)) -> 15418 | AG36: =IF(AND(COUNTRY_INFO!K36>0,COUNTRY_INFO!K36<4),IF(Z36>0,IF(COUNTRY_INFO!K36=1, 0, IF(COUNTRY_INFO!K36=2, AF36/(COUNTRY_INFO!G36*0.2)*100, IF(COUNTRY_INFO!K36=3, AF36/COUNTRY_INFO!G36*100))),"-"),0) -> 100 | AH36: 35337.5 | AI36: =IF(AND(COUNTRY_INFO!K36>0,COUNTRY_INFO!K36<4), IF(AC36/Z36*100<>0, IF(AH36/Z36*100>100,100,AH36/Z36*100), "-"),0) -> 100 | AK36: =IF(AND(D36<>0, D36<>"Unknown",D36<>"Stopped",D36<>"Not required"),D36/COUNTRY_INFO!D36, 0) -> 0 | AL36: =IF(AND(J36<>0,J36<>"Unknown",J36<>"Stopped",J36<>"Not required"),J36/COUNTRY_INFO!D36, 0) -> 1.047578985 | AM36: =IF(AND(P36<>0,P36<>"Unknown",P36<>"Not required"),P36/(COUNTRY_INFO!E36+COUNTRY_INFO!F36), 0) -> 1 | AN36: =IF(AND(Z36<>0,Z36<>"Unknown",Z36<>"Not required"),IF(COUNTRY_INFO!K36=1,1,IF(COUNTRY_INFO!K36=2,0.5*COUNTRY_INFO!F36/(0.5*COUNTRY_INFO!F36+0.2*COUNTRY_INFO!G36),IF(COUNTRY_INFO!K36=3,COUNTRY_INFO!F36/(COUNTRY_INFO!F36+COUNTRY_INFO!G36)))),0) -> 0.5636929607 | AO36: =IF(AND(Z36<>0,Z36<>"Unknown",Z36<>"Not required"),IF(COUNTRY_INFO!K36=1,0,IF(COUNTRY_INFO!K36=2,0.2*COUNTRY_INFO!G36/(0.5*COUNTRY_INFO!F36+0.2*COUNTRY_INFO!G36),IF(COUNTRY_INFO!K36=3,COUNTRY_INFO!G36/(COUNTRY_INFO!F36+COUNTRY_INFO!G36)))),0) -> 0.4363070393 | AP36: =MAX(COUNTRY_INFO!D36*AK36*PROFILE!$G$7,COUNTRY_INFO!D36*AL36*PROFILE!$G$7) -> 30.18052468 | AQ36: =MAX(COUNTRY_INFO!D36*AK36*PROFILE!$G$8,COUNTRY_INFO!D36*AL36*PROFILE!$G$8,COUNTRY_INFO!D36*AM36*PROFILE!$G$8) -> 28144.58726 | AR36: =MAX(COUNTRY_INFO!D36*AK36*PROFILE!$G$9,COUNTRY_INFO!D36*AL36*PROFILE!$G$9,COUNTRY_INFO!D36*AM36*PROFILE!$G$9,IF(AND(DISTRICT!Z36<>"Unknown",Z36<>"Not required"),COUNTRY_INFO!O36*DISTRICT!AN36,0)) -> 41734.74986 | AS36: =MAX(COUNTRY_INFO!D36*AK36*PROFILE!$G$10,COUNTRY_INFO!D36*AL36*PROFILE!$G$10,IF(AND(DISTRICT!Z36<>"Unknown",Z36<>"Not required"),COUNTRY_INFO!O36*DISTRICT!AO36,0)) -> 80757.48235 | AT36: 150667 | AU36: Y | AV36: =MAX('MDA2'!J36,'T1'!L36,'T2'!J36,T3_R1!K36,T3_R2!K36) -> 21333 | AW36: =MAX('MDA1'!K36,'MDA2'!K36,'MDA3'!I36,'MDA3'!L36,'T1'!M36,'T2'!K36,T3_R1!L36,T3_R2!L36) -> 43029.0369 | AX36: =MAX('MDA1'!L36,'MDA2'!L36,'MDA3'!J36,'MDA3'!M36,'T1'!N36,'T2'!L36,T3_R1!M36,T3_R2!M36) -> 83261.9631 | AY36: 147624 | AZ36: =MAX('MDA2'!J36,T36) -> 21333 | BA36: =MAX('MDA1'!K36,'MDA2'!K36,'MDA3'!I36,'MDA3'!L36,V36,AD36) -> 43029.0369 | BB36: =MAX('MDA1'!L36,'MDA2'!L36,'MDA3'!J36,'MDA3'!M36,AF36) -> 83261.9631 | BC36: 147624 | BD36: 97.9803142
A37: =IF(COUNTRY_INFO!A37=0," ",COUNTRY_INFO!A37) -> Malawi | B37: =IF(COUNTRY_INFO!B37=0," ",COUNTRY_INFO!B37) -> South | C37: =IF(COUNTRY_INFO!C37=0," ",COUNTRY_INFO!C37) -> Mwanza | D37: =COUNTRY_INFO!L37 -> Not required | G37: =MAX('MDA1'!M37,'MDA2'!M37) -> 0 | H37: =IF(AND(COUNTRY_INFO!H37>0,COUNTRY_INFO!H37<4),IF(D37>MAX('MDA1'!M37,'MDA2'!M37),MAX('MDA1'!M37,'MDA2'!M37),D37),0) -> 0 | I37: =IF(AND(COUNTRY_INFO!H37>0,COUNTRY_INFO!H37<4), IF(G37/D37*100<>0, IF(G37/D37*100>100,100,G37/D37*100), "-"),0) -> 0 | J37: =COUNTRY_INFO!M37 -> 109264 | M37: =MAX('MDA1'!M37,MAX('MDA3'!I37,'MDA3'!L37)+MAX('MDA3'!J37,'MDA3'!M37)) -> 89337 | N37: =IF(AND(COUNTRY_INFO!I37>0,COUNTRY_INFO!I37<4),IF(J37>MAX('MDA1'!M37,MAX('MDA3'!I37,'MDA3'!L37)+MAX('MDA3'!J37,'MDA3'!M37)),MAX('MDA1'!M37,MAX('MDA3'!I37,'MDA3'!L37)+MAX('MDA3'!J37,'MDA3'!M37)),J37),0) -> 89337 | O37: =IF(AND(COUNTRY_INFO!I37>0,COUNTRY_INFO!I37<4), IF(M37/J37*100<>0, IF(M37/J37*100>100,100,M37/J37*100), "-"),0) -> 81.76252013 | P37: =COUNTRY_INFO!N37 -> 47572 | S37: =SUM(MAX('MDA2'!J37, 'T1'!L37, MAX(T3_R1!K37, T3_R2!K37)), MAX('MDA1'!K37, 'MDA2'!K37, 'T1'!M37, MAX(T3_R1!L37, T3_R2!L37)), MAX('MDA1'!L37, 'MDA2'!L37, 'T1'!N37, MAX(T3_R1!M37, T3_R2!M37))) -> 59863 | T37: =IF(AND(COUNTRY_INFO!J37>1,COUNTRY_INFO!J37<4),IF(COUNTRY_INFO!E37>MAX('MDA2'!J37,'T1'!L37,MAX(T3_R1!K37,T3_R2!K37)),MAX('MDA2'!J37,'T1'!L37,MAX(T3_R1!K37,T3_R2!K37)),COUNTRY_INFO!E37),0) -> 16017 | U37: =IF(AND(COUNTRY_INFO!J37>1,COUNTRY_INFO!J37<4), IF(T37/COUNTRY_INFO!E37*100<>0, IF(T37/COUNTRY_INFO!E37*100>100,100,T37/COUNTRY_INFO!E37*100), "-"),0) -> 83.5960334 | V37: =IF(AND(COUNTRY_INFO!J37>1,COUNTRY_INFO!J37<4),IF(COUNTRY_INFO!F37>MAX('MDA1'!K37,'MDA2'!K37,'T1'!M37,MAX(T3_R1!L37,T3_R2!L37)),MAX('MDA1'!K37,'MDA2'!K37,'T1'!M37,MAX(T3_R1!L37,T3_R2!L37)),COUNTRY_INFO!F37),0) -> 28412 | W37: =IF(AND(COUNTRY_INFO!J37>1,COUNTRY_INFO!J37<4), IF(V37/COUNTRY_INFO!F37*100<>0, IF(V37/COUNTRY_INFO!F37*100>100,100,V37/COUNTRY_INFO!F37*100), "-"),0) -> 100 | X37: 44429 | Y37: =IF(AND(COUNTRY_INFO!J37>1,COUNTRY_INFO!J37<4), IF(S37/P37*100<>0, IF(X37/P37*100>100,100,X37/P37*100), "-"),0) -> 93.39317245 | Z37: =COUNTRY_INFO!O37 -> 25201.6 | AC37: =MAX(SUM('T1'!L37:'T1'!N37),SUM('T2'!J37:'T2'!L37)) -> 43846 | AD37: =IF(COUNTRY_INFO!K37=1,IF(COUNTRY_INFO!F37*0.33>MAX('T1'!M37,'T2'!K37),MAX('T1'!M37,'T2'!K37),COUNTRY_INFO!F37*0.33),IF(COUNTRY_INFO!K37=2,IF(COUNTRY_INFO!F37*0.5>MAX('T1'!M37,'T2'!K37),MAX('T1'!M37,'T2'!K37),COUNTRY_INFO!F37*0.5),IF(COUNTRY_INFO!K37=3,IF(COUNTRY_INFO!F37>MAX('T1'!M37,'T2'!K37),MAX('T1'!M37,'T2'!K37),COUNTRY_INFO!F37),0))) -> 14206 | AE37: =IF(AND(COUNTRY_INFO!K37>0,COUNTRY_INFO!K37<4),IF(Z37>0,IF(COUNTRY_INFO!K37=1, AD37/(COUNTRY_INFO!F37*0.33)*100, IF(COUNTRY_INFO!K37=2, AD37/(COUNTRY_INFO!F37*0.5)*100, IF(COUNTRY_INFO!K37=3, AD37/COUNTRY_INFO!F37*100))),"-"),0) -> 100 | AF37: =IF(COUNTRY_INFO!K37=2,IF(COUNTRY_INFO!G37*0.2>MAX('T1'!N37,'T2'!L37),MAX('T1'!N37,'T2'!L37),COUNTRY_INFO!G37*0.2),IF(COUNTRY_INFO!K37=3,IF(COUNTRY_INFO!G37>MAX('T1'!N37,'T2'!L37),MAX('T1'!N37,'T2'!L37),COUNTRY_INFO!G37),0)) -> 10995.6 | AG37: =IF(AND(COUNTRY_INFO!K37>0,COUNTRY_INFO!K37<4),IF(Z37>0,IF(COUNTRY_INFO!K37=1, 0, IF(COUNTRY_INFO!K37=2, AF37/(COUNTRY_INFO!G37*0.2)*100, IF(COUNTRY_INFO!K37=3, AF37/COUNTRY_INFO!G37*100))),"-"),0) -> 100 | AH37: 25201.6 | AI37: =IF(AND(COUNTRY_INFO!K37>0,COUNTRY_INFO!K37<4), IF(AC37/Z37*100<>0, IF(AH37/Z37*100>100,100,AH37/Z37*100), "-"),0) -> 100 | AK37: =IF(AND(D37<>0, D37<>"Unknown",D37<>"Stopped",D37<>"Not required"),D37/COUNTRY_INFO!D37, 0) -> 0 | AL37: =IF(AND(J37<>0,J37<>"Unknown",J37<>"Stopped",J37<>"Not required"),J37/COUNTRY_INFO!D37, 0) -> 1.065252362 | AM37: =IF(AND(P37<>0,P37<>"Unknown",P37<>"Not required"),P37/(COUNTRY_INFO!E37+COUNTRY_INFO!F37), 0) -> 1 | AN37: =IF(AND(Z37<>0,Z37<>"Unknown",Z37<>"Not required"),IF(COUNTRY_INFO!K37=1,1,IF(COUNTRY_INFO!K37=2,0.5*COUNTRY_INFO!F37/(0.5*COUNTRY_INFO!F37+0.2*COUNTRY_INFO!G37),IF(COUNTRY_INFO!K37=3,COUNTRY_INFO!F37/(COUNTRY_INFO!F37+COUNTRY_INFO!G37)))),0) -> 0.5636943686 | AO37: =IF(AND(Z37<>0,Z37<>"Unknown",Z37<>"Not required"),IF(COUNTRY_INFO!K37=1,0,IF(COUNTRY_INFO!K37=2,0.2*COUNTRY_INFO!G37/(0.5*COUNTRY_INFO!F37+0.2*COUNTRY_INFO!G37),IF(COUNTRY_INFO!K37=3,COUNTRY_INFO!G37/(COUNTRY_INFO!F37+COUNTRY_INFO!G37)))),0) -> 0.4363056314 | AP37: =MAX(COUNTRY_INFO!D37*AK37*PROFILE!$G$7,COUNTRY_INFO!D37*AL37*PROFILE!$G$7) -> 21.88697491 | AQ37: =MAX(COUNTRY_INFO!D37*AK37*PROFILE!$G$8,COUNTRY_INFO!D37*AL37*PROFILE!$G$8,COUNTRY_INFO!D37*AM37*PROFILE!$G$8) -> 20410.50915 | AR37: =MAX(COUNTRY_INFO!D37*AK37*PROFILE!$G$9,COUNTRY_INFO!D37*AL37*PROFILE!$G$9,COUNTRY_INFO!D37*AM37*PROFILE!$G$9,IF(AND(DISTRICT!Z37<>"Unknown",Z37<>"Not required"),COUNTRY_INFO!O37*DISTRICT!AN37,0)) -> 30266.12137 | AS37: =MAX(COUNTRY_INFO!D37*AK37*PROFILE!$G$10,COUNTRY_INFO!D37*AL37*PROFILE!$G$10,IF(AND(DISTRICT!Z37<>"Unknown",Z37<>"Not required"),COUNTRY_INFO!O37*DISTRICT!AO37,0)) -> 58565.4825 | AT37: 109264 | AU37: Y | AV37: =MAX('MDA2'!J37,'T1'!L37,'T2'!J37,T3_R1!K37,T3_R2!K37) -> 16017 | AW37: =MAX('MDA1'!K37,'MDA2'!K37,'MDA3'!I37,'MDA3'!L37,'T1'!M37,'T2'!K37,T3_R1!L37,T3_R2!L37) -> 30438.31365 | AX37: =MAX('MDA1'!L37,'MDA2'!L37,'MDA3'!J37,'MDA3'!M37,'T1'!N37,'T2'!L37,T3_R1!M37,T3_R2!M37) -> 58898.68635 | AY37: 105354 | AZ37: =MAX('MDA2'!J37,T37) -> 16017 | BA37: =MAX('MDA1'!K37,'MDA2'!K37,'MDA3'!I37,'MDA3'!L37,V37,AD37) -> 30438.31365 | BB37: =MAX('MDA1'!L37,'MDA2'!L37,'MDA3'!J37,'MDA3'!M37,AF37) -> 58898.68635 | BC37: 105354 | BD37: 96.4215112

Sheet SUMMARY
B2: PC Joint Reporting Form v.3
B4: Country | D4: =IF(INTRO!$E$34<>0,INTRO!$E$34," ") -> Malawi | G4: Year | H4: =IF(INTRO!$E$36<>0,INTRO!$E$36," ") -> 2016
B6: National authorities are requested to complete the Joint Reporting Form (JRF) for submission to the World Health Organization any time before 15 August of the current year for reporting data on PC interventions implemented during the previous year.
B14: Number of people received treatment (at least once) for the diseases
E16: PreSAC | F16: SAC | G16: Adults | H16: Total
B17: Lymphatic filariasis | E17: Not eligible | F17: 0 | G17: 0 | H17: =SUM(E17:G17) -> 0
B18: Onchocerciasis | E18: Not eligible | F18: 645574 | G18: 1249202 | H18: =SUM(E18:G18) -> 1894776
B19: Soil-transmitted helminthiases | E19: 2510962 | F19: 4008556 | G19: 2003568 | H19: =SUM(E19:G19) -> 8523086
B20: Schistosomiasis | E20: Not targeted | F20: 4008556 | G20: 2003568 | H20: =SUM(E20:G20) -> 6012124
B22: Coverage of PC interventions for the diseases (%)
G24: Geographical | H24: National
B25: Lymphatic filariasis | G25: 0 | H25: 0
B26: Onchocerciasis | G26: 100 | H26: 82.9228713
B27: Soil-transmitted helminthiases | G27: 100 | H27: 87.19850353
B28: Schistosomiasis | G28: 100 | H28: 64.44688843
B30: Number of people treated and programme coverage (%) by PC interventions
D32: PreSAC | E32: SAC | F32: Adults | G32: Total | H32: Coverage (%)
B33: MDA 1 (IVM+ALB) | D33: Not eligible | E33: ='MDA1'!$K$4 -> 0 | F33: ='MDA1'!$L$4 -> 0 | G33: ='MDA1'!$M$4 -> 0 | H33: ='MDA1'!$Q$4 -> 
B34: MDA 2 (DEC+ALB) | D34: ='MDA2'!$J$4 -> 0 | E34: ='MDA2'!$K$4 -> 0 | F34: ='MDA2'!$L$4 -> 0 | G34: ='MDA2'!$M$4 -> 0 | H34: ='MDA2'!$Q$4 -> 
B35: MDA 3 (IVM) | D35: Not eligible | E35: ='MDA3'!$O$4 -> 645575.5867 | F35: ='MDA3'!$P$4 -> 1249200.413 | G35: ='MDA3'!$Q$4 -> 1894776 | H35: ='MDA3'!$T$4 -> 82.9228713
B36: T 1 (PZQ+ALB/MBD) | D36: =IF('T1'!$L$4<>0,'T1'!$L$4,"Not targeted") -> Not targeted | E36: ='T1'!$M$4 -> 4008556 | F36: =IF('T1'!$N$4<>0,'T1'!$N$4,"Not targeted") -> 2003568 | G36: ='T1'!$O$4 -> 6012124 | H36: ='T1'!$S$4 -> 79.10856018
B37: T 2 (PZQ) | D37: =IF('T2'!$J$4<>0,'T2'!$J$4,"Not targeted") -> Not targeted | E37: ='T2'!$K$4 -> 0 | F37: ='T2'!$L$4 -> 0 | G37: ='T2'!$M$4 -> 0 | H37: ='T2'!$Q$4 -> 
B38: T 3 (ALB/MBD) - round 1 | D38: =T3_R1!$K$4 -> 2429181 | E38: =T3_R1!$L$4 -> 0 | F38: =IF(T3_R1!$M$4<>0,T3_R1!$M$4,"Not targeted") -> Not targeted | G38: =T3_R1!$N$4 -> 2429181 | H38: =T3_R1!$R$4 -> 106.1114598
B39: T 3 (ALB/MBD) - round 2 | D39: =T3_R2!$K$4 -> 2228430 | E39: =T3_R2!$L$4 -> 0 | F39: =IF(T3_R2!$M$4<>0,T3_R2!$M$4,"Not targeted") -> Not targeted | G39: =T3_R2!$N$4 -> 2228430 | H39: =T3_R2!$R$4 -> 97.34225669
B41: Inventory of PC medicines in the country
C43: IVM | D43: DEC | E43: ALB (LF) | F43: ALB (STH) | G43: MBD | H43: PZQ
B44: Available
B45: Distributed
B46: Wasted
B47: Received
B48: Remaining | C48: =C44-C45-C46+C47 -> 0 | D48: 0 | E48: 0 | F48: 0 | G48: 0 | H48: 0
B50: Please indicate the medicine has been used to treat PreSAC for STH and delivery channels
B51: PC medicine | D51: Delivery channels | G51: Source
B53: Additional information
B63: Name and signature of NTD coordinator or Ministry of Health representative:
B65: Date:
B67: Please send the national report (signed and in electronic format) to the concerned WR with copy to:
B69: WHO headquarters | D69: PC_JointForms@who.int
B70: WHO Regional Office | D70: Regional Advisor for NTD

Sheet PROFILE (hidden)
B2: PC Joint Reporting Form v.3 - Country Profile
B4: Country | D4: =IF(INTRO!$E$34<>0,INTRO!$E$34," ") -> Malawi | G4: Year | H4: =IF(INTRO!$E$36<>0,INTRO!$E$36," ") -> 2016
B5: !!! WARNING !!! Before analysing data in the country profile please be ensure that your report in the SUMMARY tab is updated
B6: Total population | G6: 1 | H6: =COUNTRY_INFO!D4 -> 15815267
B7: Population — other age groups | G7: =IF($H$6<>0,H7/$H$6,0) -> 0.0002003127737 | H7: =H6-SUM(H8:H10) -> 3168
B8: Population — Pre-SAC | D8: =INTRO!B48 -> 1-4 years age | G8: =IF($H$6<>0,H8/$H$6,0) -> 0.1867999446 | H8: =COUNTRY_INFO!E4 -> 2954291
B9: Population — SAC | D9: =INTRO!B49 -> 5-14 years age | G9: =IF($H$6<>0,H9/$H$6,0) -> 0.2769999394 | H9: =COUNTRY_INFO!F4 -> 4380828
B10: Population — Adults | D10: =INTRO!B50 -> 15 years + | G10: 0.5359998032 | H10: =COUNTRY_INFO!G4 -> 8476980
B12: Total number of people requiring PC for at least one disease (LF, ONCHO, STH, SCH) | H12: =DISTRICT!AT6 -> 12066884.14
B13: Proportion of number of people requiring PC for at least one disease out of total population | H13: =IF(H6<>0,H12/H6,0) -> 0.7629895936
B14: Number of IUs requiring PC for at least one disease (LF, ONCHO, STH, SCH) | H14: =COUNTIF(DISTRICT!AT9:AT1000,">0") -> 29
B15: Number of IUs received PC for at least one disease (LF, ONCHO, STH, SCH) | H15: =COUNTIF(DISTRICT!AY9:AY1000,">0") -> 29
B16: Proportion of IUs requiring PC for at least one disease and received it | H16: =IF(H14<>0,H15/H14,0) -> 1
B17: Total number of people received PC for at least one disease (LF, ONCHO, STH, SCH) | H17: =DISTRICT!AY6 -> 9450068.203
B18: Total number of people in need who received PC for at least one disease (LF, ONCHO, STH, SCH) | H18: =DISTRICT!BC6 -> 9070016.469
B19: Coverage of PC for at least one disease (LF, ONCHO, STH, SCH) | H19: =DISTRICT!BD6 -> 0.7516452767
B20: Number of IUs received treatment for all diseases requiring PC in those IUs | H20: =DISTRICT!AU6 -> 29
B21: Population requring PC in IUs which received treatment for all diseases in need of PC | H21: =SUMIF(DISTRICT!AU9:AU1000,"Y",DISTRICT!AT9:AT1000) -> 12066884.14
B22: Population received PC in IUs which were treated for all diseases in need of PC | H22: =SUMIF(DISTRICT!AU9:AU1000,"Y",DISTRICT!AY9:AY1000) -> 9450068.203
E24: LF | F24: ONCHO | G24: STH | H24: SCH
B26: Diseases requiring PC in the country | E26: =IF(INTRO!E38="Endemic","Yes","No") -> No | F26: =IF(INTRO!E40="Endemic","Yes","No") -> Yes | G26: =IF(INTRO!E42="Endemic","Yes","No") -> Yes | H26: =IF(INTRO!E44="Endemic","Yes","No") -> Yes
B27: Number of implementation units (IUs) in the country | E27: =IF(E26="Yes",INTRO!$E$46,"-") -> - | F27: =IF(F26="Yes",INTRO!$E$46,"-") -> 29 | G27: =IF(G26="Yes",INTRO!$E$46,"-") -> 29 | H27: =IF(H26="Yes",INTRO!$E$46,"-") -> 29
B28: Number of IUs with endemicity status known | E28: =IF(E26="Yes",E27-E29,"-") -> - | F28: =IF(F26="Yes",F27-F29,"-") -> 29 | G28: =IF(G26="Yes",G27-G29,"-") -> 29 | H28: =IF(H26="Yes",H27-H29,"-") -> 29
B29: Number of IUs with endemicity status unknown | E29: =IF(E26="Yes",E27-(992-COUNTIF(COUNTRY_INFO!H$9:H$1000,""))+COUNTIF(COUNTRY_INFO!H$9:H$1000,"=4"),"-") -> - | F29: =IF(F26="Yes",F27-(992-COUNTIF(COUNTRY_INFO!I$9:I$1000,""))+COUNTIF(COUNTRY_INFO!I$9:I$1000,"=4"),"-") -> 0 | G29: =IF(G26="Yes",G27-(992-COUNTIF(COUNTRY_INFO!J$9:J$1000,""))+COUNTIF(COUNTRY_INFO!J$9:J$1000,"=4")+COUNTIF(COUNTRY_INFO!J$9:J$1000,"=5"),"-") -> 0 | H29: =IF(H26="Yes",H27-(992-COUNTIF(COUNTRY_INFO!K$9:K$1000,""))+COUNTIF(COUNTRY_INFO!K$9:K$1000,"=4")+COUNTIF(COUNTRY_INFO!K$9:K$1000,"=5"),"-") -> 0
B30: Number of non-endemic IUs | E30: =IF(E26="Yes",COUNTIF(COUNTRY_INFO!H$9:H$1000,"=0"),"-") -> - | F30: =IF(F26="Yes",COUNTIF(COUNTRY_INFO!I$9:I$1000,"=0"),"-") -> 21 | G30: =IF(G26="Yes",COUNTIF(COUNTRY_INFO!J$9:J$1000,"=0"),"-") -> 0 | H30: =IF(H26="Yes",COUNTIF(COUNTRY_INFO!K$9:K$1000,"=0"),"-") -> 0
B31: Number of IUs requiring PC (total) | E31: =COUNTIF(COUNTRY_INFO!H$9:H$1000,"=1") -> 0 | F31: =COUNTIF(COUNTRY_INFO!I$9:I$1000,"=1") -> 8 | G31: =SUM(G33:G34) -> 29 | H31: =SUM(H32:H34) -> 29
D32: low prevalence | G32: =COUNTIF(COUNTRY_INFO!J$9:J$1000,"=1") -> 0 | H32: =COUNTIF(COUNTRY_INFO!K$9:K$1000,"=1") -> 0
D33: moderate prevalence | G33: =COUNTIF(COUNTRY_INFO!J$9:J$1000,"=2") -> 29 | H33: =COUNTIF(COUNTRY_INFO!K$9:K$1000,"=2") -> 19
D34: high prevalence | G34: =COUNTIF(COUNTRY_INFO!J$9:J$1000,"=3") -> 0 | H34: =COUNTIF(COUNTRY_INFO!K$9:K$1000,"=3") -> 10
B35: Population requiring PC in the country (total) | E35: =COUNTRY_INFO!L4 -> 0 | F35: =COUNTRY_INFO!M4 -> 2284986 | G35: =COUNTRY_INFO!N4 -> 7335119 | H35: =COUNTRY_INFO!O4 -> 7066970.2
C36: Pre-SAC | D36: moderate prevalence | G36: =SUMIF(COUNTRY_INFO!J$9:J$1000,"=2",COUNTRY_INFO!E$9:E$1000) -> 2954291
D37: high prevalence | G37: =SUMIF(COUNTRY_INFO!J$9:J$1000,"=3",COUNTRY_INFO!E$9:E$1000) -> 0
C38: SAC | D38: low prevalence | H38: =SUMIF(COUNTRY_INFO!K$9:K$1000,"=1",COUNTRY_INFO!F$9:F$1000)*0.33 -> 0
D39: moderate prevalence | G39: =SUMIF(COUNTRY_INFO!J$9:J$1000,"=2",COUNTRY_INFO!F$9:F$1000) -> 4380828 | H39: =SUMIF(COUNTRY_INFO!K$9:K$1000,"=2",COUNTRY_INFO!F$9:F$1000)*0.5 -> 1413769
D40: high prevalence | G40: =SUMIF(COUNTRY_INFO!J$9:J$1000,"=3",COUNTRY_INFO!F$9:F$1000) -> 0 | H40: =SUMIF(COUNTRY_INFO!K$9:K$1000,"=3",COUNTRY_INFO!F$9:F$1000) -> 1553290
C41: Adults | D41: moderate prevalence | H41: =SUMIF(COUNTRY_INFO!K$9:K$1000,"=2",COUNTRY_INFO!G$9:G$1000)*0.2 -> 1094267.2
D42: high prevalence | H42: =SUMIF(COUNTRY_INFO!K$9:K$1000,"=3",COUNTRY_INFO!G$9:G$1000) -> 3005644
B43: Number of IUs where PC was implemented (total) | E43: =COUNTIF(DISTRICT!G$9:G$1000,">0") -> 0 | F43: =COUNTIF(DISTRICT!M$9:M$1000,">0") -> 8 | G43: =COUNTIF(DISTRICT!S$9:S$1000,">0") -> 29 | H43: =COUNTIF(DISTRICT!AC$9:AC$1000,">0") -> 29
B44: Number of IUs in need where PC was implemented (total) | E44: =COUNTIF(DISTRICT!H$9:H$1000,">0") -> 0 | F44: =COUNTIF(DISTRICT!N$9:N$1000,">0") -> 8 | G44: =COUNTIF(DISTRICT!X$9:X$1000,">0") -> 29 | H44: =COUNTIF(DISTRICT!AH$9:AH$1000,">0") -> 29
C45: Pre-SAC | G45: =COUNTIF(DISTRICT!T$9:T$1000,">0") -> 29
C46: SAC | G46: =COUNTIF(DISTRICT!V$9:V$1000,">0") -> 29 | H46: =COUNTIF(DISTRICT!AD$9:AD$1000,">0") -> 29
C47: Adults | H47: =COUNTIF(DISTRICT!AF$9:AF$1000,">0") -> 29
B48: Number of individuals treated (total) | E48: =DISTRICT!G4 -> 0 | F48: =DISTRICT!M4 -> 1894776 | G48: =DISTRICT!S4 -> 8523086 | H48: =DISTRICT!AC4 -> 6012124
C49: Pre-SAC | E49: =SUMMARY!$E17 -> Not eligible | F49: =SUMMARY!$E18 -> Not eligible | G49: =SUMMARY!$E19 -> 2510962 | H49: =SUMMARY!$E20 -> Not targeted
C50: SAC | E50: =SUMMARY!$F17 -> 0 | F50: =SUMMARY!$F18 -> 645574 | G50: =SUMMARY!$F19 -> 4008556 | H50: =SUMMARY!$F20 -> 4008556
C51: Adults | E51: =SUMMARY!$G17 -> 0 | F51: =SUMMARY!$G18 -> 1249202 | G51: =SUMMARY!$G19 -> 2003568 | H51: =SUMMARY!$G20 -> 2003568
B52: Number of individuals in need treated (total) | E52: =DISTRICT!H4 -> 0 | F52: =DISTRICT!N4 -> 1894776 | G52: =DISTRICT!X4 -> 6396114 | H52: =DISTRICT!AH4 -> 4554442.4
C53: Pre-SAC | G53: =DISTRICT!T4 -> 2497463
C54: SAC | G54: =DISTRICT!V4 -> 3898651 | H54: =DISTRICT!AD4 -> 2835329
C55: Adults | H55: =DISTRICT!AF4 -> 1719113.4
B56: Geographical coverage (all ages) | E56: =IF(E31<>0,E44/E31,0) -> 0 | F56: =IF(F31<>0,F44/F31,0) -> 1 | G56: =IF(G31<>0,G44/G31,0) -> 1 | H56: =IF(H31<>0,H44/H31,0) -> 1
C57: Pre-SAC | G57: =IF(G31<>0,G45/G31,0) -> 1
C58: SAC | G58: =IF(G31<>0,G46/G31,0) -> 1 | H58: =IF(H31<>0,H46/H31,0) -> 1
C59: Adults | H59: =IF(SUM(H33:H34)<>0,H47/SUM(H33:H34),0) -> 1
B60: National coverage (total) | E60: =IF(E35<>0,E52/E35,0) -> 0 | F60: =IF(F35<>0,F52/F35,0) -> 0.829228713 | G60: =IF(G35<>0,G52/G35,0) -> 0.8719850353 | H60: =IF(H35<>0,H52/H35,0) -> 0.6444688843
C61: Pre-SAC | G61: =IF(SUM(G36:G37)<>0,G53/SUM(G36:G37),0) -> 0.8453679749
C62: SAC | G62: =IF(SUM(G39:G40)<>0,G54/SUM(G39:G40),0) -> 0.8899347338 | H62: =IF(SUM(H38:H40)<>0,H54/SUM(H38:H40),0) -> 0.9556025007
C63: Adults | H63: =IF(SUM(H41:H42)<>0,H55/SUM(H41:H42),0) -> 0.4193050328
E64: LF | F64: ONCHO | G64: STH | H64: SCH
B66: Number of IUs achieved effective coverage (all ages) | E66: =COUNTIF(DISTRICT!I$9:I$1000,">=65") -> 0 | F66: =COUNTIF(DISTRICT!O$9:O$1000,">=65") -> 8 | G66: =COUNTIF(DISTRICT!Y$9:Y$1000,">=75") -> 28 | H66: =COUNTIF(DISTRICT!AI$9:AI$1000,">=75") -> 16
C67: Pre-SAC | G67: =COUNTIF(DISTRICT!U$9:U$1000,">=75") -> 26
C68: SAC | G68: =COUNTIF(DISTRICT!W$9:W$1000,">=75") -> 28 | H68: =COUNTIF(DISTRICT!AE$9:AE$1000,">=75") -> 29
C69: Adults | H69: =COUNTIF(DISTRICT!AG$9:AG$1000,">=75") -> 14
B70: Number of individuals in need treated in IUs achieved effective coverage (total) | E70: =SUMIF(DISTRICT!I9:I1000,">=65",DISTRICT!H9:H1000) -> 0 | F70: =SUMIF(DISTRICT!O9:O1000,">=65",DISTRICT!N9:N1000) -> 1894776 | G70: =SUMIF(DISTRICT!Y9:Y1000,">=75",DISTRICT!X9:X1000) -> 6149797 | H70: =SUMIF(DISTRICT!AI9:AI1000,">=75",DISTRICT!AH9:AH1000) -> 2128476.9
C71: Pre-SAC | G71: =SUMIF(DISTRICT!U9:U1000,">=75",DISTRICT!T9:T1000) -> 2330916
C72: SAC | G72: =SUMIF(DISTRICT!W9:W1000,">=75",DISTRICT!V9:V1000) -> 3753054 | H72: =SUMIF(DISTRICT!AE9:AE1000,">=75",DISTRICT!AD9:AD1000) -> 2835329
C73: Adults | H73: =SUMIF(DISTRICT!AG9:AG1000,">=75",DISTRICT!AF9:AF1000) -> 844790.4
B74: Proportion of IUs requiring PC and achieved effective coverage (total) | E74: =IF(E44<>0,E66/E44,0) -> 0 | F74: =IF(F44<>0,F66/F44,0) -> 1 | G74: =IF(G44<>0,G66/G44,0) -> 0.9655172414 | H74: =IF(H44<>0,H66/H44,0) -> 0.5517241379
C75: Pre-SAC | G75: =IF(G45<>0,G67/G45,0) -> 0.8965517241
C76: SAC | G76: =IF(G46<>0,G68/G46,0) -> 0.9655172414 | H76: =IF(H46<>0,H68/H46,0) -> 1
C77: Adults | H77: =IF(H47<>0,H69/H47,0) -> 0.4827586207
B78: Number of implementation units where PC was stopped (i.e. under surveillance) | E78: =COUNTIF(COUNTRY_INFO!H$9:H$1000,"=99") -> 0 | F78: =COUNTIF(COUNTRY_INFO!I$9:I$1000,"=99") -> 0
B79: Number of individuals in IUs no longer requiring PC (stopped) | E79: =SUMIF(COUNTRY_INFO!H$9:H$1000,"=99",COUNTRY_INFO!D$9:D$1000) -> 0 | F79: =SUMIF(COUNTRY_INFO!I$9:I$1000,"=99",COUNTRY_INFO!D$9:D$1000) -> 0
B80: Number of individuals requiring PC living in IUs targeted with PC | E80: =SUMIF(DISTRICT!H$9:H$1000,">0",DISTRICT!D$9:D$1000) -> 0 | F80: =SUMIF(DISTRICT!N$9:N$1000,">0",DISTRICT!J$9:J$1000) -> 2284986 | G80: =SUMIF(DISTRICT!X$9:X$1000,">0",DISTRICT!P$9:P$1000) -> 7335119 | H80: =SUMIF(DISTRICT!AH$9:AH$1000,">0",DISTRICT!Z$9:Z$1000) -> 7066970.2
B81: Number of individuals requiring PC living in IUs not targeted with PC | E81: =SUMIF(DISTRICT!H$9:H$1000,"=0",DISTRICT!D$9:D$1000) -> 0 | F81: =SUMIF(DISTRICT!N$9:N$1000,"=0",DISTRICT!J$9:J$1000) -> 0 | G81: =SUMIF(DISTRICT!X$9:X$1000,"=0",DISTRICT!P$9:P$1000) -> 0 | H81: =SUMIF(DISTRICT!AH$9:AH$1000,"=0",DISTRICT!Z$9:Z$1000) -> 0
E82: =E35-E52 -> 0 | F82: =F35-F52 -> 390210 | G82: 939005 | H82: 2512527.8
B83: Number of IUs requiring and receiving PC | E83: =E31-E44 -> 0 | F83: =F31-F44 -> 0 | G83: 0 | H83: 0
E84: =E27-E31-E29 ->  | F84: 21 | G84: 0 | H84: =H27-H31-H29 -> 0
G86: Requiring and receiving PC
G87: Requiring and not receiving PC
G88: Not requiring PC
G89: Status unknown
B124: Click here to access data Preventive Chemotherapy Data Portal
